{"text_format":"1","workbook":"xlsx","n_sheets":13,"sheets":["vakformulieren","ongevallen en incidenten","bedrijven","categorie","soort","maatregel","klanttevredenheid","afdeling","matrix faalkosten","indeling externe klachten","Vergelijk incidenten ","Blad1","Blad4"],"not_rendered":{"charts":0,"images":0,"macros":1,"external_links":0,"defined_names":31,"comments":2,"pivot_tables":1},"unopened":[],"bounds":{"document_bytes":16777216,"sheet_cells":100000,"rows_first":2000,"rows_last":500,"rows_between":2000,"halvings":0,"cell_chars":16384,"cell_head_chars":4096},"cells_cut":0,"cells_raw":0,"read":"whole","date_system":"1900"}

{"sheet":"vakformulieren","index":0,"n_rows":15,"n_cols":32,"rows_kept":15,"cut":false,"hidden":false,"merged":[[0,4,0,29]]}
[null,null,null,null,"Verbeterformulieren Amfors 2018",null,null,null,null,null,null,null,null,null,null,null,null,null,null,null,null,null,null,null,null,null,null,null,null,null,".docx","file:///\\\\N:\\KAM\\VAK formulieren\\2018\\Vakformulieren Amfors\\"]
["Formulier-nummer:","code:","bedrijf:","Cate-gorie:","Soort:","soort (indien externe klacht):","Indiener:","Van afdeling:","Betreft afdeling:","Ontvangst:","Distributie:","fictief schadebedrag externe klachten:","kosten verloren materiaal:","Verloren uren:","Kosten verloren uren: ","Uren ziekte-verzuim:","Kosten ziekte-verzuim: ","schade j/n:","schade-bedragen:","faalkosten totaal:","Kenteken intern:","Betr. medew./ Melding/klant:","Activa-nummers:","Bespr. KT:","gereed d.d.:","Klant-tevreden-heid:","Extra controle d.d.:","extra controle gereed:","Scan/ digitaal formulier:","in hoeveel dagen gereed:"]
["VER2018001",null,"Cleanfors",1,"1 procedure","n.v.t.","Gussenhoven B.","KAM","Cleanfors algemeen","2018-01-15","Wijk van M.",null,null,null,null,null,null,null,null,null,null,null,null,null,"2018-01-22",null,"2018-05-01",null,{"$f":"IF(A3>\"\",HYPERLINK(CONCATENATE($AF$1,$A3,$AE$1),$A3),\"\")","v":"VER2018001"},{"$f":"IF(AND(J3>0,Y3>0),NETWORKDAYS(J3,Y3), IF(AND(J3>0,Y3=0),NETWORKDAYS(J3,TODAY()),\"\"))","v":6}]
["VER2018002",null,"Cleanfors",5,"5 letsel","n.v.t.","Deelen J.","Cleanfors regio Magdalena Jacznik","Cleanfors regio Magdalena Jacznik","2018-01-18","Wijk van M.",null,null,null,null,null,null,null,null,null,null,"Bronswijk van B.",null,null,"2018-01-22",null,null,"n.v.t.","VER2018002",3]
["VER2018003",null,null,null,null,null,null,null,null,null,null,null,null,null,null,null,null,null,null,null,null,null,null,null,null,null,null,null,"VER2018003",""]
["VER2018004",null,"Eemfors",5,"5 diefstal","n.v.t.","Vuurde van H.","Amersfoort 9 Bomen","Amersfoort 9 Bomen","2018-01-09","Krijt H.",null,null,null,null,null,null,"J",null,null,null,null,null,null,null,null,null,null,{"$f":"IF(A6>\"\",HYPERLINK(CONCATENATE($AF$1,$A6,$AE$1),$A6),\"\")","v":"VER2018004"},{"$f":"IF(AND(J6>0,Y6>0),NETWORKDAYS(J6,Y6), IF(AND(J6>0,Y6=0),NETWORKDAYS(J6,TODAY()),\"\"))","v":42}]
["VER2018005",null,"Cleanfors",5,"5 onwel / ziek","n.v.t.","Huizenga E.","Cleanfors regio Erwin Huizenga","Cleanfors regio Erwin Huizenga","2018-02-08","Koning R.",null,null,null,null,null,null,null,null,null,null,"Ockers-Tommel A.",null,null,"2018-02-09",null,null,"n.v.t.","VER2018005",2]
["VER2018006",null,"Productie",5,"5 bijna-ongeval","n.v.t.","Holtewes T.","Geesa","Geesa","2018-02-01","Heijden v/d V.",null,null,null,null,null,null,null,null,null,null,"Weesies",null,null,"2018-02-01",null,"2018-02-27","N","VER2018006",1]
["VER2018007",null,"Eemfors",5,"5 materiële schade","n.v.t.","Kwee J.","Soest","Soest","2018-01-11","Krijt H.",null,null,null,null,null,null,null,null,null,"VG-339-N","Kwee J.",null,null,"2018-01-15",null,null,"n.v.t.","VER2018007",3]
["VER2018008",null,"Metafors",5,"5 materiële schade","n.v.t.","Conrads R.","Magazijn","Magazijn","2018-02-21","Jansen E.",null,null,null,null,null,null,null,null,null,null,null,null,null,null,null,null,null,"VER2018008",11]
["VER2018009",null,"Metafors",5,"5 materiële schade","n.v.t.",null,"Magazijn","Magazijn","2018-02-21","Jansen E.",null,null,null,null,null,null,null,null,null,null,null,null,null,"2018-01-22",null,null,"n.v.t.","VER2018009",-23]
[null,null,null,null,null,null,null,null,null,null,null,null,null,null,null,null,null,null,null,null,null,null,null,null,null,null,null,null,"",""]
[null,null,null,null,null,null,null,null,null,null,null,null,null,null,null,null,null,null,null,null,null,null,null,null,null,null,null,null,"",""]
[null,null,null,null,null,null,null,null,null,null,null,null,null,null,null,null,null,null,null,null,null,null,null,null,null,null,null,null,"",""]
[{"$f":"(SUBTOTAL(3,A3:A14))","v":9},null,null,null,null,null,null,null,null,null,null,{"$f":"SUBTOTAL(9,Lijst1[fictief schadebedrag externe klachten:])","v":0},{"$f":"SUBTOTAL(9,Lijst1[kosten verloren materiaal:])","v":0},{"$f":"SUBTOTAL(9,Lijst1[Verloren uren:])","v":0},{"$f":"SUBTOTAL(9,Lijst1[Kosten verloren uren: ])","v":0},{"$f":"SUBTOTAL(9,Lijst1[Uren ziekte-verzuim:])","v":0},{"$f":"SUBTOTAL(9,Lijst1[Kosten ziekte-verzuim: ])","v":0},null,{"$f":"SUBTOTAL(9,Lijst1[schade-bedragen:])","v":0},{"$f":"SUBTOTAL(9,Lijst1[faalkosten totaal:])","v":0}]

{"sheet":"ongevallen en incidenten","index":1,"n_rows":422,"n_cols":38,"rows_kept":422,"cut":false,"hidden":false,"merged":[[0,0,0,11]]}
["Ongevallen en fysieke incidenten Amfors 2018:",null,null,null,null,null,null,null,null,null,null,null,null,null,null,null,null,null,null,null,null,null,null,null,null,null,null,null,null,null,null,null,null,null,null,null,".docx","file:///\\\\N:\\KAM\\VAK formulieren\\2017\\vakformulieren Amfors\\"]
[" ","vakform-nr:","Bedrijf:","soort:","Naam getroffene:","Pers.nr:","Datum & tijdstip ongeval:","Omschrijving: locatie, met welk soort werk bezig, wat is er gebeurd:","Soort letsel en plaats:","Verzuim-dagen (op basis 40 urige werkweek):","Bijzonderheden","Opnemen in Klipfolio"]
[]
[{"$f":"IF(OR(vakformulieren!$E3=\"5 letsel\",vakformulieren!$E3=\"5 onwel / ziek\",vakformulieren!$E3=\"5 milieuschade\"),vakformulieren!$A3,\"\")","v":""},{"$f":"IF($A4>\"\",HYPERLINK(CONCATENATE($AL$1,$A4,$AK$1),$A4),\"\")","v":""},{"$f":"IF(OR(vakformulieren!$E3=\"5 letsel\",vakformulieren!$E3=\"5 onwel / ziek\",vakformulieren!$E3=\"5 milieuschade\"),vakformulieren!$C3,\"\")","v":""},{"$f":"IF(OR(vakformulieren!$E3=\"5 letsel\",vakformulieren!$E3=\"5 onwel / ziek\",vakformulieren!$E3=\"5 milieuschade\"),vakformulieren!$E3,\"\")","v":""},{"$f":"IF(OR(vakformulieren!$E3=\"5 letsel\",vakformulieren!$E3=\"5 onwel / ziek\",vakformulieren!$E3=\"5 milieuschade\"),vakformulieren!$V3,\"\")","v":""},null,null,null,null,{"$f":"IF(AND(OR(vakformulieren!$E3=\"5 letsel\",vakformulieren!$E3=\"5 onwel / ziek\",vakformulieren!$E3=\"5 milieuschade\"),vakformulieren!$E3>0),SUM(vakformulieren!$P3/8),\"\")","v":""}]
[{"$f":"IF(OR(vakformulieren!$E4=\"5 letsel\",vakformulieren!$E4=\"5 onwel / ziek\",vakformulieren!$E4=\"5 milieuschade\"),vakformulieren!$A4,\"\")","v":"VER2018002"},"VER2018002",{"$f":"IF(OR(vakformulieren!$E4=\"5 letsel\",vakformulieren!$E4=\"5 onwel / ziek\",vakformulieren!$E4=\"5 milieuschade\"),vakformulieren!$C4,\"\")","v":"Cleanfors"},{"$f":"IF(OR(vakformulieren!$E4=\"5 letsel\",vakformulieren!$E4=\"5 onwel / ziek\",vakformulieren!$E4=\"5 milieuschade\"),vakformulieren!$E4,\"\")","v":"5 letsel"},{"$f":"IF(OR(vakformulieren!$E4=\"5 letsel\",vakformulieren!$E4=\"5 onwel / ziek\",vakformulieren!$E4=\"5 milieuschade\"),vakformulieren!$V4,\"\")","v":"Bronswijk van B."},null,null,null,null,{"$f":"IF(AND(OR(vakformulieren!$E4=\"5 letsel\",vakformulieren!$E4=\"5 onwel / ziek\",vakformulieren!$E4=\"5 milieuschade\"),vakformulieren!$E4>0),SUM(vakformulieren!$P4/8),\"\")","v":0}]
[{"$f":"IF(OR(vakformulieren!$E5=\"5 letsel\",vakformulieren!$E5=\"5 onwel / ziek\",vakformulieren!$E5=\"5 milieuschade\"),vakformulieren!$A5,\"\")","v":""},"",{"$f":"IF(OR(vakformulieren!$E5=\"5 letsel\",vakformulieren!$E5=\"5 onwel / ziek\",vakformulieren!$E5=\"5 milieuschade\"),vakformulieren!$C5,\"\")","v":""},{"$f":"IF(OR(vakformulieren!$E5=\"5 letsel\",vakformulieren!$E5=\"5 onwel / ziek\",vakformulieren!$E5=\"5 milieuschade\"),vakformulieren!$E5,\"\")","v":""},{"$f":"IF(OR(vakformulieren!$E5=\"5 letsel\",vakformulieren!$E5=\"5 onwel / ziek\",vakformulieren!$E5=\"5 milieuschade\"),vakformulieren!$V5,\"\")","v":""},null,null,null,null,{"$f":"IF(AND(OR(vakformulieren!$E5=\"5 letsel\",vakformulieren!$E5=\"5 onwel / ziek\",vakformulieren!$E5=\"5 milieuschade\"),vakformulieren!$E5>0),SUM(vakformulieren!$P5/8),\"\")","v":""}]
[{"$f":"IF(OR(vakformulieren!$E6=\"5 letsel\",vakformulieren!$E6=\"5 onwel / ziek\",vakformulieren!$E6=\"5 milieuschade\"),vakformulieren!$A6,\"\")","v":""},"",{"$f":"IF(OR(vakformulieren!$E6=\"5 letsel\",vakformulieren!$E6=\"5 onwel / ziek\",vakformulieren!$E6=\"5 milieuschade\"),vakformulieren!$C6,\"\")","v":""},{"$f":"IF(OR(vakformulieren!$E6=\"5 letsel\",vakformulieren!$E6=\"5 onwel / ziek\",vakformulieren!$E6=\"5 milieuschade\"),vakformulieren!$E6,\"\")","v":""},{"$f":"IF(OR(vakformulieren!$E6=\"5 letsel\",vakformulieren!$E6=\"5 onwel / ziek\",vakformulieren!$E6=\"5 milieuschade\"),vakformulieren!$V6,\"\")","v":""},null,null,null,null,{"$f":"IF(AND(OR(vakformulieren!$E6=\"5 letsel\",vakformulieren!$E6=\"5 onwel / ziek\",vakformulieren!$E6=\"5 milieuschade\"),vakformulieren!$E6>0),SUM(vakformulieren!$P6/8),\"\")","v":""}]
[{"$f":"IF(OR(vakformulieren!$E7=\"5 letsel\",vakformulieren!$E7=\"5 onwel / ziek\",vakformulieren!$E7=\"5 milieuschade\"),vakformulieren!$A7,\"\")","v":"VER2018005"},"VER2018005",{"$f":"IF(OR(vakformulieren!$E7=\"5 letsel\",vakformulieren!$E7=\"5 onwel / ziek\",vakformulieren!$E7=\"5 milieuschade\"),vakformulieren!$C7,\"\")","v":"Cleanfors"},{"$f":"IF(OR(vakformulieren!$E7=\"5 letsel\",vakformulieren!$E7=\"5 onwel / ziek\",vakformulieren!$E7=\"5 milieuschade\"),vakformulieren!$E7,\"\")","v":"5 onwel / ziek"},{"$f":"IF(OR(vakformulieren!$E7=\"5 letsel\",vakformulieren!$E7=\"5 onwel / ziek\",vakformulieren!$E7=\"5 milieuschade\"),vakformulieren!$V7,\"\")","v":"Ockers-Tommel A."},null,null,null,null,{"$f":"IF(AND(OR(vakformulieren!$E7=\"5 letsel\",vakformulieren!$E7=\"5 onwel / ziek\",vakformulieren!$E7=\"5 milieuschade\"),vakformulieren!$E7>0),SUM(vakformulieren!$P7/8),\"\")","v":0}]
[{"$f":"IF(OR(vakformulieren!$E8=\"5 letsel\",vakformulieren!$E8=\"5 onwel / ziek\",vakformulieren!$E8=\"5 milieuschade\"),vakformulieren!$A8,\"\")","v":""},"",{"$f":"IF(OR(vakformulieren!$E14=\"5 letsel\",vakformulieren!$E14=\"5 onwel / ziek\",vakformulieren!$E14=\"5 milieuschade\"),vakformulieren!$C8,\"\")","v":""},{"$f":"IF(OR(vakformulieren!$E14=\"5 letsel\",vakformulieren!$E14=\"5 onwel / ziek\",vakformulieren!$E14=\"5 milieuschade\"),vakformulieren!$E8,\"\")","v":""},{"$f":"IF(OR(vakformulieren!$E14=\"5 letsel\",vakformulieren!$E14=\"5 onwel / ziek\",vakformulieren!$E14=\"5 milieuschade\"),vakformulieren!$V14,\"\")","v":""},null,null,null,null,{"$f":"IF(AND(OR(vakformulieren!$E14=\"5 letsel\",vakformulieren!$E14=\"5 onwel / ziek\",vakformulieren!$E14=\"5 milieuschade\"),vakformulieren!$E8>0),SUM(vakformulieren!$P8/8),\"\")","v":""}]
[{"$f":"IF(OR(vakformulieren!$E9=\"5 letsel\",vakformulieren!$E9=\"5 onwel / ziek\",vakformulieren!$E9=\"5 milieuschade\"),vakformulieren!$A9,\"\")","v":""},"",{"$f":"IF(OR(vakformulieren!$E15=\"5 letsel\",vakformulieren!$E15=\"5 onwel / ziek\",vakformulieren!$E15=\"5 milieuschade\"),vakformulieren!$C9,\"\")","v":""},{"$f":"IF(OR(vakformulieren!$E15=\"5 letsel\",vakformulieren!$E15=\"5 onwel / ziek\",vakformulieren!$E15=\"5 milieuschade\"),vakformulieren!$E9,\"\")","v":""},{"$f":"IF(OR(vakformulieren!$E15=\"5 letsel\",vakformulieren!$E15=\"5 onwel / ziek\",vakformulieren!$E15=\"5 milieuschade\"),vakformulieren!$V15,\"\")","v":""},null,null,null,null,{"$f":"IF(AND(OR(vakformulieren!$E15=\"5 letsel\",vakformulieren!$E15=\"5 onwel / ziek\",vakformulieren!$E15=\"5 milieuschade\"),vakformulieren!$E9>0),SUM(vakformulieren!$P9/8),\"\")","v":""}]
[{"$f":"IF(OR(vakformulieren!$E10=\"5 letsel\",vakformulieren!$E10=\"5 onwel / ziek\",vakformulieren!$E10=\"5 milieuschade\"),vakformulieren!$A10,\"\")","v":""},"",{"$f":"IF(OR(vakformulieren!$E16=\"5 letsel\",vakformulieren!$E16=\"5 onwel / ziek\",vakformulieren!$E16=\"5 milieuschade\"),vakformulieren!$C10,\"\")","v":""},{"$f":"IF(OR(vakformulieren!$E16=\"5 letsel\",vakformulieren!$E16=\"5 onwel / ziek\",vakformulieren!$E16=\"5 milieuschade\"),vakformulieren!$E10,\"\")","v":""},{"$f":"IF(OR(vakformulieren!$E16=\"5 letsel\",vakformulieren!$E16=\"5 onwel / ziek\",vakformulieren!$E16=\"5 milieuschade\"),vakformulieren!$V16,\"\")","v":""},null,null,null,null,{"$f":"IF(AND(OR(vakformulieren!$E16=\"5 letsel\",vakformulieren!$E16=\"5 onwel / ziek\",vakformulieren!$E16=\"5 milieuschade\"),vakformulieren!$E10>0),SUM(vakformulieren!$P10/8),\"\")","v":""}]
[{"$f":"IF(OR(vakformulieren!$E11=\"5 letsel\",vakformulieren!$E11=\"5 onwel / ziek\",vakformulieren!$E11=\"5 milieuschade\"),vakformulieren!$A11,\"\")","v":""},"",{"$f":"IF(OR(vakformulieren!$E17=\"5 letsel\",vakformulieren!$E17=\"5 onwel / ziek\",vakformulieren!$E17=\"5 milieuschade\"),vakformulieren!$C11,\"\")","v":""},{"$f":"IF(OR(vakformulieren!$E17=\"5 letsel\",vakformulieren!$E17=\"5 onwel / ziek\",vakformulieren!$E17=\"5 milieuschade\"),vakformulieren!$E11,\"\")","v":""},{"$f":"IF(OR(vakformulieren!$E17=\"5 letsel\",vakformulieren!$E17=\"5 onwel / ziek\",vakformulieren!$E17=\"5 milieuschade\"),vakformulieren!$V17,\"\")","v":""},null,null,null,null,{"$f":"IF(AND(OR(vakformulieren!$E17=\"5 letsel\",vakformulieren!$E17=\"5 onwel / ziek\",vakformulieren!$E17=\"5 milieuschade\"),vakformulieren!$E11>0),SUM(vakformulieren!$P11/8),\"\")","v":""}]
[{"$f":"IF(OR(vakformulieren!$E12=\"5 letsel\",vakformulieren!$E12=\"5 onwel / ziek\",vakformulieren!$E12=\"5 milieuschade\"),vakformulieren!$A12,\"\")","v":""},"",{"$f":"IF(OR(vakformulieren!$E18=\"5 letsel\",vakformulieren!$E18=\"5 onwel / ziek\",vakformulieren!$E18=\"5 milieuschade\"),vakformulieren!$C12,\"\")","v":""},{"$f":"IF(OR(vakformulieren!$E18=\"5 letsel\",vakformulieren!$E18=\"5 onwel / ziek\",vakformulieren!$E18=\"5 milieuschade\"),vakformulieren!$E12,\"\")","v":""},{"$f":"IF(OR(vakformulieren!$E18=\"5 letsel\",vakformulieren!$E18=\"5 onwel / ziek\",vakformulieren!$E18=\"5 milieuschade\"),vakformulieren!$V18,\"\")","v":""},null,null,null,null,{"$f":"IF(AND(OR(vakformulieren!$E18=\"5 letsel\",vakformulieren!$E18=\"5 onwel / ziek\",vakformulieren!$E18=\"5 milieuschade\"),vakformulieren!$E12>0),SUM(vakformulieren!$P12/8),\"\")","v":""}]
[{"$f":"IF(OR(vakformulieren!$E13=\"5 letsel\",vakformulieren!$E13=\"5 onwel / ziek\",vakformulieren!$E13=\"5 milieuschade\"),vakformulieren!$A13,\"\")","v":""},"",{"$f":"IF(OR(vakformulieren!$E19=\"5 letsel\",vakformulieren!$E19=\"5 onwel / ziek\",vakformulieren!$E19=\"5 milieuschade\"),vakformulieren!$C13,\"\")","v":""},{"$f":"IF(OR(vakformulieren!$E19=\"5 letsel\",vakformulieren!$E19=\"5 onwel / ziek\",vakformulieren!$E19=\"5 milieuschade\"),vakformulieren!$E13,\"\")","v":""},{"$f":"IF(OR(vakformulieren!$E19=\"5 letsel\",vakformulieren!$E19=\"5 onwel / ziek\",vakformulieren!$E19=\"5 milieuschade\"),vakformulieren!$V19,\"\")","v":""},null,null,null,null,{"$f":"IF(AND(OR(vakformulieren!$E19=\"5 letsel\",vakformulieren!$E19=\"5 onwel / ziek\",vakformulieren!$E19=\"5 milieuschade\"),vakformulieren!$E13>0),SUM(vakformulieren!$P13/8),\"\")","v":""}]
[{"$f":"IF(OR(vakformulieren!$E14=\"5 letsel\",vakformulieren!$E14=\"5 onwel / ziek\",vakformulieren!$E14=\"5 milieuschade\"),vakformulieren!$A14,\"\")","v":""},"",{"$f":"IF(OR(vakformulieren!$E20=\"5 letsel\",vakformulieren!$E20=\"5 onwel / ziek\",vakformulieren!$E20=\"5 milieuschade\"),vakformulieren!$C14,\"\")","v":""},{"$f":"IF(OR(vakformulieren!$E20=\"5 letsel\",vakformulieren!$E20=\"5 onwel / ziek\",vakformulieren!$E20=\"5 milieuschade\"),vakformulieren!$E14,\"\")","v":""},{"$f":"IF(OR(vakformulieren!$E20=\"5 letsel\",vakformulieren!$E20=\"5 onwel / ziek\",vakformulieren!$E20=\"5 milieuschade\"),vakformulieren!$V20,\"\")","v":""},null,null,null,null,{"$f":"IF(AND(OR(vakformulieren!$E20=\"5 letsel\",vakformulieren!$E20=\"5 onwel / ziek\",vakformulieren!$E20=\"5 milieuschade\"),vakformulieren!$E14>0),SUM(vakformulieren!$P14/8),\"\")","v":""}]
[{"$f":"IF(OR(vakformulieren!$E15=\"5 letsel\",vakformulieren!$E15=\"5 onwel / ziek\",vakformulieren!$E15=\"5 milieuschade\"),vakformulieren!$A15,\"\")","v":""},"",{"$f":"IF(OR(vakformulieren!$E21=\"5 letsel\",vakformulieren!$E21=\"5 onwel / ziek\",vakformulieren!$E21=\"5 milieuschade\"),vakformulieren!$C15,\"\")","v":""},{"$f":"IF(OR(vakformulieren!$E21=\"5 letsel\",vakformulieren!$E21=\"5 onwel / ziek\",vakformulieren!$E21=\"5 milieuschade\"),vakformulieren!$E15,\"\")","v":""},{"$f":"IF(OR(vakformulieren!$E21=\"5 letsel\",vakformulieren!$E21=\"5 onwel / ziek\",vakformulieren!$E21=\"5 milieuschade\"),vakformulieren!$V21,\"\")","v":""},null,null,null,null,{"$f":"IF(AND(OR(vakformulieren!$E21=\"5 letsel\",vakformulieren!$E21=\"5 onwel / ziek\",vakformulieren!$E21=\"5 milieuschade\"),vakformulieren!$E15>0),SUM(vakformulieren!$P15/8),\"\")","v":""}]
[{"$f":"IF(OR(vakformulieren!$E16=\"5 letsel\",vakformulieren!$E16=\"5 onwel / ziek\",vakformulieren!$E16=\"5 milieuschade\"),vakformulieren!$A16,\"\")","v":""},"",{"$f":"IF(OR(vakformulieren!$E22=\"5 letsel\",vakformulieren!$E22=\"5 onwel / ziek\",vakformulieren!$E22=\"5 milieuschade\"),vakformulieren!$C16,\"\")","v":""},{"$f":"IF(OR(vakformulieren!$E22=\"5 letsel\",vakformulieren!$E22=\"5 onwel / ziek\",vakformulieren!$E22=\"5 milieuschade\"),vakformulieren!$E16,\"\")","v":""},{"$f":"IF(OR(vakformulieren!$E22=\"5 letsel\",vakformulieren!$E22=\"5 onwel / ziek\",vakformulieren!$E22=\"5 milieuschade\"),vakformulieren!$V22,\"\")","v":""},null,null,null,null,{"$f":"IF(AND(OR(vakformulieren!$E22=\"5 letsel\",vakformulieren!$E22=\"5 onwel / ziek\",vakformulieren!$E22=\"5 milieuschade\"),vakformulieren!$E16>0),SUM(vakformulieren!$P16/8),\"\")","v":""}]
[{"$f":"IF(OR(vakformulieren!$E17=\"5 letsel\",vakformulieren!$E17=\"5 onwel / ziek\",vakformulieren!$E17=\"5 milieuschade\"),vakformulieren!$A17,\"\")","v":""},"",{"$f":"IF(OR(vakformulieren!$E23=\"5 letsel\",vakformulieren!$E23=\"5 onwel / ziek\",vakformulieren!$E23=\"5 milieuschade\"),vakformulieren!$C17,\"\")","v":""},{"$f":"IF(OR(vakformulieren!$E23=\"5 letsel\",vakformulieren!$E23=\"5 onwel / ziek\",vakformulieren!$E23=\"5 milieuschade\"),vakformulieren!$E17,\"\")","v":""},{"$f":"IF(OR(vakformulieren!$E23=\"5 letsel\",vakformulieren!$E23=\"5 onwel / ziek\",vakformulieren!$E23=\"5 milieuschade\"),vakformulieren!$V23,\"\")","v":""},null,null,null,null,{"$f":"IF(AND(OR(vakformulieren!$E23=\"5 letsel\",vakformulieren!$E23=\"5 onwel / ziek\",vakformulieren!$E23=\"5 milieuschade\"),vakformulieren!$E17>0),SUM(vakformulieren!$P17/8),\"\")","v":""}]
[{"$f":"IF(OR(vakformulieren!$E18=\"5 letsel\",vakformulieren!$E18=\"5 onwel / ziek\",vakformulieren!$E18=\"5 milieuschade\"),vakformulieren!$A18,\"\")","v":""},"",{"$f":"IF(OR(vakformulieren!$E24=\"5 letsel\",vakformulieren!$E24=\"5 onwel / ziek\",vakformulieren!$E24=\"5 milieuschade\"),vakformulieren!$C18,\"\")","v":""},{"$f":"IF(OR(vakformulieren!$E24=\"5 letsel\",vakformulieren!$E24=\"5 onwel / ziek\",vakformulieren!$E24=\"5 milieuschade\"),vakformulieren!$E18,\"\")","v":""},{"$f":"IF(OR(vakformulieren!$E24=\"5 letsel\",vakformulieren!$E24=\"5 onwel / ziek\",vakformulieren!$E24=\"5 milieuschade\"),vakformulieren!$V24,\"\")","v":""},null,null,null,null,{"$f":"IF(AND(OR(vakformulieren!$E24=\"5 letsel\",vakformulieren!$E24=\"5 onwel / ziek\",vakformulieren!$E24=\"5 milieuschade\"),vakformulieren!$E18>0),SUM(vakformulieren!$P18/8),\"\")","v":""}]
[{"$f":"IF(OR(vakformulieren!$E19=\"5 letsel\",vakformulieren!$E19=\"5 onwel / ziek\",vakformulieren!$E19=\"5 milieuschade\"),vakformulieren!$A19,\"\")","v":""},"",{"$f":"IF(OR(vakformulieren!$E25=\"5 letsel\",vakformulieren!$E25=\"5 onwel / ziek\",vakformulieren!$E25=\"5 milieuschade\"),vakformulieren!$C19,\"\")","v":""},{"$f":"IF(OR(vakformulieren!$E25=\"5 letsel\",vakformulieren!$E25=\"5 onwel / ziek\",vakformulieren!$E25=\"5 milieuschade\"),vakformulieren!$E19,\"\")","v":""},{"$f":"IF(OR(vakformulieren!$E25=\"5 letsel\",vakformulieren!$E25=\"5 onwel / ziek\",vakformulieren!$E25=\"5 milieuschade\"),vakformulieren!$V25,\"\")","v":""},null,null,null,null,{"$f":"IF(AND(OR(vakformulieren!$E25=\"5 letsel\",vakformulieren!$E25=\"5 onwel / ziek\",vakformulieren!$E25=\"5 milieuschade\"),vakformulieren!$E19>0),SUM(vakformulieren!$P19/8),\"\")","v":""}]
[{"$f":"IF(OR(vakformulieren!$E20=\"5 letsel\",vakformulieren!$E20=\"5 onwel / ziek\",vakformulieren!$E20=\"5 milieuschade\"),vakformulieren!$A20,\"\")","v":""},"",{"$f":"IF(OR(vakformulieren!$E26=\"5 letsel\",vakformulieren!$E26=\"5 onwel / ziek\",vakformulieren!$E26=\"5 milieuschade\"),vakformulieren!$C20,\"\")","v":""},{"$f":"IF(OR(vakformulieren!$E26=\"5 letsel\",vakformulieren!$E26=\"5 onwel / ziek\",vakformulieren!$E26=\"5 milieuschade\"),vakformulieren!$E20,\"\")","v":""},{"$f":"IF(OR(vakformulieren!$E26=\"5 letsel\",vakformulieren!$E26=\"5 onwel / ziek\",vakformulieren!$E26=\"5 milieuschade\"),vakformulieren!$V26,\"\")","v":""},null,null,null,null,{"$f":"IF(AND(OR(vakformulieren!$E26=\"5 letsel\",vakformulieren!$E26=\"5 onwel / ziek\",vakformulieren!$E26=\"5 milieuschade\"),vakformulieren!$E20>0),SUM(vakformulieren!$P20/8),\"\")","v":""}]
[{"$f":"IF(OR(vakformulieren!$E21=\"5 letsel\",vakformulieren!$E21=\"5 onwel / ziek\",vakformulieren!$E21=\"5 milieuschade\"),vakformulieren!$A21,\"\")","v":""},"",{"$f":"IF(OR(vakformulieren!$E27=\"5 letsel\",vakformulieren!$E27=\"5 onwel / ziek\",vakformulieren!$E27=\"5 milieuschade\"),vakformulieren!$C21,\"\")","v":""},{"$f":"IF(OR(vakformulieren!$E27=\"5 letsel\",vakformulieren!$E27=\"5 onwel / ziek\",vakformulieren!$E27=\"5 milieuschade\"),vakformulieren!$E21,\"\")","v":""},{"$f":"IF(OR(vakformulieren!$E27=\"5 letsel\",vakformulieren!$E27=\"5 onwel / ziek\",vakformulieren!$E27=\"5 milieuschade\"),vakformulieren!$V27,\"\")","v":""},null,null,null,null,{"$f":"IF(AND(OR(vakformulieren!$E27=\"5 letsel\",vakformulieren!$E27=\"5 onwel / ziek\",vakformulieren!$E27=\"5 milieuschade\"),vakformulieren!$E21>0),SUM(vakformulieren!$P21/8),\"\")","v":""}]
[{"$f":"IF(OR(vakformulieren!$E22=\"5 letsel\",vakformulieren!$E22=\"5 onwel / ziek\",vakformulieren!$E22=\"5 milieuschade\"),vakformulieren!$A22,\"\")","v":""},"",{"$f":"IF(OR(vakformulieren!$E28=\"5 letsel\",vakformulieren!$E28=\"5 onwel / ziek\",vakformulieren!$E28=\"5 milieuschade\"),vakformulieren!$C22,\"\")","v":""},{"$f":"IF(OR(vakformulieren!$E28=\"5 letsel\",vakformulieren!$E28=\"5 onwel / ziek\",vakformulieren!$E28=\"5 milieuschade\"),vakformulieren!$E22,\"\")","v":""},{"$f":"IF(OR(vakformulieren!$E28=\"5 letsel\",vakformulieren!$E28=\"5 onwel / ziek\",vakformulieren!$E28=\"5 milieuschade\"),vakformulieren!$V28,\"\")","v":""},null,null,null,null,{"$f":"IF(AND(OR(vakformulieren!$E28=\"5 letsel\",vakformulieren!$E28=\"5 onwel / ziek\",vakformulieren!$E28=\"5 milieuschade\"),vakformulieren!$E22>0),SUM(vakformulieren!$P22/8),\"\")","v":""}]
[{"$f":"IF(OR(vakformulieren!$E23=\"5 letsel\",vakformulieren!$E23=\"5 onwel / ziek\",vakformulieren!$E23=\"5 milieuschade\"),vakformulieren!$A23,\"\")","v":""},"",{"$f":"IF(OR(vakformulieren!$E29=\"5 letsel\",vakformulieren!$E29=\"5 onwel / ziek\",vakformulieren!$E29=\"5 milieuschade\"),vakformulieren!$C23,\"\")","v":""},{"$f":"IF(OR(vakformulieren!$E29=\"5 letsel\",vakformulieren!$E29=\"5 onwel / ziek\",vakformulieren!$E29=\"5 milieuschade\"),vakformulieren!$E23,\"\")","v":""},{"$f":"IF(OR(vakformulieren!$E29=\"5 letsel\",vakformulieren!$E29=\"5 onwel / ziek\",vakformulieren!$E29=\"5 milieuschade\"),vakformulieren!$V29,\"\")","v":""},null,null,null,null,{"$f":"IF(AND(OR(vakformulieren!$E29=\"5 letsel\",vakformulieren!$E29=\"5 onwel / ziek\",vakformulieren!$E29=\"5 milieuschade\"),vakformulieren!$E23>0),SUM(vakformulieren!$P23/8),\"\")","v":""}]
[{"$f":"IF(OR(vakformulieren!$E24=\"5 letsel\",vakformulieren!$E24=\"5 onwel / ziek\",vakformulieren!$E24=\"5 milieuschade\"),vakformulieren!$A24,\"\")","v":""},"",{"$f":"IF(OR(vakformulieren!$E30=\"5 letsel\",vakformulieren!$E30=\"5 onwel / ziek\",vakformulieren!$E30=\"5 milieuschade\"),vakformulieren!$C24,\"\")","v":""},{"$f":"IF(OR(vakformulieren!$E30=\"5 letsel\",vakformulieren!$E30=\"5 onwel / ziek\",vakformulieren!$E30=\"5 milieuschade\"),vakformulieren!$E24,\"\")","v":""},{"$f":"IF(OR(vakformulieren!$E30=\"5 letsel\",vakformulieren!$E30=\"5 onwel / ziek\",vakformulieren!$E30=\"5 milieuschade\"),vakformulieren!$V30,\"\")","v":""},null,null,null,null,{"$f":"IF(AND(OR(vakformulieren!$E30=\"5 letsel\",vakformulieren!$E30=\"5 onwel / ziek\",vakformulieren!$E30=\"5 milieuschade\"),vakformulieren!$E24>0),SUM(vakformulieren!$P24/8),\"\")","v":""}]
[{"$f":"IF(OR(vakformulieren!$E25=\"5 letsel\",vakformulieren!$E25=\"5 onwel / ziek\",vakformulieren!$E25=\"5 milieuschade\"),vakformulieren!$A25,\"\")","v":""},"",{"$f":"IF(OR(vakformulieren!$E31=\"5 letsel\",vakformulieren!$E31=\"5 onwel / ziek\",vakformulieren!$E31=\"5 milieuschade\"),vakformulieren!$C25,\"\")","v":""},{"$f":"IF(OR(vakformulieren!$E31=\"5 letsel\",vakformulieren!$E31=\"5 onwel / ziek\",vakformulieren!$E31=\"5 milieuschade\"),vakformulieren!$E25,\"\")","v":""},{"$f":"IF(OR(vakformulieren!$E31=\"5 letsel\",vakformulieren!$E31=\"5 onwel / ziek\",vakformulieren!$E31=\"5 milieuschade\"),vakformulieren!$V31,\"\")","v":""},null,null,null,null,{"$f":"IF(AND(OR(vakformulieren!$E31=\"5 letsel\",vakformulieren!$E31=\"5 onwel / ziek\",vakformulieren!$E31=\"5 milieuschade\"),vakformulieren!$E25>0),SUM(vakformulieren!$P25/8),\"\")","v":""}]
[{"$f":"IF(OR(vakformulieren!$E26=\"5 letsel\",vakformulieren!$E26=\"5 onwel / ziek\",vakformulieren!$E26=\"5 milieuschade\"),vakformulieren!$A26,\"\")","v":""},"",{"$f":"IF(OR(vakformulieren!$E32=\"5 letsel\",vakformulieren!$E32=\"5 onwel / ziek\",vakformulieren!$E32=\"5 milieuschade\"),vakformulieren!$C26,\"\")","v":""},{"$f":"IF(OR(vakformulieren!$E32=\"5 letsel\",vakformulieren!$E32=\"5 onwel / ziek\",vakformulieren!$E32=\"5 milieuschade\"),vakformulieren!$E26,\"\")","v":""},{"$f":"IF(OR(vakformulieren!$E32=\"5 letsel\",vakformulieren!$E32=\"5 onwel / ziek\",vakformulieren!$E32=\"5 milieuschade\"),vakformulieren!$V32,\"\")","v":""},null,null,null,null,{"$f":"IF(AND(OR(vakformulieren!$E32=\"5 letsel\",vakformulieren!$E32=\"5 onwel / ziek\",vakformulieren!$E32=\"5 milieuschade\"),vakformulieren!$E26>0),SUM(vakformulieren!$P26/8),\"\")","v":""}]
[{"$f":"IF(OR(vakformulieren!$E27=\"5 letsel\",vakformulieren!$E27=\"5 onwel / ziek\",vakformulieren!$E27=\"5 milieuschade\"),vakformulieren!$A27,\"\")","v":""},"",{"$f":"IF(OR(vakformulieren!$E33=\"5 letsel\",vakformulieren!$E33=\"5 onwel / ziek\",vakformulieren!$E33=\"5 milieuschade\"),vakformulieren!$C27,\"\")","v":""},{"$f":"IF(OR(vakformulieren!$E33=\"5 letsel\",vakformulieren!$E33=\"5 onwel / ziek\",vakformulieren!$E33=\"5 milieuschade\"),vakformulieren!$E27,\"\")","v":""},{"$f":"IF(OR(vakformulieren!$E33=\"5 letsel\",vakformulieren!$E33=\"5 onwel / ziek\",vakformulieren!$E33=\"5 milieuschade\"),vakformulieren!$V33,\"\")","v":""},null,null,null,null,{"$f":"IF(AND(OR(vakformulieren!$E33=\"5 letsel\",vakformulieren!$E33=\"5 onwel / ziek\",vakformulieren!$E33=\"5 milieuschade\"),vakformulieren!$E27>0),SUM(vakformulieren!$P27/8),\"\")","v":""}]
[{"$f":"IF(OR(vakformulieren!$E28=\"5 letsel\",vakformulieren!$E28=\"5 onwel / ziek\",vakformulieren!$E28=\"5 milieuschade\"),vakformulieren!$A28,\"\")","v":""},"",{"$f":"IF(OR(vakformulieren!$E34=\"5 letsel\",vakformulieren!$E34=\"5 onwel / ziek\",vakformulieren!$E34=\"5 milieuschade\"),vakformulieren!$C28,\"\")","v":""},{"$f":"IF(OR(vakformulieren!$E34=\"5 letsel\",vakformulieren!$E34=\"5 onwel / ziek\",vakformulieren!$E34=\"5 milieuschade\"),vakformulieren!$E28,\"\")","v":""},{"$f":"IF(OR(vakformulieren!$E34=\"5 letsel\",vakformulieren!$E34=\"5 onwel / ziek\",vakformulieren!$E34=\"5 milieuschade\"),vakformulieren!$V34,\"\")","v":""},null,null,null,null,{"$f":"IF(AND(OR(vakformulieren!$E34=\"5 letsel\",vakformulieren!$E34=\"5 onwel / ziek\",vakformulieren!$E34=\"5 milieuschade\"),vakformulieren!$E28>0),SUM(vakformulieren!$P28/8),\"\")","v":""}]
[{"$f":"IF(OR(vakformulieren!$E29=\"5 letsel\",vakformulieren!$E29=\"5 onwel / ziek\",vakformulieren!$E29=\"5 milieuschade\"),vakformulieren!$A29,\"\")","v":""},"",{"$f":"IF(OR(vakformulieren!$E35=\"5 letsel\",vakformulieren!$E35=\"5 onwel / ziek\",vakformulieren!$E35=\"5 milieuschade\"),vakformulieren!$C29,\"\")","v":""},{"$f":"IF(OR(vakformulieren!$E35=\"5 letsel\",vakformulieren!$E35=\"5 onwel / ziek\",vakformulieren!$E35=\"5 milieuschade\"),vakformulieren!$E29,\"\")","v":""},{"$f":"IF(OR(vakformulieren!$E35=\"5 letsel\",vakformulieren!$E35=\"5 onwel / ziek\",vakformulieren!$E35=\"5 milieuschade\"),vakformulieren!$V35,\"\")","v":""},null,null,null,null,{"$f":"IF(AND(OR(vakformulieren!$E35=\"5 letsel\",vakformulieren!$E35=\"5 onwel / ziek\",vakformulieren!$E35=\"5 milieuschade\"),vakformulieren!$E29>0),SUM(vakformulieren!$P29/8),\"\")","v":""}]
[{"$f":"IF(OR(vakformulieren!$E30=\"5 letsel\",vakformulieren!$E30=\"5 onwel / ziek\",vakformulieren!$E30=\"5 milieuschade\"),vakformulieren!$A30,\"\")","v":""},"",{"$f":"IF(OR(vakformulieren!$E36=\"5 letsel\",vakformulieren!$E36=\"5 onwel / ziek\",vakformulieren!$E36=\"5 milieuschade\"),vakformulieren!$C30,\"\")","v":""},{"$f":"IF(OR(vakformulieren!$E36=\"5 letsel\",vakformulieren!$E36=\"5 onwel / ziek\",vakformulieren!$E36=\"5 milieuschade\"),vakformulieren!$E30,\"\")","v":""},{"$f":"IF(OR(vakformulieren!$E36=\"5 letsel\",vakformulieren!$E36=\"5 onwel / ziek\",vakformulieren!$E36=\"5 milieuschade\"),vakformulieren!$V36,\"\")","v":""},null,null,null,null,{"$f":"IF(AND(OR(vakformulieren!$E36=\"5 letsel\",vakformulieren!$E36=\"5 onwel / ziek\",vakformulieren!$E36=\"5 milieuschade\"),vakformulieren!$E30>0),SUM(vakformulieren!$P30/8),\"\")","v":""}]
[{"$f":"IF(OR(vakformulieren!$E31=\"5 letsel\",vakformulieren!$E31=\"5 onwel / ziek\",vakformulieren!$E31=\"5 milieuschade\"),vakformulieren!$A31,\"\")","v":""},"",{"$f":"IF(OR(vakformulieren!$E37=\"5 letsel\",vakformulieren!$E37=\"5 onwel / ziek\",vakformulieren!$E37=\"5 milieuschade\"),vakformulieren!$C31,\"\")","v":""},{"$f":"IF(OR(vakformulieren!$E37=\"5 letsel\",vakformulieren!$E37=\"5 onwel / ziek\",vakformulieren!$E37=\"5 milieuschade\"),vakformulieren!$E31,\"\")","v":""},{"$f":"IF(OR(vakformulieren!$E37=\"5 letsel\",vakformulieren!$E37=\"5 onwel / ziek\",vakformulieren!$E37=\"5 milieuschade\"),vakformulieren!$V37,\"\")","v":""},null,null,null,null,{"$f":"IF(AND(OR(vakformulieren!$E37=\"5 letsel\",vakformulieren!$E37=\"5 onwel / ziek\",vakformulieren!$E37=\"5 milieuschade\"),vakformulieren!$E31>0),SUM(vakformulieren!$P31/8),\"\")","v":""}]
[{"$f":"IF(OR(vakformulieren!$E32=\"5 letsel\",vakformulieren!$E32=\"5 onwel / ziek\",vakformulieren!$E32=\"5 milieuschade\"),vakformulieren!$A32,\"\")","v":""},"",{"$f":"IF(OR(vakformulieren!$E38=\"5 letsel\",vakformulieren!$E38=\"5 onwel / ziek\",vakformulieren!$E38=\"5 milieuschade\"),vakformulieren!$C32,\"\")","v":""},{"$f":"IF(OR(vakformulieren!$E38=\"5 letsel\",vakformulieren!$E38=\"5 onwel / ziek\",vakformulieren!$E38=\"5 milieuschade\"),vakformulieren!$E32,\"\")","v":""},{"$f":"IF(OR(vakformulieren!$E38=\"5 letsel\",vakformulieren!$E38=\"5 onwel / ziek\",vakformulieren!$E38=\"5 milieuschade\"),vakformulieren!$V38,\"\")","v":""},null,null,null,null,{"$f":"IF(AND(OR(vakformulieren!$E38=\"5 letsel\",vakformulieren!$E38=\"5 onwel / ziek\",vakformulieren!$E38=\"5 milieuschade\"),vakformulieren!$E32>0),SUM(vakformulieren!$P32/8),\"\")","v":""}]
[{"$f":"IF(OR(vakformulieren!$E33=\"5 letsel\",vakformulieren!$E33=\"5 onwel / ziek\",vakformulieren!$E33=\"5 milieuschade\"),vakformulieren!$A33,\"\")","v":""},"",{"$f":"IF(OR(vakformulieren!$E39=\"5 letsel\",vakformulieren!$E39=\"5 onwel / ziek\",vakformulieren!$E39=\"5 milieuschade\"),vakformulieren!$C33,\"\")","v":""},{"$f":"IF(OR(vakformulieren!$E39=\"5 letsel\",vakformulieren!$E39=\"5 onwel / ziek\",vakformulieren!$E39=\"5 milieuschade\"),vakformulieren!$E33,\"\")","v":""},{"$f":"IF(OR(vakformulieren!$E39=\"5 letsel\",vakformulieren!$E39=\"5 onwel / ziek\",vakformulieren!$E39=\"5 milieuschade\"),vakformulieren!$V39,\"\")","v":""},null,null,null,null,{"$f":"IF(AND(OR(vakformulieren!$E39=\"5 letsel\",vakformulieren!$E39=\"5 onwel / ziek\",vakformulieren!$E39=\"5 milieuschade\"),vakformulieren!$E33>0),SUM(vakformulieren!$P33/8),\"\")","v":""}]
[{"$f":"IF(OR(vakformulieren!$E34=\"5 letsel\",vakformulieren!$E34=\"5 onwel / ziek\",vakformulieren!$E34=\"5 milieuschade\"),vakformulieren!$A34,\"\")","v":""},"",{"$f":"IF(OR(vakformulieren!$E40=\"5 letsel\",vakformulieren!$E40=\"5 onwel / ziek\",vakformulieren!$E40=\"5 milieuschade\"),vakformulieren!$C34,\"\")","v":""},{"$f":"IF(OR(vakformulieren!$E40=\"5 letsel\",vakformulieren!$E40=\"5 onwel / ziek\",vakformulieren!$E40=\"5 milieuschade\"),vakformulieren!$E34,\"\")","v":""},{"$f":"IF(OR(vakformulieren!$E40=\"5 letsel\",vakformulieren!$E40=\"5 onwel / ziek\",vakformulieren!$E40=\"5 milieuschade\"),vakformulieren!$V40,\"\")","v":""},null,null,null,null,{"$f":"IF(AND(OR(vakformulieren!$E40=\"5 letsel\",vakformulieren!$E40=\"5 onwel / ziek\",vakformulieren!$E40=\"5 milieuschade\"),vakformulieren!$E34>0),SUM(vakformulieren!$P34/8),\"\")","v":""}]
[{"$f":"IF(OR(vakformulieren!$E35=\"5 letsel\",vakformulieren!$E35=\"5 onwel / ziek\",vakformulieren!$E35=\"5 milieuschade\"),vakformulieren!$A35,\"\")","v":""},"",{"$f":"IF(OR(vakformulieren!$E41=\"5 letsel\",vakformulieren!$E41=\"5 onwel / ziek\",vakformulieren!$E41=\"5 milieuschade\"),vakformulieren!$C35,\"\")","v":""},{"$f":"IF(OR(vakformulieren!$E41=\"5 letsel\",vakformulieren!$E41=\"5 onwel / ziek\",vakformulieren!$E41=\"5 milieuschade\"),vakformulieren!$E35,\"\")","v":""},{"$f":"IF(OR(vakformulieren!$E41=\"5 letsel\",vakformulieren!$E41=\"5 onwel / ziek\",vakformulieren!$E41=\"5 milieuschade\"),vakformulieren!$V41,\"\")","v":""},null,null,null,null,{"$f":"IF(AND(OR(vakformulieren!$E41=\"5 letsel\",vakformulieren!$E41=\"5 onwel / ziek\",vakformulieren!$E41=\"5 milieuschade\"),vakformulieren!$E35>0),SUM(vakformulieren!$P35/8),\"\")","v":""}]
[{"$f":"IF(OR(vakformulieren!$E36=\"5 letsel\",vakformulieren!$E36=\"5 onwel / ziek\",vakformulieren!$E36=\"5 milieuschade\"),vakformulieren!$A36,\"\")","v":""},"",{"$f":"IF(OR(vakformulieren!$E42=\"5 letsel\",vakformulieren!$E42=\"5 onwel / ziek\",vakformulieren!$E42=\"5 milieuschade\"),vakformulieren!$C36,\"\")","v":""},{"$f":"IF(OR(vakformulieren!$E42=\"5 letsel\",vakformulieren!$E42=\"5 onwel / ziek\",vakformulieren!$E42=\"5 milieuschade\"),vakformulieren!$E36,\"\")","v":""},{"$f":"IF(OR(vakformulieren!$E42=\"5 letsel\",vakformulieren!$E42=\"5 onwel / ziek\",vakformulieren!$E42=\"5 milieuschade\"),vakformulieren!$V42,\"\")","v":""},null,null,null,null,{"$f":"IF(AND(OR(vakformulieren!$E42=\"5 letsel\",vakformulieren!$E42=\"5 onwel / ziek\",vakformulieren!$E42=\"5 milieuschade\"),vakformulieren!$E36>0),SUM(vakformulieren!$P36/8),\"\")","v":""}]
[{"$f":"IF(OR(vakformulieren!$E37=\"5 letsel\",vakformulieren!$E37=\"5 onwel / ziek\",vakformulieren!$E37=\"5 milieuschade\"),vakformulieren!$A37,\"\")","v":""},"",{"$f":"IF(OR(vakformulieren!$E43=\"5 letsel\",vakformulieren!$E43=\"5 onwel / ziek\",vakformulieren!$E43=\"5 milieuschade\"),vakformulieren!$C37,\"\")","v":""},{"$f":"IF(OR(vakformulieren!$E43=\"5 letsel\",vakformulieren!$E43=\"5 onwel / ziek\",vakformulieren!$E43=\"5 milieuschade\"),vakformulieren!$E37,\"\")","v":""},{"$f":"IF(OR(vakformulieren!$E43=\"5 letsel\",vakformulieren!$E43=\"5 onwel / ziek\",vakformulieren!$E43=\"5 milieuschade\"),vakformulieren!$V43,\"\")","v":""},null,null,null,null,{"$f":"IF(AND(OR(vakformulieren!$E43=\"5 letsel\",vakformulieren!$E43=\"5 onwel / ziek\",vakformulieren!$E43=\"5 milieuschade\"),vakformulieren!$E37>0),SUM(vakformulieren!$P37/8),\"\")","v":""}]
[{"$f":"IF(OR(vakformulieren!$E38=\"5 letsel\",vakformulieren!$E38=\"5 onwel / ziek\",vakformulieren!$E38=\"5 milieuschade\"),vakformulieren!$A38,\"\")","v":""},"",{"$f":"IF(OR(vakformulieren!$E44=\"5 letsel\",vakformulieren!$E44=\"5 onwel / ziek\",vakformulieren!$E44=\"5 milieuschade\"),vakformulieren!$C38,\"\")","v":""},{"$f":"IF(OR(vakformulieren!$E44=\"5 letsel\",vakformulieren!$E44=\"5 onwel / ziek\",vakformulieren!$E44=\"5 milieuschade\"),vakformulieren!$E38,\"\")","v":""},{"$f":"IF(OR(vakformulieren!$E44=\"5 letsel\",vakformulieren!$E44=\"5 onwel / ziek\",vakformulieren!$E44=\"5 milieuschade\"),vakformulieren!$V44,\"\")","v":""},null,null,null,null,{"$f":"IF(AND(OR(vakformulieren!$E44=\"5 letsel\",vakformulieren!$E44=\"5 onwel / ziek\",vakformulieren!$E44=\"5 milieuschade\"),vakformulieren!$E38>0),SUM(vakformulieren!$P38/8),\"\")","v":""}]
[{"$f":"IF(OR(vakformulieren!$E39=\"5 letsel\",vakformulieren!$E39=\"5 onwel / ziek\",vakformulieren!$E39=\"5 milieuschade\"),vakformulieren!$A39,\"\")","v":""},"",{"$f":"IF(OR(vakformulieren!$E45=\"5 letsel\",vakformulieren!$E45=\"5 onwel / ziek\",vakformulieren!$E45=\"5 milieuschade\"),vakformulieren!$C39,\"\")","v":""},{"$f":"IF(OR(vakformulieren!$E45=\"5 letsel\",vakformulieren!$E45=\"5 onwel / ziek\",vakformulieren!$E45=\"5 milieuschade\"),vakformulieren!$E39,\"\")","v":""},{"$f":"IF(OR(vakformulieren!$E45=\"5 letsel\",vakformulieren!$E45=\"5 onwel / ziek\",vakformulieren!$E45=\"5 milieuschade\"),vakformulieren!$V45,\"\")","v":""},null,null,null,null,{"$f":"IF(AND(OR(vakformulieren!$E45=\"5 letsel\",vakformulieren!$E45=\"5 onwel / ziek\",vakformulieren!$E45=\"5 milieuschade\"),vakformulieren!$E39>0),SUM(vakformulieren!$P39/8),\"\")","v":""}]
[{"$f":"IF(OR(vakformulieren!$E40=\"5 letsel\",vakformulieren!$E40=\"5 onwel / ziek\",vakformulieren!$E40=\"5 milieuschade\"),vakformulieren!$A40,\"\")","v":""},"",{"$f":"IF(OR(vakformulieren!$E46=\"5 letsel\",vakformulieren!$E46=\"5 onwel / ziek\",vakformulieren!$E46=\"5 milieuschade\"),vakformulieren!$C40,\"\")","v":""},{"$f":"IF(OR(vakformulieren!$E46=\"5 letsel\",vakformulieren!$E46=\"5 onwel / ziek\",vakformulieren!$E46=\"5 milieuschade\"),vakformulieren!$E40,\"\")","v":""},{"$f":"IF(OR(vakformulieren!$E46=\"5 letsel\",vakformulieren!$E46=\"5 onwel / ziek\",vakformulieren!$E46=\"5 milieuschade\"),vakformulieren!$V46,\"\")","v":""},null,null,null,null,{"$f":"IF(AND(OR(vakformulieren!$E46=\"5 letsel\",vakformulieren!$E46=\"5 onwel / ziek\",vakformulieren!$E46=\"5 milieuschade\"),vakformulieren!$E40>0),SUM(vakformulieren!$P40/8),\"\")","v":""}]
[{"$f":"IF(OR(vakformulieren!$E41=\"5 letsel\",vakformulieren!$E41=\"5 onwel / ziek\",vakformulieren!$E41=\"5 milieuschade\"),vakformulieren!$A41,\"\")","v":""},"",{"$f":"IF(OR(vakformulieren!$E47=\"5 letsel\",vakformulieren!$E47=\"5 onwel / ziek\",vakformulieren!$E47=\"5 milieuschade\"),vakformulieren!$C41,\"\")","v":""},{"$f":"IF(OR(vakformulieren!$E47=\"5 letsel\",vakformulieren!$E47=\"5 onwel / ziek\",vakformulieren!$E47=\"5 milieuschade\"),vakformulieren!$E41,\"\")","v":""},{"$f":"IF(OR(vakformulieren!$E47=\"5 letsel\",vakformulieren!$E47=\"5 onwel / ziek\",vakformulieren!$E47=\"5 milieuschade\"),vakformulieren!$V47,\"\")","v":""},null,null,null,null,{"$f":"IF(AND(OR(vakformulieren!$E47=\"5 letsel\",vakformulieren!$E47=\"5 onwel / ziek\",vakformulieren!$E47=\"5 milieuschade\"),vakformulieren!$E41>0),SUM(vakformulieren!$P41/8),\"\")","v":""}]
[{"$f":"IF(OR(vakformulieren!$E42=\"5 letsel\",vakformulieren!$E42=\"5 onwel / ziek\",vakformulieren!$E42=\"5 milieuschade\"),vakformulieren!$A42,\"\")","v":""},"",{"$f":"IF(OR(vakformulieren!$E48=\"5 letsel\",vakformulieren!$E48=\"5 onwel / ziek\",vakformulieren!$E48=\"5 milieuschade\"),vakformulieren!$C42,\"\")","v":""},{"$f":"IF(OR(vakformulieren!$E48=\"5 letsel\",vakformulieren!$E48=\"5 onwel / ziek\",vakformulieren!$E48=\"5 milieuschade\"),vakformulieren!$E42,\"\")","v":""},{"$f":"IF(OR(vakformulieren!$E48=\"5 letsel\",vakformulieren!$E48=\"5 onwel / ziek\",vakformulieren!$E48=\"5 milieuschade\"),vakformulieren!$V48,\"\")","v":""},null,null,null,null,{"$f":"IF(AND(OR(vakformulieren!$E48=\"5 letsel\",vakformulieren!$E48=\"5 onwel / ziek\",vakformulieren!$E48=\"5 milieuschade\"),vakformulieren!$E42>0),SUM(vakformulieren!$P42/8),\"\")","v":""}]
[{"$f":"IF(OR(vakformulieren!$E43=\"5 letsel\",vakformulieren!$E43=\"5 onwel / ziek\",vakformulieren!$E43=\"5 milieuschade\"),vakformulieren!$A43,\"\")","v":""},"",{"$f":"IF(OR(vakformulieren!$E49=\"5 letsel\",vakformulieren!$E49=\"5 onwel / ziek\",vakformulieren!$E49=\"5 milieuschade\"),vakformulieren!$C43,\"\")","v":""},{"$f":"IF(OR(vakformulieren!$E49=\"5 letsel\",vakformulieren!$E49=\"5 onwel / ziek\",vakformulieren!$E49=\"5 milieuschade\"),vakformulieren!$E43,\"\")","v":""},{"$f":"IF(OR(vakformulieren!$E49=\"5 letsel\",vakformulieren!$E49=\"5 onwel / ziek\",vakformulieren!$E49=\"5 milieuschade\"),vakformulieren!$V49,\"\")","v":""},null,null,null,null,{"$f":"IF(AND(OR(vakformulieren!$E49=\"5 letsel\",vakformulieren!$E49=\"5 onwel / ziek\",vakformulieren!$E49=\"5 milieuschade\"),vakformulieren!$E43>0),SUM(vakformulieren!$P43/8),\"\")","v":""}]
[{"$f":"IF(OR(vakformulieren!$E44=\"5 letsel\",vakformulieren!$E44=\"5 onwel / ziek\",vakformulieren!$E44=\"5 milieuschade\"),vakformulieren!$A44,\"\")","v":""},"",{"$f":"IF(OR(vakformulieren!$E50=\"5 letsel\",vakformulieren!$E50=\"5 onwel / ziek\",vakformulieren!$E50=\"5 milieuschade\"),vakformulieren!$C44,\"\")","v":""},{"$f":"IF(OR(vakformulieren!$E50=\"5 letsel\",vakformulieren!$E50=\"5 onwel / ziek\",vakformulieren!$E50=\"5 milieuschade\"),vakformulieren!$E44,\"\")","v":""},{"$f":"IF(OR(vakformulieren!$E50=\"5 letsel\",vakformulieren!$E50=\"5 onwel / ziek\",vakformulieren!$E50=\"5 milieuschade\"),vakformulieren!$V50,\"\")","v":""},null,null,null,null,{"$f":"IF(AND(OR(vakformulieren!$E50=\"5 letsel\",vakformulieren!$E50=\"5 onwel / ziek\",vakformulieren!$E50=\"5 milieuschade\"),vakformulieren!$E44>0),SUM(vakformulieren!$P44/8),\"\")","v":""}]
[{"$f":"IF(OR(vakformulieren!$E45=\"5 letsel\",vakformulieren!$E45=\"5 onwel / ziek\",vakformulieren!$E45=\"5 milieuschade\"),vakformulieren!$A45,\"\")","v":""},"",{"$f":"IF(OR(vakformulieren!$E51=\"5 letsel\",vakformulieren!$E51=\"5 onwel / ziek\",vakformulieren!$E51=\"5 milieuschade\"),vakformulieren!$C45,\"\")","v":""},{"$f":"IF(OR(vakformulieren!$E51=\"5 letsel\",vakformulieren!$E51=\"5 onwel / ziek\",vakformulieren!$E51=\"5 milieuschade\"),vakformulieren!$E45,\"\")","v":""},{"$f":"IF(OR(vakformulieren!$E51=\"5 letsel\",vakformulieren!$E51=\"5 onwel / ziek\",vakformulieren!$E51=\"5 milieuschade\"),vakformulieren!$V51,\"\")","v":""},null,null,null,null,{"$f":"IF(AND(OR(vakformulieren!$E51=\"5 letsel\",vakformulieren!$E51=\"5 onwel / ziek\",vakformulieren!$E51=\"5 milieuschade\"),vakformulieren!$E45>0),SUM(vakformulieren!$P45/8),\"\")","v":""}]
[{"$f":"IF(OR(vakformulieren!$E46=\"5 letsel\",vakformulieren!$E46=\"5 onwel / ziek\",vakformulieren!$E46=\"5 milieuschade\"),vakformulieren!$A46,\"\")","v":""},"",{"$f":"IF(OR(vakformulieren!$E52=\"5 letsel\",vakformulieren!$E52=\"5 onwel / ziek\",vakformulieren!$E52=\"5 milieuschade\"),vakformulieren!$C46,\"\")","v":""},{"$f":"IF(OR(vakformulieren!$E52=\"5 letsel\",vakformulieren!$E52=\"5 onwel / ziek\",vakformulieren!$E52=\"5 milieuschade\"),vakformulieren!$E46,\"\")","v":""},{"$f":"IF(OR(vakformulieren!$E52=\"5 letsel\",vakformulieren!$E52=\"5 onwel / ziek\",vakformulieren!$E52=\"5 milieuschade\"),vakformulieren!$V52,\"\")","v":""},null,null,null,null,{"$f":"IF(AND(OR(vakformulieren!$E52=\"5 letsel\",vakformulieren!$E52=\"5 onwel / ziek\",vakformulieren!$E52=\"5 milieuschade\"),vakformulieren!$E46>0),SUM(vakformulieren!$P46/8),\"\")","v":""}]
[{"$f":"IF(OR(vakformulieren!$E47=\"5 letsel\",vakformulieren!$E47=\"5 onwel / ziek\",vakformulieren!$E47=\"5 milieuschade\"),vakformulieren!$A47,\"\")","v":""},"",{"$f":"IF(OR(vakformulieren!$E53=\"5 letsel\",vakformulieren!$E53=\"5 onwel / ziek\",vakformulieren!$E53=\"5 milieuschade\"),vakformulieren!$C47,\"\")","v":""},{"$f":"IF(OR(vakformulieren!$E53=\"5 letsel\",vakformulieren!$E53=\"5 onwel / ziek\",vakformulieren!$E53=\"5 milieuschade\"),vakformulieren!$E47,\"\")","v":""},{"$f":"IF(OR(vakformulieren!$E53=\"5 letsel\",vakformulieren!$E53=\"5 onwel / ziek\",vakformulieren!$E53=\"5 milieuschade\"),vakformulieren!$V53,\"\")","v":""},null,null,null,null,{"$f":"IF(AND(OR(vakformulieren!$E53=\"5 letsel\",vakformulieren!$E53=\"5 onwel / ziek\",vakformulieren!$E53=\"5 milieuschade\"),vakformulieren!$E47>0),SUM(vakformulieren!$P47/8),\"\")","v":""}]
[{"$f":"IF(OR(vakformulieren!$E48=\"5 letsel\",vakformulieren!$E48=\"5 onwel / ziek\",vakformulieren!$E48=\"5 milieuschade\"),vakformulieren!$A48,\"\")","v":""},"",{"$f":"IF(OR(vakformulieren!$E54=\"5 letsel\",vakformulieren!$E54=\"5 onwel / ziek\",vakformulieren!$E54=\"5 milieuschade\"),vakformulieren!$C48,\"\")","v":""},{"$f":"IF(OR(vakformulieren!$E54=\"5 letsel\",vakformulieren!$E54=\"5 onwel / ziek\",vakformulieren!$E54=\"5 milieuschade\"),vakformulieren!$E48,\"\")","v":""},{"$f":"IF(OR(vakformulieren!$E54=\"5 letsel\",vakformulieren!$E54=\"5 onwel / ziek\",vakformulieren!$E54=\"5 milieuschade\"),vakformulieren!$V54,\"\")","v":""},null,null,null,null,{"$f":"IF(AND(OR(vakformulieren!$E54=\"5 letsel\",vakformulieren!$E54=\"5 onwel / ziek\",vakformulieren!$E54=\"5 milieuschade\"),vakformulieren!$E48>0),SUM(vakformulieren!$P48/8),\"\")","v":""}]
[{"$f":"IF(OR(vakformulieren!$E49=\"5 letsel\",vakformulieren!$E49=\"5 onwel / ziek\",vakformulieren!$E49=\"5 milieuschade\"),vakformulieren!$A49,\"\")","v":""},"",{"$f":"IF(OR(vakformulieren!$E55=\"5 letsel\",vakformulieren!$E55=\"5 onwel / ziek\",vakformulieren!$E55=\"5 milieuschade\"),vakformulieren!$C49,\"\")","v":""},{"$f":"IF(OR(vakformulieren!$E55=\"5 letsel\",vakformulieren!$E55=\"5 onwel / ziek\",vakformulieren!$E55=\"5 milieuschade\"),vakformulieren!$E49,\"\")","v":""},{"$f":"IF(OR(vakformulieren!$E55=\"5 letsel\",vakformulieren!$E55=\"5 onwel / ziek\",vakformulieren!$E55=\"5 milieuschade\"),vakformulieren!$V55,\"\")","v":""},null,null,null,null,{"$f":"IF(AND(OR(vakformulieren!$E55=\"5 letsel\",vakformulieren!$E55=\"5 onwel / ziek\",vakformulieren!$E55=\"5 milieuschade\"),vakformulieren!$E49>0),SUM(vakformulieren!$P49/8),\"\")","v":""}]
[{"$f":"IF(OR(vakformulieren!$E50=\"5 letsel\",vakformulieren!$E50=\"5 onwel / ziek\",vakformulieren!$E50=\"5 milieuschade\"),vakformulieren!$A50,\"\")","v":""},"",{"$f":"IF(OR(vakformulieren!$E56=\"5 letsel\",vakformulieren!$E56=\"5 onwel / ziek\",vakformulieren!$E56=\"5 milieuschade\"),vakformulieren!$C50,\"\")","v":""},{"$f":"IF(OR(vakformulieren!$E56=\"5 letsel\",vakformulieren!$E56=\"5 onwel / ziek\",vakformulieren!$E56=\"5 milieuschade\"),vakformulieren!$E50,\"\")","v":""},{"$f":"IF(OR(vakformulieren!$E56=\"5 letsel\",vakformulieren!$E56=\"5 onwel / ziek\",vakformulieren!$E56=\"5 milieuschade\"),vakformulieren!$V56,\"\")","v":""},null,null,null,null,{"$f":"IF(AND(OR(vakformulieren!$E56=\"5 letsel\",vakformulieren!$E56=\"5 onwel / ziek\",vakformulieren!$E56=\"5 milieuschade\"),vakformulieren!$E50>0),SUM(vakformulieren!$P50/8),\"\")","v":""}]
[{"$f":"IF(OR(vakformulieren!$E51=\"5 letsel\",vakformulieren!$E51=\"5 onwel / ziek\",vakformulieren!$E51=\"5 milieuschade\"),vakformulieren!$A51,\"\")","v":""},"",{"$f":"IF(OR(vakformulieren!$E57=\"5 letsel\",vakformulieren!$E57=\"5 onwel / ziek\",vakformulieren!$E57=\"5 milieuschade\"),vakformulieren!$C51,\"\")","v":""},{"$f":"IF(OR(vakformulieren!$E57=\"5 letsel\",vakformulieren!$E57=\"5 onwel / ziek\",vakformulieren!$E57=\"5 milieuschade\"),vakformulieren!$E51,\"\")","v":""},{"$f":"IF(OR(vakformulieren!$E57=\"5 letsel\",vakformulieren!$E57=\"5 onwel / ziek\",vakformulieren!$E57=\"5 milieuschade\"),vakformulieren!$V57,\"\")","v":""},null,null,null,null,{"$f":"IF(AND(OR(vakformulieren!$E57=\"5 letsel\",vakformulieren!$E57=\"5 onwel / ziek\",vakformulieren!$E57=\"5 milieuschade\"),vakformulieren!$E51>0),SUM(vakformulieren!$P51/8),\"\")","v":""}]
[{"$f":"IF(OR(vakformulieren!$E52=\"5 letsel\",vakformulieren!$E52=\"5 onwel / ziek\",vakformulieren!$E52=\"5 milieuschade\"),vakformulieren!$A52,\"\")","v":""},"",{"$f":"IF(OR(vakformulieren!$E58=\"5 letsel\",vakformulieren!$E58=\"5 onwel / ziek\",vakformulieren!$E58=\"5 milieuschade\"),vakformulieren!$C52,\"\")","v":""},{"$f":"IF(OR(vakformulieren!$E58=\"5 letsel\",vakformulieren!$E58=\"5 onwel / ziek\",vakformulieren!$E58=\"5 milieuschade\"),vakformulieren!$E52,\"\")","v":""},{"$f":"IF(OR(vakformulieren!$E58=\"5 letsel\",vakformulieren!$E58=\"5 onwel / ziek\",vakformulieren!$E58=\"5 milieuschade\"),vakformulieren!$V58,\"\")","v":""},null,null,null,null,{"$f":"IF(AND(OR(vakformulieren!$E58=\"5 letsel\",vakformulieren!$E58=\"5 onwel / ziek\",vakformulieren!$E58=\"5 milieuschade\"),vakformulieren!$E52>0),SUM(vakformulieren!$P52/8),\"\")","v":""}]
[{"$f":"IF(OR(vakformulieren!$E53=\"5 letsel\",vakformulieren!$E53=\"5 onwel / ziek\",vakformulieren!$E53=\"5 milieuschade\"),vakformulieren!$A53,\"\")","v":""},"",{"$f":"IF(OR(vakformulieren!$E59=\"5 letsel\",vakformulieren!$E59=\"5 onwel / ziek\",vakformulieren!$E59=\"5 milieuschade\"),vakformulieren!$C53,\"\")","v":""},{"$f":"IF(OR(vakformulieren!$E59=\"5 letsel\",vakformulieren!$E59=\"5 onwel / ziek\",vakformulieren!$E59=\"5 milieuschade\"),vakformulieren!$E53,\"\")","v":""},{"$f":"IF(OR(vakformulieren!$E59=\"5 letsel\",vakformulieren!$E59=\"5 onwel / ziek\",vakformulieren!$E59=\"5 milieuschade\"),vakformulieren!$V59,\"\")","v":""},null,null,null,null,{"$f":"IF(AND(OR(vakformulieren!$E59=\"5 letsel\",vakformulieren!$E59=\"5 onwel / ziek\",vakformulieren!$E59=\"5 milieuschade\"),vakformulieren!$E53>0),SUM(vakformulieren!$P53/8),\"\")","v":""}]
[{"$f":"IF(OR(vakformulieren!$E54=\"5 letsel\",vakformulieren!$E54=\"5 onwel / ziek\",vakformulieren!$E54=\"5 milieuschade\"),vakformulieren!$A54,\"\")","v":""},"",{"$f":"IF(OR(vakformulieren!$E60=\"5 letsel\",vakformulieren!$E60=\"5 onwel / ziek\",vakformulieren!$E60=\"5 milieuschade\"),vakformulieren!$C54,\"\")","v":""},{"$f":"IF(OR(vakformulieren!$E60=\"5 letsel\",vakformulieren!$E60=\"5 onwel / ziek\",vakformulieren!$E60=\"5 milieuschade\"),vakformulieren!$E54,\"\")","v":""},{"$f":"IF(OR(vakformulieren!$E60=\"5 letsel\",vakformulieren!$E60=\"5 onwel / ziek\",vakformulieren!$E60=\"5 milieuschade\"),vakformulieren!$V60,\"\")","v":""},null,null,null,null,{"$f":"IF(AND(OR(vakformulieren!$E60=\"5 letsel\",vakformulieren!$E60=\"5 onwel / ziek\",vakformulieren!$E60=\"5 milieuschade\"),vakformulieren!$E54>0),SUM(vakformulieren!$P54/8),\"\")","v":""}]
[{"$f":"IF(OR(vakformulieren!$E55=\"5 letsel\",vakformulieren!$E55=\"5 onwel / ziek\",vakformulieren!$E55=\"5 milieuschade\"),vakformulieren!$A55,\"\")","v":""},"",{"$f":"IF(OR(vakformulieren!$E61=\"5 letsel\",vakformulieren!$E61=\"5 onwel / ziek\",vakformulieren!$E61=\"5 milieuschade\"),vakformulieren!$C55,\"\")","v":""},{"$f":"IF(OR(vakformulieren!$E61=\"5 letsel\",vakformulieren!$E61=\"5 onwel / ziek\",vakformulieren!$E61=\"5 milieuschade\"),vakformulieren!$E55,\"\")","v":""},{"$f":"IF(OR(vakformulieren!$E61=\"5 letsel\",vakformulieren!$E61=\"5 onwel / ziek\",vakformulieren!$E61=\"5 milieuschade\"),vakformulieren!$V61,\"\")","v":""},null,null,null,null,{"$f":"IF(AND(OR(vakformulieren!$E61=\"5 letsel\",vakformulieren!$E61=\"5 onwel / ziek\",vakformulieren!$E61=\"5 milieuschade\"),vakformulieren!$E55>0),SUM(vakformulieren!$P55/8),\"\")","v":""}]
[{"$f":"IF(OR(vakformulieren!$E56=\"5 letsel\",vakformulieren!$E56=\"5 onwel / ziek\",vakformulieren!$E56=\"5 milieuschade\"),vakformulieren!$A56,\"\")","v":""},"",{"$f":"IF(OR(vakformulieren!$E62=\"5 letsel\",vakformulieren!$E62=\"5 onwel / ziek\",vakformulieren!$E62=\"5 milieuschade\"),vakformulieren!$C56,\"\")","v":""},{"$f":"IF(OR(vakformulieren!$E62=\"5 letsel\",vakformulieren!$E62=\"5 onwel / ziek\",vakformulieren!$E62=\"5 milieuschade\"),vakformulieren!$E56,\"\")","v":""},{"$f":"IF(OR(vakformulieren!$E62=\"5 letsel\",vakformulieren!$E62=\"5 onwel / ziek\",vakformulieren!$E62=\"5 milieuschade\"),vakformulieren!$V62,\"\")","v":""},null,null,null,null,{"$f":"IF(AND(OR(vakformulieren!$E62=\"5 letsel\",vakformulieren!$E62=\"5 onwel / ziek\",vakformulieren!$E62=\"5 milieuschade\"),vakformulieren!$E56>0),SUM(vakformulieren!$P56/8),\"\")","v":""}]
[{"$f":"IF(OR(vakformulieren!$E57=\"5 letsel\",vakformulieren!$E57=\"5 onwel / ziek\",vakformulieren!$E57=\"5 milieuschade\"),vakformulieren!$A57,\"\")","v":""},"",{"$f":"IF(OR(vakformulieren!$E63=\"5 letsel\",vakformulieren!$E63=\"5 onwel / ziek\",vakformulieren!$E63=\"5 milieuschade\"),vakformulieren!$C57,\"\")","v":""},{"$f":"IF(OR(vakformulieren!$E63=\"5 letsel\",vakformulieren!$E63=\"5 onwel / ziek\",vakformulieren!$E63=\"5 milieuschade\"),vakformulieren!$E57,\"\")","v":""},{"$f":"IF(OR(vakformulieren!$E63=\"5 letsel\",vakformulieren!$E63=\"5 onwel / ziek\",vakformulieren!$E63=\"5 milieuschade\"),vakformulieren!$V63,\"\")","v":""},null,null,null,null,{"$f":"IF(AND(OR(vakformulieren!$E63=\"5 letsel\",vakformulieren!$E63=\"5 onwel / ziek\",vakformulieren!$E63=\"5 milieuschade\"),vakformulieren!$E57>0),SUM(vakformulieren!$P57/8),\"\")","v":""}]
[{"$f":"IF(OR(vakformulieren!$E58=\"5 letsel\",vakformulieren!$E58=\"5 onwel / ziek\",vakformulieren!$E58=\"5 milieuschade\"),vakformulieren!$A58,\"\")","v":""},"",{"$f":"IF(OR(vakformulieren!$E64=\"5 letsel\",vakformulieren!$E64=\"5 onwel / ziek\",vakformulieren!$E64=\"5 milieuschade\"),vakformulieren!$C58,\"\")","v":""},{"$f":"IF(OR(vakformulieren!$E64=\"5 letsel\",vakformulieren!$E64=\"5 onwel / ziek\",vakformulieren!$E64=\"5 milieuschade\"),vakformulieren!$E58,\"\")","v":""},{"$f":"IF(OR(vakformulieren!$E64=\"5 letsel\",vakformulieren!$E64=\"5 onwel / ziek\",vakformulieren!$E64=\"5 milieuschade\"),vakformulieren!$V64,\"\")","v":""},null,null,null,null,{"$f":"IF(AND(OR(vakformulieren!$E64=\"5 letsel\",vakformulieren!$E64=\"5 onwel / ziek\",vakformulieren!$E64=\"5 milieuschade\"),vakformulieren!$E58>0),SUM(vakformulieren!$P58/8),\"\")","v":""}]
[{"$f":"IF(OR(vakformulieren!$E59=\"5 letsel\",vakformulieren!$E59=\"5 onwel / ziek\",vakformulieren!$E59=\"5 milieuschade\"),vakformulieren!$A59,\"\")","v":""},"",{"$f":"IF(OR(vakformulieren!$E65=\"5 letsel\",vakformulieren!$E65=\"5 onwel / ziek\",vakformulieren!$E65=\"5 milieuschade\"),vakformulieren!$C59,\"\")","v":""},{"$f":"IF(OR(vakformulieren!$E65=\"5 letsel\",vakformulieren!$E65=\"5 onwel / ziek\",vakformulieren!$E65=\"5 milieuschade\"),vakformulieren!$E59,\"\")","v":""},{"$f":"IF(OR(vakformulieren!$E65=\"5 letsel\",vakformulieren!$E65=\"5 onwel / ziek\",vakformulieren!$E65=\"5 milieuschade\"),vakformulieren!$V65,\"\")","v":""},null,null,null,null,{"$f":"IF(AND(OR(vakformulieren!$E65=\"5 letsel\",vakformulieren!$E65=\"5 onwel / ziek\",vakformulieren!$E65=\"5 milieuschade\"),vakformulieren!$E59>0),SUM(vakformulieren!$P59/8),\"\")","v":""}]
[{"$f":"IF(OR(vakformulieren!$E60=\"5 letsel\",vakformulieren!$E60=\"5 onwel / ziek\",vakformulieren!$E60=\"5 milieuschade\"),vakformulieren!$A60,\"\")","v":""},"",{"$f":"IF(OR(vakformulieren!$E66=\"5 letsel\",vakformulieren!$E66=\"5 onwel / ziek\",vakformulieren!$E66=\"5 milieuschade\"),vakformulieren!$C60,\"\")","v":""},{"$f":"IF(OR(vakformulieren!$E66=\"5 letsel\",vakformulieren!$E66=\"5 onwel / ziek\",vakformulieren!$E66=\"5 milieuschade\"),vakformulieren!$E60,\"\")","v":""},{"$f":"IF(OR(vakformulieren!$E66=\"5 letsel\",vakformulieren!$E66=\"5 onwel / ziek\",vakformulieren!$E66=\"5 milieuschade\"),vakformulieren!$V66,\"\")","v":""},null,null,null,null,{"$f":"IF(AND(OR(vakformulieren!$E66=\"5 letsel\",vakformulieren!$E66=\"5 onwel / ziek\",vakformulieren!$E66=\"5 milieuschade\"),vakformulieren!$E60>0),SUM(vakformulieren!$P60/8),\"\")","v":""}]
[{"$f":"IF(OR(vakformulieren!$E61=\"5 letsel\",vakformulieren!$E61=\"5 onwel / ziek\",vakformulieren!$E61=\"5 milieuschade\"),vakformulieren!$A61,\"\")","v":""},"",{"$f":"IF(OR(vakformulieren!$E67=\"5 letsel\",vakformulieren!$E67=\"5 onwel / ziek\",vakformulieren!$E67=\"5 milieuschade\"),vakformulieren!$C61,\"\")","v":""},{"$f":"IF(OR(vakformulieren!$E67=\"5 letsel\",vakformulieren!$E67=\"5 onwel / ziek\",vakformulieren!$E67=\"5 milieuschade\"),vakformulieren!$E61,\"\")","v":""},{"$f":"IF(OR(vakformulieren!$E67=\"5 letsel\",vakformulieren!$E67=\"5 onwel / ziek\",vakformulieren!$E67=\"5 milieuschade\"),vakformulieren!$V67,\"\")","v":""},null,null,null,null,{"$f":"IF(AND(OR(vakformulieren!$E67=\"5 letsel\",vakformulieren!$E67=\"5 onwel / ziek\",vakformulieren!$E67=\"5 milieuschade\"),vakformulieren!$E61>0),SUM(vakformulieren!$P61/8),\"\")","v":""}]
[{"$f":"IF(OR(vakformulieren!$E62=\"5 letsel\",vakformulieren!$E62=\"5 onwel / ziek\",vakformulieren!$E62=\"5 milieuschade\"),vakformulieren!$A62,\"\")","v":""},"",{"$f":"IF(OR(vakformulieren!$E68=\"5 letsel\",vakformulieren!$E68=\"5 onwel / ziek\",vakformulieren!$E68=\"5 milieuschade\"),vakformulieren!$C62,\"\")","v":""},{"$f":"IF(OR(vakformulieren!$E68=\"5 letsel\",vakformulieren!$E68=\"5 onwel / ziek\",vakformulieren!$E68=\"5 milieuschade\"),vakformulieren!$E62,\"\")","v":""},{"$f":"IF(OR(vakformulieren!$E68=\"5 letsel\",vakformulieren!$E68=\"5 onwel / ziek\",vakformulieren!$E68=\"5 milieuschade\"),vakformulieren!$V68,\"\")","v":""},null,null,null,null,{"$f":"IF(AND(OR(vakformulieren!$E68=\"5 letsel\",vakformulieren!$E68=\"5 onwel / ziek\",vakformulieren!$E68=\"5 milieuschade\"),vakformulieren!$E62>0),SUM(vakformulieren!$P62/8),\"\")","v":""}]
[{"$f":"IF(OR(vakformulieren!$E63=\"5 letsel\",vakformulieren!$E63=\"5 onwel / ziek\",vakformulieren!$E63=\"5 milieuschade\"),vakformulieren!$A63,\"\")","v":""},"",{"$f":"IF(OR(vakformulieren!$E69=\"5 letsel\",vakformulieren!$E69=\"5 onwel / ziek\",vakformulieren!$E69=\"5 milieuschade\"),vakformulieren!$C63,\"\")","v":""},{"$f":"IF(OR(vakformulieren!$E69=\"5 letsel\",vakformulieren!$E69=\"5 onwel / ziek\",vakformulieren!$E69=\"5 milieuschade\"),vakformulieren!$E63,\"\")","v":""},{"$f":"IF(OR(vakformulieren!$E69=\"5 letsel\",vakformulieren!$E69=\"5 onwel / ziek\",vakformulieren!$E69=\"5 milieuschade\"),vakformulieren!$V69,\"\")","v":""},null,null,null,null,{"$f":"IF(AND(OR(vakformulieren!$E69=\"5 letsel\",vakformulieren!$E69=\"5 onwel / ziek\",vakformulieren!$E69=\"5 milieuschade\"),vakformulieren!$E63>0),SUM(vakformulieren!$P63/8),\"\")","v":""}]
[{"$f":"IF(OR(vakformulieren!$E64=\"5 letsel\",vakformulieren!$E64=\"5 onwel / ziek\",vakformulieren!$E64=\"5 milieuschade\"),vakformulieren!$A64,\"\")","v":""},"",{"$f":"IF(OR(vakformulieren!$E70=\"5 letsel\",vakformulieren!$E70=\"5 onwel / ziek\",vakformulieren!$E70=\"5 milieuschade\"),vakformulieren!$C64,\"\")","v":""},{"$f":"IF(OR(vakformulieren!$E70=\"5 letsel\",vakformulieren!$E70=\"5 onwel / ziek\",vakformulieren!$E70=\"5 milieuschade\"),vakformulieren!$E64,\"\")","v":""},{"$f":"IF(OR(vakformulieren!$E70=\"5 letsel\",vakformulieren!$E70=\"5 onwel / ziek\",vakformulieren!$E70=\"5 milieuschade\"),vakformulieren!$V70,\"\")","v":""},null,null,null,null,{"$f":"IF(AND(OR(vakformulieren!$E70=\"5 letsel\",vakformulieren!$E70=\"5 onwel / ziek\",vakformulieren!$E70=\"5 milieuschade\"),vakformulieren!$E64>0),SUM(vakformulieren!$P64/8),\"\")","v":""}]
[{"$f":"IF(OR(vakformulieren!$E65=\"5 letsel\",vakformulieren!$E65=\"5 onwel / ziek\",vakformulieren!$E65=\"5 milieuschade\"),vakformulieren!$A65,\"\")","v":""},"",{"$f":"IF(OR(vakformulieren!$E71=\"5 letsel\",vakformulieren!$E71=\"5 onwel / ziek\",vakformulieren!$E71=\"5 milieuschade\"),vakformulieren!$C65,\"\")","v":""},{"$f":"IF(OR(vakformulieren!$E71=\"5 letsel\",vakformulieren!$E71=\"5 onwel / ziek\",vakformulieren!$E71=\"5 milieuschade\"),vakformulieren!$E65,\"\")","v":""},{"$f":"IF(OR(vakformulieren!$E71=\"5 letsel\",vakformulieren!$E71=\"5 onwel / ziek\",vakformulieren!$E71=\"5 milieuschade\"),vakformulieren!$V71,\"\")","v":""},null,null,null,null,{"$f":"IF(AND(OR(vakformulieren!$E71=\"5 letsel\",vakformulieren!$E71=\"5 onwel / ziek\",vakformulieren!$E71=\"5 milieuschade\"),vakformulieren!$E65>0),SUM(vakformulieren!$P65/8),\"\")","v":""}]
[{"$f":"IF(OR(vakformulieren!$E66=\"5 letsel\",vakformulieren!$E66=\"5 onwel / ziek\",vakformulieren!$E66=\"5 milieuschade\"),vakformulieren!$A66,\"\")","v":""},"",{"$f":"IF(OR(vakformulieren!$E72=\"5 letsel\",vakformulieren!$E72=\"5 onwel / ziek\",vakformulieren!$E72=\"5 milieuschade\"),vakformulieren!$C66,\"\")","v":""},{"$f":"IF(OR(vakformulieren!$E72=\"5 letsel\",vakformulieren!$E72=\"5 onwel / ziek\",vakformulieren!$E72=\"5 milieuschade\"),vakformulieren!$E66,\"\")","v":""},{"$f":"IF(OR(vakformulieren!$E72=\"5 letsel\",vakformulieren!$E72=\"5 onwel / ziek\",vakformulieren!$E72=\"5 milieuschade\"),vakformulieren!$V72,\"\")","v":""},null,null,null,null,{"$f":"IF(AND(OR(vakformulieren!$E72=\"5 letsel\",vakformulieren!$E72=\"5 onwel / ziek\",vakformulieren!$E72=\"5 milieuschade\"),vakformulieren!$E66>0),SUM(vakformulieren!$P66/8),\"\")","v":""}]
[{"$f":"IF(OR(vakformulieren!$E67=\"5 letsel\",vakformulieren!$E67=\"5 onwel / ziek\",vakformulieren!$E67=\"5 milieuschade\"),vakformulieren!$A67,\"\")","v":""},{"$f":"IF($A68>\"\",HYPERLINK(CONCATENATE($AL$1,$A68,$AK$1),$A68),\"\")","v":""},{"$f":"IF(OR(vakformulieren!$E73=\"5 letsel\",vakformulieren!$E73=\"5 onwel / ziek\",vakformulieren!$E73=\"5 milieuschade\"),vakformulieren!$C67,\"\")","v":""},{"$f":"IF(OR(vakformulieren!$E73=\"5 letsel\",vakformulieren!$E73=\"5 onwel / ziek\",vakformulieren!$E73=\"5 milieuschade\"),vakformulieren!$E67,\"\")","v":""},{"$f":"IF(OR(vakformulieren!$E73=\"5 letsel\",vakformulieren!$E73=\"5 onwel / ziek\",vakformulieren!$E73=\"5 milieuschade\"),vakformulieren!$V73,\"\")","v":""},null,null,null,null,{"$f":"IF(AND(OR(vakformulieren!$E73=\"5 letsel\",vakformulieren!$E73=\"5 onwel / ziek\",vakformulieren!$E73=\"5 milieuschade\"),vakformulieren!$E67>0),SUM(vakformulieren!$P67/8),\"\")","v":""}]
[{"$f":"IF(OR(vakformulieren!$E68=\"5 letsel\",vakformulieren!$E68=\"5 onwel / ziek\",vakformulieren!$E68=\"5 milieuschade\"),vakformulieren!$A68,\"\")","v":""},"",{"$f":"IF(OR(vakformulieren!$E74=\"5 letsel\",vakformulieren!$E74=\"5 onwel / ziek\",vakformulieren!$E74=\"5 milieuschade\"),vakformulieren!$C68,\"\")","v":""},{"$f":"IF(OR(vakformulieren!$E74=\"5 letsel\",vakformulieren!$E74=\"5 onwel / ziek\",vakformulieren!$E74=\"5 milieuschade\"),vakformulieren!$E68,\"\")","v":""},{"$f":"IF(OR(vakformulieren!$E74=\"5 letsel\",vakformulieren!$E74=\"5 onwel / ziek\",vakformulieren!$E74=\"5 milieuschade\"),vakformulieren!$V74,\"\")","v":""},null,null,null,null,{"$f":"IF(AND(OR(vakformulieren!$E74=\"5 letsel\",vakformulieren!$E74=\"5 onwel / ziek\",vakformulieren!$E74=\"5 milieuschade\"),vakformulieren!$E68>0),SUM(vakformulieren!$P68/8),\"\")","v":""}]
[{"$f":"IF(OR(vakformulieren!$E69=\"5 letsel\",vakformulieren!$E69=\"5 onwel / ziek\",vakformulieren!$E69=\"5 milieuschade\"),vakformulieren!$A69,\"\")","v":""},"",{"$f":"IF(OR(vakformulieren!$E75=\"5 letsel\",vakformulieren!$E75=\"5 onwel / ziek\",vakformulieren!$E75=\"5 milieuschade\"),vakformulieren!$C69,\"\")","v":""},{"$f":"IF(OR(vakformulieren!$E75=\"5 letsel\",vakformulieren!$E75=\"5 onwel / ziek\",vakformulieren!$E75=\"5 milieuschade\"),vakformulieren!$E69,\"\")","v":""},{"$f":"IF(OR(vakformulieren!$E75=\"5 letsel\",vakformulieren!$E75=\"5 onwel / ziek\",vakformulieren!$E75=\"5 milieuschade\"),vakformulieren!$V75,\"\")","v":""},null,null,null,null,{"$f":"IF(AND(OR(vakformulieren!$E75=\"5 letsel\",vakformulieren!$E75=\"5 onwel / ziek\",vakformulieren!$E75=\"5 milieuschade\"),vakformulieren!$E69>0),SUM(vakformulieren!$P69/8),\"\")","v":""}]
[{"$f":"IF(OR(vakformulieren!$E70=\"5 letsel\",vakformulieren!$E70=\"5 onwel / ziek\",vakformulieren!$E70=\"5 milieuschade\"),vakformulieren!$A70,\"\")","v":""},"",{"$f":"IF(OR(vakformulieren!$E76=\"5 letsel\",vakformulieren!$E76=\"5 onwel / ziek\",vakformulieren!$E76=\"5 milieuschade\"),vakformulieren!$C70,\"\")","v":""},{"$f":"IF(OR(vakformulieren!$E76=\"5 letsel\",vakformulieren!$E76=\"5 onwel / ziek\",vakformulieren!$E76=\"5 milieuschade\"),vakformulieren!$E70,\"\")","v":""},{"$f":"IF(OR(vakformulieren!$E76=\"5 letsel\",vakformulieren!$E76=\"5 onwel / ziek\",vakformulieren!$E76=\"5 milieuschade\"),vakformulieren!$V76,\"\")","v":""},null,null,null,null,{"$f":"IF(AND(OR(vakformulieren!$E76=\"5 letsel\",vakformulieren!$E76=\"5 onwel / ziek\",vakformulieren!$E76=\"5 milieuschade\"),vakformulieren!$E70>0),SUM(vakformulieren!$P70/8),\"\")","v":""}]
[{"$f":"IF(OR(vakformulieren!$E71=\"5 letsel\",vakformulieren!$E71=\"5 onwel / ziek\",vakformulieren!$E71=\"5 milieuschade\"),vakformulieren!$A71,\"\")","v":""},"",{"$f":"IF(OR(vakformulieren!$E77=\"5 letsel\",vakformulieren!$E77=\"5 onwel / ziek\",vakformulieren!$E77=\"5 milieuschade\"),vakformulieren!$C71,\"\")","v":""},{"$f":"IF(OR(vakformulieren!$E77=\"5 letsel\",vakformulieren!$E77=\"5 onwel / ziek\",vakformulieren!$E77=\"5 milieuschade\"),vakformulieren!$E71,\"\")","v":""},{"$f":"IF(OR(vakformulieren!$E77=\"5 letsel\",vakformulieren!$E77=\"5 onwel / ziek\",vakformulieren!$E77=\"5 milieuschade\"),vakformulieren!$V77,\"\")","v":""},null,null,null,null,{"$f":"IF(AND(OR(vakformulieren!$E77=\"5 letsel\",vakformulieren!$E77=\"5 onwel / ziek\",vakformulieren!$E77=\"5 milieuschade\"),vakformulieren!$E71>0),SUM(vakformulieren!$P71/8),\"\")","v":""}]
[{"$f":"IF(OR(vakformulieren!$E72=\"5 letsel\",vakformulieren!$E72=\"5 onwel / ziek\",vakformulieren!$E72=\"5 milieuschade\"),vakformulieren!$A72,\"\")","v":""},"",{"$f":"IF(OR(vakformulieren!$E78=\"5 letsel\",vakformulieren!$E78=\"5 onwel / ziek\",vakformulieren!$E78=\"5 milieuschade\"),vakformulieren!$C72,\"\")","v":""},{"$f":"IF(OR(vakformulieren!$E78=\"5 letsel\",vakformulieren!$E78=\"5 onwel / ziek\",vakformulieren!$E78=\"5 milieuschade\"),vakformulieren!$E72,\"\")","v":""},{"$f":"IF(OR(vakformulieren!$E78=\"5 letsel\",vakformulieren!$E78=\"5 onwel / ziek\",vakformulieren!$E78=\"5 milieuschade\"),vakformulieren!$V78,\"\")","v":""},null,null,null,null,{"$f":"IF(AND(OR(vakformulieren!$E78=\"5 letsel\",vakformulieren!$E78=\"5 onwel / ziek\",vakformulieren!$E78=\"5 milieuschade\"),vakformulieren!$E72>0),SUM(vakformulieren!$P72/8),\"\")","v":""}]
[{"$f":"IF(OR(vakformulieren!$E73=\"5 letsel\",vakformulieren!$E73=\"5 onwel / ziek\",vakformulieren!$E73=\"5 milieuschade\"),vakformulieren!$A73,\"\")","v":""},"",{"$f":"IF(OR(vakformulieren!$E79=\"5 letsel\",vakformulieren!$E79=\"5 onwel / ziek\",vakformulieren!$E79=\"5 milieuschade\"),vakformulieren!$C73,\"\")","v":""},{"$f":"IF(OR(vakformulieren!$E79=\"5 letsel\",vakformulieren!$E79=\"5 onwel / ziek\",vakformulieren!$E79=\"5 milieuschade\"),vakformulieren!$E73,\"\")","v":""},{"$f":"IF(OR(vakformulieren!$E79=\"5 letsel\",vakformulieren!$E79=\"5 onwel / ziek\",vakformulieren!$E79=\"5 milieuschade\"),vakformulieren!$V79,\"\")","v":""},null,null,null,null,{"$f":"IF(AND(OR(vakformulieren!$E79=\"5 letsel\",vakformulieren!$E79=\"5 onwel / ziek\",vakformulieren!$E79=\"5 milieuschade\"),vakformulieren!$E73>0),SUM(vakformulieren!$P73/8),\"\")","v":""}]
[{"$f":"IF(OR(vakformulieren!$E74=\"5 letsel\",vakformulieren!$E74=\"5 onwel / ziek\",vakformulieren!$E74=\"5 milieuschade\"),vakformulieren!$A74,\"\")","v":""},"",{"$f":"IF(OR(vakformulieren!$E80=\"5 letsel\",vakformulieren!$E80=\"5 onwel / ziek\",vakformulieren!$E80=\"5 milieuschade\"),vakformulieren!$C74,\"\")","v":""},{"$f":"IF(OR(vakformulieren!$E80=\"5 letsel\",vakformulieren!$E80=\"5 onwel / ziek\",vakformulieren!$E80=\"5 milieuschade\"),vakformulieren!$E74,\"\")","v":""},{"$f":"IF(OR(vakformulieren!$E80=\"5 letsel\",vakformulieren!$E80=\"5 onwel / ziek\",vakformulieren!$E80=\"5 milieuschade\"),vakformulieren!$V80,\"\")","v":""},null,null,null,null,{"$f":"IF(AND(OR(vakformulieren!$E80=\"5 letsel\",vakformulieren!$E80=\"5 onwel / ziek\",vakformulieren!$E80=\"5 milieuschade\"),vakformulieren!$E74>0),SUM(vakformulieren!$P74/8),\"\")","v":""}]
[{"$f":"IF(OR(vakformulieren!$E75=\"5 letsel\",vakformulieren!$E75=\"5 onwel / ziek\",vakformulieren!$E75=\"5 milieuschade\"),vakformulieren!$A75,\"\")","v":""},"",{"$f":"IF(OR(vakformulieren!$E81=\"5 letsel\",vakformulieren!$E81=\"5 onwel / ziek\",vakformulieren!$E81=\"5 milieuschade\"),vakformulieren!$C75,\"\")","v":""},{"$f":"IF(OR(vakformulieren!$E81=\"5 letsel\",vakformulieren!$E81=\"5 onwel / ziek\",vakformulieren!$E81=\"5 milieuschade\"),vakformulieren!$E75,\"\")","v":""},{"$f":"IF(OR(vakformulieren!$E81=\"5 letsel\",vakformulieren!$E81=\"5 onwel / ziek\",vakformulieren!$E81=\"5 milieuschade\"),vakformulieren!$V81,\"\")","v":""},null,null,null,null,{"$f":"IF(AND(OR(vakformulieren!$E81=\"5 letsel\",vakformulieren!$E81=\"5 onwel / ziek\",vakformulieren!$E81=\"5 milieuschade\"),vakformulieren!$E75>0),SUM(vakformulieren!$P75/8),\"\")","v":""}]
[{"$f":"IF(OR(vakformulieren!$E76=\"5 letsel\",vakformulieren!$E76=\"5 onwel / ziek\",vakformulieren!$E76=\"5 milieuschade\"),vakformulieren!$A76,\"\")","v":""},"",{"$f":"IF(OR(vakformulieren!$E82=\"5 letsel\",vakformulieren!$E82=\"5 onwel / ziek\",vakformulieren!$E82=\"5 milieuschade\"),vakformulieren!$C76,\"\")","v":""},{"$f":"IF(OR(vakformulieren!$E82=\"5 letsel\",vakformulieren!$E82=\"5 onwel / ziek\",vakformulieren!$E82=\"5 milieuschade\"),vakformulieren!$E76,\"\")","v":""},{"$f":"IF(OR(vakformulieren!$E82=\"5 letsel\",vakformulieren!$E82=\"5 onwel / ziek\",vakformulieren!$E82=\"5 milieuschade\"),vakformulieren!$V82,\"\")","v":""},null,null,null,null,{"$f":"IF(AND(OR(vakformulieren!$E82=\"5 letsel\",vakformulieren!$E82=\"5 onwel / ziek\",vakformulieren!$E82=\"5 milieuschade\"),vakformulieren!$E76>0),SUM(vakformulieren!$P76/8),\"\")","v":""}]
[{"$f":"IF(OR(vakformulieren!$E77=\"5 letsel\",vakformulieren!$E77=\"5 onwel / ziek\",vakformulieren!$E77=\"5 milieuschade\"),vakformulieren!$A77,\"\")","v":""},"",{"$f":"IF(OR(vakformulieren!$E83=\"5 letsel\",vakformulieren!$E83=\"5 onwel / ziek\",vakformulieren!$E83=\"5 milieuschade\"),vakformulieren!$C77,\"\")","v":""},{"$f":"IF(OR(vakformulieren!$E83=\"5 letsel\",vakformulieren!$E83=\"5 onwel / ziek\",vakformulieren!$E83=\"5 milieuschade\"),vakformulieren!$E77,\"\")","v":""},{"$f":"IF(OR(vakformulieren!$E83=\"5 letsel\",vakformulieren!$E83=\"5 onwel / ziek\",vakformulieren!$E83=\"5 milieuschade\"),vakformulieren!$V83,\"\")","v":""},null,null,null,null,{"$f":"IF(AND(OR(vakformulieren!$E83=\"5 letsel\",vakformulieren!$E83=\"5 onwel / ziek\",vakformulieren!$E83=\"5 milieuschade\"),vakformulieren!$E77>0),SUM(vakformulieren!$P77/8),\"\")","v":""}]
[{"$f":"IF(OR(vakformulieren!$E78=\"5 letsel\",vakformulieren!$E78=\"5 onwel / ziek\",vakformulieren!$E78=\"5 milieuschade\"),vakformulieren!$A78,\"\")","v":""},"",{"$f":"IF(OR(vakformulieren!$E84=\"5 letsel\",vakformulieren!$E84=\"5 onwel / ziek\",vakformulieren!$E84=\"5 milieuschade\"),vakformulieren!$C78,\"\")","v":""},{"$f":"IF(OR(vakformulieren!$E84=\"5 letsel\",vakformulieren!$E84=\"5 onwel / ziek\",vakformulieren!$E84=\"5 milieuschade\"),vakformulieren!$E78,\"\")","v":""},{"$f":"IF(OR(vakformulieren!$E84=\"5 letsel\",vakformulieren!$E84=\"5 onwel / ziek\",vakformulieren!$E84=\"5 milieuschade\"),vakformulieren!$V84,\"\")","v":""},null,null,null,null,{"$f":"IF(AND(OR(vakformulieren!$E84=\"5 letsel\",vakformulieren!$E84=\"5 onwel / ziek\",vakformulieren!$E84=\"5 milieuschade\"),vakformulieren!$E78>0),SUM(vakformulieren!$P78/8),\"\")","v":""}]
[{"$f":"IF(OR(vakformulieren!$E79=\"5 letsel\",vakformulieren!$E79=\"5 onwel / ziek\",vakformulieren!$E79=\"5 milieuschade\"),vakformulieren!$A79,\"\")","v":""},"",{"$f":"IF(OR(vakformulieren!$E85=\"5 letsel\",vakformulieren!$E85=\"5 onwel / ziek\",vakformulieren!$E85=\"5 milieuschade\"),vakformulieren!$C79,\"\")","v":""},{"$f":"IF(OR(vakformulieren!$E85=\"5 letsel\",vakformulieren!$E85=\"5 onwel / ziek\",vakformulieren!$E85=\"5 milieuschade\"),vakformulieren!$E79,\"\")","v":""},{"$f":"IF(OR(vakformulieren!$E85=\"5 letsel\",vakformulieren!$E85=\"5 onwel / ziek\",vakformulieren!$E85=\"5 milieuschade\"),vakformulieren!$V85,\"\")","v":""},null,null,null,null,{"$f":"IF(AND(OR(vakformulieren!$E85=\"5 letsel\",vakformulieren!$E85=\"5 onwel / ziek\",vakformulieren!$E85=\"5 milieuschade\"),vakformulieren!$E79>0),SUM(vakformulieren!$P79/8),\"\")","v":""}]
[{"$f":"IF(OR(vakformulieren!$E80=\"5 letsel\",vakformulieren!$E80=\"5 onwel / ziek\",vakformulieren!$E80=\"5 milieuschade\"),vakformulieren!$A80,\"\")","v":""},"",{"$f":"IF(OR(vakformulieren!$E86=\"5 letsel\",vakformulieren!$E86=\"5 onwel / ziek\",vakformulieren!$E86=\"5 milieuschade\"),vakformulieren!$C80,\"\")","v":""},{"$f":"IF(OR(vakformulieren!$E86=\"5 letsel\",vakformulieren!$E86=\"5 onwel / ziek\",vakformulieren!$E86=\"5 milieuschade\"),vakformulieren!$E80,\"\")","v":""},{"$f":"IF(OR(vakformulieren!$E86=\"5 letsel\",vakformulieren!$E86=\"5 onwel / ziek\",vakformulieren!$E86=\"5 milieuschade\"),vakformulieren!$V86,\"\")","v":""},null,null,null,null,{"$f":"IF(AND(OR(vakformulieren!$E86=\"5 letsel\",vakformulieren!$E86=\"5 onwel / ziek\",vakformulieren!$E86=\"5 milieuschade\"),vakformulieren!$E80>0),SUM(vakformulieren!$P80/8),\"\")","v":""}]
[{"$f":"IF(OR(vakformulieren!$E81=\"5 letsel\",vakformulieren!$E81=\"5 onwel / ziek\",vakformulieren!$E81=\"5 milieuschade\"),vakformulieren!$A81,\"\")","v":""},"",{"$f":"IF(OR(vakformulieren!$E87=\"5 letsel\",vakformulieren!$E87=\"5 onwel / ziek\",vakformulieren!$E87=\"5 milieuschade\"),vakformulieren!$C81,\"\")","v":""},{"$f":"IF(OR(vakformulieren!$E87=\"5 letsel\",vakformulieren!$E87=\"5 onwel / ziek\",vakformulieren!$E87=\"5 milieuschade\"),vakformulieren!$E81,\"\")","v":""},{"$f":"IF(OR(vakformulieren!$E87=\"5 letsel\",vakformulieren!$E87=\"5 onwel / ziek\",vakformulieren!$E87=\"5 milieuschade\"),vakformulieren!$V87,\"\")","v":""},null,null,null,null,{"$f":"IF(AND(OR(vakformulieren!$E87=\"5 letsel\",vakformulieren!$E87=\"5 onwel / ziek\",vakformulieren!$E87=\"5 milieuschade\"),vakformulieren!$E81>0),SUM(vakformulieren!$P81/8),\"\")","v":""}]
[{"$f":"IF(OR(vakformulieren!$E82=\"5 letsel\",vakformulieren!$E82=\"5 onwel / ziek\",vakformulieren!$E82=\"5 milieuschade\"),vakformulieren!$A82,\"\")","v":""},"",{"$f":"IF(OR(vakformulieren!$E88=\"5 letsel\",vakformulieren!$E88=\"5 onwel / ziek\",vakformulieren!$E88=\"5 milieuschade\"),vakformulieren!$C82,\"\")","v":""},{"$f":"IF(OR(vakformulieren!$E88=\"5 letsel\",vakformulieren!$E88=\"5 onwel / ziek\",vakformulieren!$E88=\"5 milieuschade\"),vakformulieren!$E82,\"\")","v":""},{"$f":"IF(OR(vakformulieren!$E88=\"5 letsel\",vakformulieren!$E88=\"5 onwel / ziek\",vakformulieren!$E88=\"5 milieuschade\"),vakformulieren!$V88,\"\")","v":""},null,null,null,null,{"$f":"IF(AND(OR(vakformulieren!$E88=\"5 letsel\",vakformulieren!$E88=\"5 onwel / ziek\",vakformulieren!$E88=\"5 milieuschade\"),vakformulieren!$E82>0),SUM(vakformulieren!$P82/8),\"\")","v":""}]
[{"$f":"IF(OR(vakformulieren!$E83=\"5 letsel\",vakformulieren!$E83=\"5 onwel / ziek\",vakformulieren!$E83=\"5 milieuschade\"),vakformulieren!$A83,\"\")","v":""},"",{"$f":"IF(OR(vakformulieren!$E89=\"5 letsel\",vakformulieren!$E89=\"5 onwel / ziek\",vakformulieren!$E89=\"5 milieuschade\"),vakformulieren!$C83,\"\")","v":""},{"$f":"IF(OR(vakformulieren!$E89=\"5 letsel\",vakformulieren!$E89=\"5 onwel / ziek\",vakformulieren!$E89=\"5 milieuschade\"),vakformulieren!$E83,\"\")","v":""},{"$f":"IF(OR(vakformulieren!$E89=\"5 letsel\",vakformulieren!$E89=\"5 onwel / ziek\",vakformulieren!$E89=\"5 milieuschade\"),vakformulieren!$V89,\"\")","v":""},null,null,null,null,{"$f":"IF(AND(OR(vakformulieren!$E89=\"5 letsel\",vakformulieren!$E89=\"5 onwel / ziek\",vakformulieren!$E89=\"5 milieuschade\"),vakformulieren!$E83>0),SUM(vakformulieren!$P83/8),\"\")","v":""}]
[{"$f":"IF(OR(vakformulieren!$E84=\"5 letsel\",vakformulieren!$E84=\"5 onwel / ziek\",vakformulieren!$E84=\"5 milieuschade\"),vakformulieren!$A84,\"\")","v":""},"",{"$f":"IF(OR(vakformulieren!$E90=\"5 letsel\",vakformulieren!$E90=\"5 onwel / ziek\",vakformulieren!$E90=\"5 milieuschade\"),vakformulieren!$C84,\"\")","v":""},{"$f":"IF(OR(vakformulieren!$E90=\"5 letsel\",vakformulieren!$E90=\"5 onwel / ziek\",vakformulieren!$E90=\"5 milieuschade\"),vakformulieren!$E84,\"\")","v":""},{"$f":"IF(OR(vakformulieren!$E90=\"5 letsel\",vakformulieren!$E90=\"5 onwel / ziek\",vakformulieren!$E90=\"5 milieuschade\"),vakformulieren!$V90,\"\")","v":""},null,null,null,null,{"$f":"IF(AND(OR(vakformulieren!$E90=\"5 letsel\",vakformulieren!$E90=\"5 onwel / ziek\",vakformulieren!$E90=\"5 milieuschade\"),vakformulieren!$E84>0),SUM(vakformulieren!$P84/8),\"\")","v":""}]
[{"$f":"IF(OR(vakformulieren!$E85=\"5 letsel\",vakformulieren!$E85=\"5 onwel / ziek\",vakformulieren!$E85=\"5 milieuschade\"),vakformulieren!$A85,\"\")","v":""},"",{"$f":"IF(OR(vakformulieren!$E91=\"5 letsel\",vakformulieren!$E91=\"5 onwel / ziek\",vakformulieren!$E91=\"5 milieuschade\"),vakformulieren!$C85,\"\")","v":""},{"$f":"IF(OR(vakformulieren!$E91=\"5 letsel\",vakformulieren!$E91=\"5 onwel / ziek\",vakformulieren!$E91=\"5 milieuschade\"),vakformulieren!$E85,\"\")","v":""},{"$f":"IF(OR(vakformulieren!$E91=\"5 letsel\",vakformulieren!$E91=\"5 onwel / ziek\",vakformulieren!$E91=\"5 milieuschade\"),vakformulieren!$V91,\"\")","v":""},null,null,null,null,{"$f":"IF(AND(OR(vakformulieren!$E91=\"5 letsel\",vakformulieren!$E91=\"5 onwel / ziek\",vakformulieren!$E91=\"5 milieuschade\"),vakformulieren!$E85>0),SUM(vakformulieren!$P85/8),\"\")","v":""}]
[{"$f":"IF(OR(vakformulieren!$E86=\"5 letsel\",vakformulieren!$E86=\"5 onwel / ziek\",vakformulieren!$E86=\"5 milieuschade\"),vakformulieren!$A86,\"\")","v":""},"",{"$f":"IF(OR(vakformulieren!$E92=\"5 letsel\",vakformulieren!$E92=\"5 onwel / ziek\",vakformulieren!$E92=\"5 milieuschade\"),vakformulieren!$C86,\"\")","v":""},{"$f":"IF(OR(vakformulieren!$E92=\"5 letsel\",vakformulieren!$E92=\"5 onwel / ziek\",vakformulieren!$E92=\"5 milieuschade\"),vakformulieren!$E86,\"\")","v":""},{"$f":"IF(OR(vakformulieren!$E92=\"5 letsel\",vakformulieren!$E92=\"5 onwel / ziek\",vakformulieren!$E92=\"5 milieuschade\"),vakformulieren!$V92,\"\")","v":""},null,null,null,null,{"$f":"IF(AND(OR(vakformulieren!$E92=\"5 letsel\",vakformulieren!$E92=\"5 onwel / ziek\",vakformulieren!$E92=\"5 milieuschade\"),vakformulieren!$E86>0),SUM(vakformulieren!$P86/8),\"\")","v":""}]
[{"$f":"IF(OR(vakformulieren!$E87=\"5 letsel\",vakformulieren!$E87=\"5 onwel / ziek\",vakformulieren!$E87=\"5 milieuschade\"),vakformulieren!$A87,\"\")","v":""},"",{"$f":"IF(OR(vakformulieren!$E93=\"5 letsel\",vakformulieren!$E93=\"5 onwel / ziek\",vakformulieren!$E93=\"5 milieuschade\"),vakformulieren!$C87,\"\")","v":""},{"$f":"IF(OR(vakformulieren!$E93=\"5 letsel\",vakformulieren!$E93=\"5 onwel / ziek\",vakformulieren!$E93=\"5 milieuschade\"),vakformulieren!$E87,\"\")","v":""},{"$f":"IF(OR(vakformulieren!$E93=\"5 letsel\",vakformulieren!$E93=\"5 onwel / ziek\",vakformulieren!$E93=\"5 milieuschade\"),vakformulieren!$V93,\"\")","v":""},null,null,null,null,{"$f":"IF(AND(OR(vakformulieren!$E93=\"5 letsel\",vakformulieren!$E93=\"5 onwel / ziek\",vakformulieren!$E93=\"5 milieuschade\"),vakformulieren!$E87>0),SUM(vakformulieren!$P87/8),\"\")","v":""}]
[{"$f":"IF(OR(vakformulieren!$E88=\"5 letsel\",vakformulieren!$E88=\"5 onwel / ziek\",vakformulieren!$E88=\"5 milieuschade\"),vakformulieren!$A88,\"\")","v":""},"",{"$f":"IF(OR(vakformulieren!$E94=\"5 letsel\",vakformulieren!$E94=\"5 onwel / ziek\",vakformulieren!$E94=\"5 milieuschade\"),vakformulieren!$C88,\"\")","v":""},{"$f":"IF(OR(vakformulieren!$E94=\"5 letsel\",vakformulieren!$E94=\"5 onwel / ziek\",vakformulieren!$E94=\"5 milieuschade\"),vakformulieren!$E88,\"\")","v":""},{"$f":"IF(OR(vakformulieren!$E94=\"5 letsel\",vakformulieren!$E94=\"5 onwel / ziek\",vakformulieren!$E94=\"5 milieuschade\"),vakformulieren!$V94,\"\")","v":""},null,null,null,null,{"$f":"IF(AND(OR(vakformulieren!$E94=\"5 letsel\",vakformulieren!$E94=\"5 onwel / ziek\",vakformulieren!$E94=\"5 milieuschade\"),vakformulieren!$E88>0),SUM(vakformulieren!$P88/8),\"\")","v":""}]
[{"$f":"IF(OR(vakformulieren!$E89=\"5 letsel\",vakformulieren!$E89=\"5 onwel / ziek\",vakformulieren!$E89=\"5 milieuschade\"),vakformulieren!$A89,\"\")","v":""},"",{"$f":"IF(OR(vakformulieren!$E95=\"5 letsel\",vakformulieren!$E95=\"5 onwel / ziek\",vakformulieren!$E95=\"5 milieuschade\"),vakformulieren!$C89,\"\")","v":""},{"$f":"IF(OR(vakformulieren!$E95=\"5 letsel\",vakformulieren!$E95=\"5 onwel / ziek\",vakformulieren!$E95=\"5 milieuschade\"),vakformulieren!$E89,\"\")","v":""},{"$f":"IF(OR(vakformulieren!$E95=\"5 letsel\",vakformulieren!$E95=\"5 onwel / ziek\",vakformulieren!$E95=\"5 milieuschade\"),vakformulieren!$V95,\"\")","v":""},null,null,null,null,{"$f":"IF(AND(OR(vakformulieren!$E95=\"5 letsel\",vakformulieren!$E95=\"5 onwel / ziek\",vakformulieren!$E95=\"5 milieuschade\"),vakformulieren!$E89>0),SUM(vakformulieren!$P89/8),\"\")","v":""}]
[{"$f":"IF(OR(vakformulieren!$E90=\"5 letsel\",vakformulieren!$E90=\"5 onwel / ziek\",vakformulieren!$E90=\"5 milieuschade\"),vakformulieren!$A90,\"\")","v":""},"",{"$f":"IF(OR(vakformulieren!$E96=\"5 letsel\",vakformulieren!$E96=\"5 onwel / ziek\",vakformulieren!$E96=\"5 milieuschade\"),vakformulieren!$C90,\"\")","v":""},{"$f":"IF(OR(vakformulieren!$E96=\"5 letsel\",vakformulieren!$E96=\"5 onwel / ziek\",vakformulieren!$E96=\"5 milieuschade\"),vakformulieren!$E90,\"\")","v":""},{"$f":"IF(OR(vakformulieren!$E96=\"5 letsel\",vakformulieren!$E96=\"5 onwel / ziek\",vakformulieren!$E96=\"5 milieuschade\"),vakformulieren!$V96,\"\")","v":""},null,null,null,null,{"$f":"IF(AND(OR(vakformulieren!$E96=\"5 letsel\",vakformulieren!$E96=\"5 onwel / ziek\",vakformulieren!$E96=\"5 milieuschade\"),vakformulieren!$E90>0),SUM(vakformulieren!$P90/8),\"\")","v":""}]
[{"$f":"IF(OR(vakformulieren!$E91=\"5 letsel\",vakformulieren!$E91=\"5 onwel / ziek\",vakformulieren!$E91=\"5 milieuschade\"),vakformulieren!$A91,\"\")","v":""},"",{"$f":"IF(OR(vakformulieren!$E97=\"5 letsel\",vakformulieren!$E97=\"5 onwel / ziek\",vakformulieren!$E97=\"5 milieuschade\"),vakformulieren!$C91,\"\")","v":""},{"$f":"IF(OR(vakformulieren!$E97=\"5 letsel\",vakformulieren!$E97=\"5 onwel / ziek\",vakformulieren!$E97=\"5 milieuschade\"),vakformulieren!$E91,\"\")","v":""},{"$f":"IF(OR(vakformulieren!$E97=\"5 letsel\",vakformulieren!$E97=\"5 onwel / ziek\",vakformulieren!$E97=\"5 milieuschade\"),vakformulieren!$V97,\"\")","v":""},null,null,null,null,{"$f":"IF(AND(OR(vakformulieren!$E97=\"5 letsel\",vakformulieren!$E97=\"5 onwel / ziek\",vakformulieren!$E97=\"5 milieuschade\"),vakformulieren!$E91>0),SUM(vakformulieren!$P91/8),\"\")","v":""}]
[{"$f":"IF(OR(vakformulieren!$E92=\"5 letsel\",vakformulieren!$E92=\"5 onwel / ziek\",vakformulieren!$E92=\"5 milieuschade\"),vakformulieren!$A92,\"\")","v":""},"",{"$f":"IF(OR(vakformulieren!$E98=\"5 letsel\",vakformulieren!$E98=\"5 onwel / ziek\",vakformulieren!$E98=\"5 milieuschade\"),vakformulieren!$C92,\"\")","v":""},{"$f":"IF(OR(vakformulieren!$E98=\"5 letsel\",vakformulieren!$E98=\"5 onwel / ziek\",vakformulieren!$E98=\"5 milieuschade\"),vakformulieren!$E92,\"\")","v":""},{"$f":"IF(OR(vakformulieren!$E98=\"5 letsel\",vakformulieren!$E98=\"5 onwel / ziek\",vakformulieren!$E98=\"5 milieuschade\"),vakformulieren!$V98,\"\")","v":""},null,null,null,null,{"$f":"IF(AND(OR(vakformulieren!$E98=\"5 letsel\",vakformulieren!$E98=\"5 onwel / ziek\",vakformulieren!$E98=\"5 milieuschade\"),vakformulieren!$E92>0),SUM(vakformulieren!$P92/8),\"\")","v":""}]
[{"$f":"IF(OR(vakformulieren!$E93=\"5 letsel\",vakformulieren!$E93=\"5 onwel / ziek\",vakformulieren!$E93=\"5 milieuschade\"),vakformulieren!$A93,\"\")","v":""},"",{"$f":"IF(OR(vakformulieren!$E99=\"5 letsel\",vakformulieren!$E99=\"5 onwel / ziek\",vakformulieren!$E99=\"5 milieuschade\"),vakformulieren!$C93,\"\")","v":""},{"$f":"IF(OR(vakformulieren!$E99=\"5 letsel\",vakformulieren!$E99=\"5 onwel / ziek\",vakformulieren!$E99=\"5 milieuschade\"),vakformulieren!$E93,\"\")","v":""},{"$f":"IF(OR(vakformulieren!$E99=\"5 letsel\",vakformulieren!$E99=\"5 onwel / ziek\",vakformulieren!$E99=\"5 milieuschade\"),vakformulieren!$V99,\"\")","v":""},null,null,null,null,{"$f":"IF(AND(OR(vakformulieren!$E99=\"5 letsel\",vakformulieren!$E99=\"5 onwel / ziek\",vakformulieren!$E99=\"5 milieuschade\"),vakformulieren!$E93>0),SUM(vakformulieren!$P93/8),\"\")","v":""}]
[{"$f":"IF(OR(vakformulieren!$E94=\"5 letsel\",vakformulieren!$E94=\"5 onwel / ziek\",vakformulieren!$E94=\"5 milieuschade\"),vakformulieren!$A94,\"\")","v":""},"",{"$f":"IF(OR(vakformulieren!$E100=\"5 letsel\",vakformulieren!$E100=\"5 onwel / ziek\",vakformulieren!$E100=\"5 milieuschade\"),vakformulieren!$C94,\"\")","v":""},{"$f":"IF(OR(vakformulieren!$E100=\"5 letsel\",vakformulieren!$E100=\"5 onwel / ziek\",vakformulieren!$E100=\"5 milieuschade\"),vakformulieren!$E94,\"\")","v":""},{"$f":"IF(OR(vakformulieren!$E100=\"5 letsel\",vakformulieren!$E100=\"5 onwel / ziek\",vakformulieren!$E100=\"5 milieuschade\"),vakformulieren!$V100,\"\")","v":""},null,null,null,null,{"$f":"IF(AND(OR(vakformulieren!$E100=\"5 letsel\",vakformulieren!$E100=\"5 onwel / ziek\",vakformulieren!$E100=\"5 milieuschade\"),vakformulieren!$E94>0),SUM(vakformulieren!$P94/8),\"\")","v":""}]
[{"$f":"IF(OR(vakformulieren!$E95=\"5 letsel\",vakformulieren!$E95=\"5 onwel / ziek\",vakformulieren!$E95=\"5 milieuschade\"),vakformulieren!$A95,\"\")","v":""},"",{"$f":"IF(OR(vakformulieren!$E101=\"5 letsel\",vakformulieren!$E101=\"5 onwel / ziek\",vakformulieren!$E101=\"5 milieuschade\"),vakformulieren!$C95,\"\")","v":""},{"$f":"IF(OR(vakformulieren!$E101=\"5 letsel\",vakformulieren!$E101=\"5 onwel / ziek\",vakformulieren!$E101=\"5 milieuschade\"),vakformulieren!$E95,\"\")","v":""},{"$f":"IF(OR(vakformulieren!$E101=\"5 letsel\",vakformulieren!$E101=\"5 onwel / ziek\",vakformulieren!$E101=\"5 milieuschade\"),vakformulieren!$V101,\"\")","v":""},null,null,null,null,{"$f":"IF(AND(OR(vakformulieren!$E101=\"5 letsel\",vakformulieren!$E101=\"5 onwel / ziek\",vakformulieren!$E101=\"5 milieuschade\"),vakformulieren!$E95>0),SUM(vakformulieren!$P95/8),\"\")","v":""}]
[{"$f":"IF(OR(vakformulieren!$E96=\"5 letsel\",vakformulieren!$E96=\"5 onwel / ziek\",vakformulieren!$E96=\"5 milieuschade\"),vakformulieren!$A96,\"\")","v":""},"",{"$f":"IF(OR(vakformulieren!$E102=\"5 letsel\",vakformulieren!$E102=\"5 onwel / ziek\",vakformulieren!$E102=\"5 milieuschade\"),vakformulieren!$C96,\"\")","v":""},{"$f":"IF(OR(vakformulieren!$E102=\"5 letsel\",vakformulieren!$E102=\"5 onwel / ziek\",vakformulieren!$E102=\"5 milieuschade\"),vakformulieren!$E96,\"\")","v":""},{"$f":"IF(OR(vakformulieren!$E102=\"5 letsel\",vakformulieren!$E102=\"5 onwel / ziek\",vakformulieren!$E102=\"5 milieuschade\"),vakformulieren!$V102,\"\")","v":""},null,null,null,null,{"$f":"IF(AND(OR(vakformulieren!$E102=\"5 letsel\",vakformulieren!$E102=\"5 onwel / ziek\",vakformulieren!$E102=\"5 milieuschade\"),vakformulieren!$E96>0),SUM(vakformulieren!$P96/8),\"\")","v":""}]
[{"$f":"IF(OR(vakformulieren!$E97=\"5 letsel\",vakformulieren!$E97=\"5 onwel / ziek\",vakformulieren!$E97=\"5 milieuschade\"),vakformulieren!$A97,\"\")","v":""},"",{"$f":"IF(OR(vakformulieren!$E103=\"5 letsel\",vakformulieren!$E103=\"5 onwel / ziek\",vakformulieren!$E103=\"5 milieuschade\"),vakformulieren!$C97,\"\")","v":""},{"$f":"IF(OR(vakformulieren!$E103=\"5 letsel\",vakformulieren!$E103=\"5 onwel / ziek\",vakformulieren!$E103=\"5 milieuschade\"),vakformulieren!$E97,\"\")","v":""},{"$f":"IF(OR(vakformulieren!$E103=\"5 letsel\",vakformulieren!$E103=\"5 onwel / ziek\",vakformulieren!$E103=\"5 milieuschade\"),vakformulieren!$V103,\"\")","v":""},null,null,null,null,{"$f":"IF(AND(OR(vakformulieren!$E103=\"5 letsel\",vakformulieren!$E103=\"5 onwel / ziek\",vakformulieren!$E103=\"5 milieuschade\"),vakformulieren!$E97>0),SUM(vakformulieren!$P97/8),\"\")","v":""}]
[{"$f":"IF(OR(vakformulieren!$E98=\"5 letsel\",vakformulieren!$E98=\"5 onwel / ziek\",vakformulieren!$E98=\"5 milieuschade\"),vakformulieren!$A98,\"\")","v":""},"",{"$f":"IF(OR(vakformulieren!$E104=\"5 letsel\",vakformulieren!$E104=\"5 onwel / ziek\",vakformulieren!$E104=\"5 milieuschade\"),vakformulieren!$C98,\"\")","v":""},{"$f":"IF(OR(vakformulieren!$E104=\"5 letsel\",vakformulieren!$E104=\"5 onwel / ziek\",vakformulieren!$E104=\"5 milieuschade\"),vakformulieren!$E98,\"\")","v":""},{"$f":"IF(OR(vakformulieren!$E104=\"5 letsel\",vakformulieren!$E104=\"5 onwel / ziek\",vakformulieren!$E104=\"5 milieuschade\"),vakformulieren!$V104,\"\")","v":""},null,null,null,null,{"$f":"IF(AND(OR(vakformulieren!$E104=\"5 letsel\",vakformulieren!$E104=\"5 onwel / ziek\",vakformulieren!$E104=\"5 milieuschade\"),vakformulieren!$E98>0),SUM(vakformulieren!$P98/8),\"\")","v":""}]
[{"$f":"IF(OR(vakformulieren!$E99=\"5 letsel\",vakformulieren!$E99=\"5 onwel / ziek\",vakformulieren!$E99=\"5 milieuschade\"),vakformulieren!$A99,\"\")","v":""},"",{"$f":"IF(OR(vakformulieren!$E105=\"5 letsel\",vakformulieren!$E105=\"5 onwel / ziek\",vakformulieren!$E105=\"5 milieuschade\"),vakformulieren!$C99,\"\")","v":""},{"$f":"IF(OR(vakformulieren!$E105=\"5 letsel\",vakformulieren!$E105=\"5 onwel / ziek\",vakformulieren!$E105=\"5 milieuschade\"),vakformulieren!$E99,\"\")","v":""},{"$f":"IF(OR(vakformulieren!$E105=\"5 letsel\",vakformulieren!$E105=\"5 onwel / ziek\",vakformulieren!$E105=\"5 milieuschade\"),vakformulieren!$V105,\"\")","v":""},null,null,null,null,{"$f":"IF(AND(OR(vakformulieren!$E105=\"5 letsel\",vakformulieren!$E105=\"5 onwel / ziek\",vakformulieren!$E105=\"5 milieuschade\"),vakformulieren!$E99>0),SUM(vakformulieren!$P99/8),\"\")","v":""}]
[{"$f":"IF(OR(vakformulieren!$E100=\"5 letsel\",vakformulieren!$E100=\"5 onwel / ziek\",vakformulieren!$E100=\"5 milieuschade\"),vakformulieren!$A100,\"\")","v":""},"",{"$f":"IF(OR(vakformulieren!$E106=\"5 letsel\",vakformulieren!$E106=\"5 onwel / ziek\",vakformulieren!$E106=\"5 milieuschade\"),vakformulieren!$C100,\"\")","v":""},{"$f":"IF(OR(vakformulieren!$E106=\"5 letsel\",vakformulieren!$E106=\"5 onwel / ziek\",vakformulieren!$E106=\"5 milieuschade\"),vakformulieren!$E100,\"\")","v":""},{"$f":"IF(OR(vakformulieren!$E106=\"5 letsel\",vakformulieren!$E106=\"5 onwel / ziek\",vakformulieren!$E106=\"5 milieuschade\"),vakformulieren!$V106,\"\")","v":""},null,null,null,null,{"$f":"IF(AND(OR(vakformulieren!$E106=\"5 letsel\",vakformulieren!$E106=\"5 onwel / ziek\",vakformulieren!$E106=\"5 milieuschade\"),vakformulieren!$E100>0),SUM(vakformulieren!$P100/8),\"\")","v":""}]
[{"$f":"IF(OR(vakformulieren!$E101=\"5 letsel\",vakformulieren!$E101=\"5 onwel / ziek\",vakformulieren!$E101=\"5 milieuschade\"),vakformulieren!$A101,\"\")","v":""},"",{"$f":"IF(OR(vakformulieren!$E107=\"5 letsel\",vakformulieren!$E107=\"5 onwel / ziek\",vakformulieren!$E107=\"5 milieuschade\"),vakformulieren!$C101,\"\")","v":""},{"$f":"IF(OR(vakformulieren!$E107=\"5 letsel\",vakformulieren!$E107=\"5 onwel / ziek\",vakformulieren!$E107=\"5 milieuschade\"),vakformulieren!$E101,\"\")","v":""},{"$f":"IF(OR(vakformulieren!$E107=\"5 letsel\",vakformulieren!$E107=\"5 onwel / ziek\",vakformulieren!$E107=\"5 milieuschade\"),vakformulieren!$V107,\"\")","v":""},null,null,null,null,{"$f":"IF(AND(OR(vakformulieren!$E107=\"5 letsel\",vakformulieren!$E107=\"5 onwel / ziek\",vakformulieren!$E107=\"5 milieuschade\"),vakformulieren!$E101>0),SUM(vakformulieren!$P101/8),\"\")","v":""}]
[{"$f":"IF(OR(vakformulieren!$E102=\"5 letsel\",vakformulieren!$E102=\"5 onwel / ziek\",vakformulieren!$E102=\"5 milieuschade\"),vakformulieren!$A102,\"\")","v":""},"",{"$f":"IF(OR(vakformulieren!$E108=\"5 letsel\",vakformulieren!$E108=\"5 onwel / ziek\",vakformulieren!$E108=\"5 milieuschade\"),vakformulieren!$C102,\"\")","v":""},{"$f":"IF(OR(vakformulieren!$E108=\"5 letsel\",vakformulieren!$E108=\"5 onwel / ziek\",vakformulieren!$E108=\"5 milieuschade\"),vakformulieren!$E102,\"\")","v":""},{"$f":"IF(OR(vakformulieren!$E108=\"5 letsel\",vakformulieren!$E108=\"5 onwel / ziek\",vakformulieren!$E108=\"5 milieuschade\"),vakformulieren!$V108,\"\")","v":""},null,null,null,null,{"$f":"IF(AND(OR(vakformulieren!$E108=\"5 letsel\",vakformulieren!$E108=\"5 onwel / ziek\",vakformulieren!$E108=\"5 milieuschade\"),vakformulieren!$E102>0),SUM(vakformulieren!$P102/8),\"\")","v":""}]
[{"$f":"IF(OR(vakformulieren!$E103=\"5 letsel\",vakformulieren!$E103=\"5 onwel / ziek\",vakformulieren!$E103=\"5 milieuschade\"),vakformulieren!$A103,\"\")","v":""},"",{"$f":"IF(OR(vakformulieren!$E109=\"5 letsel\",vakformulieren!$E109=\"5 onwel / ziek\",vakformulieren!$E109=\"5 milieuschade\"),vakformulieren!$C103,\"\")","v":""},{"$f":"IF(OR(vakformulieren!$E109=\"5 letsel\",vakformulieren!$E109=\"5 onwel / ziek\",vakformulieren!$E109=\"5 milieuschade\"),vakformulieren!$E103,\"\")","v":""},{"$f":"IF(OR(vakformulieren!$E109=\"5 letsel\",vakformulieren!$E109=\"5 onwel / ziek\",vakformulieren!$E109=\"5 milieuschade\"),vakformulieren!$V109,\"\")","v":""},null,null,null,null,{"$f":"IF(AND(OR(vakformulieren!$E109=\"5 letsel\",vakformulieren!$E109=\"5 onwel / ziek\",vakformulieren!$E109=\"5 milieuschade\"),vakformulieren!$E103>0),SUM(vakformulieren!$P103/8),\"\")","v":""}]
[{"$f":"IF(OR(vakformulieren!$E104=\"5 letsel\",vakformulieren!$E104=\"5 onwel / ziek\",vakformulieren!$E104=\"5 milieuschade\"),vakformulieren!$A104,\"\")","v":""},"",{"$f":"IF(OR(vakformulieren!$E110=\"5 letsel\",vakformulieren!$E110=\"5 onwel / ziek\",vakformulieren!$E110=\"5 milieuschade\"),vakformulieren!$C104,\"\")","v":""},{"$f":"IF(OR(vakformulieren!$E110=\"5 letsel\",vakformulieren!$E110=\"5 onwel / ziek\",vakformulieren!$E110=\"5 milieuschade\"),vakformulieren!$E104,\"\")","v":""},{"$f":"IF(OR(vakformulieren!$E110=\"5 letsel\",vakformulieren!$E110=\"5 onwel / ziek\",vakformulieren!$E110=\"5 milieuschade\"),vakformulieren!$V110,\"\")","v":""},null,null,null,null,{"$f":"IF(AND(OR(vakformulieren!$E110=\"5 letsel\",vakformulieren!$E110=\"5 onwel / ziek\",vakformulieren!$E110=\"5 milieuschade\"),vakformulieren!$E104>0),SUM(vakformulieren!$P104/8),\"\")","v":""}]
[{"$f":"IF(OR(vakformulieren!$E105=\"5 letsel\",vakformulieren!$E105=\"5 onwel / ziek\",vakformulieren!$E105=\"5 milieuschade\"),vakformulieren!$A105,\"\")","v":""},"",{"$f":"IF(OR(vakformulieren!$E111=\"5 letsel\",vakformulieren!$E111=\"5 onwel / ziek\",vakformulieren!$E111=\"5 milieuschade\"),vakformulieren!$C105,\"\")","v":""},{"$f":"IF(OR(vakformulieren!$E111=\"5 letsel\",vakformulieren!$E111=\"5 onwel / ziek\",vakformulieren!$E111=\"5 milieuschade\"),vakformulieren!$E105,\"\")","v":""},{"$f":"IF(OR(vakformulieren!$E111=\"5 letsel\",vakformulieren!$E111=\"5 onwel / ziek\",vakformulieren!$E111=\"5 milieuschade\"),vakformulieren!$V111,\"\")","v":""},null,null,null,null,{"$f":"IF(AND(OR(vakformulieren!$E111=\"5 letsel\",vakformulieren!$E111=\"5 onwel / ziek\",vakformulieren!$E111=\"5 milieuschade\"),vakformulieren!$E105>0),SUM(vakformulieren!$P105/8),\"\")","v":""}]
[{"$f":"IF(OR(vakformulieren!$E106=\"5 letsel\",vakformulieren!$E106=\"5 onwel / ziek\",vakformulieren!$E106=\"5 milieuschade\"),vakformulieren!$A106,\"\")","v":""},"",{"$f":"IF(OR(vakformulieren!$E112=\"5 letsel\",vakformulieren!$E112=\"5 onwel / ziek\",vakformulieren!$E112=\"5 milieuschade\"),vakformulieren!$C106,\"\")","v":""},{"$f":"IF(OR(vakformulieren!$E112=\"5 letsel\",vakformulieren!$E112=\"5 onwel / ziek\",vakformulieren!$E112=\"5 milieuschade\"),vakformulieren!$E106,\"\")","v":""},{"$f":"IF(OR(vakformulieren!$E112=\"5 letsel\",vakformulieren!$E112=\"5 onwel / ziek\",vakformulieren!$E112=\"5 milieuschade\"),vakformulieren!$V112,\"\")","v":""},null,null,null,null,{"$f":"IF(AND(OR(vakformulieren!$E112=\"5 letsel\",vakformulieren!$E112=\"5 onwel / ziek\",vakformulieren!$E112=\"5 milieuschade\"),vakformulieren!$E106>0),SUM(vakformulieren!$P106/8),\"\")","v":""}]
[{"$f":"IF(OR(vakformulieren!$E107=\"5 letsel\",vakformulieren!$E107=\"5 onwel / ziek\",vakformulieren!$E107=\"5 milieuschade\"),vakformulieren!$A107,\"\")","v":""},"",{"$f":"IF(OR(vakformulieren!$E113=\"5 letsel\",vakformulieren!$E113=\"5 onwel / ziek\",vakformulieren!$E113=\"5 milieuschade\"),vakformulieren!$C107,\"\")","v":""},{"$f":"IF(OR(vakformulieren!$E113=\"5 letsel\",vakformulieren!$E113=\"5 onwel / ziek\",vakformulieren!$E113=\"5 milieuschade\"),vakformulieren!$E107,\"\")","v":""},{"$f":"IF(OR(vakformulieren!$E113=\"5 letsel\",vakformulieren!$E113=\"5 onwel / ziek\",vakformulieren!$E113=\"5 milieuschade\"),vakformulieren!$V113,\"\")","v":""},null,null,null,null,{"$f":"IF(AND(OR(vakformulieren!$E113=\"5 letsel\",vakformulieren!$E113=\"5 onwel / ziek\",vakformulieren!$E113=\"5 milieuschade\"),vakformulieren!$E107>0),SUM(vakformulieren!$P107/8),\"\")","v":""}]
[{"$f":"IF(OR(vakformulieren!$E108=\"5 letsel\",vakformulieren!$E108=\"5 onwel / ziek\",vakformulieren!$E108=\"5 milieuschade\"),vakformulieren!$A108,\"\")","v":""},"",{"$f":"IF(OR(vakformulieren!$E114=\"5 letsel\",vakformulieren!$E114=\"5 onwel / ziek\",vakformulieren!$E114=\"5 milieuschade\"),vakformulieren!$C108,\"\")","v":""},{"$f":"IF(OR(vakformulieren!$E114=\"5 letsel\",vakformulieren!$E114=\"5 onwel / ziek\",vakformulieren!$E114=\"5 milieuschade\"),vakformulieren!$E108,\"\")","v":""},{"$f":"IF(OR(vakformulieren!$E114=\"5 letsel\",vakformulieren!$E114=\"5 onwel / ziek\",vakformulieren!$E114=\"5 milieuschade\"),vakformulieren!$V114,\"\")","v":""},null,null,null,null,{"$f":"IF(AND(OR(vakformulieren!$E114=\"5 letsel\",vakformulieren!$E114=\"5 onwel / ziek\",vakformulieren!$E114=\"5 milieuschade\"),vakformulieren!$E108>0),SUM(vakformulieren!$P108/8),\"\")","v":""}]
[{"$f":"IF(OR(vakformulieren!$E109=\"5 letsel\",vakformulieren!$E109=\"5 onwel / ziek\",vakformulieren!$E109=\"5 milieuschade\"),vakformulieren!$A109,\"\")","v":""},"",{"$f":"IF(OR(vakformulieren!$E115=\"5 letsel\",vakformulieren!$E115=\"5 onwel / ziek\",vakformulieren!$E115=\"5 milieuschade\"),vakformulieren!$C109,\"\")","v":""},{"$f":"IF(OR(vakformulieren!$E115=\"5 letsel\",vakformulieren!$E115=\"5 onwel / ziek\",vakformulieren!$E115=\"5 milieuschade\"),vakformulieren!$E109,\"\")","v":""},{"$f":"IF(OR(vakformulieren!$E115=\"5 letsel\",vakformulieren!$E115=\"5 onwel / ziek\",vakformulieren!$E115=\"5 milieuschade\"),vakformulieren!$V115,\"\")","v":""},null,null,null,null,{"$f":"IF(AND(OR(vakformulieren!$E115=\"5 letsel\",vakformulieren!$E115=\"5 onwel / ziek\",vakformulieren!$E115=\"5 milieuschade\"),vakformulieren!$E109>0),SUM(vakformulieren!$P109/8),\"\")","v":""}]
[{"$f":"IF(OR(vakformulieren!$E110=\"5 letsel\",vakformulieren!$E110=\"5 onwel / ziek\",vakformulieren!$E110=\"5 milieuschade\"),vakformulieren!$A110,\"\")","v":""},"",{"$f":"IF(OR(vakformulieren!$E116=\"5 letsel\",vakformulieren!$E116=\"5 onwel / ziek\",vakformulieren!$E116=\"5 milieuschade\"),vakformulieren!$C110,\"\")","v":""},{"$f":"IF(OR(vakformulieren!$E116=\"5 letsel\",vakformulieren!$E116=\"5 onwel / ziek\",vakformulieren!$E116=\"5 milieuschade\"),vakformulieren!$E110,\"\")","v":""},{"$f":"IF(OR(vakformulieren!$E116=\"5 letsel\",vakformulieren!$E116=\"5 onwel / ziek\",vakformulieren!$E116=\"5 milieuschade\"),vakformulieren!$V116,\"\")","v":""},null,null,null,null,{"$f":"IF(AND(OR(vakformulieren!$E116=\"5 letsel\",vakformulieren!$E116=\"5 onwel / ziek\",vakformulieren!$E116=\"5 milieuschade\"),vakformulieren!$E110>0),SUM(vakformulieren!$P110/8),\"\")","v":""}]
[{"$f":"IF(OR(vakformulieren!$E111=\"5 letsel\",vakformulieren!$E111=\"5 onwel / ziek\",vakformulieren!$E111=\"5 milieuschade\"),vakformulieren!$A111,\"\")","v":""},"",{"$f":"IF(OR(vakformulieren!$E117=\"5 letsel\",vakformulieren!$E117=\"5 onwel / ziek\",vakformulieren!$E117=\"5 milieuschade\"),vakformulieren!$C111,\"\")","v":""},{"$f":"IF(OR(vakformulieren!$E117=\"5 letsel\",vakformulieren!$E117=\"5 onwel / ziek\",vakformulieren!$E117=\"5 milieuschade\"),vakformulieren!$E111,\"\")","v":""},{"$f":"IF(OR(vakformulieren!$E117=\"5 letsel\",vakformulieren!$E117=\"5 onwel / ziek\",vakformulieren!$E117=\"5 milieuschade\"),vakformulieren!$V117,\"\")","v":""},null,null,null,null,{"$f":"IF(AND(OR(vakformulieren!$E117=\"5 letsel\",vakformulieren!$E117=\"5 onwel / ziek\",vakformulieren!$E117=\"5 milieuschade\"),vakformulieren!$E111>0),SUM(vakformulieren!$P111/8),\"\")","v":""}]
[{"$f":"IF(OR(vakformulieren!$E112=\"5 letsel\",vakformulieren!$E112=\"5 onwel / ziek\",vakformulieren!$E112=\"5 milieuschade\"),vakformulieren!$A112,\"\")","v":""},"",{"$f":"IF(OR(vakformulieren!$E118=\"5 letsel\",vakformulieren!$E118=\"5 onwel / ziek\",vakformulieren!$E118=\"5 milieuschade\"),vakformulieren!$C112,\"\")","v":""},{"$f":"IF(OR(vakformulieren!$E118=\"5 letsel\",vakformulieren!$E118=\"5 onwel / ziek\",vakformulieren!$E118=\"5 milieuschade\"),vakformulieren!$E112,\"\")","v":""},{"$f":"IF(OR(vakformulieren!$E118=\"5 letsel\",vakformulieren!$E118=\"5 onwel / ziek\",vakformulieren!$E118=\"5 milieuschade\"),vakformulieren!$V118,\"\")","v":""},null,null,null,null,{"$f":"IF(AND(OR(vakformulieren!$E118=\"5 letsel\",vakformulieren!$E118=\"5 onwel / ziek\",vakformulieren!$E118=\"5 milieuschade\"),vakformulieren!$E112>0),SUM(vakformulieren!$P112/8),\"\")","v":""}]
[{"$f":"IF(OR(vakformulieren!$E113=\"5 letsel\",vakformulieren!$E113=\"5 onwel / ziek\",vakformulieren!$E113=\"5 milieuschade\"),vakformulieren!$A113,\"\")","v":""},"",{"$f":"IF(OR(vakformulieren!$E119=\"5 letsel\",vakformulieren!$E119=\"5 onwel / ziek\",vakformulieren!$E119=\"5 milieuschade\"),vakformulieren!$C113,\"\")","v":""},{"$f":"IF(OR(vakformulieren!$E119=\"5 letsel\",vakformulieren!$E119=\"5 onwel / ziek\",vakformulieren!$E119=\"5 milieuschade\"),vakformulieren!$E113,\"\")","v":""},{"$f":"IF(OR(vakformulieren!$E119=\"5 letsel\",vakformulieren!$E119=\"5 onwel / ziek\",vakformulieren!$E119=\"5 milieuschade\"),vakformulieren!$V119,\"\")","v":""},null,null,null,null,{"$f":"IF(AND(OR(vakformulieren!$E119=\"5 letsel\",vakformulieren!$E119=\"5 onwel / ziek\",vakformulieren!$E119=\"5 milieuschade\"),vakformulieren!$E113>0),SUM(vakformulieren!$P113/8),\"\")","v":""}]
[{"$f":"IF(OR(vakformulieren!$E114=\"5 letsel\",vakformulieren!$E114=\"5 onwel / ziek\",vakformulieren!$E114=\"5 milieuschade\"),vakformulieren!$A114,\"\")","v":""},"",{"$f":"IF(OR(vakformulieren!$E120=\"5 letsel\",vakformulieren!$E120=\"5 onwel / ziek\",vakformulieren!$E120=\"5 milieuschade\"),vakformulieren!$C114,\"\")","v":""},{"$f":"IF(OR(vakformulieren!$E120=\"5 letsel\",vakformulieren!$E120=\"5 onwel / ziek\",vakformulieren!$E120=\"5 milieuschade\"),vakformulieren!$E114,\"\")","v":""},{"$f":"IF(OR(vakformulieren!$E120=\"5 letsel\",vakformulieren!$E120=\"5 onwel / ziek\",vakformulieren!$E120=\"5 milieuschade\"),vakformulieren!$V120,\"\")","v":""},null,null,null,null,{"$f":"IF(AND(OR(vakformulieren!$E120=\"5 letsel\",vakformulieren!$E120=\"5 onwel / ziek\",vakformulieren!$E120=\"5 milieuschade\"),vakformulieren!$E114>0),SUM(vakformulieren!$P114/8),\"\")","v":""}]
[{"$f":"IF(OR(vakformulieren!$E115=\"5 letsel\",vakformulieren!$E115=\"5 onwel / ziek\",vakformulieren!$E115=\"5 milieuschade\"),vakformulieren!$A115,\"\")","v":""},"",{"$f":"IF(OR(vakformulieren!$E121=\"5 letsel\",vakformulieren!$E121=\"5 onwel / ziek\",vakformulieren!$E121=\"5 milieuschade\"),vakformulieren!$C115,\"\")","v":""},{"$f":"IF(OR(vakformulieren!$E121=\"5 letsel\",vakformulieren!$E121=\"5 onwel / ziek\",vakformulieren!$E121=\"5 milieuschade\"),vakformulieren!$E115,\"\")","v":""},{"$f":"IF(OR(vakformulieren!$E121=\"5 letsel\",vakformulieren!$E121=\"5 onwel / ziek\",vakformulieren!$E121=\"5 milieuschade\"),vakformulieren!$V121,\"\")","v":""},null,null,null,null,{"$f":"IF(AND(OR(vakformulieren!$E121=\"5 letsel\",vakformulieren!$E121=\"5 onwel / ziek\",vakformulieren!$E121=\"5 milieuschade\"),vakformulieren!$E115>0),SUM(vakformulieren!$P115/8),\"\")","v":""}]
[{"$f":"IF(OR(vakformulieren!$E116=\"5 letsel\",vakformulieren!$E116=\"5 onwel / ziek\",vakformulieren!$E116=\"5 milieuschade\"),vakformulieren!$A116,\"\")","v":""},"",{"$f":"IF(OR(vakformulieren!$E122=\"5 letsel\",vakformulieren!$E122=\"5 onwel / ziek\",vakformulieren!$E122=\"5 milieuschade\"),vakformulieren!$C116,\"\")","v":""},{"$f":"IF(OR(vakformulieren!$E122=\"5 letsel\",vakformulieren!$E122=\"5 onwel / ziek\",vakformulieren!$E122=\"5 milieuschade\"),vakformulieren!$E116,\"\")","v":""},{"$f":"IF(OR(vakformulieren!$E122=\"5 letsel\",vakformulieren!$E122=\"5 onwel / ziek\",vakformulieren!$E122=\"5 milieuschade\"),vakformulieren!$V122,\"\")","v":""},null,null,null,null,{"$f":"IF(AND(OR(vakformulieren!$E122=\"5 letsel\",vakformulieren!$E122=\"5 onwel / ziek\",vakformulieren!$E122=\"5 milieuschade\"),vakformulieren!$E116>0),SUM(vakformulieren!$P116/8),\"\")","v":""}]
[{"$f":"IF(OR(vakformulieren!$E117=\"5 letsel\",vakformulieren!$E117=\"5 onwel / ziek\",vakformulieren!$E117=\"5 milieuschade\"),vakformulieren!$A117,\"\")","v":""},"",{"$f":"IF(OR(vakformulieren!$E123=\"5 letsel\",vakformulieren!$E123=\"5 onwel / ziek\",vakformulieren!$E123=\"5 milieuschade\"),vakformulieren!$C117,\"\")","v":""},{"$f":"IF(OR(vakformulieren!$E123=\"5 letsel\",vakformulieren!$E123=\"5 onwel / ziek\",vakformulieren!$E123=\"5 milieuschade\"),vakformulieren!$E117,\"\")","v":""},{"$f":"IF(OR(vakformulieren!$E123=\"5 letsel\",vakformulieren!$E123=\"5 onwel / ziek\",vakformulieren!$E123=\"5 milieuschade\"),vakformulieren!$V123,\"\")","v":""},null,null,null,null,{"$f":"IF(AND(OR(vakformulieren!$E123=\"5 letsel\",vakformulieren!$E123=\"5 onwel / ziek\",vakformulieren!$E123=\"5 milieuschade\"),vakformulieren!$E117>0),SUM(vakformulieren!$P117/8),\"\")","v":""}]
[{"$f":"IF(OR(vakformulieren!$E118=\"5 letsel\",vakformulieren!$E118=\"5 onwel / ziek\",vakformulieren!$E118=\"5 milieuschade\"),vakformulieren!$A118,\"\")","v":""},"",{"$f":"IF(OR(vakformulieren!$E124=\"5 letsel\",vakformulieren!$E124=\"5 onwel / ziek\",vakformulieren!$E124=\"5 milieuschade\"),vakformulieren!$C118,\"\")","v":""},{"$f":"IF(OR(vakformulieren!$E124=\"5 letsel\",vakformulieren!$E124=\"5 onwel / ziek\",vakformulieren!$E124=\"5 milieuschade\"),vakformulieren!$E118,\"\")","v":""},{"$f":"IF(OR(vakformulieren!$E124=\"5 letsel\",vakformulieren!$E124=\"5 onwel / ziek\",vakformulieren!$E124=\"5 milieuschade\"),vakformulieren!$V124,\"\")","v":""},null,null,null,null,{"$f":"IF(AND(OR(vakformulieren!$E124=\"5 letsel\",vakformulieren!$E124=\"5 onwel / ziek\",vakformulieren!$E124=\"5 milieuschade\"),vakformulieren!$E118>0),SUM(vakformulieren!$P118/8),\"\")","v":""}]
[{"$f":"IF(OR(vakformulieren!$E119=\"5 letsel\",vakformulieren!$E119=\"5 onwel / ziek\",vakformulieren!$E119=\"5 milieuschade\"),vakformulieren!$A119,\"\")","v":""},"",{"$f":"IF(OR(vakformulieren!$E125=\"5 letsel\",vakformulieren!$E125=\"5 onwel / ziek\",vakformulieren!$E125=\"5 milieuschade\"),vakformulieren!$C119,\"\")","v":""},{"$f":"IF(OR(vakformulieren!$E125=\"5 letsel\",vakformulieren!$E125=\"5 onwel / ziek\",vakformulieren!$E125=\"5 milieuschade\"),vakformulieren!$E119,\"\")","v":""},{"$f":"IF(OR(vakformulieren!$E125=\"5 letsel\",vakformulieren!$E125=\"5 onwel / ziek\",vakformulieren!$E125=\"5 milieuschade\"),vakformulieren!$V125,\"\")","v":""},null,null,null,null,{"$f":"IF(AND(OR(vakformulieren!$E125=\"5 letsel\",vakformulieren!$E125=\"5 onwel / ziek\",vakformulieren!$E125=\"5 milieuschade\"),vakformulieren!$E119>0),SUM(vakformulieren!$P119/8),\"\")","v":""}]
[{"$f":"IF(OR(vakformulieren!$E120=\"5 letsel\",vakformulieren!$E120=\"5 onwel / ziek\",vakformulieren!$E120=\"5 milieuschade\"),vakformulieren!$A120,\"\")","v":""},"",{"$f":"IF(OR(vakformulieren!$E126=\"5 letsel\",vakformulieren!$E126=\"5 onwel / ziek\",vakformulieren!$E126=\"5 milieuschade\"),vakformulieren!$C120,\"\")","v":""},{"$f":"IF(OR(vakformulieren!$E126=\"5 letsel\",vakformulieren!$E126=\"5 onwel / ziek\",vakformulieren!$E126=\"5 milieuschade\"),vakformulieren!$E120,\"\")","v":""},{"$f":"IF(OR(vakformulieren!$E126=\"5 letsel\",vakformulieren!$E126=\"5 onwel / ziek\",vakformulieren!$E126=\"5 milieuschade\"),vakformulieren!$V126,\"\")","v":""},null,null,null,null,{"$f":"IF(AND(OR(vakformulieren!$E126=\"5 letsel\",vakformulieren!$E126=\"5 onwel / ziek\",vakformulieren!$E126=\"5 milieuschade\"),vakformulieren!$E120>0),SUM(vakformulieren!$P120/8),\"\")","v":""}]
[{"$f":"IF(OR(vakformulieren!$E121=\"5 letsel\",vakformulieren!$E121=\"5 onwel / ziek\",vakformulieren!$E121=\"5 milieuschade\"),vakformulieren!$A121,\"\")","v":""},"",{"$f":"IF(OR(vakformulieren!$E127=\"5 letsel\",vakformulieren!$E127=\"5 onwel / ziek\",vakformulieren!$E127=\"5 milieuschade\"),vakformulieren!$C121,\"\")","v":""},{"$f":"IF(OR(vakformulieren!$E127=\"5 letsel\",vakformulieren!$E127=\"5 onwel / ziek\",vakformulieren!$E127=\"5 milieuschade\"),vakformulieren!$E121,\"\")","v":""},{"$f":"IF(OR(vakformulieren!$E127=\"5 letsel\",vakformulieren!$E127=\"5 onwel / ziek\",vakformulieren!$E127=\"5 milieuschade\"),vakformulieren!$V127,\"\")","v":""},null,null,null,null,{"$f":"IF(AND(OR(vakformulieren!$E127=\"5 letsel\",vakformulieren!$E127=\"5 onwel / ziek\",vakformulieren!$E127=\"5 milieuschade\"),vakformulieren!$E121>0),SUM(vakformulieren!$P121/8),\"\")","v":""}]
[{"$f":"IF(OR(vakformulieren!$E122=\"5 letsel\",vakformulieren!$E122=\"5 onwel / ziek\",vakformulieren!$E122=\"5 milieuschade\"),vakformulieren!$A122,\"\")","v":""},"",{"$f":"IF(OR(vakformulieren!$E128=\"5 letsel\",vakformulieren!$E128=\"5 onwel / ziek\",vakformulieren!$E128=\"5 milieuschade\"),vakformulieren!$C122,\"\")","v":""},{"$f":"IF(OR(vakformulieren!$E128=\"5 letsel\",vakformulieren!$E128=\"5 onwel / ziek\",vakformulieren!$E128=\"5 milieuschade\"),vakformulieren!$E122,\"\")","v":""},{"$f":"IF(OR(vakformulieren!$E128=\"5 letsel\",vakformulieren!$E128=\"5 onwel / ziek\",vakformulieren!$E128=\"5 milieuschade\"),vakformulieren!$V128,\"\")","v":""},null,null,null,null,{"$f":"IF(AND(OR(vakformulieren!$E128=\"5 letsel\",vakformulieren!$E128=\"5 onwel / ziek\",vakformulieren!$E128=\"5 milieuschade\"),vakformulieren!$E122>0),SUM(vakformulieren!$P122/8),\"\")","v":""}]
[{"$f":"IF(OR(vakformulieren!$E123=\"5 letsel\",vakformulieren!$E123=\"5 onwel / ziek\",vakformulieren!$E123=\"5 milieuschade\"),vakformulieren!$A123,\"\")","v":""},"",{"$f":"IF(OR(vakformulieren!$E129=\"5 letsel\",vakformulieren!$E129=\"5 onwel / ziek\",vakformulieren!$E129=\"5 milieuschade\"),vakformulieren!$C123,\"\")","v":""},{"$f":"IF(OR(vakformulieren!$E129=\"5 letsel\",vakformulieren!$E129=\"5 onwel / ziek\",vakformulieren!$E129=\"5 milieuschade\"),vakformulieren!$E123,\"\")","v":""},{"$f":"IF(OR(vakformulieren!$E129=\"5 letsel\",vakformulieren!$E129=\"5 onwel / ziek\",vakformulieren!$E129=\"5 milieuschade\"),vakformulieren!$V129,\"\")","v":""},null,null,null,null,{"$f":"IF(AND(OR(vakformulieren!$E129=\"5 letsel\",vakformulieren!$E129=\"5 onwel / ziek\",vakformulieren!$E129=\"5 milieuschade\"),vakformulieren!$E123>0),SUM(vakformulieren!$P123/8),\"\")","v":""}]
[{"$f":"IF(OR(vakformulieren!$E124=\"5 letsel\",vakformulieren!$E124=\"5 onwel / ziek\",vakformulieren!$E124=\"5 milieuschade\"),vakformulieren!$A124,\"\")","v":""},"",{"$f":"IF(OR(vakformulieren!$E130=\"5 letsel\",vakformulieren!$E130=\"5 onwel / ziek\",vakformulieren!$E130=\"5 milieuschade\"),vakformulieren!$C124,\"\")","v":""},{"$f":"IF(OR(vakformulieren!$E130=\"5 letsel\",vakformulieren!$E130=\"5 onwel / ziek\",vakformulieren!$E130=\"5 milieuschade\"),vakformulieren!$E124,\"\")","v":""},{"$f":"IF(OR(vakformulieren!$E130=\"5 letsel\",vakformulieren!$E130=\"5 onwel / ziek\",vakformulieren!$E130=\"5 milieuschade\"),vakformulieren!$V130,\"\")","v":""},null,null,null,null,{"$f":"IF(AND(OR(vakformulieren!$E130=\"5 letsel\",vakformulieren!$E130=\"5 onwel / ziek\",vakformulieren!$E130=\"5 milieuschade\"),vakformulieren!$E124>0),SUM(vakformulieren!$P124/8),\"\")","v":""}]
[{"$f":"IF(OR(vakformulieren!$E125=\"5 letsel\",vakformulieren!$E125=\"5 onwel / ziek\",vakformulieren!$E125=\"5 milieuschade\"),vakformulieren!$A125,\"\")","v":""},"",{"$f":"IF(OR(vakformulieren!$E131=\"5 letsel\",vakformulieren!$E131=\"5 onwel / ziek\",vakformulieren!$E131=\"5 milieuschade\"),vakformulieren!$C125,\"\")","v":""},{"$f":"IF(OR(vakformulieren!$E131=\"5 letsel\",vakformulieren!$E131=\"5 onwel / ziek\",vakformulieren!$E131=\"5 milieuschade\"),vakformulieren!$E125,\"\")","v":""},{"$f":"IF(OR(vakformulieren!$E131=\"5 letsel\",vakformulieren!$E131=\"5 onwel / ziek\",vakformulieren!$E131=\"5 milieuschade\"),vakformulieren!$V131,\"\")","v":""},null,null,null,null,{"$f":"IF(AND(OR(vakformulieren!$E131=\"5 letsel\",vakformulieren!$E131=\"5 onwel / ziek\",vakformulieren!$E131=\"5 milieuschade\"),vakformulieren!$E125>0),SUM(vakformulieren!$P125/8),\"\")","v":""}]
[{"$f":"IF(OR(vakformulieren!$E126=\"5 letsel\",vakformulieren!$E126=\"5 onwel / ziek\",vakformulieren!$E126=\"5 milieuschade\"),vakformulieren!$A126,\"\")","v":""},"",{"$f":"IF(OR(vakformulieren!$E132=\"5 letsel\",vakformulieren!$E132=\"5 onwel / ziek\",vakformulieren!$E132=\"5 milieuschade\"),vakformulieren!$C126,\"\")","v":""},{"$f":"IF(OR(vakformulieren!$E132=\"5 letsel\",vakformulieren!$E132=\"5 onwel / ziek\",vakformulieren!$E132=\"5 milieuschade\"),vakformulieren!$E126,\"\")","v":""},{"$f":"IF(OR(vakformulieren!$E132=\"5 letsel\",vakformulieren!$E132=\"5 onwel / ziek\",vakformulieren!$E132=\"5 milieuschade\"),vakformulieren!$V132,\"\")","v":""},null,null,null,null,{"$f":"IF(AND(OR(vakformulieren!$E132=\"5 letsel\",vakformulieren!$E132=\"5 onwel / ziek\",vakformulieren!$E132=\"5 milieuschade\"),vakformulieren!$E126>0),SUM(vakformulieren!$P126/8),\"\")","v":""}]
[{"$f":"IF(OR(vakformulieren!$E127=\"5 letsel\",vakformulieren!$E127=\"5 onwel / ziek\",vakformulieren!$E127=\"5 milieuschade\"),vakformulieren!$A127,\"\")","v":""},"",{"$f":"IF(OR(vakformulieren!$E133=\"5 letsel\",vakformulieren!$E133=\"5 onwel / ziek\",vakformulieren!$E133=\"5 milieuschade\"),vakformulieren!$C127,\"\")","v":""},{"$f":"IF(OR(vakformulieren!$E133=\"5 letsel\",vakformulieren!$E133=\"5 onwel / ziek\",vakformulieren!$E133=\"5 milieuschade\"),vakformulieren!$E127,\"\")","v":""},{"$f":"IF(OR(vakformulieren!$E133=\"5 letsel\",vakformulieren!$E133=\"5 onwel / ziek\",vakformulieren!$E133=\"5 milieuschade\"),vakformulieren!$V133,\"\")","v":""},null,null,null,null,{"$f":"IF(AND(OR(vakformulieren!$E133=\"5 letsel\",vakformulieren!$E133=\"5 onwel / ziek\",vakformulieren!$E133=\"5 milieuschade\"),vakformulieren!$E127>0),SUM(vakformulieren!$P127/8),\"\")","v":""}]
[{"$f":"IF(OR(vakformulieren!$E128=\"5 letsel\",vakformulieren!$E128=\"5 onwel / ziek\",vakformulieren!$E128=\"5 milieuschade\"),vakformulieren!$A128,\"\")","v":""},"",{"$f":"IF(OR(vakformulieren!$E134=\"5 letsel\",vakformulieren!$E134=\"5 onwel / ziek\",vakformulieren!$E134=\"5 milieuschade\"),vakformulieren!$C128,\"\")","v":""},{"$f":"IF(OR(vakformulieren!$E134=\"5 letsel\",vakformulieren!$E134=\"5 onwel / ziek\",vakformulieren!$E134=\"5 milieuschade\"),vakformulieren!$E128,\"\")","v":""},{"$f":"IF(OR(vakformulieren!$E134=\"5 letsel\",vakformulieren!$E134=\"5 onwel / ziek\",vakformulieren!$E134=\"5 milieuschade\"),vakformulieren!$V134,\"\")","v":""},null,null,null,null,{"$f":"IF(AND(OR(vakformulieren!$E134=\"5 letsel\",vakformulieren!$E134=\"5 onwel / ziek\",vakformulieren!$E134=\"5 milieuschade\"),vakformulieren!$E128>0),SUM(vakformulieren!$P128/8),\"\")","v":""}]
[{"$f":"IF(OR(vakformulieren!$E129=\"5 letsel\",vakformulieren!$E129=\"5 onwel / ziek\",vakformulieren!$E129=\"5 milieuschade\"),vakformulieren!$A129,\"\")","v":""},"",{"$f":"IF(OR(vakformulieren!$E135=\"5 letsel\",vakformulieren!$E135=\"5 onwel / ziek\",vakformulieren!$E135=\"5 milieuschade\"),vakformulieren!$C129,\"\")","v":""},{"$f":"IF(OR(vakformulieren!$E135=\"5 letsel\",vakformulieren!$E135=\"5 onwel / ziek\",vakformulieren!$E135=\"5 milieuschade\"),vakformulieren!$E129,\"\")","v":""},{"$f":"IF(OR(vakformulieren!$E135=\"5 letsel\",vakformulieren!$E135=\"5 onwel / ziek\",vakformulieren!$E135=\"5 milieuschade\"),vakformulieren!$V135,\"\")","v":""},null,null,null,null,{"$f":"IF(AND(OR(vakformulieren!$E135=\"5 letsel\",vakformulieren!$E135=\"5 onwel / ziek\",vakformulieren!$E135=\"5 milieuschade\"),vakformulieren!$E129>0),SUM(vakformulieren!$P129/8),\"\")","v":""}]
[{"$f":"IF(OR(vakformulieren!$E130=\"5 letsel\",vakformulieren!$E130=\"5 onwel / ziek\",vakformulieren!$E130=\"5 milieuschade\"),vakformulieren!$A130,\"\")","v":""},"",{"$f":"IF(OR(vakformulieren!$E136=\"5 letsel\",vakformulieren!$E136=\"5 onwel / ziek\",vakformulieren!$E136=\"5 milieuschade\"),vakformulieren!$C130,\"\")","v":""},{"$f":"IF(OR(vakformulieren!$E136=\"5 letsel\",vakformulieren!$E136=\"5 onwel / ziek\",vakformulieren!$E136=\"5 milieuschade\"),vakformulieren!$E130,\"\")","v":""},{"$f":"IF(OR(vakformulieren!$E136=\"5 letsel\",vakformulieren!$E136=\"5 onwel / ziek\",vakformulieren!$E136=\"5 milieuschade\"),vakformulieren!$V136,\"\")","v":""},null,null,null,null,{"$f":"IF(AND(OR(vakformulieren!$E136=\"5 letsel\",vakformulieren!$E136=\"5 onwel / ziek\",vakformulieren!$E136=\"5 milieuschade\"),vakformulieren!$E130>0),SUM(vakformulieren!$P130/8),\"\")","v":""}]
[{"$f":"IF(OR(vakformulieren!$E131=\"5 letsel\",vakformulieren!$E131=\"5 onwel / ziek\",vakformulieren!$E131=\"5 milieuschade\"),vakformulieren!$A131,\"\")","v":""},{"$f":"IF($A132>\"\",HYPERLINK(CONCATENATE($AL$1,$A132,$AK$1),$A132),\"\")","v":""},{"$f":"IF(OR(vakformulieren!$E137=\"5 letsel\",vakformulieren!$E137=\"5 onwel / ziek\",vakformulieren!$E137=\"5 milieuschade\"),vakformulieren!$C131,\"\")","v":""},{"$f":"IF(OR(vakformulieren!$E137=\"5 letsel\",vakformulieren!$E137=\"5 onwel / ziek\",vakformulieren!$E137=\"5 milieuschade\"),vakformulieren!$E131,\"\")","v":""},{"$f":"IF(OR(vakformulieren!$E137=\"5 letsel\",vakformulieren!$E137=\"5 onwel / ziek\",vakformulieren!$E137=\"5 milieuschade\"),vakformulieren!$V137,\"\")","v":""},null,null,null,null,{"$f":"IF(AND(OR(vakformulieren!$E137=\"5 letsel\",vakformulieren!$E137=\"5 onwel / ziek\",vakformulieren!$E137=\"5 milieuschade\"),vakformulieren!$E131>0),SUM(vakformulieren!$P131/8),\"\")","v":""}]
[{"$f":"IF(OR(vakformulieren!$E132=\"5 letsel\",vakformulieren!$E132=\"5 onwel / ziek\",vakformulieren!$E132=\"5 milieuschade\"),vakformulieren!$A132,\"\")","v":""},"",{"$f":"IF(OR(vakformulieren!$E138=\"5 letsel\",vakformulieren!$E138=\"5 onwel / ziek\",vakformulieren!$E138=\"5 milieuschade\"),vakformulieren!$C132,\"\")","v":""},{"$f":"IF(OR(vakformulieren!$E138=\"5 letsel\",vakformulieren!$E138=\"5 onwel / ziek\",vakformulieren!$E138=\"5 milieuschade\"),vakformulieren!$E132,\"\")","v":""},{"$f":"IF(OR(vakformulieren!$E138=\"5 letsel\",vakformulieren!$E138=\"5 onwel / ziek\",vakformulieren!$E138=\"5 milieuschade\"),vakformulieren!$V138,\"\")","v":""},null,null,null,null,{"$f":"IF(AND(OR(vakformulieren!$E138=\"5 letsel\",vakformulieren!$E138=\"5 onwel / ziek\",vakformulieren!$E138=\"5 milieuschade\"),vakformulieren!$E132>0),SUM(vakformulieren!$P132/8),\"\")","v":""}]
[{"$f":"IF(OR(vakformulieren!$E133=\"5 letsel\",vakformulieren!$E133=\"5 onwel / ziek\",vakformulieren!$E133=\"5 milieuschade\"),vakformulieren!$A133,\"\")","v":""},"",{"$f":"IF(OR(vakformulieren!$E139=\"5 letsel\",vakformulieren!$E139=\"5 onwel / ziek\",vakformulieren!$E139=\"5 milieuschade\"),vakformulieren!$C133,\"\")","v":""},{"$f":"IF(OR(vakformulieren!$E139=\"5 letsel\",vakformulieren!$E139=\"5 onwel / ziek\",vakformulieren!$E139=\"5 milieuschade\"),vakformulieren!$E133,\"\")","v":""},{"$f":"IF(OR(vakformulieren!$E139=\"5 letsel\",vakformulieren!$E139=\"5 onwel / ziek\",vakformulieren!$E139=\"5 milieuschade\"),vakformulieren!$V139,\"\")","v":""},null,null,null,null,{"$f":"IF(AND(OR(vakformulieren!$E139=\"5 letsel\",vakformulieren!$E139=\"5 onwel / ziek\",vakformulieren!$E139=\"5 milieuschade\"),vakformulieren!$E133>0),SUM(vakformulieren!$P133/8),\"\")","v":""}]
[{"$f":"IF(OR(vakformulieren!$E134=\"5 letsel\",vakformulieren!$E134=\"5 onwel / ziek\",vakformulieren!$E134=\"5 milieuschade\"),vakformulieren!$A134,\"\")","v":""},"",{"$f":"IF(OR(vakformulieren!$E140=\"5 letsel\",vakformulieren!$E140=\"5 onwel / ziek\",vakformulieren!$E140=\"5 milieuschade\"),vakformulieren!$C134,\"\")","v":""},{"$f":"IF(OR(vakformulieren!$E140=\"5 letsel\",vakformulieren!$E140=\"5 onwel / ziek\",vakformulieren!$E140=\"5 milieuschade\"),vakformulieren!$E134,\"\")","v":""},{"$f":"IF(OR(vakformulieren!$E140=\"5 letsel\",vakformulieren!$E140=\"5 onwel / ziek\",vakformulieren!$E140=\"5 milieuschade\"),vakformulieren!$V140,\"\")","v":""},null,null,null,null,{"$f":"IF(AND(OR(vakformulieren!$E140=\"5 letsel\",vakformulieren!$E140=\"5 onwel / ziek\",vakformulieren!$E140=\"5 milieuschade\"),vakformulieren!$E134>0),SUM(vakformulieren!$P134/8),\"\")","v":""}]
[{"$f":"IF(OR(vakformulieren!$E135=\"5 letsel\",vakformulieren!$E135=\"5 onwel / ziek\",vakformulieren!$E135=\"5 milieuschade\"),vakformulieren!$A135,\"\")","v":""},"",{"$f":"IF(OR(vakformulieren!$E141=\"5 letsel\",vakformulieren!$E141=\"5 onwel / ziek\",vakformulieren!$E141=\"5 milieuschade\"),vakformulieren!$C135,\"\")","v":""},{"$f":"IF(OR(vakformulieren!$E141=\"5 letsel\",vakformulieren!$E141=\"5 onwel / ziek\",vakformulieren!$E141=\"5 milieuschade\"),vakformulieren!$E135,\"\")","v":""},{"$f":"IF(OR(vakformulieren!$E141=\"5 letsel\",vakformulieren!$E141=\"5 onwel / ziek\",vakformulieren!$E141=\"5 milieuschade\"),vakformulieren!$V141,\"\")","v":""},null,null,null,null,{"$f":"IF(AND(OR(vakformulieren!$E141=\"5 letsel\",vakformulieren!$E141=\"5 onwel / ziek\",vakformulieren!$E141=\"5 milieuschade\"),vakformulieren!$E135>0),SUM(vakformulieren!$P135/8),\"\")","v":""}]
[{"$f":"IF(OR(vakformulieren!$E136=\"5 letsel\",vakformulieren!$E136=\"5 onwel / ziek\",vakformulieren!$E136=\"5 milieuschade\"),vakformulieren!$A136,\"\")","v":""},"",{"$f":"IF(OR(vakformulieren!$E142=\"5 letsel\",vakformulieren!$E142=\"5 onwel / ziek\",vakformulieren!$E142=\"5 milieuschade\"),vakformulieren!$C136,\"\")","v":""},{"$f":"IF(OR(vakformulieren!$E142=\"5 letsel\",vakformulieren!$E142=\"5 onwel / ziek\",vakformulieren!$E142=\"5 milieuschade\"),vakformulieren!$E136,\"\")","v":""},{"$f":"IF(OR(vakformulieren!$E142=\"5 letsel\",vakformulieren!$E142=\"5 onwel / ziek\",vakformulieren!$E142=\"5 milieuschade\"),vakformulieren!$V142,\"\")","v":""},null,null,null,null,{"$f":"IF(AND(OR(vakformulieren!$E142=\"5 letsel\",vakformulieren!$E142=\"5 onwel / ziek\",vakformulieren!$E142=\"5 milieuschade\"),vakformulieren!$E136>0),SUM(vakformulieren!$P136/8),\"\")","v":""}]
[{"$f":"IF(OR(vakformulieren!$E137=\"5 letsel\",vakformulieren!$E137=\"5 onwel / ziek\",vakformulieren!$E137=\"5 milieuschade\"),vakformulieren!$A137,\"\")","v":""},"",{"$f":"IF(OR(vakformulieren!$E143=\"5 letsel\",vakformulieren!$E143=\"5 onwel / ziek\",vakformulieren!$E143=\"5 milieuschade\"),vakformulieren!$C137,\"\")","v":""},{"$f":"IF(OR(vakformulieren!$E143=\"5 letsel\",vakformulieren!$E143=\"5 onwel / ziek\",vakformulieren!$E143=\"5 milieuschade\"),vakformulieren!$E137,\"\")","v":""},{"$f":"IF(OR(vakformulieren!$E143=\"5 letsel\",vakformulieren!$E143=\"5 onwel / ziek\",vakformulieren!$E143=\"5 milieuschade\"),vakformulieren!$V143,\"\")","v":""},null,null,null,null,{"$f":"IF(AND(OR(vakformulieren!$E143=\"5 letsel\",vakformulieren!$E143=\"5 onwel / ziek\",vakformulieren!$E143=\"5 milieuschade\"),vakformulieren!$E137>0),SUM(vakformulieren!$P137/8),\"\")","v":""}]
[{"$f":"IF(OR(vakformulieren!$E138=\"5 letsel\",vakformulieren!$E138=\"5 onwel / ziek\",vakformulieren!$E138=\"5 milieuschade\"),vakformulieren!$A138,\"\")","v":""},"",{"$f":"IF(OR(vakformulieren!$E144=\"5 letsel\",vakformulieren!$E144=\"5 onwel / ziek\",vakformulieren!$E144=\"5 milieuschade\"),vakformulieren!$C138,\"\")","v":""},{"$f":"IF(OR(vakformulieren!$E144=\"5 letsel\",vakformulieren!$E144=\"5 onwel / ziek\",vakformulieren!$E144=\"5 milieuschade\"),vakformulieren!$E138,\"\")","v":""},{"$f":"IF(OR(vakformulieren!$E144=\"5 letsel\",vakformulieren!$E144=\"5 onwel / ziek\",vakformulieren!$E144=\"5 milieuschade\"),vakformulieren!$V144,\"\")","v":""},null,null,null,null,{"$f":"IF(AND(OR(vakformulieren!$E144=\"5 letsel\",vakformulieren!$E144=\"5 onwel / ziek\",vakformulieren!$E144=\"5 milieuschade\"),vakformulieren!$E138>0),SUM(vakformulieren!$P138/8),\"\")","v":""}]
[{"$f":"IF(OR(vakformulieren!$E139=\"5 letsel\",vakformulieren!$E139=\"5 onwel / ziek\",vakformulieren!$E139=\"5 milieuschade\"),vakformulieren!$A139,\"\")","v":""},"",{"$f":"IF(OR(vakformulieren!$E145=\"5 letsel\",vakformulieren!$E145=\"5 onwel / ziek\",vakformulieren!$E145=\"5 milieuschade\"),vakformulieren!$C139,\"\")","v":""},{"$f":"IF(OR(vakformulieren!$E145=\"5 letsel\",vakformulieren!$E145=\"5 onwel / ziek\",vakformulieren!$E145=\"5 milieuschade\"),vakformulieren!$E139,\"\")","v":""},{"$f":"IF(OR(vakformulieren!$E145=\"5 letsel\",vakformulieren!$E145=\"5 onwel / ziek\",vakformulieren!$E145=\"5 milieuschade\"),vakformulieren!$V145,\"\")","v":""},null,null,null,null,{"$f":"IF(AND(OR(vakformulieren!$E145=\"5 letsel\",vakformulieren!$E145=\"5 onwel / ziek\",vakformulieren!$E145=\"5 milieuschade\"),vakformulieren!$E139>0),SUM(vakformulieren!$P139/8),\"\")","v":""}]
[{"$f":"IF(OR(vakformulieren!$E140=\"5 letsel\",vakformulieren!$E140=\"5 onwel / ziek\",vakformulieren!$E140=\"5 milieuschade\"),vakformulieren!$A140,\"\")","v":""},"",{"$f":"IF(OR(vakformulieren!$E146=\"5 letsel\",vakformulieren!$E146=\"5 onwel / ziek\",vakformulieren!$E146=\"5 milieuschade\"),vakformulieren!$C140,\"\")","v":""},{"$f":"IF(OR(vakformulieren!$E146=\"5 letsel\",vakformulieren!$E146=\"5 onwel / ziek\",vakformulieren!$E146=\"5 milieuschade\"),vakformulieren!$E140,\"\")","v":""},{"$f":"IF(OR(vakformulieren!$E146=\"5 letsel\",vakformulieren!$E146=\"5 onwel / ziek\",vakformulieren!$E146=\"5 milieuschade\"),vakformulieren!$V146,\"\")","v":""},null,null,null,null,{"$f":"IF(AND(OR(vakformulieren!$E146=\"5 letsel\",vakformulieren!$E146=\"5 onwel / ziek\",vakformulieren!$E146=\"5 milieuschade\"),vakformulieren!$E140>0),SUM(vakformulieren!$P140/8),\"\")","v":""}]
[{"$f":"IF(OR(vakformulieren!$E141=\"5 letsel\",vakformulieren!$E141=\"5 onwel / ziek\",vakformulieren!$E141=\"5 milieuschade\"),vakformulieren!$A141,\"\")","v":""},"",{"$f":"IF(OR(vakformulieren!$E147=\"5 letsel\",vakformulieren!$E147=\"5 onwel / ziek\",vakformulieren!$E147=\"5 milieuschade\"),vakformulieren!$C141,\"\")","v":""},{"$f":"IF(OR(vakformulieren!$E147=\"5 letsel\",vakformulieren!$E147=\"5 onwel / ziek\",vakformulieren!$E147=\"5 milieuschade\"),vakformulieren!$E141,\"\")","v":""},{"$f":"IF(OR(vakformulieren!$E147=\"5 letsel\",vakformulieren!$E147=\"5 onwel / ziek\",vakformulieren!$E147=\"5 milieuschade\"),vakformulieren!$V147,\"\")","v":""},null,null,null,null,{"$f":"IF(AND(OR(vakformulieren!$E147=\"5 letsel\",vakformulieren!$E147=\"5 onwel / ziek\",vakformulieren!$E147=\"5 milieuschade\"),vakformulieren!$E141>0),SUM(vakformulieren!$P141/8),\"\")","v":""}]
[{"$f":"IF(OR(vakformulieren!$E142=\"5 letsel\",vakformulieren!$E142=\"5 onwel / ziek\",vakformulieren!$E142=\"5 milieuschade\"),vakformulieren!$A142,\"\")","v":""},"",{"$f":"IF(OR(vakformulieren!$E148=\"5 letsel\",vakformulieren!$E148=\"5 onwel / ziek\",vakformulieren!$E148=\"5 milieuschade\"),vakformulieren!$C142,\"\")","v":""},{"$f":"IF(OR(vakformulieren!$E148=\"5 letsel\",vakformulieren!$E148=\"5 onwel / ziek\",vakformulieren!$E148=\"5 milieuschade\"),vakformulieren!$E142,\"\")","v":""},{"$f":"IF(OR(vakformulieren!$E148=\"5 letsel\",vakformulieren!$E148=\"5 onwel / ziek\",vakformulieren!$E148=\"5 milieuschade\"),vakformulieren!$V148,\"\")","v":""},null,null,null,null,{"$f":"IF(AND(OR(vakformulieren!$E148=\"5 letsel\",vakformulieren!$E148=\"5 onwel / ziek\",vakformulieren!$E148=\"5 milieuschade\"),vakformulieren!$E142>0),SUM(vakformulieren!$P142/8),\"\")","v":""}]
[{"$f":"IF(OR(vakformulieren!$E143=\"5 letsel\",vakformulieren!$E143=\"5 onwel / ziek\",vakformulieren!$E143=\"5 milieuschade\"),vakformulieren!$A143,\"\")","v":""},"",{"$f":"IF(OR(vakformulieren!$E149=\"5 letsel\",vakformulieren!$E149=\"5 onwel / ziek\",vakformulieren!$E149=\"5 milieuschade\"),vakformulieren!$C143,\"\")","v":""},{"$f":"IF(OR(vakformulieren!$E149=\"5 letsel\",vakformulieren!$E149=\"5 onwel / ziek\",vakformulieren!$E149=\"5 milieuschade\"),vakformulieren!$E143,\"\")","v":""},{"$f":"IF(OR(vakformulieren!$E149=\"5 letsel\",vakformulieren!$E149=\"5 onwel / ziek\",vakformulieren!$E149=\"5 milieuschade\"),vakformulieren!$V149,\"\")","v":""},null,null,null,null,{"$f":"IF(AND(OR(vakformulieren!$E149=\"5 letsel\",vakformulieren!$E149=\"5 onwel / ziek\",vakformulieren!$E149=\"5 milieuschade\"),vakformulieren!$E143>0),SUM(vakformulieren!$P143/8),\"\")","v":""}]
[{"$f":"IF(OR(vakformulieren!$E144=\"5 letsel\",vakformulieren!$E144=\"5 onwel / ziek\",vakformulieren!$E144=\"5 milieuschade\"),vakformulieren!$A144,\"\")","v":""},"",{"$f":"IF(OR(vakformulieren!$E150=\"5 letsel\",vakformulieren!$E150=\"5 onwel / ziek\",vakformulieren!$E150=\"5 milieuschade\"),vakformulieren!$C144,\"\")","v":""},{"$f":"IF(OR(vakformulieren!$E150=\"5 letsel\",vakformulieren!$E150=\"5 onwel / ziek\",vakformulieren!$E150=\"5 milieuschade\"),vakformulieren!$E144,\"\")","v":""},{"$f":"IF(OR(vakformulieren!$E150=\"5 letsel\",vakformulieren!$E150=\"5 onwel / ziek\",vakformulieren!$E150=\"5 milieuschade\"),vakformulieren!$V150,\"\")","v":""},null,null,null,null,{"$f":"IF(AND(OR(vakformulieren!$E150=\"5 letsel\",vakformulieren!$E150=\"5 onwel / ziek\",vakformulieren!$E150=\"5 milieuschade\"),vakformulieren!$E144>0),SUM(vakformulieren!$P144/8),\"\")","v":""}]
[{"$f":"IF(OR(vakformulieren!$E145=\"5 letsel\",vakformulieren!$E145=\"5 onwel / ziek\",vakformulieren!$E145=\"5 milieuschade\"),vakformulieren!$A145,\"\")","v":""},"",{"$f":"IF(OR(vakformulieren!$E151=\"5 letsel\",vakformulieren!$E151=\"5 onwel / ziek\",vakformulieren!$E151=\"5 milieuschade\"),vakformulieren!$C145,\"\")","v":""},{"$f":"IF(OR(vakformulieren!$E151=\"5 letsel\",vakformulieren!$E151=\"5 onwel / ziek\",vakformulieren!$E151=\"5 milieuschade\"),vakformulieren!$E145,\"\")","v":""},{"$f":"IF(OR(vakformulieren!$E151=\"5 letsel\",vakformulieren!$E151=\"5 onwel / ziek\",vakformulieren!$E151=\"5 milieuschade\"),vakformulieren!$V151,\"\")","v":""},null,null,null,null,{"$f":"IF(AND(OR(vakformulieren!$E151=\"5 letsel\",vakformulieren!$E151=\"5 onwel / ziek\",vakformulieren!$E151=\"5 milieuschade\"),vakformulieren!$E145>0),SUM(vakformulieren!$P145/8),\"\")","v":""}]
[{"$f":"IF(OR(vakformulieren!$E146=\"5 letsel\",vakformulieren!$E146=\"5 onwel / ziek\",vakformulieren!$E146=\"5 milieuschade\"),vakformulieren!$A146,\"\")","v":""},"",{"$f":"IF(OR(vakformulieren!$E152=\"5 letsel\",vakformulieren!$E152=\"5 onwel / ziek\",vakformulieren!$E152=\"5 milieuschade\"),vakformulieren!$C146,\"\")","v":""},{"$f":"IF(OR(vakformulieren!$E152=\"5 letsel\",vakformulieren!$E152=\"5 onwel / ziek\",vakformulieren!$E152=\"5 milieuschade\"),vakformulieren!$E146,\"\")","v":""},{"$f":"IF(OR(vakformulieren!$E152=\"5 letsel\",vakformulieren!$E152=\"5 onwel / ziek\",vakformulieren!$E152=\"5 milieuschade\"),vakformulieren!$V152,\"\")","v":""},null,null,null,null,{"$f":"IF(AND(OR(vakformulieren!$E152=\"5 letsel\",vakformulieren!$E152=\"5 onwel / ziek\",vakformulieren!$E152=\"5 milieuschade\"),vakformulieren!$E146>0),SUM(vakformulieren!$P146/8),\"\")","v":""}]
[{"$f":"IF(OR(vakformulieren!$E147=\"5 letsel\",vakformulieren!$E147=\"5 onwel / ziek\",vakformulieren!$E147=\"5 milieuschade\"),vakformulieren!$A147,\"\")","v":""},"",{"$f":"IF(OR(vakformulieren!$E153=\"5 letsel\",vakformulieren!$E153=\"5 onwel / ziek\",vakformulieren!$E153=\"5 milieuschade\"),vakformulieren!$C147,\"\")","v":""},{"$f":"IF(OR(vakformulieren!$E153=\"5 letsel\",vakformulieren!$E153=\"5 onwel / ziek\",vakformulieren!$E153=\"5 milieuschade\"),vakformulieren!$E147,\"\")","v":""},{"$f":"IF(OR(vakformulieren!$E153=\"5 letsel\",vakformulieren!$E153=\"5 onwel / ziek\",vakformulieren!$E153=\"5 milieuschade\"),vakformulieren!$V153,\"\")","v":""},null,null,null,null,{"$f":"IF(AND(OR(vakformulieren!$E153=\"5 letsel\",vakformulieren!$E153=\"5 onwel / ziek\",vakformulieren!$E153=\"5 milieuschade\"),vakformulieren!$E147>0),SUM(vakformulieren!$P147/8),\"\")","v":""}]
[{"$f":"IF(OR(vakformulieren!$E148=\"5 letsel\",vakformulieren!$E148=\"5 onwel / ziek\",vakformulieren!$E148=\"5 milieuschade\"),vakformulieren!$A148,\"\")","v":""},"",{"$f":"IF(OR(vakformulieren!$E154=\"5 letsel\",vakformulieren!$E154=\"5 onwel / ziek\",vakformulieren!$E154=\"5 milieuschade\"),vakformulieren!$C148,\"\")","v":""},{"$f":"IF(OR(vakformulieren!$E154=\"5 letsel\",vakformulieren!$E154=\"5 onwel / ziek\",vakformulieren!$E154=\"5 milieuschade\"),vakformulieren!$E148,\"\")","v":""},{"$f":"IF(OR(vakformulieren!$E154=\"5 letsel\",vakformulieren!$E154=\"5 onwel / ziek\",vakformulieren!$E154=\"5 milieuschade\"),vakformulieren!$V154,\"\")","v":""},null,null,null,null,{"$f":"IF(AND(OR(vakformulieren!$E154=\"5 letsel\",vakformulieren!$E154=\"5 onwel / ziek\",vakformulieren!$E154=\"5 milieuschade\"),vakformulieren!$E148>0),SUM(vakformulieren!$P148/8),\"\")","v":""}]
[{"$f":"IF(OR(vakformulieren!$E149=\"5 letsel\",vakformulieren!$E149=\"5 onwel / ziek\",vakformulieren!$E149=\"5 milieuschade\"),vakformulieren!$A149,\"\")","v":""},"",{"$f":"IF(OR(vakformulieren!$E155=\"5 letsel\",vakformulieren!$E155=\"5 onwel / ziek\",vakformulieren!$E155=\"5 milieuschade\"),vakformulieren!$C149,\"\")","v":""},{"$f":"IF(OR(vakformulieren!$E155=\"5 letsel\",vakformulieren!$E155=\"5 onwel / ziek\",vakformulieren!$E155=\"5 milieuschade\"),vakformulieren!$E149,\"\")","v":""},{"$f":"IF(OR(vakformulieren!$E155=\"5 letsel\",vakformulieren!$E155=\"5 onwel / ziek\",vakformulieren!$E155=\"5 milieuschade\"),vakformulieren!$V155,\"\")","v":""},null,null,null,null,{"$f":"IF(AND(OR(vakformulieren!$E155=\"5 letsel\",vakformulieren!$E155=\"5 onwel / ziek\",vakformulieren!$E155=\"5 milieuschade\"),vakformulieren!$E149>0),SUM(vakformulieren!$P149/8),\"\")","v":""}]
[{"$f":"IF(OR(vakformulieren!$E150=\"5 letsel\",vakformulieren!$E150=\"5 onwel / ziek\",vakformulieren!$E150=\"5 milieuschade\"),vakformulieren!$A150,\"\")","v":""},"",{"$f":"IF(OR(vakformulieren!$E156=\"5 letsel\",vakformulieren!$E156=\"5 onwel / ziek\",vakformulieren!$E156=\"5 milieuschade\"),vakformulieren!$C150,\"\")","v":""},{"$f":"IF(OR(vakformulieren!$E156=\"5 letsel\",vakformulieren!$E156=\"5 onwel / ziek\",vakformulieren!$E156=\"5 milieuschade\"),vakformulieren!$E150,\"\")","v":""},{"$f":"IF(OR(vakformulieren!$E156=\"5 letsel\",vakformulieren!$E156=\"5 onwel / ziek\",vakformulieren!$E156=\"5 milieuschade\"),vakformulieren!$V156,\"\")","v":""},null,null,null,null,{"$f":"IF(AND(OR(vakformulieren!$E156=\"5 letsel\",vakformulieren!$E156=\"5 onwel / ziek\",vakformulieren!$E156=\"5 milieuschade\"),vakformulieren!$E150>0),SUM(vakformulieren!$P150/8),\"\")","v":""}]
[{"$f":"IF(OR(vakformulieren!$E151=\"5 letsel\",vakformulieren!$E151=\"5 onwel / ziek\",vakformulieren!$E151=\"5 milieuschade\"),vakformulieren!$A151,\"\")","v":""},"",{"$f":"IF(OR(vakformulieren!$E157=\"5 letsel\",vakformulieren!$E157=\"5 onwel / ziek\",vakformulieren!$E157=\"5 milieuschade\"),vakformulieren!$C151,\"\")","v":""},{"$f":"IF(OR(vakformulieren!$E157=\"5 letsel\",vakformulieren!$E157=\"5 onwel / ziek\",vakformulieren!$E157=\"5 milieuschade\"),vakformulieren!$E151,\"\")","v":""},{"$f":"IF(OR(vakformulieren!$E157=\"5 letsel\",vakformulieren!$E157=\"5 onwel / ziek\",vakformulieren!$E157=\"5 milieuschade\"),vakformulieren!$V157,\"\")","v":""},null,null,null,null,{"$f":"IF(AND(OR(vakformulieren!$E157=\"5 letsel\",vakformulieren!$E157=\"5 onwel / ziek\",vakformulieren!$E157=\"5 milieuschade\"),vakformulieren!$E151>0),SUM(vakformulieren!$P151/8),\"\")","v":""}]
[{"$f":"IF(OR(vakformulieren!$E152=\"5 letsel\",vakformulieren!$E152=\"5 onwel / ziek\",vakformulieren!$E152=\"5 milieuschade\"),vakformulieren!$A152,\"\")","v":""},"",{"$f":"IF(OR(vakformulieren!$E158=\"5 letsel\",vakformulieren!$E158=\"5 onwel / ziek\",vakformulieren!$E158=\"5 milieuschade\"),vakformulieren!$C152,\"\")","v":""},{"$f":"IF(OR(vakformulieren!$E158=\"5 letsel\",vakformulieren!$E158=\"5 onwel / ziek\",vakformulieren!$E158=\"5 milieuschade\"),vakformulieren!$E152,\"\")","v":""},{"$f":"IF(OR(vakformulieren!$E158=\"5 letsel\",vakformulieren!$E158=\"5 onwel / ziek\",vakformulieren!$E158=\"5 milieuschade\"),vakformulieren!$V158,\"\")","v":""},null,null,null,null,{"$f":"IF(AND(OR(vakformulieren!$E158=\"5 letsel\",vakformulieren!$E158=\"5 onwel / ziek\",vakformulieren!$E158=\"5 milieuschade\"),vakformulieren!$E152>0),SUM(vakformulieren!$P152/8),\"\")","v":""}]
[{"$f":"IF(OR(vakformulieren!$E153=\"5 letsel\",vakformulieren!$E153=\"5 onwel / ziek\",vakformulieren!$E153=\"5 milieuschade\"),vakformulieren!$A153,\"\")","v":""},"",{"$f":"IF(OR(vakformulieren!$E159=\"5 letsel\",vakformulieren!$E159=\"5 onwel / ziek\",vakformulieren!$E159=\"5 milieuschade\"),vakformulieren!$C153,\"\")","v":""},{"$f":"IF(OR(vakformulieren!$E159=\"5 letsel\",vakformulieren!$E159=\"5 onwel / ziek\",vakformulieren!$E159=\"5 milieuschade\"),vakformulieren!$E153,\"\")","v":""},{"$f":"IF(OR(vakformulieren!$E159=\"5 letsel\",vakformulieren!$E159=\"5 onwel / ziek\",vakformulieren!$E159=\"5 milieuschade\"),vakformulieren!$V159,\"\")","v":""},null,null,null,null,{"$f":"IF(AND(OR(vakformulieren!$E159=\"5 letsel\",vakformulieren!$E159=\"5 onwel / ziek\",vakformulieren!$E159=\"5 milieuschade\"),vakformulieren!$E153>0),SUM(vakformulieren!$P153/8),\"\")","v":""}]
[{"$f":"IF(OR(vakformulieren!$E154=\"5 letsel\",vakformulieren!$E154=\"5 onwel / ziek\",vakformulieren!$E154=\"5 milieuschade\"),vakformulieren!$A154,\"\")","v":""},"",{"$f":"IF(OR(vakformulieren!$E160=\"5 letsel\",vakformulieren!$E160=\"5 onwel / ziek\",vakformulieren!$E160=\"5 milieuschade\"),vakformulieren!$C154,\"\")","v":""},{"$f":"IF(OR(vakformulieren!$E160=\"5 letsel\",vakformulieren!$E160=\"5 onwel / ziek\",vakformulieren!$E160=\"5 milieuschade\"),vakformulieren!$E154,\"\")","v":""},{"$f":"IF(OR(vakformulieren!$E160=\"5 letsel\",vakformulieren!$E160=\"5 onwel / ziek\",vakformulieren!$E160=\"5 milieuschade\"),vakformulieren!$V160,\"\")","v":""},null,null,null,null,{"$f":"IF(AND(OR(vakformulieren!$E160=\"5 letsel\",vakformulieren!$E160=\"5 onwel / ziek\",vakformulieren!$E160=\"5 milieuschade\"),vakformulieren!$E154>0),SUM(vakformulieren!$P154/8),\"\")","v":""}]
[{"$f":"IF(OR(vakformulieren!$E155=\"5 letsel\",vakformulieren!$E155=\"5 onwel / ziek\",vakformulieren!$E155=\"5 milieuschade\"),vakformulieren!$A155,\"\")","v":""},"",{"$f":"IF(OR(vakformulieren!$E161=\"5 letsel\",vakformulieren!$E161=\"5 onwel / ziek\",vakformulieren!$E161=\"5 milieuschade\"),vakformulieren!$C155,\"\")","v":""},{"$f":"IF(OR(vakformulieren!$E161=\"5 letsel\",vakformulieren!$E161=\"5 onwel / ziek\",vakformulieren!$E161=\"5 milieuschade\"),vakformulieren!$E155,\"\")","v":""},{"$f":"IF(OR(vakformulieren!$E161=\"5 letsel\",vakformulieren!$E161=\"5 onwel / ziek\",vakformulieren!$E161=\"5 milieuschade\"),vakformulieren!$V161,\"\")","v":""},null,null,null,null,{"$f":"IF(AND(OR(vakformulieren!$E161=\"5 letsel\",vakformulieren!$E161=\"5 onwel / ziek\",vakformulieren!$E161=\"5 milieuschade\"),vakformulieren!$E155>0),SUM(vakformulieren!$P155/8),\"\")","v":""}]
[{"$f":"IF(OR(vakformulieren!$E156=\"5 letsel\",vakformulieren!$E156=\"5 onwel / ziek\",vakformulieren!$E156=\"5 milieuschade\"),vakformulieren!$A156,\"\")","v":""},"",{"$f":"IF(OR(vakformulieren!$E162=\"5 letsel\",vakformulieren!$E162=\"5 onwel / ziek\",vakformulieren!$E162=\"5 milieuschade\"),vakformulieren!$C156,\"\")","v":""},{"$f":"IF(OR(vakformulieren!$E162=\"5 letsel\",vakformulieren!$E162=\"5 onwel / ziek\",vakformulieren!$E162=\"5 milieuschade\"),vakformulieren!$E156,\"\")","v":""},{"$f":"IF(OR(vakformulieren!$E162=\"5 letsel\",vakformulieren!$E162=\"5 onwel / ziek\",vakformulieren!$E162=\"5 milieuschade\"),vakformulieren!$V162,\"\")","v":""},null,null,null,null,{"$f":"IF(AND(OR(vakformulieren!$E162=\"5 letsel\",vakformulieren!$E162=\"5 onwel / ziek\",vakformulieren!$E162=\"5 milieuschade\"),vakformulieren!$E156>0),SUM(vakformulieren!$P156/8),\"\")","v":""}]
[{"$f":"IF(OR(vakformulieren!$E157=\"5 letsel\",vakformulieren!$E157=\"5 onwel / ziek\",vakformulieren!$E157=\"5 milieuschade\"),vakformulieren!$A157,\"\")","v":""},"",{"$f":"IF(OR(vakformulieren!$E163=\"5 letsel\",vakformulieren!$E163=\"5 onwel / ziek\",vakformulieren!$E163=\"5 milieuschade\"),vakformulieren!$C157,\"\")","v":""},{"$f":"IF(OR(vakformulieren!$E163=\"5 letsel\",vakformulieren!$E163=\"5 onwel / ziek\",vakformulieren!$E163=\"5 milieuschade\"),vakformulieren!$E157,\"\")","v":""},{"$f":"IF(OR(vakformulieren!$E163=\"5 letsel\",vakformulieren!$E163=\"5 onwel / ziek\",vakformulieren!$E163=\"5 milieuschade\"),vakformulieren!$V163,\"\")","v":""},null,null,null,null,{"$f":"IF(AND(OR(vakformulieren!$E163=\"5 letsel\",vakformulieren!$E163=\"5 onwel / ziek\",vakformulieren!$E163=\"5 milieuschade\"),vakformulieren!$E157>0),SUM(vakformulieren!$P157/8),\"\")","v":""}]
[{"$f":"IF(OR(vakformulieren!$E158=\"5 letsel\",vakformulieren!$E158=\"5 onwel / ziek\",vakformulieren!$E158=\"5 milieuschade\"),vakformulieren!$A158,\"\")","v":""},"",{"$f":"IF(OR(vakformulieren!$E164=\"5 letsel\",vakformulieren!$E164=\"5 onwel / ziek\",vakformulieren!$E164=\"5 milieuschade\"),vakformulieren!$C158,\"\")","v":""},{"$f":"IF(OR(vakformulieren!$E164=\"5 letsel\",vakformulieren!$E164=\"5 onwel / ziek\",vakformulieren!$E164=\"5 milieuschade\"),vakformulieren!$E158,\"\")","v":""},{"$f":"IF(OR(vakformulieren!$E164=\"5 letsel\",vakformulieren!$E164=\"5 onwel / ziek\",vakformulieren!$E164=\"5 milieuschade\"),vakformulieren!$V164,\"\")","v":""},null,null,null,null,{"$f":"IF(AND(OR(vakformulieren!$E164=\"5 letsel\",vakformulieren!$E164=\"5 onwel / ziek\",vakformulieren!$E164=\"5 milieuschade\"),vakformulieren!$E158>0),SUM(vakformulieren!$P158/8),\"\")","v":""}]
[{"$f":"IF(OR(vakformulieren!$E159=\"5 letsel\",vakformulieren!$E159=\"5 onwel / ziek\",vakformulieren!$E159=\"5 milieuschade\"),vakformulieren!$A159,\"\")","v":""},"",{"$f":"IF(OR(vakformulieren!$E165=\"5 letsel\",vakformulieren!$E165=\"5 onwel / ziek\",vakformulieren!$E165=\"5 milieuschade\"),vakformulieren!$C159,\"\")","v":""},{"$f":"IF(OR(vakformulieren!$E165=\"5 letsel\",vakformulieren!$E165=\"5 onwel / ziek\",vakformulieren!$E165=\"5 milieuschade\"),vakformulieren!$E159,\"\")","v":""},{"$f":"IF(OR(vakformulieren!$E165=\"5 letsel\",vakformulieren!$E165=\"5 onwel / ziek\",vakformulieren!$E165=\"5 milieuschade\"),vakformulieren!$V165,\"\")","v":""},null,null,null,null,{"$f":"IF(AND(OR(vakformulieren!$E165=\"5 letsel\",vakformulieren!$E165=\"5 onwel / ziek\",vakformulieren!$E165=\"5 milieuschade\"),vakformulieren!$E159>0),SUM(vakformulieren!$P159/8),\"\")","v":""}]
[{"$f":"IF(OR(vakformulieren!$E160=\"5 letsel\",vakformulieren!$E160=\"5 onwel / ziek\",vakformulieren!$E160=\"5 milieuschade\"),vakformulieren!$A160,\"\")","v":""},"",{"$f":"IF(OR(vakformulieren!$E166=\"5 letsel\",vakformulieren!$E166=\"5 onwel / ziek\",vakformulieren!$E166=\"5 milieuschade\"),vakformulieren!$C160,\"\")","v":""},{"$f":"IF(OR(vakformulieren!$E166=\"5 letsel\",vakformulieren!$E166=\"5 onwel / ziek\",vakformulieren!$E166=\"5 milieuschade\"),vakformulieren!$E160,\"\")","v":""},{"$f":"IF(OR(vakformulieren!$E166=\"5 letsel\",vakformulieren!$E166=\"5 onwel / ziek\",vakformulieren!$E166=\"5 milieuschade\"),vakformulieren!$V166,\"\")","v":""},null,null,null,null,{"$f":"IF(AND(OR(vakformulieren!$E166=\"5 letsel\",vakformulieren!$E166=\"5 onwel / ziek\",vakformulieren!$E166=\"5 milieuschade\"),vakformulieren!$E160>0),SUM(vakformulieren!$P160/8),\"\")","v":""}]
[{"$f":"IF(OR(vakformulieren!$E161=\"5 letsel\",vakformulieren!$E161=\"5 onwel / ziek\",vakformulieren!$E161=\"5 milieuschade\"),vakformulieren!$A161,\"\")","v":""},"",{"$f":"IF(OR(vakformulieren!$E167=\"5 letsel\",vakformulieren!$E167=\"5 onwel / ziek\",vakformulieren!$E167=\"5 milieuschade\"),vakformulieren!$C161,\"\")","v":""},{"$f":"IF(OR(vakformulieren!$E167=\"5 letsel\",vakformulieren!$E167=\"5 onwel / ziek\",vakformulieren!$E167=\"5 milieuschade\"),vakformulieren!$E161,\"\")","v":""},{"$f":"IF(OR(vakformulieren!$E167=\"5 letsel\",vakformulieren!$E167=\"5 onwel / ziek\",vakformulieren!$E167=\"5 milieuschade\"),vakformulieren!$V167,\"\")","v":""},null,null,null,null,{"$f":"IF(AND(OR(vakformulieren!$E167=\"5 letsel\",vakformulieren!$E167=\"5 onwel / ziek\",vakformulieren!$E167=\"5 milieuschade\"),vakformulieren!$E161>0),SUM(vakformulieren!$P161/8),\"\")","v":""}]
[{"$f":"IF(OR(vakformulieren!$E162=\"5 letsel\",vakformulieren!$E162=\"5 onwel / ziek\",vakformulieren!$E162=\"5 milieuschade\"),vakformulieren!$A162,\"\")","v":""},"",{"$f":"IF(OR(vakformulieren!$E168=\"5 letsel\",vakformulieren!$E168=\"5 onwel / ziek\",vakformulieren!$E168=\"5 milieuschade\"),vakformulieren!$C162,\"\")","v":""},{"$f":"IF(OR(vakformulieren!$E168=\"5 letsel\",vakformulieren!$E168=\"5 onwel / ziek\",vakformulieren!$E168=\"5 milieuschade\"),vakformulieren!$E162,\"\")","v":""},{"$f":"IF(OR(vakformulieren!$E168=\"5 letsel\",vakformulieren!$E168=\"5 onwel / ziek\",vakformulieren!$E168=\"5 milieuschade\"),vakformulieren!$V168,\"\")","v":""},null,null,null,null,{"$f":"IF(AND(OR(vakformulieren!$E168=\"5 letsel\",vakformulieren!$E168=\"5 onwel / ziek\",vakformulieren!$E168=\"5 milieuschade\"),vakformulieren!$E162>0),SUM(vakformulieren!$P162/8),\"\")","v":""}]
[{"$f":"IF(OR(vakformulieren!$E163=\"5 letsel\",vakformulieren!$E163=\"5 onwel / ziek\",vakformulieren!$E163=\"5 milieuschade\"),vakformulieren!$A163,\"\")","v":""},"",{"$f":"IF(OR(vakformulieren!$E169=\"5 letsel\",vakformulieren!$E169=\"5 onwel / ziek\",vakformulieren!$E169=\"5 milieuschade\"),vakformulieren!$C163,\"\")","v":""},{"$f":"IF(OR(vakformulieren!$E169=\"5 letsel\",vakformulieren!$E169=\"5 onwel / ziek\",vakformulieren!$E169=\"5 milieuschade\"),vakformulieren!$E163,\"\")","v":""},{"$f":"IF(OR(vakformulieren!$E169=\"5 letsel\",vakformulieren!$E169=\"5 onwel / ziek\",vakformulieren!$E169=\"5 milieuschade\"),vakformulieren!$V169,\"\")","v":""},null,null,null,null,{"$f":"IF(AND(OR(vakformulieren!$E169=\"5 letsel\",vakformulieren!$E169=\"5 onwel / ziek\",vakformulieren!$E169=\"5 milieuschade\"),vakformulieren!$E163>0),SUM(vakformulieren!$P163/8),\"\")","v":""}]
[{"$f":"IF(OR(vakformulieren!$E164=\"5 letsel\",vakformulieren!$E164=\"5 onwel / ziek\",vakformulieren!$E164=\"5 milieuschade\"),vakformulieren!$A164,\"\")","v":""},"",{"$f":"IF(OR(vakformulieren!$E170=\"5 letsel\",vakformulieren!$E170=\"5 onwel / ziek\",vakformulieren!$E170=\"5 milieuschade\"),vakformulieren!$C164,\"\")","v":""},{"$f":"IF(OR(vakformulieren!$E170=\"5 letsel\",vakformulieren!$E170=\"5 onwel / ziek\",vakformulieren!$E170=\"5 milieuschade\"),vakformulieren!$E164,\"\")","v":""},{"$f":"IF(OR(vakformulieren!$E170=\"5 letsel\",vakformulieren!$E170=\"5 onwel / ziek\",vakformulieren!$E170=\"5 milieuschade\"),vakformulieren!$V170,\"\")","v":""},null,null,null,null,{"$f":"IF(AND(OR(vakformulieren!$E170=\"5 letsel\",vakformulieren!$E170=\"5 onwel / ziek\",vakformulieren!$E170=\"5 milieuschade\"),vakformulieren!$E164>0),SUM(vakformulieren!$P164/8),\"\")","v":""}]
[{"$f":"IF(OR(vakformulieren!$E165=\"5 letsel\",vakformulieren!$E165=\"5 onwel / ziek\",vakformulieren!$E165=\"5 milieuschade\"),vakformulieren!$A165,\"\")","v":""},"",{"$f":"IF(OR(vakformulieren!$E171=\"5 letsel\",vakformulieren!$E171=\"5 onwel / ziek\",vakformulieren!$E171=\"5 milieuschade\"),vakformulieren!$C165,\"\")","v":""},{"$f":"IF(OR(vakformulieren!$E171=\"5 letsel\",vakformulieren!$E171=\"5 onwel / ziek\",vakformulieren!$E171=\"5 milieuschade\"),vakformulieren!$E165,\"\")","v":""},{"$f":"IF(OR(vakformulieren!$E171=\"5 letsel\",vakformulieren!$E171=\"5 onwel / ziek\",vakformulieren!$E171=\"5 milieuschade\"),vakformulieren!$V171,\"\")","v":""},null,null,null,null,{"$f":"IF(AND(OR(vakformulieren!$E171=\"5 letsel\",vakformulieren!$E171=\"5 onwel / ziek\",vakformulieren!$E171=\"5 milieuschade\"),vakformulieren!$E165>0),SUM(vakformulieren!$P165/8),\"\")","v":""}]
[{"$f":"IF(OR(vakformulieren!$E166=\"5 letsel\",vakformulieren!$E166=\"5 onwel / ziek\",vakformulieren!$E166=\"5 milieuschade\"),vakformulieren!$A166,\"\")","v":""},"",{"$f":"IF(OR(vakformulieren!$E172=\"5 letsel\",vakformulieren!$E172=\"5 onwel / ziek\",vakformulieren!$E172=\"5 milieuschade\"),vakformulieren!$C166,\"\")","v":""},{"$f":"IF(OR(vakformulieren!$E172=\"5 letsel\",vakformulieren!$E172=\"5 onwel / ziek\",vakformulieren!$E172=\"5 milieuschade\"),vakformulieren!$E166,\"\")","v":""},{"$f":"IF(OR(vakformulieren!$E172=\"5 letsel\",vakformulieren!$E172=\"5 onwel / ziek\",vakformulieren!$E172=\"5 milieuschade\"),vakformulieren!$V172,\"\")","v":""},null,null,null,null,{"$f":"IF(AND(OR(vakformulieren!$E172=\"5 letsel\",vakformulieren!$E172=\"5 onwel / ziek\",vakformulieren!$E172=\"5 milieuschade\"),vakformulieren!$E166>0),SUM(vakformulieren!$P166/8),\"\")","v":""}]
[{"$f":"IF(OR(vakformulieren!$E167=\"5 letsel\",vakformulieren!$E167=\"5 onwel / ziek\",vakformulieren!$E167=\"5 milieuschade\"),vakformulieren!$A167,\"\")","v":""},"",{"$f":"IF(OR(vakformulieren!$E173=\"5 letsel\",vakformulieren!$E173=\"5 onwel / ziek\",vakformulieren!$E173=\"5 milieuschade\"),vakformulieren!$C167,\"\")","v":""},{"$f":"IF(OR(vakformulieren!$E173=\"5 letsel\",vakformulieren!$E173=\"5 onwel / ziek\",vakformulieren!$E173=\"5 milieuschade\"),vakformulieren!$E167,\"\")","v":""},{"$f":"IF(OR(vakformulieren!$E173=\"5 letsel\",vakformulieren!$E173=\"5 onwel / ziek\",vakformulieren!$E173=\"5 milieuschade\"),vakformulieren!$V173,\"\")","v":""},null,null,null,null,{"$f":"IF(AND(OR(vakformulieren!$E173=\"5 letsel\",vakformulieren!$E173=\"5 onwel / ziek\",vakformulieren!$E173=\"5 milieuschade\"),vakformulieren!$E167>0),SUM(vakformulieren!$P167/8),\"\")","v":""}]
[{"$f":"IF(OR(vakformulieren!$E168=\"5 letsel\",vakformulieren!$E168=\"5 onwel / ziek\",vakformulieren!$E168=\"5 milieuschade\"),vakformulieren!$A168,\"\")","v":""},"",{"$f":"IF(OR(vakformulieren!$E174=\"5 letsel\",vakformulieren!$E174=\"5 onwel / ziek\",vakformulieren!$E174=\"5 milieuschade\"),vakformulieren!$C168,\"\")","v":""},{"$f":"IF(OR(vakformulieren!$E174=\"5 letsel\",vakformulieren!$E174=\"5 onwel / ziek\",vakformulieren!$E174=\"5 milieuschade\"),vakformulieren!$E168,\"\")","v":""},{"$f":"IF(OR(vakformulieren!$E174=\"5 letsel\",vakformulieren!$E174=\"5 onwel / ziek\",vakformulieren!$E174=\"5 milieuschade\"),vakformulieren!$V174,\"\")","v":""},null,null,null,null,{"$f":"IF(AND(OR(vakformulieren!$E174=\"5 letsel\",vakformulieren!$E174=\"5 onwel / ziek\",vakformulieren!$E174=\"5 milieuschade\"),vakformulieren!$E168>0),SUM(vakformulieren!$P168/8),\"\")","v":""}]
[{"$f":"IF(OR(vakformulieren!$E169=\"5 letsel\",vakformulieren!$E169=\"5 onwel / ziek\",vakformulieren!$E169=\"5 milieuschade\"),vakformulieren!$A169,\"\")","v":""},"",{"$f":"IF(OR(vakformulieren!$E175=\"5 letsel\",vakformulieren!$E175=\"5 onwel / ziek\",vakformulieren!$E175=\"5 milieuschade\"),vakformulieren!$C169,\"\")","v":""},{"$f":"IF(OR(vakformulieren!$E175=\"5 letsel\",vakformulieren!$E175=\"5 onwel / ziek\",vakformulieren!$E175=\"5 milieuschade\"),vakformulieren!$E169,\"\")","v":""},{"$f":"IF(OR(vakformulieren!$E175=\"5 letsel\",vakformulieren!$E175=\"5 onwel / ziek\",vakformulieren!$E175=\"5 milieuschade\"),vakformulieren!$V175,\"\")","v":""},null,null,null,null,{"$f":"IF(AND(OR(vakformulieren!$E175=\"5 letsel\",vakformulieren!$E175=\"5 onwel / ziek\",vakformulieren!$E175=\"5 milieuschade\"),vakformulieren!$E169>0),SUM(vakformulieren!$P169/8),\"\")","v":""}]
[{"$f":"IF(OR(vakformulieren!$E170=\"5 letsel\",vakformulieren!$E170=\"5 onwel / ziek\",vakformulieren!$E170=\"5 milieuschade\"),vakformulieren!$A170,\"\")","v":""},"",{"$f":"IF(OR(vakformulieren!$E176=\"5 letsel\",vakformulieren!$E176=\"5 onwel / ziek\",vakformulieren!$E176=\"5 milieuschade\"),vakformulieren!$C170,\"\")","v":""},{"$f":"IF(OR(vakformulieren!$E176=\"5 letsel\",vakformulieren!$E176=\"5 onwel / ziek\",vakformulieren!$E176=\"5 milieuschade\"),vakformulieren!$E170,\"\")","v":""},{"$f":"IF(OR(vakformulieren!$E176=\"5 letsel\",vakformulieren!$E176=\"5 onwel / ziek\",vakformulieren!$E176=\"5 milieuschade\"),vakformulieren!$V176,\"\")","v":""},null,null,null,null,{"$f":"IF(AND(OR(vakformulieren!$E176=\"5 letsel\",vakformulieren!$E176=\"5 onwel / ziek\",vakformulieren!$E176=\"5 milieuschade\"),vakformulieren!$E170>0),SUM(vakformulieren!$P170/8),\"\")","v":""}]
[{"$f":"IF(OR(vakformulieren!$E171=\"5 letsel\",vakformulieren!$E171=\"5 onwel / ziek\",vakformulieren!$E171=\"5 milieuschade\"),vakformulieren!$A171,\"\")","v":""},"",{"$f":"IF(OR(vakformulieren!$E177=\"5 letsel\",vakformulieren!$E177=\"5 onwel / ziek\",vakformulieren!$E177=\"5 milieuschade\"),vakformulieren!$C171,\"\")","v":""},{"$f":"IF(OR(vakformulieren!$E177=\"5 letsel\",vakformulieren!$E177=\"5 onwel / ziek\",vakformulieren!$E177=\"5 milieuschade\"),vakformulieren!$E171,\"\")","v":""},{"$f":"IF(OR(vakformulieren!$E177=\"5 letsel\",vakformulieren!$E177=\"5 onwel / ziek\",vakformulieren!$E177=\"5 milieuschade\"),vakformulieren!$V177,\"\")","v":""},null,null,null,null,{"$f":"IF(AND(OR(vakformulieren!$E177=\"5 letsel\",vakformulieren!$E177=\"5 onwel / ziek\",vakformulieren!$E177=\"5 milieuschade\"),vakformulieren!$E171>0),SUM(vakformulieren!$P171/8),\"\")","v":""}]
[{"$f":"IF(OR(vakformulieren!$E172=\"5 letsel\",vakformulieren!$E172=\"5 onwel / ziek\",vakformulieren!$E172=\"5 milieuschade\"),vakformulieren!$A172,\"\")","v":""},"",{"$f":"IF(OR(vakformulieren!$E178=\"5 letsel\",vakformulieren!$E178=\"5 onwel / ziek\",vakformulieren!$E178=\"5 milieuschade\"),vakformulieren!$C172,\"\")","v":""},{"$f":"IF(OR(vakformulieren!$E178=\"5 letsel\",vakformulieren!$E178=\"5 onwel / ziek\",vakformulieren!$E178=\"5 milieuschade\"),vakformulieren!$E172,\"\")","v":""},{"$f":"IF(OR(vakformulieren!$E178=\"5 letsel\",vakformulieren!$E178=\"5 onwel / ziek\",vakformulieren!$E178=\"5 milieuschade\"),vakformulieren!$V178,\"\")","v":""},null,null,null,null,{"$f":"IF(AND(OR(vakformulieren!$E178=\"5 letsel\",vakformulieren!$E178=\"5 onwel / ziek\",vakformulieren!$E178=\"5 milieuschade\"),vakformulieren!$E172>0),SUM(vakformulieren!$P172/8),\"\")","v":""}]
[{"$f":"IF(OR(vakformulieren!$E173=\"5 letsel\",vakformulieren!$E173=\"5 onwel / ziek\",vakformulieren!$E173=\"5 milieuschade\"),vakformulieren!$A173,\"\")","v":""},"",{"$f":"IF(OR(vakformulieren!$E179=\"5 letsel\",vakformulieren!$E179=\"5 onwel / ziek\",vakformulieren!$E179=\"5 milieuschade\"),vakformulieren!$C173,\"\")","v":""},{"$f":"IF(OR(vakformulieren!$E179=\"5 letsel\",vakformulieren!$E179=\"5 onwel / ziek\",vakformulieren!$E179=\"5 milieuschade\"),vakformulieren!$E173,\"\")","v":""},{"$f":"IF(OR(vakformulieren!$E179=\"5 letsel\",vakformulieren!$E179=\"5 onwel / ziek\",vakformulieren!$E179=\"5 milieuschade\"),vakformulieren!$V179,\"\")","v":""},null,null,null,null,{"$f":"IF(AND(OR(vakformulieren!$E179=\"5 letsel\",vakformulieren!$E179=\"5 onwel / ziek\",vakformulieren!$E179=\"5 milieuschade\"),vakformulieren!$E173>0),SUM(vakformulieren!$P173/8),\"\")","v":""}]
[{"$f":"IF(OR(vakformulieren!$E174=\"5 letsel\",vakformulieren!$E174=\"5 onwel / ziek\",vakformulieren!$E174=\"5 milieuschade\"),vakformulieren!$A174,\"\")","v":""},"",{"$f":"IF(OR(vakformulieren!$E180=\"5 letsel\",vakformulieren!$E180=\"5 onwel / ziek\",vakformulieren!$E180=\"5 milieuschade\"),vakformulieren!$C174,\"\")","v":""},{"$f":"IF(OR(vakformulieren!$E180=\"5 letsel\",vakformulieren!$E180=\"5 onwel / ziek\",vakformulieren!$E180=\"5 milieuschade\"),vakformulieren!$E174,\"\")","v":""},{"$f":"IF(OR(vakformulieren!$E180=\"5 letsel\",vakformulieren!$E180=\"5 onwel / ziek\",vakformulieren!$E180=\"5 milieuschade\"),vakformulieren!$V180,\"\")","v":""},null,null,null,null,{"$f":"IF(AND(OR(vakformulieren!$E180=\"5 letsel\",vakformulieren!$E180=\"5 onwel / ziek\",vakformulieren!$E180=\"5 milieuschade\"),vakformulieren!$E174>0),SUM(vakformulieren!$P174/8),\"\")","v":""}]
[{"$f":"IF(OR(vakformulieren!$E175=\"5 letsel\",vakformulieren!$E175=\"5 onwel / ziek\",vakformulieren!$E175=\"5 milieuschade\"),vakformulieren!$A175,\"\")","v":""},"",{"$f":"IF(OR(vakformulieren!$E181=\"5 letsel\",vakformulieren!$E181=\"5 onwel / ziek\",vakformulieren!$E181=\"5 milieuschade\"),vakformulieren!$C175,\"\")","v":""},{"$f":"IF(OR(vakformulieren!$E181=\"5 letsel\",vakformulieren!$E181=\"5 onwel / ziek\",vakformulieren!$E181=\"5 milieuschade\"),vakformulieren!$E175,\"\")","v":""},{"$f":"IF(OR(vakformulieren!$E181=\"5 letsel\",vakformulieren!$E181=\"5 onwel / ziek\",vakformulieren!$E181=\"5 milieuschade\"),vakformulieren!$V181,\"\")","v":""},null,null,null,null,{"$f":"IF(AND(OR(vakformulieren!$E181=\"5 letsel\",vakformulieren!$E181=\"5 onwel / ziek\",vakformulieren!$E181=\"5 milieuschade\"),vakformulieren!$E175>0),SUM(vakformulieren!$P175/8),\"\")","v":""}]
[{"$f":"IF(OR(vakformulieren!$E176=\"5 letsel\",vakformulieren!$E176=\"5 onwel / ziek\",vakformulieren!$E176=\"5 milieuschade\"),vakformulieren!$A176,\"\")","v":""},"",{"$f":"IF(OR(vakformulieren!$E182=\"5 letsel\",vakformulieren!$E182=\"5 onwel / ziek\",vakformulieren!$E182=\"5 milieuschade\"),vakformulieren!$C176,\"\")","v":""},{"$f":"IF(OR(vakformulieren!$E182=\"5 letsel\",vakformulieren!$E182=\"5 onwel / ziek\",vakformulieren!$E182=\"5 milieuschade\"),vakformulieren!$E176,\"\")","v":""},{"$f":"IF(OR(vakformulieren!$E182=\"5 letsel\",vakformulieren!$E182=\"5 onwel / ziek\",vakformulieren!$E182=\"5 milieuschade\"),vakformulieren!$V182,\"\")","v":""},null,null,null,null,{"$f":"IF(AND(OR(vakformulieren!$E182=\"5 letsel\",vakformulieren!$E182=\"5 onwel / ziek\",vakformulieren!$E182=\"5 milieuschade\"),vakformulieren!$E176>0),SUM(vakformulieren!$P176/8),\"\")","v":""}]
[{"$f":"IF(OR(vakformulieren!$E177=\"5 letsel\",vakformulieren!$E177=\"5 onwel / ziek\",vakformulieren!$E177=\"5 milieuschade\"),vakformulieren!$A177,\"\")","v":""},"",{"$f":"IF(OR(vakformulieren!$E183=\"5 letsel\",vakformulieren!$E183=\"5 onwel / ziek\",vakformulieren!$E183=\"5 milieuschade\"),vakformulieren!$C177,\"\")","v":""},{"$f":"IF(OR(vakformulieren!$E183=\"5 letsel\",vakformulieren!$E183=\"5 onwel / ziek\",vakformulieren!$E183=\"5 milieuschade\"),vakformulieren!$E177,\"\")","v":""},{"$f":"IF(OR(vakformulieren!$E183=\"5 letsel\",vakformulieren!$E183=\"5 onwel / ziek\",vakformulieren!$E183=\"5 milieuschade\"),vakformulieren!$V183,\"\")","v":""},null,null,null,null,{"$f":"IF(AND(OR(vakformulieren!$E183=\"5 letsel\",vakformulieren!$E183=\"5 onwel / ziek\",vakformulieren!$E183=\"5 milieuschade\"),vakformulieren!$E177>0),SUM(vakformulieren!$P177/8),\"\")","v":""}]
[{"$f":"IF(OR(vakformulieren!$E178=\"5 letsel\",vakformulieren!$E178=\"5 onwel / ziek\",vakformulieren!$E178=\"5 milieuschade\"),vakformulieren!$A178,\"\")","v":""},"",{"$f":"IF(OR(vakformulieren!$E184=\"5 letsel\",vakformulieren!$E184=\"5 onwel / ziek\",vakformulieren!$E184=\"5 milieuschade\"),vakformulieren!$C178,\"\")","v":""},{"$f":"IF(OR(vakformulieren!$E184=\"5 letsel\",vakformulieren!$E184=\"5 onwel / ziek\",vakformulieren!$E184=\"5 milieuschade\"),vakformulieren!$E178,\"\")","v":""},{"$f":"IF(OR(vakformulieren!$E184=\"5 letsel\",vakformulieren!$E184=\"5 onwel / ziek\",vakformulieren!$E184=\"5 milieuschade\"),vakformulieren!$V184,\"\")","v":""},null,null,null,null,{"$f":"IF(AND(OR(vakformulieren!$E184=\"5 letsel\",vakformulieren!$E184=\"5 onwel / ziek\",vakformulieren!$E184=\"5 milieuschade\"),vakformulieren!$E178>0),SUM(vakformulieren!$P178/8),\"\")","v":""}]
[{"$f":"IF(OR(vakformulieren!$E179=\"5 letsel\",vakformulieren!$E179=\"5 onwel / ziek\",vakformulieren!$E179=\"5 milieuschade\"),vakformulieren!$A179,\"\")","v":""},"",{"$f":"IF(OR(vakformulieren!$E185=\"5 letsel\",vakformulieren!$E185=\"5 onwel / ziek\",vakformulieren!$E185=\"5 milieuschade\"),vakformulieren!$C179,\"\")","v":""},{"$f":"IF(OR(vakformulieren!$E185=\"5 letsel\",vakformulieren!$E185=\"5 onwel / ziek\",vakformulieren!$E185=\"5 milieuschade\"),vakformulieren!$E179,\"\")","v":""},{"$f":"IF(OR(vakformulieren!$E185=\"5 letsel\",vakformulieren!$E185=\"5 onwel / ziek\",vakformulieren!$E185=\"5 milieuschade\"),vakformulieren!$V185,\"\")","v":""},null,null,null,null,{"$f":"IF(AND(OR(vakformulieren!$E185=\"5 letsel\",vakformulieren!$E185=\"5 onwel / ziek\",vakformulieren!$E185=\"5 milieuschade\"),vakformulieren!$E179>0),SUM(vakformulieren!$P179/8),\"\")","v":""}]
[{"$f":"IF(OR(vakformulieren!$E180=\"5 letsel\",vakformulieren!$E180=\"5 onwel / ziek\",vakformulieren!$E180=\"5 milieuschade\"),vakformulieren!$A180,\"\")","v":""},"",{"$f":"IF(OR(vakformulieren!$E186=\"5 letsel\",vakformulieren!$E186=\"5 onwel / ziek\",vakformulieren!$E186=\"5 milieuschade\"),vakformulieren!$C180,\"\")","v":""},{"$f":"IF(OR(vakformulieren!$E186=\"5 letsel\",vakformulieren!$E186=\"5 onwel / ziek\",vakformulieren!$E186=\"5 milieuschade\"),vakformulieren!$E180,\"\")","v":""},{"$f":"IF(OR(vakformulieren!$E186=\"5 letsel\",vakformulieren!$E186=\"5 onwel / ziek\",vakformulieren!$E186=\"5 milieuschade\"),vakformulieren!$V186,\"\")","v":""},null,null,null,null,{"$f":"IF(AND(OR(vakformulieren!$E186=\"5 letsel\",vakformulieren!$E186=\"5 onwel / ziek\",vakformulieren!$E186=\"5 milieuschade\"),vakformulieren!$E180>0),SUM(vakformulieren!$P180/8),\"\")","v":""}]
[{"$f":"IF(OR(vakformulieren!$E181=\"5 letsel\",vakformulieren!$E181=\"5 onwel / ziek\",vakformulieren!$E181=\"5 milieuschade\"),vakformulieren!$A181,\"\")","v":""},"",{"$f":"IF(OR(vakformulieren!$E187=\"5 letsel\",vakformulieren!$E187=\"5 onwel / ziek\",vakformulieren!$E187=\"5 milieuschade\"),vakformulieren!$C181,\"\")","v":""},{"$f":"IF(OR(vakformulieren!$E187=\"5 letsel\",vakformulieren!$E187=\"5 onwel / ziek\",vakformulieren!$E187=\"5 milieuschade\"),vakformulieren!$E181,\"\")","v":""},{"$f":"IF(OR(vakformulieren!$E187=\"5 letsel\",vakformulieren!$E187=\"5 onwel / ziek\",vakformulieren!$E187=\"5 milieuschade\"),vakformulieren!$V187,\"\")","v":""},null,null,null,null,{"$f":"IF(AND(OR(vakformulieren!$E187=\"5 letsel\",vakformulieren!$E187=\"5 onwel / ziek\",vakformulieren!$E187=\"5 milieuschade\"),vakformulieren!$E181>0),SUM(vakformulieren!$P181/8),\"\")","v":""}]
[{"$f":"IF(OR(vakformulieren!$E182=\"5 letsel\",vakformulieren!$E182=\"5 onwel / ziek\",vakformulieren!$E182=\"5 milieuschade\"),vakformulieren!$A182,\"\")","v":""},"",{"$f":"IF(OR(vakformulieren!$E188=\"5 letsel\",vakformulieren!$E188=\"5 onwel / ziek\",vakformulieren!$E188=\"5 milieuschade\"),vakformulieren!$C182,\"\")","v":""},{"$f":"IF(OR(vakformulieren!$E188=\"5 letsel\",vakformulieren!$E188=\"5 onwel / ziek\",vakformulieren!$E188=\"5 milieuschade\"),vakformulieren!$E182,\"\")","v":""},{"$f":"IF(OR(vakformulieren!$E188=\"5 letsel\",vakformulieren!$E188=\"5 onwel / ziek\",vakformulieren!$E188=\"5 milieuschade\"),vakformulieren!$V188,\"\")","v":""},null,null,null,null,{"$f":"IF(AND(OR(vakformulieren!$E188=\"5 letsel\",vakformulieren!$E188=\"5 onwel / ziek\",vakformulieren!$E188=\"5 milieuschade\"),vakformulieren!$E182>0),SUM(vakformulieren!$P182/8),\"\")","v":""}]
[{"$f":"IF(OR(vakformulieren!$E183=\"5 letsel\",vakformulieren!$E183=\"5 onwel / ziek\",vakformulieren!$E183=\"5 milieuschade\"),vakformulieren!$A183,\"\")","v":""},"",{"$f":"IF(OR(vakformulieren!$E189=\"5 letsel\",vakformulieren!$E189=\"5 onwel / ziek\",vakformulieren!$E189=\"5 milieuschade\"),vakformulieren!$C183,\"\")","v":""},{"$f":"IF(OR(vakformulieren!$E189=\"5 letsel\",vakformulieren!$E189=\"5 onwel / ziek\",vakformulieren!$E189=\"5 milieuschade\"),vakformulieren!$E183,\"\")","v":""},{"$f":"IF(OR(vakformulieren!$E189=\"5 letsel\",vakformulieren!$E189=\"5 onwel / ziek\",vakformulieren!$E189=\"5 milieuschade\"),vakformulieren!$V189,\"\")","v":""},null,null,null,null,{"$f":"IF(AND(OR(vakformulieren!$E189=\"5 letsel\",vakformulieren!$E189=\"5 onwel / ziek\",vakformulieren!$E189=\"5 milieuschade\"),vakformulieren!$E183>0),SUM(vakformulieren!$P183/8),\"\")","v":""}]
[{"$f":"IF(OR(vakformulieren!$E184=\"5 letsel\",vakformulieren!$E184=\"5 onwel / ziek\",vakformulieren!$E184=\"5 milieuschade\"),vakformulieren!$A184,\"\")","v":""},"",{"$f":"IF(OR(vakformulieren!$E190=\"5 letsel\",vakformulieren!$E190=\"5 onwel / ziek\",vakformulieren!$E190=\"5 milieuschade\"),vakformulieren!$C184,\"\")","v":""},{"$f":"IF(OR(vakformulieren!$E190=\"5 letsel\",vakformulieren!$E190=\"5 onwel / ziek\",vakformulieren!$E190=\"5 milieuschade\"),vakformulieren!$E184,\"\")","v":""},{"$f":"IF(OR(vakformulieren!$E190=\"5 letsel\",vakformulieren!$E190=\"5 onwel / ziek\",vakformulieren!$E190=\"5 milieuschade\"),vakformulieren!$V190,\"\")","v":""},null,null,null,null,{"$f":"IF(AND(OR(vakformulieren!$E190=\"5 letsel\",vakformulieren!$E190=\"5 onwel / ziek\",vakformulieren!$E190=\"5 milieuschade\"),vakformulieren!$E184>0),SUM(vakformulieren!$P184/8),\"\")","v":""}]
[{"$f":"IF(OR(vakformulieren!$E185=\"5 letsel\",vakformulieren!$E185=\"5 onwel / ziek\",vakformulieren!$E185=\"5 milieuschade\"),vakformulieren!$A185,\"\")","v":""},"",{"$f":"IF(OR(vakformulieren!$E191=\"5 letsel\",vakformulieren!$E191=\"5 onwel / ziek\",vakformulieren!$E191=\"5 milieuschade\"),vakformulieren!$C185,\"\")","v":""},{"$f":"IF(OR(vakformulieren!$E191=\"5 letsel\",vakformulieren!$E191=\"5 onwel / ziek\",vakformulieren!$E191=\"5 milieuschade\"),vakformulieren!$E185,\"\")","v":""},{"$f":"IF(OR(vakformulieren!$E191=\"5 letsel\",vakformulieren!$E191=\"5 onwel / ziek\",vakformulieren!$E191=\"5 milieuschade\"),vakformulieren!$V191,\"\")","v":""},null,null,null,null,{"$f":"IF(AND(OR(vakformulieren!$E191=\"5 letsel\",vakformulieren!$E191=\"5 onwel / ziek\",vakformulieren!$E191=\"5 milieuschade\"),vakformulieren!$E185>0),SUM(vakformulieren!$P185/8),\"\")","v":""}]
[{"$f":"IF(OR(vakformulieren!$E186=\"5 letsel\",vakformulieren!$E186=\"5 onwel / ziek\",vakformulieren!$E186=\"5 milieuschade\"),vakformulieren!$A186,\"\")","v":""},"",{"$f":"IF(OR(vakformulieren!$E192=\"5 letsel\",vakformulieren!$E192=\"5 onwel / ziek\",vakformulieren!$E192=\"5 milieuschade\"),vakformulieren!$C186,\"\")","v":""},{"$f":"IF(OR(vakformulieren!$E192=\"5 letsel\",vakformulieren!$E192=\"5 onwel / ziek\",vakformulieren!$E192=\"5 milieuschade\"),vakformulieren!$E186,\"\")","v":""},{"$f":"IF(OR(vakformulieren!$E192=\"5 letsel\",vakformulieren!$E192=\"5 onwel / ziek\",vakformulieren!$E192=\"5 milieuschade\"),vakformulieren!$V192,\"\")","v":""},null,null,null,null,{"$f":"IF(AND(OR(vakformulieren!$E192=\"5 letsel\",vakformulieren!$E192=\"5 onwel / ziek\",vakformulieren!$E192=\"5 milieuschade\"),vakformulieren!$E186>0),SUM(vakformulieren!$P186/8),\"\")","v":""}]
[{"$f":"IF(OR(vakformulieren!$E187=\"5 letsel\",vakformulieren!$E187=\"5 onwel / ziek\",vakformulieren!$E187=\"5 milieuschade\"),vakformulieren!$A187,\"\")","v":""},"",{"$f":"IF(OR(vakformulieren!$E193=\"5 letsel\",vakformulieren!$E193=\"5 onwel / ziek\",vakformulieren!$E193=\"5 milieuschade\"),vakformulieren!$C187,\"\")","v":""},{"$f":"IF(OR(vakformulieren!$E193=\"5 letsel\",vakformulieren!$E193=\"5 onwel / ziek\",vakformulieren!$E193=\"5 milieuschade\"),vakformulieren!$E187,\"\")","v":""},{"$f":"IF(OR(vakformulieren!$E193=\"5 letsel\",vakformulieren!$E193=\"5 onwel / ziek\",vakformulieren!$E193=\"5 milieuschade\"),vakformulieren!$V193,\"\")","v":""},null,null,null,null,{"$f":"IF(AND(OR(vakformulieren!$E193=\"5 letsel\",vakformulieren!$E193=\"5 onwel / ziek\",vakformulieren!$E193=\"5 milieuschade\"),vakformulieren!$E187>0),SUM(vakformulieren!$P187/8),\"\")","v":""}]
[{"$f":"IF(OR(vakformulieren!$E188=\"5 letsel\",vakformulieren!$E188=\"5 onwel / ziek\",vakformulieren!$E188=\"5 milieuschade\"),vakformulieren!$A188,\"\")","v":""},"",{"$f":"IF(OR(vakformulieren!$E194=\"5 letsel\",vakformulieren!$E194=\"5 onwel / ziek\",vakformulieren!$E194=\"5 milieuschade\"),vakformulieren!$C188,\"\")","v":""},{"$f":"IF(OR(vakformulieren!$E194=\"5 letsel\",vakformulieren!$E194=\"5 onwel / ziek\",vakformulieren!$E194=\"5 milieuschade\"),vakformulieren!$E188,\"\")","v":""},{"$f":"IF(OR(vakformulieren!$E194=\"5 letsel\",vakformulieren!$E194=\"5 onwel / ziek\",vakformulieren!$E194=\"5 milieuschade\"),vakformulieren!$V194,\"\")","v":""},null,null,null,null,{"$f":"IF(AND(OR(vakformulieren!$E194=\"5 letsel\",vakformulieren!$E194=\"5 onwel / ziek\",vakformulieren!$E194=\"5 milieuschade\"),vakformulieren!$E188>0),SUM(vakformulieren!$P188/8),\"\")","v":""}]
[{"$f":"IF(OR(vakformulieren!$E189=\"5 letsel\",vakformulieren!$E189=\"5 onwel / ziek\",vakformulieren!$E189=\"5 milieuschade\"),vakformulieren!$A189,\"\")","v":""},"",{"$f":"IF(OR(vakformulieren!$E195=\"5 letsel\",vakformulieren!$E195=\"5 onwel / ziek\",vakformulieren!$E195=\"5 milieuschade\"),vakformulieren!$C189,\"\")","v":""},{"$f":"IF(OR(vakformulieren!$E195=\"5 letsel\",vakformulieren!$E195=\"5 onwel / ziek\",vakformulieren!$E195=\"5 milieuschade\"),vakformulieren!$E189,\"\")","v":""},{"$f":"IF(OR(vakformulieren!$E195=\"5 letsel\",vakformulieren!$E195=\"5 onwel / ziek\",vakformulieren!$E195=\"5 milieuschade\"),vakformulieren!$V195,\"\")","v":""},null,null,null,null,{"$f":"IF(AND(OR(vakformulieren!$E195=\"5 letsel\",vakformulieren!$E195=\"5 onwel / ziek\",vakformulieren!$E195=\"5 milieuschade\"),vakformulieren!$E189>0),SUM(vakformulieren!$P189/8),\"\")","v":""}]
[{"$f":"IF(OR(vakformulieren!$E190=\"5 letsel\",vakformulieren!$E190=\"5 onwel / ziek\",vakformulieren!$E190=\"5 milieuschade\"),vakformulieren!$A190,\"\")","v":""},"",{"$f":"IF(OR(vakformulieren!$E196=\"5 letsel\",vakformulieren!$E196=\"5 onwel / ziek\",vakformulieren!$E196=\"5 milieuschade\"),vakformulieren!$C190,\"\")","v":""},{"$f":"IF(OR(vakformulieren!$E196=\"5 letsel\",vakformulieren!$E196=\"5 onwel / ziek\",vakformulieren!$E196=\"5 milieuschade\"),vakformulieren!$E190,\"\")","v":""},{"$f":"IF(OR(vakformulieren!$E196=\"5 letsel\",vakformulieren!$E196=\"5 onwel / ziek\",vakformulieren!$E196=\"5 milieuschade\"),vakformulieren!$V196,\"\")","v":""},null,null,null,null,{"$f":"IF(AND(OR(vakformulieren!$E196=\"5 letsel\",vakformulieren!$E196=\"5 onwel / ziek\",vakformulieren!$E196=\"5 milieuschade\"),vakformulieren!$E190>0),SUM(vakformulieren!$P190/8),\"\")","v":""}]
[{"$f":"IF(OR(vakformulieren!$E191=\"5 letsel\",vakformulieren!$E191=\"5 onwel / ziek\",vakformulieren!$E191=\"5 milieuschade\"),vakformulieren!$A191,\"\")","v":""},"",{"$f":"IF(OR(vakformulieren!$E197=\"5 letsel\",vakformulieren!$E197=\"5 onwel / ziek\",vakformulieren!$E197=\"5 milieuschade\"),vakformulieren!$C191,\"\")","v":""},{"$f":"IF(OR(vakformulieren!$E197=\"5 letsel\",vakformulieren!$E197=\"5 onwel / ziek\",vakformulieren!$E197=\"5 milieuschade\"),vakformulieren!$E191,\"\")","v":""},{"$f":"IF(OR(vakformulieren!$E197=\"5 letsel\",vakformulieren!$E197=\"5 onwel / ziek\",vakformulieren!$E197=\"5 milieuschade\"),vakformulieren!$V197,\"\")","v":""},null,null,null,null,{"$f":"IF(AND(OR(vakformulieren!$E197=\"5 letsel\",vakformulieren!$E197=\"5 onwel / ziek\",vakformulieren!$E197=\"5 milieuschade\"),vakformulieren!$E191>0),SUM(vakformulieren!$P191/8),\"\")","v":""}]
[{"$f":"IF(OR(vakformulieren!$E192=\"5 letsel\",vakformulieren!$E192=\"5 onwel / ziek\",vakformulieren!$E192=\"5 milieuschade\"),vakformulieren!$A192,\"\")","v":""},"",{"$f":"IF(OR(vakformulieren!$E198=\"5 letsel\",vakformulieren!$E198=\"5 onwel / ziek\",vakformulieren!$E198=\"5 milieuschade\"),vakformulieren!$C192,\"\")","v":""},{"$f":"IF(OR(vakformulieren!$E198=\"5 letsel\",vakformulieren!$E198=\"5 onwel / ziek\",vakformulieren!$E198=\"5 milieuschade\"),vakformulieren!$E192,\"\")","v":""},{"$f":"IF(OR(vakformulieren!$E198=\"5 letsel\",vakformulieren!$E198=\"5 onwel / ziek\",vakformulieren!$E198=\"5 milieuschade\"),vakformulieren!$V198,\"\")","v":""},null,null,null,null,{"$f":"IF(AND(OR(vakformulieren!$E198=\"5 letsel\",vakformulieren!$E198=\"5 onwel / ziek\",vakformulieren!$E198=\"5 milieuschade\"),vakformulieren!$E192>0),SUM(vakformulieren!$P192/8),\"\")","v":""}]
[{"$f":"IF(OR(vakformulieren!$E193=\"5 letsel\",vakformulieren!$E193=\"5 onwel / ziek\",vakformulieren!$E193=\"5 milieuschade\"),vakformulieren!$A193,\"\")","v":""},"",{"$f":"IF(OR(vakformulieren!$E199=\"5 letsel\",vakformulieren!$E199=\"5 onwel / ziek\",vakformulieren!$E199=\"5 milieuschade\"),vakformulieren!$C193,\"\")","v":""},{"$f":"IF(OR(vakformulieren!$E199=\"5 letsel\",vakformulieren!$E199=\"5 onwel / ziek\",vakformulieren!$E199=\"5 milieuschade\"),vakformulieren!$E193,\"\")","v":""},{"$f":"IF(OR(vakformulieren!$E199=\"5 letsel\",vakformulieren!$E199=\"5 onwel / ziek\",vakformulieren!$E199=\"5 milieuschade\"),vakformulieren!$V199,\"\")","v":""},null,null,null,null,{"$f":"IF(AND(OR(vakformulieren!$E199=\"5 letsel\",vakformulieren!$E199=\"5 onwel / ziek\",vakformulieren!$E199=\"5 milieuschade\"),vakformulieren!$E193>0),SUM(vakformulieren!$P193/8),\"\")","v":""}]
[{"$f":"IF(OR(vakformulieren!$E194=\"5 letsel\",vakformulieren!$E194=\"5 onwel / ziek\",vakformulieren!$E194=\"5 milieuschade\"),vakformulieren!$A194,\"\")","v":""},"",{"$f":"IF(OR(vakformulieren!$E200=\"5 letsel\",vakformulieren!$E200=\"5 onwel / ziek\",vakformulieren!$E200=\"5 milieuschade\"),vakformulieren!$C194,\"\")","v":""},{"$f":"IF(OR(vakformulieren!$E200=\"5 letsel\",vakformulieren!$E200=\"5 onwel / ziek\",vakformulieren!$E200=\"5 milieuschade\"),vakformulieren!$E194,\"\")","v":""},{"$f":"IF(OR(vakformulieren!$E200=\"5 letsel\",vakformulieren!$E200=\"5 onwel / ziek\",vakformulieren!$E200=\"5 milieuschade\"),vakformulieren!$V200,\"\")","v":""},null,null,null,null,{"$f":"IF(AND(OR(vakformulieren!$E200=\"5 letsel\",vakformulieren!$E200=\"5 onwel / ziek\",vakformulieren!$E200=\"5 milieuschade\"),vakformulieren!$E194>0),SUM(vakformulieren!$P194/8),\"\")","v":""}]
[{"$f":"IF(OR(vakformulieren!$E195=\"5 letsel\",vakformulieren!$E195=\"5 onwel / ziek\",vakformulieren!$E195=\"5 milieuschade\"),vakformulieren!$A195,\"\")","v":""},{"$f":"IF($A196>\"\",HYPERLINK(CONCATENATE($AL$1,$A196,$AK$1),$A196),\"\")","v":""},{"$f":"IF(OR(vakformulieren!$E201=\"5 letsel\",vakformulieren!$E201=\"5 onwel / ziek\",vakformulieren!$E201=\"5 milieuschade\"),vakformulieren!$C195,\"\")","v":""},{"$f":"IF(OR(vakformulieren!$E201=\"5 letsel\",vakformulieren!$E201=\"5 onwel / ziek\",vakformulieren!$E201=\"5 milieuschade\"),vakformulieren!$E195,\"\")","v":""},{"$f":"IF(OR(vakformulieren!$E201=\"5 letsel\",vakformulieren!$E201=\"5 onwel / ziek\",vakformulieren!$E201=\"5 milieuschade\"),vakformulieren!$V201,\"\")","v":""},null,null,null,null,{"$f":"IF(AND(OR(vakformulieren!$E201=\"5 letsel\",vakformulieren!$E201=\"5 onwel / ziek\",vakformulieren!$E201=\"5 milieuschade\"),vakformulieren!$E195>0),SUM(vakformulieren!$P195/8),\"\")","v":""}]
[{"$f":"IF(OR(vakformulieren!$E196=\"5 letsel\",vakformulieren!$E196=\"5 onwel / ziek\",vakformulieren!$E196=\"5 milieuschade\"),vakformulieren!$A196,\"\")","v":""},"",{"$f":"IF(OR(vakformulieren!$E202=\"5 letsel\",vakformulieren!$E202=\"5 onwel / ziek\",vakformulieren!$E202=\"5 milieuschade\"),vakformulieren!$C196,\"\")","v":""},{"$f":"IF(OR(vakformulieren!$E202=\"5 letsel\",vakformulieren!$E202=\"5 onwel / ziek\",vakformulieren!$E202=\"5 milieuschade\"),vakformulieren!$E196,\"\")","v":""},{"$f":"IF(OR(vakformulieren!$E202=\"5 letsel\",vakformulieren!$E202=\"5 onwel / ziek\",vakformulieren!$E202=\"5 milieuschade\"),vakformulieren!$V202,\"\")","v":""},null,null,null,null,{"$f":"IF(AND(OR(vakformulieren!$E202=\"5 letsel\",vakformulieren!$E202=\"5 onwel / ziek\",vakformulieren!$E202=\"5 milieuschade\"),vakformulieren!$E196>0),SUM(vakformulieren!$P196/8),\"\")","v":""}]
[{"$f":"IF(OR(vakformulieren!$E197=\"5 letsel\",vakformulieren!$E197=\"5 onwel / ziek\",vakformulieren!$E197=\"5 milieuschade\"),vakformulieren!$A197,\"\")","v":""},"",{"$f":"IF(OR(vakformulieren!$E203=\"5 letsel\",vakformulieren!$E203=\"5 onwel / ziek\",vakformulieren!$E203=\"5 milieuschade\"),vakformulieren!$C197,\"\")","v":""},{"$f":"IF(OR(vakformulieren!$E203=\"5 letsel\",vakformulieren!$E203=\"5 onwel / ziek\",vakformulieren!$E203=\"5 milieuschade\"),vakformulieren!$E197,\"\")","v":""},{"$f":"IF(OR(vakformulieren!$E203=\"5 letsel\",vakformulieren!$E203=\"5 onwel / ziek\",vakformulieren!$E203=\"5 milieuschade\"),vakformulieren!$V203,\"\")","v":""},null,null,null,null,{"$f":"IF(AND(OR(vakformulieren!$E203=\"5 letsel\",vakformulieren!$E203=\"5 onwel / ziek\",vakformulieren!$E203=\"5 milieuschade\"),vakformulieren!$E197>0),SUM(vakformulieren!$P197/8),\"\")","v":""}]
[{"$f":"IF(OR(vakformulieren!$E198=\"5 letsel\",vakformulieren!$E198=\"5 onwel / ziek\",vakformulieren!$E198=\"5 milieuschade\"),vakformulieren!$A198,\"\")","v":""},"",{"$f":"IF(OR(vakformulieren!$E204=\"5 letsel\",vakformulieren!$E204=\"5 onwel / ziek\",vakformulieren!$E204=\"5 milieuschade\"),vakformulieren!$C198,\"\")","v":""},{"$f":"IF(OR(vakformulieren!$E204=\"5 letsel\",vakformulieren!$E204=\"5 onwel / ziek\",vakformulieren!$E204=\"5 milieuschade\"),vakformulieren!$E198,\"\")","v":""},{"$f":"IF(OR(vakformulieren!$E204=\"5 letsel\",vakformulieren!$E204=\"5 onwel / ziek\",vakformulieren!$E204=\"5 milieuschade\"),vakformulieren!$V204,\"\")","v":""},null,null,null,null,{"$f":"IF(AND(OR(vakformulieren!$E204=\"5 letsel\",vakformulieren!$E204=\"5 onwel / ziek\",vakformulieren!$E204=\"5 milieuschade\"),vakformulieren!$E198>0),SUM(vakformulieren!$P198/8),\"\")","v":""}]
[{"$f":"IF(OR(vakformulieren!$E199=\"5 letsel\",vakformulieren!$E199=\"5 onwel / ziek\",vakformulieren!$E199=\"5 milieuschade\"),vakformulieren!$A199,\"\")","v":""},"",{"$f":"IF(OR(vakformulieren!$E205=\"5 letsel\",vakformulieren!$E205=\"5 onwel / ziek\",vakformulieren!$E205=\"5 milieuschade\"),vakformulieren!$C199,\"\")","v":""},{"$f":"IF(OR(vakformulieren!$E205=\"5 letsel\",vakformulieren!$E205=\"5 onwel / ziek\",vakformulieren!$E205=\"5 milieuschade\"),vakformulieren!$E199,\"\")","v":""},{"$f":"IF(OR(vakformulieren!$E205=\"5 letsel\",vakformulieren!$E205=\"5 onwel / ziek\",vakformulieren!$E205=\"5 milieuschade\"),vakformulieren!$V205,\"\")","v":""},null,null,null,null,{"$f":"IF(AND(OR(vakformulieren!$E205=\"5 letsel\",vakformulieren!$E205=\"5 onwel / ziek\",vakformulieren!$E205=\"5 milieuschade\"),vakformulieren!$E199>0),SUM(vakformulieren!$P199/8),\"\")","v":""}]
[{"$f":"IF(OR(vakformulieren!$E200=\"5 letsel\",vakformulieren!$E200=\"5 onwel / ziek\",vakformulieren!$E200=\"5 milieuschade\"),vakformulieren!$A200,\"\")","v":""},"",{"$f":"IF(OR(vakformulieren!$E206=\"5 letsel\",vakformulieren!$E206=\"5 onwel / ziek\",vakformulieren!$E206=\"5 milieuschade\"),vakformulieren!$C200,\"\")","v":""},{"$f":"IF(OR(vakformulieren!$E206=\"5 letsel\",vakformulieren!$E206=\"5 onwel / ziek\",vakformulieren!$E206=\"5 milieuschade\"),vakformulieren!$E200,\"\")","v":""},{"$f":"IF(OR(vakformulieren!$E206=\"5 letsel\",vakformulieren!$E206=\"5 onwel / ziek\",vakformulieren!$E206=\"5 milieuschade\"),vakformulieren!$V206,\"\")","v":""},null,null,null,null,{"$f":"IF(AND(OR(vakformulieren!$E206=\"5 letsel\",vakformulieren!$E206=\"5 onwel / ziek\",vakformulieren!$E206=\"5 milieuschade\"),vakformulieren!$E200>0),SUM(vakformulieren!$P200/8),\"\")","v":""}]
[{"$f":"IF(OR(vakformulieren!$E201=\"5 letsel\",vakformulieren!$E201=\"5 onwel / ziek\",vakformulieren!$E201=\"5 milieuschade\"),vakformulieren!$A201,\"\")","v":""},"",{"$f":"IF(OR(vakformulieren!$E207=\"5 letsel\",vakformulieren!$E207=\"5 onwel / ziek\",vakformulieren!$E207=\"5 milieuschade\"),vakformulieren!$C201,\"\")","v":""},{"$f":"IF(OR(vakformulieren!$E207=\"5 letsel\",vakformulieren!$E207=\"5 onwel / ziek\",vakformulieren!$E207=\"5 milieuschade\"),vakformulieren!$E201,\"\")","v":""},{"$f":"IF(OR(vakformulieren!$E207=\"5 letsel\",vakformulieren!$E207=\"5 onwel / ziek\",vakformulieren!$E207=\"5 milieuschade\"),vakformulieren!$V207,\"\")","v":""},null,null,null,null,{"$f":"IF(AND(OR(vakformulieren!$E207=\"5 letsel\",vakformulieren!$E207=\"5 onwel / ziek\",vakformulieren!$E207=\"5 milieuschade\"),vakformulieren!$E201>0),SUM(vakformulieren!$P201/8),\"\")","v":""}]
[{"$f":"IF(OR(vakformulieren!$E202=\"5 letsel\",vakformulieren!$E202=\"5 onwel / ziek\",vakformulieren!$E202=\"5 milieuschade\"),vakformulieren!$A202,\"\")","v":""},"",{"$f":"IF(OR(vakformulieren!$E208=\"5 letsel\",vakformulieren!$E208=\"5 onwel / ziek\",vakformulieren!$E208=\"5 milieuschade\"),vakformulieren!$C202,\"\")","v":""},{"$f":"IF(OR(vakformulieren!$E208=\"5 letsel\",vakformulieren!$E208=\"5 onwel / ziek\",vakformulieren!$E208=\"5 milieuschade\"),vakformulieren!$E202,\"\")","v":""},{"$f":"IF(OR(vakformulieren!$E208=\"5 letsel\",vakformulieren!$E208=\"5 onwel / ziek\",vakformulieren!$E208=\"5 milieuschade\"),vakformulieren!$V208,\"\")","v":""},null,null,null,null,{"$f":"IF(AND(OR(vakformulieren!$E208=\"5 letsel\",vakformulieren!$E208=\"5 onwel / ziek\",vakformulieren!$E208=\"5 milieuschade\"),vakformulieren!$E202>0),SUM(vakformulieren!$P202/8),\"\")","v":""}]
[{"$f":"IF(OR(vakformulieren!$E203=\"5 letsel\",vakformulieren!$E203=\"5 onwel / ziek\",vakformulieren!$E203=\"5 milieuschade\"),vakformulieren!$A203,\"\")","v":""},"",{"$f":"IF(OR(vakformulieren!$E209=\"5 letsel\",vakformulieren!$E209=\"5 onwel / ziek\",vakformulieren!$E209=\"5 milieuschade\"),vakformulieren!$C203,\"\")","v":""},{"$f":"IF(OR(vakformulieren!$E209=\"5 letsel\",vakformulieren!$E209=\"5 onwel / ziek\",vakformulieren!$E209=\"5 milieuschade\"),vakformulieren!$E203,\"\")","v":""},{"$f":"IF(OR(vakformulieren!$E209=\"5 letsel\",vakformulieren!$E209=\"5 onwel / ziek\",vakformulieren!$E209=\"5 milieuschade\"),vakformulieren!$V209,\"\")","v":""},null,null,null,null,{"$f":"IF(AND(OR(vakformulieren!$E209=\"5 letsel\",vakformulieren!$E209=\"5 onwel / ziek\",vakformulieren!$E209=\"5 milieuschade\"),vakformulieren!$E203>0),SUM(vakformulieren!$P203/8),\"\")","v":""}]
[{"$f":"IF(OR(vakformulieren!$E204=\"5 letsel\",vakformulieren!$E204=\"5 onwel / ziek\",vakformulieren!$E204=\"5 milieuschade\"),vakformulieren!$A204,\"\")","v":""},"",{"$f":"IF(OR(vakformulieren!$E210=\"5 letsel\",vakformulieren!$E210=\"5 onwel / ziek\",vakformulieren!$E210=\"5 milieuschade\"),vakformulieren!$C204,\"\")","v":""},{"$f":"IF(OR(vakformulieren!$E210=\"5 letsel\",vakformulieren!$E210=\"5 onwel / ziek\",vakformulieren!$E210=\"5 milieuschade\"),vakformulieren!$E204,\"\")","v":""},{"$f":"IF(OR(vakformulieren!$E210=\"5 letsel\",vakformulieren!$E210=\"5 onwel / ziek\",vakformulieren!$E210=\"5 milieuschade\"),vakformulieren!$V210,\"\")","v":""},null,null,null,null,{"$f":"IF(AND(OR(vakformulieren!$E210=\"5 letsel\",vakformulieren!$E210=\"5 onwel / ziek\",vakformulieren!$E210=\"5 milieuschade\"),vakformulieren!$E204>0),SUM(vakformulieren!$P204/8),\"\")","v":""}]
[{"$f":"IF(OR(vakformulieren!$E205=\"5 letsel\",vakformulieren!$E205=\"5 onwel / ziek\",vakformulieren!$E205=\"5 milieuschade\"),vakformulieren!$A205,\"\")","v":""},"",{"$f":"IF(OR(vakformulieren!$E211=\"5 letsel\",vakformulieren!$E211=\"5 onwel / ziek\",vakformulieren!$E211=\"5 milieuschade\"),vakformulieren!$C205,\"\")","v":""},{"$f":"IF(OR(vakformulieren!$E211=\"5 letsel\",vakformulieren!$E211=\"5 onwel / ziek\",vakformulieren!$E211=\"5 milieuschade\"),vakformulieren!$E205,\"\")","v":""},{"$f":"IF(OR(vakformulieren!$E211=\"5 letsel\",vakformulieren!$E211=\"5 onwel / ziek\",vakformulieren!$E211=\"5 milieuschade\"),vakformulieren!$V211,\"\")","v":""},null,null,null,null,{"$f":"IF(AND(OR(vakformulieren!$E211=\"5 letsel\",vakformulieren!$E211=\"5 onwel / ziek\",vakformulieren!$E211=\"5 milieuschade\"),vakformulieren!$E205>0),SUM(vakformulieren!$P205/8),\"\")","v":""}]
[{"$f":"IF(OR(vakformulieren!$E206=\"5 letsel\",vakformulieren!$E206=\"5 onwel / ziek\",vakformulieren!$E206=\"5 milieuschade\"),vakformulieren!$A206,\"\")","v":""},"",{"$f":"IF(OR(vakformulieren!$E212=\"5 letsel\",vakformulieren!$E212=\"5 onwel / ziek\",vakformulieren!$E212=\"5 milieuschade\"),vakformulieren!$C206,\"\")","v":""},{"$f":"IF(OR(vakformulieren!$E212=\"5 letsel\",vakformulieren!$E212=\"5 onwel / ziek\",vakformulieren!$E212=\"5 milieuschade\"),vakformulieren!$E206,\"\")","v":""},{"$f":"IF(OR(vakformulieren!$E212=\"5 letsel\",vakformulieren!$E212=\"5 onwel / ziek\",vakformulieren!$E212=\"5 milieuschade\"),vakformulieren!$V212,\"\")","v":""},null,null,null,null,{"$f":"IF(AND(OR(vakformulieren!$E212=\"5 letsel\",vakformulieren!$E212=\"5 onwel / ziek\",vakformulieren!$E212=\"5 milieuschade\"),vakformulieren!$E206>0),SUM(vakformulieren!$P206/8),\"\")","v":""}]
[{"$f":"IF(OR(vakformulieren!$E207=\"5 letsel\",vakformulieren!$E207=\"5 onwel / ziek\",vakformulieren!$E207=\"5 milieuschade\"),vakformulieren!$A207,\"\")","v":""},"",{"$f":"IF(OR(vakformulieren!$E213=\"5 letsel\",vakformulieren!$E213=\"5 onwel / ziek\",vakformulieren!$E213=\"5 milieuschade\"),vakformulieren!$C207,\"\")","v":""},{"$f":"IF(OR(vakformulieren!$E213=\"5 letsel\",vakformulieren!$E213=\"5 onwel / ziek\",vakformulieren!$E213=\"5 milieuschade\"),vakformulieren!$E207,\"\")","v":""},{"$f":"IF(OR(vakformulieren!$E213=\"5 letsel\",vakformulieren!$E213=\"5 onwel / ziek\",vakformulieren!$E213=\"5 milieuschade\"),vakformulieren!$V213,\"\")","v":""},null,null,null,null,{"$f":"IF(AND(OR(vakformulieren!$E213=\"5 letsel\",vakformulieren!$E213=\"5 onwel / ziek\",vakformulieren!$E213=\"5 milieuschade\"),vakformulieren!$E207>0),SUM(vakformulieren!$P207/8),\"\")","v":""}]
[{"$f":"IF(OR(vakformulieren!$E208=\"5 letsel\",vakformulieren!$E208=\"5 onwel / ziek\",vakformulieren!$E208=\"5 milieuschade\"),vakformulieren!$A208,\"\")","v":""},"",{"$f":"IF(OR(vakformulieren!$E214=\"5 letsel\",vakformulieren!$E214=\"5 onwel / ziek\",vakformulieren!$E214=\"5 milieuschade\"),vakformulieren!$C208,\"\")","v":""},{"$f":"IF(OR(vakformulieren!$E214=\"5 letsel\",vakformulieren!$E214=\"5 onwel / ziek\",vakformulieren!$E214=\"5 milieuschade\"),vakformulieren!$E208,\"\")","v":""},{"$f":"IF(OR(vakformulieren!$E214=\"5 letsel\",vakformulieren!$E214=\"5 onwel / ziek\",vakformulieren!$E214=\"5 milieuschade\"),vakformulieren!$V214,\"\")","v":""},null,null,null,null,{"$f":"IF(AND(OR(vakformulieren!$E214=\"5 letsel\",vakformulieren!$E214=\"5 onwel / ziek\",vakformulieren!$E214=\"5 milieuschade\"),vakformulieren!$E208>0),SUM(vakformulieren!$P208/8),\"\")","v":""}]
[{"$f":"IF(OR(vakformulieren!$E209=\"5 letsel\",vakformulieren!$E209=\"5 onwel / ziek\",vakformulieren!$E209=\"5 milieuschade\"),vakformulieren!$A209,\"\")","v":""},"",{"$f":"IF(OR(vakformulieren!$E215=\"5 letsel\",vakformulieren!$E215=\"5 onwel / ziek\",vakformulieren!$E215=\"5 milieuschade\"),vakformulieren!$C209,\"\")","v":""},{"$f":"IF(OR(vakformulieren!$E215=\"5 letsel\",vakformulieren!$E215=\"5 onwel / ziek\",vakformulieren!$E215=\"5 milieuschade\"),vakformulieren!$E209,\"\")","v":""},{"$f":"IF(OR(vakformulieren!$E215=\"5 letsel\",vakformulieren!$E215=\"5 onwel / ziek\",vakformulieren!$E215=\"5 milieuschade\"),vakformulieren!$V215,\"\")","v":""},null,null,null,null,{"$f":"IF(AND(OR(vakformulieren!$E215=\"5 letsel\",vakformulieren!$E215=\"5 onwel / ziek\",vakformulieren!$E215=\"5 milieuschade\"),vakformulieren!$E209>0),SUM(vakformulieren!$P209/8),\"\")","v":""}]
[{"$f":"IF(OR(vakformulieren!$E210=\"5 letsel\",vakformulieren!$E210=\"5 onwel / ziek\",vakformulieren!$E210=\"5 milieuschade\"),vakformulieren!$A210,\"\")","v":""},"",{"$f":"IF(OR(vakformulieren!$E216=\"5 letsel\",vakformulieren!$E216=\"5 onwel / ziek\",vakformulieren!$E216=\"5 milieuschade\"),vakformulieren!$C210,\"\")","v":""},{"$f":"IF(OR(vakformulieren!$E216=\"5 letsel\",vakformulieren!$E216=\"5 onwel / ziek\",vakformulieren!$E216=\"5 milieuschade\"),vakformulieren!$E210,\"\")","v":""},{"$f":"IF(OR(vakformulieren!$E216=\"5 letsel\",vakformulieren!$E216=\"5 onwel / ziek\",vakformulieren!$E216=\"5 milieuschade\"),vakformulieren!$V216,\"\")","v":""},null,null,null,null,{"$f":"IF(AND(OR(vakformulieren!$E216=\"5 letsel\",vakformulieren!$E216=\"5 onwel / ziek\",vakformulieren!$E216=\"5 milieuschade\"),vakformulieren!$E210>0),SUM(vakformulieren!$P210/8),\"\")","v":""}]
[{"$f":"IF(OR(vakformulieren!$E211=\"5 letsel\",vakformulieren!$E211=\"5 onwel / ziek\",vakformulieren!$E211=\"5 milieuschade\"),vakformulieren!$A211,\"\")","v":""},"",{"$f":"IF(OR(vakformulieren!$E217=\"5 letsel\",vakformulieren!$E217=\"5 onwel / ziek\",vakformulieren!$E217=\"5 milieuschade\"),vakformulieren!$C211,\"\")","v":""},{"$f":"IF(OR(vakformulieren!$E217=\"5 letsel\",vakformulieren!$E217=\"5 onwel / ziek\",vakformulieren!$E217=\"5 milieuschade\"),vakformulieren!$E211,\"\")","v":""},{"$f":"IF(OR(vakformulieren!$E217=\"5 letsel\",vakformulieren!$E217=\"5 onwel / ziek\",vakformulieren!$E217=\"5 milieuschade\"),vakformulieren!$V217,\"\")","v":""},null,null,null,null,{"$f":"IF(AND(OR(vakformulieren!$E217=\"5 letsel\",vakformulieren!$E217=\"5 onwel / ziek\",vakformulieren!$E217=\"5 milieuschade\"),vakformulieren!$E211>0),SUM(vakformulieren!$P211/8),\"\")","v":""}]
[{"$f":"IF(OR(vakformulieren!$E212=\"5 letsel\",vakformulieren!$E212=\"5 onwel / ziek\",vakformulieren!$E212=\"5 milieuschade\"),vakformulieren!$A212,\"\")","v":""},"",{"$f":"IF(OR(vakformulieren!$E218=\"5 letsel\",vakformulieren!$E218=\"5 onwel / ziek\",vakformulieren!$E218=\"5 milieuschade\"),vakformulieren!$C212,\"\")","v":""},{"$f":"IF(OR(vakformulieren!$E218=\"5 letsel\",vakformulieren!$E218=\"5 onwel / ziek\",vakformulieren!$E218=\"5 milieuschade\"),vakformulieren!$E212,\"\")","v":""},{"$f":"IF(OR(vakformulieren!$E218=\"5 letsel\",vakformulieren!$E218=\"5 onwel / ziek\",vakformulieren!$E218=\"5 milieuschade\"),vakformulieren!$V218,\"\")","v":""},null,null,null,null,{"$f":"IF(AND(OR(vakformulieren!$E218=\"5 letsel\",vakformulieren!$E218=\"5 onwel / ziek\",vakformulieren!$E218=\"5 milieuschade\"),vakformulieren!$E212>0),SUM(vakformulieren!$P212/8),\"\")","v":""}]
[{"$f":"IF(OR(vakformulieren!$E213=\"5 letsel\",vakformulieren!$E213=\"5 onwel / ziek\",vakformulieren!$E213=\"5 milieuschade\"),vakformulieren!$A213,\"\")","v":""},"",{"$f":"IF(OR(vakformulieren!$E219=\"5 letsel\",vakformulieren!$E219=\"5 onwel / ziek\",vakformulieren!$E219=\"5 milieuschade\"),vakformulieren!$C213,\"\")","v":""},{"$f":"IF(OR(vakformulieren!$E219=\"5 letsel\",vakformulieren!$E219=\"5 onwel / ziek\",vakformulieren!$E219=\"5 milieuschade\"),vakformulieren!$E213,\"\")","v":""},{"$f":"IF(OR(vakformulieren!$E219=\"5 letsel\",vakformulieren!$E219=\"5 onwel / ziek\",vakformulieren!$E219=\"5 milieuschade\"),vakformulieren!$V219,\"\")","v":""},null,null,null,null,{"$f":"IF(AND(OR(vakformulieren!$E219=\"5 letsel\",vakformulieren!$E219=\"5 onwel / ziek\",vakformulieren!$E219=\"5 milieuschade\"),vakformulieren!$E213>0),SUM(vakformulieren!$P213/8),\"\")","v":""}]
[{"$f":"IF(OR(vakformulieren!$E214=\"5 letsel\",vakformulieren!$E214=\"5 onwel / ziek\",vakformulieren!$E214=\"5 milieuschade\"),vakformulieren!$A214,\"\")","v":""},"",{"$f":"IF(OR(vakformulieren!$E220=\"5 letsel\",vakformulieren!$E220=\"5 onwel / ziek\",vakformulieren!$E220=\"5 milieuschade\"),vakformulieren!$C214,\"\")","v":""},{"$f":"IF(OR(vakformulieren!$E220=\"5 letsel\",vakformulieren!$E220=\"5 onwel / ziek\",vakformulieren!$E220=\"5 milieuschade\"),vakformulieren!$E214,\"\")","v":""},{"$f":"IF(OR(vakformulieren!$E220=\"5 letsel\",vakformulieren!$E220=\"5 onwel / ziek\",vakformulieren!$E220=\"5 milieuschade\"),vakformulieren!$V220,\"\")","v":""},null,null,null,null,{"$f":"IF(AND(OR(vakformulieren!$E220=\"5 letsel\",vakformulieren!$E220=\"5 onwel / ziek\",vakformulieren!$E220=\"5 milieuschade\"),vakformulieren!$E214>0),SUM(vakformulieren!$P214/8),\"\")","v":""}]
[{"$f":"IF(OR(vakformulieren!$E215=\"5 letsel\",vakformulieren!$E215=\"5 onwel / ziek\",vakformulieren!$E215=\"5 milieuschade\"),vakformulieren!$A215,\"\")","v":""},"",{"$f":"IF(OR(vakformulieren!$E221=\"5 letsel\",vakformulieren!$E221=\"5 onwel / ziek\",vakformulieren!$E221=\"5 milieuschade\"),vakformulieren!$C215,\"\")","v":""},{"$f":"IF(OR(vakformulieren!$E221=\"5 letsel\",vakformulieren!$E221=\"5 onwel / ziek\",vakformulieren!$E221=\"5 milieuschade\"),vakformulieren!$E215,\"\")","v":""},{"$f":"IF(OR(vakformulieren!$E221=\"5 letsel\",vakformulieren!$E221=\"5 onwel / ziek\",vakformulieren!$E221=\"5 milieuschade\"),vakformulieren!$V221,\"\")","v":""},null,null,null,null,{"$f":"IF(AND(OR(vakformulieren!$E221=\"5 letsel\",vakformulieren!$E221=\"5 onwel / ziek\",vakformulieren!$E221=\"5 milieuschade\"),vakformulieren!$E215>0),SUM(vakformulieren!$P215/8),\"\")","v":""}]
[{"$f":"IF(OR(vakformulieren!$E216=\"5 letsel\",vakformulieren!$E216=\"5 onwel / ziek\",vakformulieren!$E216=\"5 milieuschade\"),vakformulieren!$A216,\"\")","v":""},"",{"$f":"IF(OR(vakformulieren!$E222=\"5 letsel\",vakformulieren!$E222=\"5 onwel / ziek\",vakformulieren!$E222=\"5 milieuschade\"),vakformulieren!$C216,\"\")","v":""},{"$f":"IF(OR(vakformulieren!$E222=\"5 letsel\",vakformulieren!$E222=\"5 onwel / ziek\",vakformulieren!$E222=\"5 milieuschade\"),vakformulieren!$E216,\"\")","v":""},{"$f":"IF(OR(vakformulieren!$E222=\"5 letsel\",vakformulieren!$E222=\"5 onwel / ziek\",vakformulieren!$E222=\"5 milieuschade\"),vakformulieren!$V222,\"\")","v":""},null,null,null,null,{"$f":"IF(AND(OR(vakformulieren!$E222=\"5 letsel\",vakformulieren!$E222=\"5 onwel / ziek\",vakformulieren!$E222=\"5 milieuschade\"),vakformulieren!$E216>0),SUM(vakformulieren!$P216/8),\"\")","v":""}]
[{"$f":"IF(OR(vakformulieren!$E217=\"5 letsel\",vakformulieren!$E217=\"5 onwel / ziek\",vakformulieren!$E217=\"5 milieuschade\"),vakformulieren!$A217,\"\")","v":""},"",{"$f":"IF(OR(vakformulieren!$E223=\"5 letsel\",vakformulieren!$E223=\"5 onwel / ziek\",vakformulieren!$E223=\"5 milieuschade\"),vakformulieren!$C217,\"\")","v":""},{"$f":"IF(OR(vakformulieren!$E223=\"5 letsel\",vakformulieren!$E223=\"5 onwel / ziek\",vakformulieren!$E223=\"5 milieuschade\"),vakformulieren!$E217,\"\")","v":""},{"$f":"IF(OR(vakformulieren!$E223=\"5 letsel\",vakformulieren!$E223=\"5 onwel / ziek\",vakformulieren!$E223=\"5 milieuschade\"),vakformulieren!$V223,\"\")","v":""},null,null,null,null,{"$f":"IF(AND(OR(vakformulieren!$E223=\"5 letsel\",vakformulieren!$E223=\"5 onwel / ziek\",vakformulieren!$E223=\"5 milieuschade\"),vakformulieren!$E217>0),SUM(vakformulieren!$P217/8),\"\")","v":""}]
[{"$f":"IF(OR(vakformulieren!$E218=\"5 letsel\",vakformulieren!$E218=\"5 onwel / ziek\",vakformulieren!$E218=\"5 milieuschade\"),vakformulieren!$A218,\"\")","v":""},"",{"$f":"IF(OR(vakformulieren!$E224=\"5 letsel\",vakformulieren!$E224=\"5 onwel / ziek\",vakformulieren!$E224=\"5 milieuschade\"),vakformulieren!$C218,\"\")","v":""},{"$f":"IF(OR(vakformulieren!$E224=\"5 letsel\",vakformulieren!$E224=\"5 onwel / ziek\",vakformulieren!$E224=\"5 milieuschade\"),vakformulieren!$E218,\"\")","v":""},{"$f":"IF(OR(vakformulieren!$E224=\"5 letsel\",vakformulieren!$E224=\"5 onwel / ziek\",vakformulieren!$E224=\"5 milieuschade\"),vakformulieren!$V224,\"\")","v":""},null,null,null,null,{"$f":"IF(AND(OR(vakformulieren!$E224=\"5 letsel\",vakformulieren!$E224=\"5 onwel / ziek\",vakformulieren!$E224=\"5 milieuschade\"),vakformulieren!$E218>0),SUM(vakformulieren!$P218/8),\"\")","v":""}]
[{"$f":"IF(OR(vakformulieren!$E219=\"5 letsel\",vakformulieren!$E219=\"5 onwel / ziek\",vakformulieren!$E219=\"5 milieuschade\"),vakformulieren!$A219,\"\")","v":""},"",{"$f":"IF(OR(vakformulieren!$E225=\"5 letsel\",vakformulieren!$E225=\"5 onwel / ziek\",vakformulieren!$E225=\"5 milieuschade\"),vakformulieren!$C219,\"\")","v":""},{"$f":"IF(OR(vakformulieren!$E225=\"5 letsel\",vakformulieren!$E225=\"5 onwel / ziek\",vakformulieren!$E225=\"5 milieuschade\"),vakformulieren!$E219,\"\")","v":""},{"$f":"IF(OR(vakformulieren!$E225=\"5 letsel\",vakformulieren!$E225=\"5 onwel / ziek\",vakformulieren!$E225=\"5 milieuschade\"),vakformulieren!$V225,\"\")","v":""},null,null,null,null,{"$f":"IF(AND(OR(vakformulieren!$E225=\"5 letsel\",vakformulieren!$E225=\"5 onwel / ziek\",vakformulieren!$E225=\"5 milieuschade\"),vakformulieren!$E219>0),SUM(vakformulieren!$P219/8),\"\")","v":""}]
[{"$f":"IF(OR(vakformulieren!$E220=\"5 letsel\",vakformulieren!$E220=\"5 onwel / ziek\",vakformulieren!$E220=\"5 milieuschade\"),vakformulieren!$A220,\"\")","v":""},"",{"$f":"IF(OR(vakformulieren!$E226=\"5 letsel\",vakformulieren!$E226=\"5 onwel / ziek\",vakformulieren!$E226=\"5 milieuschade\"),vakformulieren!$C220,\"\")","v":""},{"$f":"IF(OR(vakformulieren!$E226=\"5 letsel\",vakformulieren!$E226=\"5 onwel / ziek\",vakformulieren!$E226=\"5 milieuschade\"),vakformulieren!$E220,\"\")","v":""},{"$f":"IF(OR(vakformulieren!$E226=\"5 letsel\",vakformulieren!$E226=\"5 onwel / ziek\",vakformulieren!$E226=\"5 milieuschade\"),vakformulieren!$V226,\"\")","v":""},null,null,null,null,{"$f":"IF(AND(OR(vakformulieren!$E226=\"5 letsel\",vakformulieren!$E226=\"5 onwel / ziek\",vakformulieren!$E226=\"5 milieuschade\"),vakformulieren!$E220>0),SUM(vakformulieren!$P220/8),\"\")","v":""}]
[{"$f":"IF(OR(vakformulieren!$E221=\"5 letsel\",vakformulieren!$E221=\"5 onwel / ziek\",vakformulieren!$E221=\"5 milieuschade\"),vakformulieren!$A221,\"\")","v":""},"",{"$f":"IF(OR(vakformulieren!$E227=\"5 letsel\",vakformulieren!$E227=\"5 onwel / ziek\",vakformulieren!$E227=\"5 milieuschade\"),vakformulieren!$C221,\"\")","v":""},{"$f":"IF(OR(vakformulieren!$E227=\"5 letsel\",vakformulieren!$E227=\"5 onwel / ziek\",vakformulieren!$E227=\"5 milieuschade\"),vakformulieren!$E221,\"\")","v":""},{"$f":"IF(OR(vakformulieren!$E227=\"5 letsel\",vakformulieren!$E227=\"5 onwel / ziek\",vakformulieren!$E227=\"5 milieuschade\"),vakformulieren!$V227,\"\")","v":""},null,null,null,null,{"$f":"IF(AND(OR(vakformulieren!$E227=\"5 letsel\",vakformulieren!$E227=\"5 onwel / ziek\",vakformulieren!$E227=\"5 milieuschade\"),vakformulieren!$E221>0),SUM(vakformulieren!$P221/8),\"\")","v":""}]
[{"$f":"IF(OR(vakformulieren!$E222=\"5 letsel\",vakformulieren!$E222=\"5 onwel / ziek\",vakformulieren!$E222=\"5 milieuschade\"),vakformulieren!$A222,\"\")","v":""},"",{"$f":"IF(OR(vakformulieren!$E228=\"5 letsel\",vakformulieren!$E228=\"5 onwel / ziek\",vakformulieren!$E228=\"5 milieuschade\"),vakformulieren!$C222,\"\")","v":""},{"$f":"IF(OR(vakformulieren!$E228=\"5 letsel\",vakformulieren!$E228=\"5 onwel / ziek\",vakformulieren!$E228=\"5 milieuschade\"),vakformulieren!$E222,\"\")","v":""},{"$f":"IF(OR(vakformulieren!$E228=\"5 letsel\",vakformulieren!$E228=\"5 onwel / ziek\",vakformulieren!$E228=\"5 milieuschade\"),vakformulieren!$V228,\"\")","v":""},null,null,null,null,{"$f":"IF(AND(OR(vakformulieren!$E228=\"5 letsel\",vakformulieren!$E228=\"5 onwel / ziek\",vakformulieren!$E228=\"5 milieuschade\"),vakformulieren!$E222>0),SUM(vakformulieren!$P222/8),\"\")","v":""}]
[{"$f":"IF(OR(vakformulieren!$E223=\"5 letsel\",vakformulieren!$E223=\"5 onwel / ziek\",vakformulieren!$E223=\"5 milieuschade\"),vakformulieren!$A223,\"\")","v":""},"",{"$f":"IF(OR(vakformulieren!$E229=\"5 letsel\",vakformulieren!$E229=\"5 onwel / ziek\",vakformulieren!$E229=\"5 milieuschade\"),vakformulieren!$C223,\"\")","v":""},{"$f":"IF(OR(vakformulieren!$E229=\"5 letsel\",vakformulieren!$E229=\"5 onwel / ziek\",vakformulieren!$E229=\"5 milieuschade\"),vakformulieren!$E223,\"\")","v":""},{"$f":"IF(OR(vakformulieren!$E229=\"5 letsel\",vakformulieren!$E229=\"5 onwel / ziek\",vakformulieren!$E229=\"5 milieuschade\"),vakformulieren!$V229,\"\")","v":""},null,null,null,null,{"$f":"IF(AND(OR(vakformulieren!$E229=\"5 letsel\",vakformulieren!$E229=\"5 onwel / ziek\",vakformulieren!$E229=\"5 milieuschade\"),vakformulieren!$E223>0),SUM(vakformulieren!$P223/8),\"\")","v":""}]
[{"$f":"IF(OR(vakformulieren!$E224=\"5 letsel\",vakformulieren!$E224=\"5 onwel / ziek\",vakformulieren!$E224=\"5 milieuschade\"),vakformulieren!$A224,\"\")","v":""},"",{"$f":"IF(OR(vakformulieren!$E230=\"5 letsel\",vakformulieren!$E230=\"5 onwel / ziek\",vakformulieren!$E230=\"5 milieuschade\"),vakformulieren!$C224,\"\")","v":""},{"$f":"IF(OR(vakformulieren!$E230=\"5 letsel\",vakformulieren!$E230=\"5 onwel / ziek\",vakformulieren!$E230=\"5 milieuschade\"),vakformulieren!$E224,\"\")","v":""},{"$f":"IF(OR(vakformulieren!$E230=\"5 letsel\",vakformulieren!$E230=\"5 onwel / ziek\",vakformulieren!$E230=\"5 milieuschade\"),vakformulieren!$V230,\"\")","v":""},null,null,null,null,{"$f":"IF(AND(OR(vakformulieren!$E230=\"5 letsel\",vakformulieren!$E230=\"5 onwel / ziek\",vakformulieren!$E230=\"5 milieuschade\"),vakformulieren!$E224>0),SUM(vakformulieren!$P224/8),\"\")","v":""}]
[{"$f":"IF(OR(vakformulieren!$E225=\"5 letsel\",vakformulieren!$E225=\"5 onwel / ziek\",vakformulieren!$E225=\"5 milieuschade\"),vakformulieren!$A225,\"\")","v":""},"",{"$f":"IF(OR(vakformulieren!$E231=\"5 letsel\",vakformulieren!$E231=\"5 onwel / ziek\",vakformulieren!$E231=\"5 milieuschade\"),vakformulieren!$C225,\"\")","v":""},{"$f":"IF(OR(vakformulieren!$E231=\"5 letsel\",vakformulieren!$E231=\"5 onwel / ziek\",vakformulieren!$E231=\"5 milieuschade\"),vakformulieren!$E225,\"\")","v":""},{"$f":"IF(OR(vakformulieren!$E231=\"5 letsel\",vakformulieren!$E231=\"5 onwel / ziek\",vakformulieren!$E231=\"5 milieuschade\"),vakformulieren!$V231,\"\")","v":""},null,null,null,null,{"$f":"IF(AND(OR(vakformulieren!$E231=\"5 letsel\",vakformulieren!$E231=\"5 onwel / ziek\",vakformulieren!$E231=\"5 milieuschade\"),vakformulieren!$E225>0),SUM(vakformulieren!$P225/8),\"\")","v":""}]
[{"$f":"IF(OR(vakformulieren!$E226=\"5 letsel\",vakformulieren!$E226=\"5 onwel / ziek\",vakformulieren!$E226=\"5 milieuschade\"),vakformulieren!$A226,\"\")","v":""},"",{"$f":"IF(OR(vakformulieren!$E232=\"5 letsel\",vakformulieren!$E232=\"5 onwel / ziek\",vakformulieren!$E232=\"5 milieuschade\"),vakformulieren!$C226,\"\")","v":""},{"$f":"IF(OR(vakformulieren!$E232=\"5 letsel\",vakformulieren!$E232=\"5 onwel / ziek\",vakformulieren!$E232=\"5 milieuschade\"),vakformulieren!$E226,\"\")","v":""},{"$f":"IF(OR(vakformulieren!$E232=\"5 letsel\",vakformulieren!$E232=\"5 onwel / ziek\",vakformulieren!$E232=\"5 milieuschade\"),vakformulieren!$V232,\"\")","v":""},null,null,null,null,{"$f":"IF(AND(OR(vakformulieren!$E232=\"5 letsel\",vakformulieren!$E232=\"5 onwel / ziek\",vakformulieren!$E232=\"5 milieuschade\"),vakformulieren!$E226>0),SUM(vakformulieren!$P226/8),\"\")","v":""}]
[{"$f":"IF(OR(vakformulieren!$E227=\"5 letsel\",vakformulieren!$E227=\"5 onwel / ziek\",vakformulieren!$E227=\"5 milieuschade\"),vakformulieren!$A227,\"\")","v":""},"",{"$f":"IF(OR(vakformulieren!$E233=\"5 letsel\",vakformulieren!$E233=\"5 onwel / ziek\",vakformulieren!$E233=\"5 milieuschade\"),vakformulieren!$C227,\"\")","v":""},{"$f":"IF(OR(vakformulieren!$E233=\"5 letsel\",vakformulieren!$E233=\"5 onwel / ziek\",vakformulieren!$E233=\"5 milieuschade\"),vakformulieren!$E227,\"\")","v":""},{"$f":"IF(OR(vakformulieren!$E233=\"5 letsel\",vakformulieren!$E233=\"5 onwel / ziek\",vakformulieren!$E233=\"5 milieuschade\"),vakformulieren!$V233,\"\")","v":""},null,null,null,null,{"$f":"IF(AND(OR(vakformulieren!$E233=\"5 letsel\",vakformulieren!$E233=\"5 onwel / ziek\",vakformulieren!$E233=\"5 milieuschade\"),vakformulieren!$E227>0),SUM(vakformulieren!$P227/8),\"\")","v":""}]
[{"$f":"IF(OR(vakformulieren!$E228=\"5 letsel\",vakformulieren!$E228=\"5 onwel / ziek\",vakformulieren!$E228=\"5 milieuschade\"),vakformulieren!$A228,\"\")","v":""},"",{"$f":"IF(OR(vakformulieren!$E234=\"5 letsel\",vakformulieren!$E234=\"5 onwel / ziek\",vakformulieren!$E234=\"5 milieuschade\"),vakformulieren!$C228,\"\")","v":""},{"$f":"IF(OR(vakformulieren!$E234=\"5 letsel\",vakformulieren!$E234=\"5 onwel / ziek\",vakformulieren!$E234=\"5 milieuschade\"),vakformulieren!$E228,\"\")","v":""},{"$f":"IF(OR(vakformulieren!$E234=\"5 letsel\",vakformulieren!$E234=\"5 onwel / ziek\",vakformulieren!$E234=\"5 milieuschade\"),vakformulieren!$V234,\"\")","v":""},null,null,null,null,{"$f":"IF(AND(OR(vakformulieren!$E234=\"5 letsel\",vakformulieren!$E234=\"5 onwel / ziek\",vakformulieren!$E234=\"5 milieuschade\"),vakformulieren!$E228>0),SUM(vakformulieren!$P228/8),\"\")","v":""}]
[{"$f":"IF(OR(vakformulieren!$E229=\"5 letsel\",vakformulieren!$E229=\"5 onwel / ziek\",vakformulieren!$E229=\"5 milieuschade\"),vakformulieren!$A229,\"\")","v":""},"",{"$f":"IF(OR(vakformulieren!$E235=\"5 letsel\",vakformulieren!$E235=\"5 onwel / ziek\",vakformulieren!$E235=\"5 milieuschade\"),vakformulieren!$C229,\"\")","v":""},{"$f":"IF(OR(vakformulieren!$E235=\"5 letsel\",vakformulieren!$E235=\"5 onwel / ziek\",vakformulieren!$E235=\"5 milieuschade\"),vakformulieren!$E229,\"\")","v":""},{"$f":"IF(OR(vakformulieren!$E235=\"5 letsel\",vakformulieren!$E235=\"5 onwel / ziek\",vakformulieren!$E235=\"5 milieuschade\"),vakformulieren!$V235,\"\")","v":""},null,null,null,null,{"$f":"IF(AND(OR(vakformulieren!$E235=\"5 letsel\",vakformulieren!$E235=\"5 onwel / ziek\",vakformulieren!$E235=\"5 milieuschade\"),vakformulieren!$E229>0),SUM(vakformulieren!$P229/8),\"\")","v":""}]
[{"$f":"IF(OR(vakformulieren!$E230=\"5 letsel\",vakformulieren!$E230=\"5 onwel / ziek\",vakformulieren!$E230=\"5 milieuschade\"),vakformulieren!$A230,\"\")","v":""},"",{"$f":"IF(OR(vakformulieren!$E236=\"5 letsel\",vakformulieren!$E236=\"5 onwel / ziek\",vakformulieren!$E236=\"5 milieuschade\"),vakformulieren!$C230,\"\")","v":""},{"$f":"IF(OR(vakformulieren!$E236=\"5 letsel\",vakformulieren!$E236=\"5 onwel / ziek\",vakformulieren!$E236=\"5 milieuschade\"),vakformulieren!$E230,\"\")","v":""},{"$f":"IF(OR(vakformulieren!$E236=\"5 letsel\",vakformulieren!$E236=\"5 onwel / ziek\",vakformulieren!$E236=\"5 milieuschade\"),vakformulieren!$V236,\"\")","v":""},null,null,null,null,{"$f":"IF(AND(OR(vakformulieren!$E236=\"5 letsel\",vakformulieren!$E236=\"5 onwel / ziek\",vakformulieren!$E236=\"5 milieuschade\"),vakformulieren!$E230>0),SUM(vakformulieren!$P230/8),\"\")","v":""}]
[{"$f":"IF(OR(vakformulieren!$E231=\"5 letsel\",vakformulieren!$E231=\"5 onwel / ziek\",vakformulieren!$E231=\"5 milieuschade\"),vakformulieren!$A231,\"\")","v":""},"",{"$f":"IF(OR(vakformulieren!$E237=\"5 letsel\",vakformulieren!$E237=\"5 onwel / ziek\",vakformulieren!$E237=\"5 milieuschade\"),vakformulieren!$C231,\"\")","v":""},{"$f":"IF(OR(vakformulieren!$E237=\"5 letsel\",vakformulieren!$E237=\"5 onwel / ziek\",vakformulieren!$E237=\"5 milieuschade\"),vakformulieren!$E231,\"\")","v":""},{"$f":"IF(OR(vakformulieren!$E237=\"5 letsel\",vakformulieren!$E237=\"5 onwel / ziek\",vakformulieren!$E237=\"5 milieuschade\"),vakformulieren!$V237,\"\")","v":""},null,null,null,null,{"$f":"IF(AND(OR(vakformulieren!$E237=\"5 letsel\",vakformulieren!$E237=\"5 onwel / ziek\",vakformulieren!$E237=\"5 milieuschade\"),vakformulieren!$E231>0),SUM(vakformulieren!$P231/8),\"\")","v":""}]
[{"$f":"IF(OR(vakformulieren!$E232=\"5 letsel\",vakformulieren!$E232=\"5 onwel / ziek\",vakformulieren!$E232=\"5 milieuschade\"),vakformulieren!$A232,\"\")","v":""},"",{"$f":"IF(OR(vakformulieren!$E238=\"5 letsel\",vakformulieren!$E238=\"5 onwel / ziek\",vakformulieren!$E238=\"5 milieuschade\"),vakformulieren!$C232,\"\")","v":""},{"$f":"IF(OR(vakformulieren!$E238=\"5 letsel\",vakformulieren!$E238=\"5 onwel / ziek\",vakformulieren!$E238=\"5 milieuschade\"),vakformulieren!$E232,\"\")","v":""},{"$f":"IF(OR(vakformulieren!$E238=\"5 letsel\",vakformulieren!$E238=\"5 onwel / ziek\",vakformulieren!$E238=\"5 milieuschade\"),vakformulieren!$V238,\"\")","v":""},null,null,null,null,{"$f":"IF(AND(OR(vakformulieren!$E238=\"5 letsel\",vakformulieren!$E238=\"5 onwel / ziek\",vakformulieren!$E238=\"5 milieuschade\"),vakformulieren!$E232>0),SUM(vakformulieren!$P232/8),\"\")","v":""}]
[{"$f":"IF(OR(vakformulieren!$E233=\"5 letsel\",vakformulieren!$E233=\"5 onwel / ziek\",vakformulieren!$E233=\"5 milieuschade\"),vakformulieren!$A233,\"\")","v":""},"",{"$f":"IF(OR(vakformulieren!$E239=\"5 letsel\",vakformulieren!$E239=\"5 onwel / ziek\",vakformulieren!$E239=\"5 milieuschade\"),vakformulieren!$C233,\"\")","v":""},{"$f":"IF(OR(vakformulieren!$E239=\"5 letsel\",vakformulieren!$E239=\"5 onwel / ziek\",vakformulieren!$E239=\"5 milieuschade\"),vakformulieren!$E233,\"\")","v":""},{"$f":"IF(OR(vakformulieren!$E239=\"5 letsel\",vakformulieren!$E239=\"5 onwel / ziek\",vakformulieren!$E239=\"5 milieuschade\"),vakformulieren!$V239,\"\")","v":""},null,null,null,null,{"$f":"IF(AND(OR(vakformulieren!$E239=\"5 letsel\",vakformulieren!$E239=\"5 onwel / ziek\",vakformulieren!$E239=\"5 milieuschade\"),vakformulieren!$E233>0),SUM(vakformulieren!$P233/8),\"\")","v":""}]
[{"$f":"IF(OR(vakformulieren!$E234=\"5 letsel\",vakformulieren!$E234=\"5 onwel / ziek\",vakformulieren!$E234=\"5 milieuschade\"),vakformulieren!$A234,\"\")","v":""},"",{"$f":"IF(OR(vakformulieren!$E240=\"5 letsel\",vakformulieren!$E240=\"5 onwel / ziek\",vakformulieren!$E240=\"5 milieuschade\"),vakformulieren!$C234,\"\")","v":""},{"$f":"IF(OR(vakformulieren!$E240=\"5 letsel\",vakformulieren!$E240=\"5 onwel / ziek\",vakformulieren!$E240=\"5 milieuschade\"),vakformulieren!$E234,\"\")","v":""},{"$f":"IF(OR(vakformulieren!$E240=\"5 letsel\",vakformulieren!$E240=\"5 onwel / ziek\",vakformulieren!$E240=\"5 milieuschade\"),vakformulieren!$V240,\"\")","v":""},null,null,null,null,{"$f":"IF(AND(OR(vakformulieren!$E240=\"5 letsel\",vakformulieren!$E240=\"5 onwel / ziek\",vakformulieren!$E240=\"5 milieuschade\"),vakformulieren!$E234>0),SUM(vakformulieren!$P234/8),\"\")","v":""}]
[{"$f":"IF(OR(vakformulieren!$E235=\"5 letsel\",vakformulieren!$E235=\"5 onwel / ziek\",vakformulieren!$E235=\"5 milieuschade\"),vakformulieren!$A235,\"\")","v":""},"",{"$f":"IF(OR(vakformulieren!$E241=\"5 letsel\",vakformulieren!$E241=\"5 onwel / ziek\",vakformulieren!$E241=\"5 milieuschade\"),vakformulieren!$C235,\"\")","v":""},{"$f":"IF(OR(vakformulieren!$E241=\"5 letsel\",vakformulieren!$E241=\"5 onwel / ziek\",vakformulieren!$E241=\"5 milieuschade\"),vakformulieren!$E235,\"\")","v":""},{"$f":"IF(OR(vakformulieren!$E241=\"5 letsel\",vakformulieren!$E241=\"5 onwel / ziek\",vakformulieren!$E241=\"5 milieuschade\"),vakformulieren!$V241,\"\")","v":""},null,null,null,null,{"$f":"IF(AND(OR(vakformulieren!$E241=\"5 letsel\",vakformulieren!$E241=\"5 onwel / ziek\",vakformulieren!$E241=\"5 milieuschade\"),vakformulieren!$E235>0),SUM(vakformulieren!$P235/8),\"\")","v":""}]
[{"$f":"IF(OR(vakformulieren!$E236=\"5 letsel\",vakformulieren!$E236=\"5 onwel / ziek\",vakformulieren!$E236=\"5 milieuschade\"),vakformulieren!$A236,\"\")","v":""},"",{"$f":"IF(OR(vakformulieren!$E242=\"5 letsel\",vakformulieren!$E242=\"5 onwel / ziek\",vakformulieren!$E242=\"5 milieuschade\"),vakformulieren!$C236,\"\")","v":""},{"$f":"IF(OR(vakformulieren!$E242=\"5 letsel\",vakformulieren!$E242=\"5 onwel / ziek\",vakformulieren!$E242=\"5 milieuschade\"),vakformulieren!$E236,\"\")","v":""},{"$f":"IF(OR(vakformulieren!$E242=\"5 letsel\",vakformulieren!$E242=\"5 onwel / ziek\",vakformulieren!$E242=\"5 milieuschade\"),vakformulieren!$V242,\"\")","v":""},null,null,null,null,{"$f":"IF(AND(OR(vakformulieren!$E242=\"5 letsel\",vakformulieren!$E242=\"5 onwel / ziek\",vakformulieren!$E242=\"5 milieuschade\"),vakformulieren!$E236>0),SUM(vakformulieren!$P236/8),\"\")","v":""}]
[{"$f":"IF(OR(vakformulieren!$E237=\"5 letsel\",vakformulieren!$E237=\"5 onwel / ziek\",vakformulieren!$E237=\"5 milieuschade\"),vakformulieren!$A237,\"\")","v":""},"",{"$f":"IF(OR(vakformulieren!$E243=\"5 letsel\",vakformulieren!$E243=\"5 onwel / ziek\",vakformulieren!$E243=\"5 milieuschade\"),vakformulieren!$C237,\"\")","v":""},{"$f":"IF(OR(vakformulieren!$E243=\"5 letsel\",vakformulieren!$E243=\"5 onwel / ziek\",vakformulieren!$E243=\"5 milieuschade\"),vakformulieren!$E237,\"\")","v":""},{"$f":"IF(OR(vakformulieren!$E243=\"5 letsel\",vakformulieren!$E243=\"5 onwel / ziek\",vakformulieren!$E243=\"5 milieuschade\"),vakformulieren!$V243,\"\")","v":""},null,null,null,null,{"$f":"IF(AND(OR(vakformulieren!$E243=\"5 letsel\",vakformulieren!$E243=\"5 onwel / ziek\",vakformulieren!$E243=\"5 milieuschade\"),vakformulieren!$E237>0),SUM(vakformulieren!$P237/8),\"\")","v":""}]
[{"$f":"IF(OR(vakformulieren!$E238=\"5 letsel\",vakformulieren!$E238=\"5 onwel / ziek\",vakformulieren!$E238=\"5 milieuschade\"),vakformulieren!$A238,\"\")","v":""},"",{"$f":"IF(OR(vakformulieren!$E244=\"5 letsel\",vakformulieren!$E244=\"5 onwel / ziek\",vakformulieren!$E244=\"5 milieuschade\"),vakformulieren!$C238,\"\")","v":""},{"$f":"IF(OR(vakformulieren!$E244=\"5 letsel\",vakformulieren!$E244=\"5 onwel / ziek\",vakformulieren!$E244=\"5 milieuschade\"),vakformulieren!$E238,\"\")","v":""},{"$f":"IF(OR(vakformulieren!$E244=\"5 letsel\",vakformulieren!$E244=\"5 onwel / ziek\",vakformulieren!$E244=\"5 milieuschade\"),vakformulieren!$V244,\"\")","v":""},null,null,null,null,{"$f":"IF(AND(OR(vakformulieren!$E244=\"5 letsel\",vakformulieren!$E244=\"5 onwel / ziek\",vakformulieren!$E244=\"5 milieuschade\"),vakformulieren!$E238>0),SUM(vakformulieren!$P238/8),\"\")","v":""}]
[{"$f":"IF(OR(vakformulieren!$E239=\"5 letsel\",vakformulieren!$E239=\"5 onwel / ziek\",vakformulieren!$E239=\"5 milieuschade\"),vakformulieren!$A239,\"\")","v":""},"",{"$f":"IF(OR(vakformulieren!$E245=\"5 letsel\",vakformulieren!$E245=\"5 onwel / ziek\",vakformulieren!$E245=\"5 milieuschade\"),vakformulieren!$C239,\"\")","v":""},{"$f":"IF(OR(vakformulieren!$E245=\"5 letsel\",vakformulieren!$E245=\"5 onwel / ziek\",vakformulieren!$E245=\"5 milieuschade\"),vakformulieren!$E239,\"\")","v":""},{"$f":"IF(OR(vakformulieren!$E245=\"5 letsel\",vakformulieren!$E245=\"5 onwel / ziek\",vakformulieren!$E245=\"5 milieuschade\"),vakformulieren!$V245,\"\")","v":""},null,null,null,null,{"$f":"IF(AND(OR(vakformulieren!$E245=\"5 letsel\",vakformulieren!$E245=\"5 onwel / ziek\",vakformulieren!$E245=\"5 milieuschade\"),vakformulieren!$E239>0),SUM(vakformulieren!$P239/8),\"\")","v":""}]
[{"$f":"IF(OR(vakformulieren!$E240=\"5 letsel\",vakformulieren!$E240=\"5 onwel / ziek\",vakformulieren!$E240=\"5 milieuschade\"),vakformulieren!$A240,\"\")","v":""},"",{"$f":"IF(OR(vakformulieren!$E246=\"5 letsel\",vakformulieren!$E246=\"5 onwel / ziek\",vakformulieren!$E246=\"5 milieuschade\"),vakformulieren!$C240,\"\")","v":""},{"$f":"IF(OR(vakformulieren!$E246=\"5 letsel\",vakformulieren!$E246=\"5 onwel / ziek\",vakformulieren!$E246=\"5 milieuschade\"),vakformulieren!$E240,\"\")","v":""},{"$f":"IF(OR(vakformulieren!$E246=\"5 letsel\",vakformulieren!$E246=\"5 onwel / ziek\",vakformulieren!$E246=\"5 milieuschade\"),vakformulieren!$V246,\"\")","v":""},null,null,null,null,{"$f":"IF(AND(OR(vakformulieren!$E246=\"5 letsel\",vakformulieren!$E246=\"5 onwel / ziek\",vakformulieren!$E246=\"5 milieuschade\"),vakformulieren!$E240>0),SUM(vakformulieren!$P240/8),\"\")","v":""}]
[{"$f":"IF(OR(vakformulieren!$E241=\"5 letsel\",vakformulieren!$E241=\"5 onwel / ziek\",vakformulieren!$E241=\"5 milieuschade\"),vakformulieren!$A241,\"\")","v":""},"",{"$f":"IF(OR(vakformulieren!$E247=\"5 letsel\",vakformulieren!$E247=\"5 onwel / ziek\",vakformulieren!$E247=\"5 milieuschade\"),vakformulieren!$C241,\"\")","v":""},{"$f":"IF(OR(vakformulieren!$E247=\"5 letsel\",vakformulieren!$E247=\"5 onwel / ziek\",vakformulieren!$E247=\"5 milieuschade\"),vakformulieren!$E241,\"\")","v":""},{"$f":"IF(OR(vakformulieren!$E247=\"5 letsel\",vakformulieren!$E247=\"5 onwel / ziek\",vakformulieren!$E247=\"5 milieuschade\"),vakformulieren!$V247,\"\")","v":""},null,null,null,null,{"$f":"IF(AND(OR(vakformulieren!$E247=\"5 letsel\",vakformulieren!$E247=\"5 onwel / ziek\",vakformulieren!$E247=\"5 milieuschade\"),vakformulieren!$E241>0),SUM(vakformulieren!$P241/8),\"\")","v":""}]
[{"$f":"IF(OR(vakformulieren!$E242=\"5 letsel\",vakformulieren!$E242=\"5 onwel / ziek\",vakformulieren!$E242=\"5 milieuschade\"),vakformulieren!$A242,\"\")","v":""},"",{"$f":"IF(OR(vakformulieren!$E248=\"5 letsel\",vakformulieren!$E248=\"5 onwel / ziek\",vakformulieren!$E248=\"5 milieuschade\"),vakformulieren!$C242,\"\")","v":""},{"$f":"IF(OR(vakformulieren!$E248=\"5 letsel\",vakformulieren!$E248=\"5 onwel / ziek\",vakformulieren!$E248=\"5 milieuschade\"),vakformulieren!$E242,\"\")","v":""},{"$f":"IF(OR(vakformulieren!$E248=\"5 letsel\",vakformulieren!$E248=\"5 onwel / ziek\",vakformulieren!$E248=\"5 milieuschade\"),vakformulieren!$V248,\"\")","v":""},null,null,null,null,{"$f":"IF(AND(OR(vakformulieren!$E248=\"5 letsel\",vakformulieren!$E248=\"5 onwel / ziek\",vakformulieren!$E248=\"5 milieuschade\"),vakformulieren!$E242>0),SUM(vakformulieren!$P242/8),\"\")","v":""}]
[{"$f":"IF(OR(vakformulieren!$E243=\"5 letsel\",vakformulieren!$E243=\"5 onwel / ziek\",vakformulieren!$E243=\"5 milieuschade\"),vakformulieren!$A243,\"\")","v":""},"",{"$f":"IF(OR(vakformulieren!$E249=\"5 letsel\",vakformulieren!$E249=\"5 onwel / ziek\",vakformulieren!$E249=\"5 milieuschade\"),vakformulieren!$C243,\"\")","v":""},{"$f":"IF(OR(vakformulieren!$E249=\"5 letsel\",vakformulieren!$E249=\"5 onwel / ziek\",vakformulieren!$E249=\"5 milieuschade\"),vakformulieren!$E243,\"\")","v":""},{"$f":"IF(OR(vakformulieren!$E249=\"5 letsel\",vakformulieren!$E249=\"5 onwel / ziek\",vakformulieren!$E249=\"5 milieuschade\"),vakformulieren!$V249,\"\")","v":""},null,null,null,null,{"$f":"IF(AND(OR(vakformulieren!$E249=\"5 letsel\",vakformulieren!$E249=\"5 onwel / ziek\",vakformulieren!$E249=\"5 milieuschade\"),vakformulieren!$E243>0),SUM(vakformulieren!$P243/8),\"\")","v":""}]
[{"$f":"IF(OR(vakformulieren!$E244=\"5 letsel\",vakformulieren!$E244=\"5 onwel / ziek\",vakformulieren!$E244=\"5 milieuschade\"),vakformulieren!$A244,\"\")","v":""},"",{"$f":"IF(OR(vakformulieren!$E250=\"5 letsel\",vakformulieren!$E250=\"5 onwel / ziek\",vakformulieren!$E250=\"5 milieuschade\"),vakformulieren!$C244,\"\")","v":""},{"$f":"IF(OR(vakformulieren!$E250=\"5 letsel\",vakformulieren!$E250=\"5 onwel / ziek\",vakformulieren!$E250=\"5 milieuschade\"),vakformulieren!$E244,\"\")","v":""},{"$f":"IF(OR(vakformulieren!$E250=\"5 letsel\",vakformulieren!$E250=\"5 onwel / ziek\",vakformulieren!$E250=\"5 milieuschade\"),vakformulieren!$V250,\"\")","v":""},null,null,null,null,{"$f":"IF(AND(OR(vakformulieren!$E250=\"5 letsel\",vakformulieren!$E250=\"5 onwel / ziek\",vakformulieren!$E250=\"5 milieuschade\"),vakformulieren!$E244>0),SUM(vakformulieren!$P244/8),\"\")","v":""}]
[{"$f":"IF(OR(vakformulieren!$E245=\"5 letsel\",vakformulieren!$E245=\"5 onwel / ziek\",vakformulieren!$E245=\"5 milieuschade\"),vakformulieren!$A245,\"\")","v":""},"",{"$f":"IF(OR(vakformulieren!$E251=\"5 letsel\",vakformulieren!$E251=\"5 onwel / ziek\",vakformulieren!$E251=\"5 milieuschade\"),vakformulieren!$C245,\"\")","v":""},{"$f":"IF(OR(vakformulieren!$E251=\"5 letsel\",vakformulieren!$E251=\"5 onwel / ziek\",vakformulieren!$E251=\"5 milieuschade\"),vakformulieren!$E245,\"\")","v":""},{"$f":"IF(OR(vakformulieren!$E251=\"5 letsel\",vakformulieren!$E251=\"5 onwel / ziek\",vakformulieren!$E251=\"5 milieuschade\"),vakformulieren!$V251,\"\")","v":""},null,null,null,null,{"$f":"IF(AND(OR(vakformulieren!$E251=\"5 letsel\",vakformulieren!$E251=\"5 onwel / ziek\",vakformulieren!$E251=\"5 milieuschade\"),vakformulieren!$E245>0),SUM(vakformulieren!$P245/8),\"\")","v":""}]
[{"$f":"IF(OR(vakformulieren!$E246=\"5 letsel\",vakformulieren!$E246=\"5 onwel / ziek\",vakformulieren!$E246=\"5 milieuschade\"),vakformulieren!$A246,\"\")","v":""},"",{"$f":"IF(OR(vakformulieren!$E252=\"5 letsel\",vakformulieren!$E252=\"5 onwel / ziek\",vakformulieren!$E252=\"5 milieuschade\"),vakformulieren!$C246,\"\")","v":""},{"$f":"IF(OR(vakformulieren!$E252=\"5 letsel\",vakformulieren!$E252=\"5 onwel / ziek\",vakformulieren!$E252=\"5 milieuschade\"),vakformulieren!$E246,\"\")","v":""},{"$f":"IF(OR(vakformulieren!$E252=\"5 letsel\",vakformulieren!$E252=\"5 onwel / ziek\",vakformulieren!$E252=\"5 milieuschade\"),vakformulieren!$V252,\"\")","v":""},null,null,null,null,{"$f":"IF(AND(OR(vakformulieren!$E252=\"5 letsel\",vakformulieren!$E252=\"5 onwel / ziek\",vakformulieren!$E252=\"5 milieuschade\"),vakformulieren!$E246>0),SUM(vakformulieren!$P246/8),\"\")","v":""}]
[{"$f":"IF(OR(vakformulieren!$E247=\"5 letsel\",vakformulieren!$E247=\"5 onwel / ziek\",vakformulieren!$E247=\"5 milieuschade\"),vakformulieren!$A247,\"\")","v":""},"",{"$f":"IF(OR(vakformulieren!$E253=\"5 letsel\",vakformulieren!$E253=\"5 onwel / ziek\",vakformulieren!$E253=\"5 milieuschade\"),vakformulieren!$C247,\"\")","v":""},{"$f":"IF(OR(vakformulieren!$E253=\"5 letsel\",vakformulieren!$E253=\"5 onwel / ziek\",vakformulieren!$E253=\"5 milieuschade\"),vakformulieren!$E247,\"\")","v":""},{"$f":"IF(OR(vakformulieren!$E253=\"5 letsel\",vakformulieren!$E253=\"5 onwel / ziek\",vakformulieren!$E253=\"5 milieuschade\"),vakformulieren!$V253,\"\")","v":""},null,null,null,null,{"$f":"IF(AND(OR(vakformulieren!$E253=\"5 letsel\",vakformulieren!$E253=\"5 onwel / ziek\",vakformulieren!$E253=\"5 milieuschade\"),vakformulieren!$E247>0),SUM(vakformulieren!$P247/8),\"\")","v":""}]
[{"$f":"IF(OR(vakformulieren!$E248=\"5 letsel\",vakformulieren!$E248=\"5 onwel / ziek\",vakformulieren!$E248=\"5 milieuschade\"),vakformulieren!$A248,\"\")","v":""},"",{"$f":"IF(OR(vakformulieren!$E254=\"5 letsel\",vakformulieren!$E254=\"5 onwel / ziek\",vakformulieren!$E254=\"5 milieuschade\"),vakformulieren!$C248,\"\")","v":""},{"$f":"IF(OR(vakformulieren!$E254=\"5 letsel\",vakformulieren!$E254=\"5 onwel / ziek\",vakformulieren!$E254=\"5 milieuschade\"),vakformulieren!$E248,\"\")","v":""},{"$f":"IF(OR(vakformulieren!$E254=\"5 letsel\",vakformulieren!$E254=\"5 onwel / ziek\",vakformulieren!$E254=\"5 milieuschade\"),vakformulieren!$V254,\"\")","v":""},null,null,null,null,{"$f":"IF(AND(OR(vakformulieren!$E254=\"5 letsel\",vakformulieren!$E254=\"5 onwel / ziek\",vakformulieren!$E254=\"5 milieuschade\"),vakformulieren!$E248>0),SUM(vakformulieren!$P248/8),\"\")","v":""}]
[{"$f":"IF(OR(vakformulieren!$E249=\"5 letsel\",vakformulieren!$E249=\"5 onwel / ziek\",vakformulieren!$E249=\"5 milieuschade\"),vakformulieren!$A249,\"\")","v":""},"",{"$f":"IF(OR(vakformulieren!$E255=\"5 letsel\",vakformulieren!$E255=\"5 onwel / ziek\",vakformulieren!$E255=\"5 milieuschade\"),vakformulieren!$C249,\"\")","v":""},{"$f":"IF(OR(vakformulieren!$E255=\"5 letsel\",vakformulieren!$E255=\"5 onwel / ziek\",vakformulieren!$E255=\"5 milieuschade\"),vakformulieren!$E249,\"\")","v":""},{"$f":"IF(OR(vakformulieren!$E255=\"5 letsel\",vakformulieren!$E255=\"5 onwel / ziek\",vakformulieren!$E255=\"5 milieuschade\"),vakformulieren!$V255,\"\")","v":""},null,null,null,null,{"$f":"IF(AND(OR(vakformulieren!$E255=\"5 letsel\",vakformulieren!$E255=\"5 onwel / ziek\",vakformulieren!$E255=\"5 milieuschade\"),vakformulieren!$E249>0),SUM(vakformulieren!$P249/8),\"\")","v":""}]
[{"$f":"IF(OR(vakformulieren!$E250=\"5 letsel\",vakformulieren!$E250=\"5 onwel / ziek\",vakformulieren!$E250=\"5 milieuschade\"),vakformulieren!$A250,\"\")","v":""},"",{"$f":"IF(OR(vakformulieren!$E256=\"5 letsel\",vakformulieren!$E256=\"5 onwel / ziek\",vakformulieren!$E256=\"5 milieuschade\"),vakformulieren!$C250,\"\")","v":""},{"$f":"IF(OR(vakformulieren!$E256=\"5 letsel\",vakformulieren!$E256=\"5 onwel / ziek\",vakformulieren!$E256=\"5 milieuschade\"),vakformulieren!$E250,\"\")","v":""},{"$f":"IF(OR(vakformulieren!$E256=\"5 letsel\",vakformulieren!$E256=\"5 onwel / ziek\",vakformulieren!$E256=\"5 milieuschade\"),vakformulieren!$V256,\"\")","v":""},null,null,null,null,{"$f":"IF(AND(OR(vakformulieren!$E256=\"5 letsel\",vakformulieren!$E256=\"5 onwel / ziek\",vakformulieren!$E256=\"5 milieuschade\"),vakformulieren!$E250>0),SUM(vakformulieren!$P250/8),\"\")","v":""}]
[{"$f":"IF(OR(vakformulieren!$E251=\"5 letsel\",vakformulieren!$E251=\"5 onwel / ziek\",vakformulieren!$E251=\"5 milieuschade\"),vakformulieren!$A251,\"\")","v":""},"",{"$f":"IF(OR(vakformulieren!$E257=\"5 letsel\",vakformulieren!$E257=\"5 onwel / ziek\",vakformulieren!$E257=\"5 milieuschade\"),vakformulieren!$C251,\"\")","v":""},{"$f":"IF(OR(vakformulieren!$E257=\"5 letsel\",vakformulieren!$E257=\"5 onwel / ziek\",vakformulieren!$E257=\"5 milieuschade\"),vakformulieren!$E251,\"\")","v":""},{"$f":"IF(OR(vakformulieren!$E257=\"5 letsel\",vakformulieren!$E257=\"5 onwel / ziek\",vakformulieren!$E257=\"5 milieuschade\"),vakformulieren!$V257,\"\")","v":""},null,null,null,null,{"$f":"IF(AND(OR(vakformulieren!$E257=\"5 letsel\",vakformulieren!$E257=\"5 onwel / ziek\",vakformulieren!$E257=\"5 milieuschade\"),vakformulieren!$E251>0),SUM(vakformulieren!$P251/8),\"\")","v":""}]
[{"$f":"IF(OR(vakformulieren!$E252=\"5 letsel\",vakformulieren!$E252=\"5 onwel / ziek\",vakformulieren!$E252=\"5 milieuschade\"),vakformulieren!$A252,\"\")","v":""},"",{"$f":"IF(OR(vakformulieren!$E258=\"5 letsel\",vakformulieren!$E258=\"5 onwel / ziek\",vakformulieren!$E258=\"5 milieuschade\"),vakformulieren!$C252,\"\")","v":""},{"$f":"IF(OR(vakformulieren!$E258=\"5 letsel\",vakformulieren!$E258=\"5 onwel / ziek\",vakformulieren!$E258=\"5 milieuschade\"),vakformulieren!$E252,\"\")","v":""},{"$f":"IF(OR(vakformulieren!$E258=\"5 letsel\",vakformulieren!$E258=\"5 onwel / ziek\",vakformulieren!$E258=\"5 milieuschade\"),vakformulieren!$V258,\"\")","v":""},null,null,null,null,{"$f":"IF(AND(OR(vakformulieren!$E258=\"5 letsel\",vakformulieren!$E258=\"5 onwel / ziek\",vakformulieren!$E258=\"5 milieuschade\"),vakformulieren!$E252>0),SUM(vakformulieren!$P252/8),\"\")","v":""}]
[{"$f":"IF(OR(vakformulieren!$E253=\"5 letsel\",vakformulieren!$E253=\"5 onwel / ziek\",vakformulieren!$E253=\"5 milieuschade\"),vakformulieren!$A253,\"\")","v":""},"",{"$f":"IF(OR(vakformulieren!$E259=\"5 letsel\",vakformulieren!$E259=\"5 onwel / ziek\",vakformulieren!$E259=\"5 milieuschade\"),vakformulieren!$C253,\"\")","v":""},{"$f":"IF(OR(vakformulieren!$E259=\"5 letsel\",vakformulieren!$E259=\"5 onwel / ziek\",vakformulieren!$E259=\"5 milieuschade\"),vakformulieren!$E253,\"\")","v":""},{"$f":"IF(OR(vakformulieren!$E259=\"5 letsel\",vakformulieren!$E259=\"5 onwel / ziek\",vakformulieren!$E259=\"5 milieuschade\"),vakformulieren!$V259,\"\")","v":""},null,null,null,null,{"$f":"IF(AND(OR(vakformulieren!$E259=\"5 letsel\",vakformulieren!$E259=\"5 onwel / ziek\",vakformulieren!$E259=\"5 milieuschade\"),vakformulieren!$E253>0),SUM(vakformulieren!$P253/8),\"\")","v":""}]
[{"$f":"IF(OR(vakformulieren!$E254=\"5 letsel\",vakformulieren!$E254=\"5 onwel / ziek\",vakformulieren!$E254=\"5 milieuschade\"),vakformulieren!$A254,\"\")","v":""},"",{"$f":"IF(OR(vakformulieren!$E260=\"5 letsel\",vakformulieren!$E260=\"5 onwel / ziek\",vakformulieren!$E260=\"5 milieuschade\"),vakformulieren!$C254,\"\")","v":""},{"$f":"IF(OR(vakformulieren!$E260=\"5 letsel\",vakformulieren!$E260=\"5 onwel / ziek\",vakformulieren!$E260=\"5 milieuschade\"),vakformulieren!$E254,\"\")","v":""},{"$f":"IF(OR(vakformulieren!$E260=\"5 letsel\",vakformulieren!$E260=\"5 onwel / ziek\",vakformulieren!$E260=\"5 milieuschade\"),vakformulieren!$V260,\"\")","v":""},null,null,null,null,{"$f":"IF(AND(OR(vakformulieren!$E260=\"5 letsel\",vakformulieren!$E260=\"5 onwel / ziek\",vakformulieren!$E260=\"5 milieuschade\"),vakformulieren!$E254>0),SUM(vakformulieren!$P254/8),\"\")","v":""}]
[{"$f":"IF(OR(vakformulieren!$E255=\"5 letsel\",vakformulieren!$E255=\"5 onwel / ziek\",vakformulieren!$E255=\"5 milieuschade\"),vakformulieren!$A255,\"\")","v":""},"",{"$f":"IF(OR(vakformulieren!$E261=\"5 letsel\",vakformulieren!$E261=\"5 onwel / ziek\",vakformulieren!$E261=\"5 milieuschade\"),vakformulieren!$C255,\"\")","v":""},{"$f":"IF(OR(vakformulieren!$E261=\"5 letsel\",vakformulieren!$E261=\"5 onwel / ziek\",vakformulieren!$E261=\"5 milieuschade\"),vakformulieren!$E255,\"\")","v":""},{"$f":"IF(OR(vakformulieren!$E261=\"5 letsel\",vakformulieren!$E261=\"5 onwel / ziek\",vakformulieren!$E261=\"5 milieuschade\"),vakformulieren!$V261,\"\")","v":""},null,null,null,null,{"$f":"IF(AND(OR(vakformulieren!$E261=\"5 letsel\",vakformulieren!$E261=\"5 onwel / ziek\",vakformulieren!$E261=\"5 milieuschade\"),vakformulieren!$E255>0),SUM(vakformulieren!$P255/8),\"\")","v":""}]
[{"$f":"IF(OR(vakformulieren!$E256=\"5 letsel\",vakformulieren!$E256=\"5 onwel / ziek\",vakformulieren!$E256=\"5 milieuschade\"),vakformulieren!$A256,\"\")","v":""},"",{"$f":"IF(OR(vakformulieren!$E262=\"5 letsel\",vakformulieren!$E262=\"5 onwel / ziek\",vakformulieren!$E262=\"5 milieuschade\"),vakformulieren!$C256,\"\")","v":""},{"$f":"IF(OR(vakformulieren!$E262=\"5 letsel\",vakformulieren!$E262=\"5 onwel / ziek\",vakformulieren!$E262=\"5 milieuschade\"),vakformulieren!$E256,\"\")","v":""},{"$f":"IF(OR(vakformulieren!$E262=\"5 letsel\",vakformulieren!$E262=\"5 onwel / ziek\",vakformulieren!$E262=\"5 milieuschade\"),vakformulieren!$V262,\"\")","v":""},null,null,null,null,{"$f":"IF(AND(OR(vakformulieren!$E262=\"5 letsel\",vakformulieren!$E262=\"5 onwel / ziek\",vakformulieren!$E262=\"5 milieuschade\"),vakformulieren!$E256>0),SUM(vakformulieren!$P256/8),\"\")","v":""}]
[{"$f":"IF(OR(vakformulieren!$E257=\"5 letsel\",vakformulieren!$E257=\"5 onwel / ziek\",vakformulieren!$E257=\"5 milieuschade\"),vakformulieren!$A257,\"\")","v":""},"",{"$f":"IF(OR(vakformulieren!$E263=\"5 letsel\",vakformulieren!$E263=\"5 onwel / ziek\",vakformulieren!$E263=\"5 milieuschade\"),vakformulieren!$C257,\"\")","v":""},{"$f":"IF(OR(vakformulieren!$E263=\"5 letsel\",vakformulieren!$E263=\"5 onwel / ziek\",vakformulieren!$E263=\"5 milieuschade\"),vakformulieren!$E257,\"\")","v":""},{"$f":"IF(OR(vakformulieren!$E263=\"5 letsel\",vakformulieren!$E263=\"5 onwel / ziek\",vakformulieren!$E263=\"5 milieuschade\"),vakformulieren!$V263,\"\")","v":""},null,null,null,null,{"$f":"IF(AND(OR(vakformulieren!$E263=\"5 letsel\",vakformulieren!$E263=\"5 onwel / ziek\",vakformulieren!$E263=\"5 milieuschade\"),vakformulieren!$E257>0),SUM(vakformulieren!$P257/8),\"\")","v":""}]
[{"$f":"IF(OR(vakformulieren!$E258=\"5 letsel\",vakformulieren!$E258=\"5 onwel / ziek\",vakformulieren!$E258=\"5 milieuschade\"),vakformulieren!$A258,\"\")","v":""},"",{"$f":"IF(OR(vakformulieren!$E264=\"5 letsel\",vakformulieren!$E264=\"5 onwel / ziek\",vakformulieren!$E264=\"5 milieuschade\"),vakformulieren!$C258,\"\")","v":""},{"$f":"IF(OR(vakformulieren!$E264=\"5 letsel\",vakformulieren!$E264=\"5 onwel / ziek\",vakformulieren!$E264=\"5 milieuschade\"),vakformulieren!$E258,\"\")","v":""},{"$f":"IF(OR(vakformulieren!$E264=\"5 letsel\",vakformulieren!$E264=\"5 onwel / ziek\",vakformulieren!$E264=\"5 milieuschade\"),vakformulieren!$V264,\"\")","v":""},null,null,null,null,{"$f":"IF(AND(OR(vakformulieren!$E264=\"5 letsel\",vakformulieren!$E264=\"5 onwel / ziek\",vakformulieren!$E264=\"5 milieuschade\"),vakformulieren!$E258>0),SUM(vakformulieren!$P258/8),\"\")","v":""}]
[{"$f":"IF(OR(vakformulieren!$E259=\"5 letsel\",vakformulieren!$E259=\"5 onwel / ziek\",vakformulieren!$E259=\"5 milieuschade\"),vakformulieren!$A259,\"\")","v":""},{"$f":"IF($A260>\"\",HYPERLINK(CONCATENATE($AL$1,$A260,$AK$1),$A260),\"\")","v":""},{"$f":"IF(OR(vakformulieren!$E265=\"5 letsel\",vakformulieren!$E265=\"5 onwel / ziek\",vakformulieren!$E265=\"5 milieuschade\"),vakformulieren!$C259,\"\")","v":""},{"$f":"IF(OR(vakformulieren!$E265=\"5 letsel\",vakformulieren!$E265=\"5 onwel / ziek\",vakformulieren!$E265=\"5 milieuschade\"),vakformulieren!$E259,\"\")","v":""},{"$f":"IF(OR(vakformulieren!$E265=\"5 letsel\",vakformulieren!$E265=\"5 onwel / ziek\",vakformulieren!$E265=\"5 milieuschade\"),vakformulieren!$V265,\"\")","v":""},null,null,null,null,{"$f":"IF(AND(OR(vakformulieren!$E265=\"5 letsel\",vakformulieren!$E265=\"5 onwel / ziek\",vakformulieren!$E265=\"5 milieuschade\"),vakformulieren!$E259>0),SUM(vakformulieren!$P259/8),\"\")","v":""}]
[{"$f":"IF(OR(vakformulieren!$E260=\"5 letsel\",vakformulieren!$E260=\"5 onwel / ziek\",vakformulieren!$E260=\"5 milieuschade\"),vakformulieren!$A260,\"\")","v":""},"",{"$f":"IF(OR(vakformulieren!$E266=\"5 letsel\",vakformulieren!$E266=\"5 onwel / ziek\",vakformulieren!$E266=\"5 milieuschade\"),vakformulieren!$C260,\"\")","v":""},{"$f":"IF(OR(vakformulieren!$E266=\"5 letsel\",vakformulieren!$E266=\"5 onwel / ziek\",vakformulieren!$E266=\"5 milieuschade\"),vakformulieren!$E260,\"\")","v":""},{"$f":"IF(OR(vakformulieren!$E266=\"5 letsel\",vakformulieren!$E266=\"5 onwel / ziek\",vakformulieren!$E266=\"5 milieuschade\"),vakformulieren!$V266,\"\")","v":""},null,null,null,null,{"$f":"IF(AND(OR(vakformulieren!$E266=\"5 letsel\",vakformulieren!$E266=\"5 onwel / ziek\",vakformulieren!$E266=\"5 milieuschade\"),vakformulieren!$E260>0),SUM(vakformulieren!$P260/8),\"\")","v":""}]
[{"$f":"IF(OR(vakformulieren!$E261=\"5 letsel\",vakformulieren!$E261=\"5 onwel / ziek\",vakformulieren!$E261=\"5 milieuschade\"),vakformulieren!$A261,\"\")","v":""},"",{"$f":"IF(OR(vakformulieren!$E267=\"5 letsel\",vakformulieren!$E267=\"5 onwel / ziek\",vakformulieren!$E267=\"5 milieuschade\"),vakformulieren!$C261,\"\")","v":""},{"$f":"IF(OR(vakformulieren!$E267=\"5 letsel\",vakformulieren!$E267=\"5 onwel / ziek\",vakformulieren!$E267=\"5 milieuschade\"),vakformulieren!$E261,\"\")","v":""},{"$f":"IF(OR(vakformulieren!$E267=\"5 letsel\",vakformulieren!$E267=\"5 onwel / ziek\",vakformulieren!$E267=\"5 milieuschade\"),vakformulieren!$V267,\"\")","v":""},null,null,null,null,{"$f":"IF(AND(OR(vakformulieren!$E267=\"5 letsel\",vakformulieren!$E267=\"5 onwel / ziek\",vakformulieren!$E267=\"5 milieuschade\"),vakformulieren!$E261>0),SUM(vakformulieren!$P261/8),\"\")","v":""}]
[{"$f":"IF(OR(vakformulieren!$E262=\"5 letsel\",vakformulieren!$E262=\"5 onwel / ziek\",vakformulieren!$E262=\"5 milieuschade\"),vakformulieren!$A262,\"\")","v":""},"",{"$f":"IF(OR(vakformulieren!$E268=\"5 letsel\",vakformulieren!$E268=\"5 onwel / ziek\",vakformulieren!$E268=\"5 milieuschade\"),vakformulieren!$C262,\"\")","v":""},{"$f":"IF(OR(vakformulieren!$E268=\"5 letsel\",vakformulieren!$E268=\"5 onwel / ziek\",vakformulieren!$E268=\"5 milieuschade\"),vakformulieren!$E262,\"\")","v":""},{"$f":"IF(OR(vakformulieren!$E268=\"5 letsel\",vakformulieren!$E268=\"5 onwel / ziek\",vakformulieren!$E268=\"5 milieuschade\"),vakformulieren!$V268,\"\")","v":""},null,null,null,null,{"$f":"IF(AND(OR(vakformulieren!$E268=\"5 letsel\",vakformulieren!$E268=\"5 onwel / ziek\",vakformulieren!$E268=\"5 milieuschade\"),vakformulieren!$E262>0),SUM(vakformulieren!$P262/8),\"\")","v":""}]
[{"$f":"IF(OR(vakformulieren!$E263=\"5 letsel\",vakformulieren!$E263=\"5 onwel / ziek\",vakformulieren!$E263=\"5 milieuschade\"),vakformulieren!$A263,\"\")","v":""},"",{"$f":"IF(OR(vakformulieren!$E269=\"5 letsel\",vakformulieren!$E269=\"5 onwel / ziek\",vakformulieren!$E269=\"5 milieuschade\"),vakformulieren!$C263,\"\")","v":""},{"$f":"IF(OR(vakformulieren!$E269=\"5 letsel\",vakformulieren!$E269=\"5 onwel / ziek\",vakformulieren!$E269=\"5 milieuschade\"),vakformulieren!$E263,\"\")","v":""},{"$f":"IF(OR(vakformulieren!$E269=\"5 letsel\",vakformulieren!$E269=\"5 onwel / ziek\",vakformulieren!$E269=\"5 milieuschade\"),vakformulieren!$V269,\"\")","v":""},null,null,null,null,{"$f":"IF(AND(OR(vakformulieren!$E269=\"5 letsel\",vakformulieren!$E269=\"5 onwel / ziek\",vakformulieren!$E269=\"5 milieuschade\"),vakformulieren!$E263>0),SUM(vakformulieren!$P263/8),\"\")","v":""}]
[{"$f":"IF(OR(vakformulieren!$E264=\"5 letsel\",vakformulieren!$E264=\"5 onwel / ziek\",vakformulieren!$E264=\"5 milieuschade\"),vakformulieren!$A264,\"\")","v":""},"",{"$f":"IF(OR(vakformulieren!$E270=\"5 letsel\",vakformulieren!$E270=\"5 onwel / ziek\",vakformulieren!$E270=\"5 milieuschade\"),vakformulieren!$C264,\"\")","v":""},{"$f":"IF(OR(vakformulieren!$E270=\"5 letsel\",vakformulieren!$E270=\"5 onwel / ziek\",vakformulieren!$E270=\"5 milieuschade\"),vakformulieren!$E264,\"\")","v":""},{"$f":"IF(OR(vakformulieren!$E270=\"5 letsel\",vakformulieren!$E270=\"5 onwel / ziek\",vakformulieren!$E270=\"5 milieuschade\"),vakformulieren!$V270,\"\")","v":""},null,null,null,null,{"$f":"IF(AND(OR(vakformulieren!$E270=\"5 letsel\",vakformulieren!$E270=\"5 onwel / ziek\",vakformulieren!$E270=\"5 milieuschade\"),vakformulieren!$E264>0),SUM(vakformulieren!$P264/8),\"\")","v":""}]
[{"$f":"IF(OR(vakformulieren!$E265=\"5 letsel\",vakformulieren!$E265=\"5 onwel / ziek\",vakformulieren!$E265=\"5 milieuschade\"),vakformulieren!$A265,\"\")","v":""},"",{"$f":"IF(OR(vakformulieren!$E271=\"5 letsel\",vakformulieren!$E271=\"5 onwel / ziek\",vakformulieren!$E271=\"5 milieuschade\"),vakformulieren!$C265,\"\")","v":""},{"$f":"IF(OR(vakformulieren!$E271=\"5 letsel\",vakformulieren!$E271=\"5 onwel / ziek\",vakformulieren!$E271=\"5 milieuschade\"),vakformulieren!$E265,\"\")","v":""},{"$f":"IF(OR(vakformulieren!$E271=\"5 letsel\",vakformulieren!$E271=\"5 onwel / ziek\",vakformulieren!$E271=\"5 milieuschade\"),vakformulieren!$V271,\"\")","v":""},null,null,null,null,{"$f":"IF(AND(OR(vakformulieren!$E271=\"5 letsel\",vakformulieren!$E271=\"5 onwel / ziek\",vakformulieren!$E271=\"5 milieuschade\"),vakformulieren!$E265>0),SUM(vakformulieren!$P265/8),\"\")","v":""}]
[{"$f":"IF(OR(vakformulieren!$E266=\"5 letsel\",vakformulieren!$E266=\"5 onwel / ziek\",vakformulieren!$E266=\"5 milieuschade\"),vakformulieren!$A266,\"\")","v":""},"",{"$f":"IF(OR(vakformulieren!$E272=\"5 letsel\",vakformulieren!$E272=\"5 onwel / ziek\",vakformulieren!$E272=\"5 milieuschade\"),vakformulieren!$C266,\"\")","v":""},{"$f":"IF(OR(vakformulieren!$E272=\"5 letsel\",vakformulieren!$E272=\"5 onwel / ziek\",vakformulieren!$E272=\"5 milieuschade\"),vakformulieren!$E266,\"\")","v":""},{"$f":"IF(OR(vakformulieren!$E272=\"5 letsel\",vakformulieren!$E272=\"5 onwel / ziek\",vakformulieren!$E272=\"5 milieuschade\"),vakformulieren!$V272,\"\")","v":""},null,null,null,null,{"$f":"IF(AND(OR(vakformulieren!$E272=\"5 letsel\",vakformulieren!$E272=\"5 onwel / ziek\",vakformulieren!$E272=\"5 milieuschade\"),vakformulieren!$E266>0),SUM(vakformulieren!$P266/8),\"\")","v":""}]
[{"$f":"IF(OR(vakformulieren!$E267=\"5 letsel\",vakformulieren!$E267=\"5 onwel / ziek\",vakformulieren!$E267=\"5 milieuschade\"),vakformulieren!$A267,\"\")","v":""},"",{"$f":"IF(OR(vakformulieren!$E273=\"5 letsel\",vakformulieren!$E273=\"5 onwel / ziek\",vakformulieren!$E273=\"5 milieuschade\"),vakformulieren!$C267,\"\")","v":""},{"$f":"IF(OR(vakformulieren!$E273=\"5 letsel\",vakformulieren!$E273=\"5 onwel / ziek\",vakformulieren!$E273=\"5 milieuschade\"),vakformulieren!$E267,\"\")","v":""},{"$f":"IF(OR(vakformulieren!$E273=\"5 letsel\",vakformulieren!$E273=\"5 onwel / ziek\",vakformulieren!$E273=\"5 milieuschade\"),vakformulieren!$V273,\"\")","v":""},null,null,null,null,{"$f":"IF(AND(OR(vakformulieren!$E273=\"5 letsel\",vakformulieren!$E273=\"5 onwel / ziek\",vakformulieren!$E273=\"5 milieuschade\"),vakformulieren!$E267>0),SUM(vakformulieren!$P267/8),\"\")","v":""}]
[{"$f":"IF(OR(vakformulieren!$E268=\"5 letsel\",vakformulieren!$E268=\"5 onwel / ziek\",vakformulieren!$E268=\"5 milieuschade\"),vakformulieren!$A268,\"\")","v":""},"",{"$f":"IF(OR(vakformulieren!$E274=\"5 letsel\",vakformulieren!$E274=\"5 onwel / ziek\",vakformulieren!$E274=\"5 milieuschade\"),vakformulieren!$C268,\"\")","v":""},{"$f":"IF(OR(vakformulieren!$E274=\"5 letsel\",vakformulieren!$E274=\"5 onwel / ziek\",vakformulieren!$E274=\"5 milieuschade\"),vakformulieren!$E268,\"\")","v":""},{"$f":"IF(OR(vakformulieren!$E274=\"5 letsel\",vakformulieren!$E274=\"5 onwel / ziek\",vakformulieren!$E274=\"5 milieuschade\"),vakformulieren!$V274,\"\")","v":""},null,null,null,null,{"$f":"IF(AND(OR(vakformulieren!$E274=\"5 letsel\",vakformulieren!$E274=\"5 onwel / ziek\",vakformulieren!$E274=\"5 milieuschade\"),vakformulieren!$E268>0),SUM(vakformulieren!$P268/8),\"\")","v":""}]
[{"$f":"IF(OR(vakformulieren!$E269=\"5 letsel\",vakformulieren!$E269=\"5 onwel / ziek\",vakformulieren!$E269=\"5 milieuschade\"),vakformulieren!$A269,\"\")","v":""},"",{"$f":"IF(OR(vakformulieren!$E275=\"5 letsel\",vakformulieren!$E275=\"5 onwel / ziek\",vakformulieren!$E275=\"5 milieuschade\"),vakformulieren!$C269,\"\")","v":""},{"$f":"IF(OR(vakformulieren!$E275=\"5 letsel\",vakformulieren!$E275=\"5 onwel / ziek\",vakformulieren!$E275=\"5 milieuschade\"),vakformulieren!$E269,\"\")","v":""},{"$f":"IF(OR(vakformulieren!$E275=\"5 letsel\",vakformulieren!$E275=\"5 onwel / ziek\",vakformulieren!$E275=\"5 milieuschade\"),vakformulieren!$V275,\"\")","v":""},null,null,null,null,{"$f":"IF(AND(OR(vakformulieren!$E275=\"5 letsel\",vakformulieren!$E275=\"5 onwel / ziek\",vakformulieren!$E275=\"5 milieuschade\"),vakformulieren!$E269>0),SUM(vakformulieren!$P269/8),\"\")","v":""}]
[{"$f":"IF(OR(vakformulieren!$E270=\"5 letsel\",vakformulieren!$E270=\"5 onwel / ziek\",vakformulieren!$E270=\"5 milieuschade\"),vakformulieren!$A270,\"\")","v":""},"",{"$f":"IF(OR(vakformulieren!$E276=\"5 letsel\",vakformulieren!$E276=\"5 onwel / ziek\",vakformulieren!$E276=\"5 milieuschade\"),vakformulieren!$C270,\"\")","v":""},{"$f":"IF(OR(vakformulieren!$E276=\"5 letsel\",vakformulieren!$E276=\"5 onwel / ziek\",vakformulieren!$E276=\"5 milieuschade\"),vakformulieren!$E270,\"\")","v":""},{"$f":"IF(OR(vakformulieren!$E276=\"5 letsel\",vakformulieren!$E276=\"5 onwel / ziek\",vakformulieren!$E276=\"5 milieuschade\"),vakformulieren!$V276,\"\")","v":""},null,null,null,null,{"$f":"IF(AND(OR(vakformulieren!$E276=\"5 letsel\",vakformulieren!$E276=\"5 onwel / ziek\",vakformulieren!$E276=\"5 milieuschade\"),vakformulieren!$E270>0),SUM(vakformulieren!$P270/8),\"\")","v":""}]
[{"$f":"IF(OR(vakformulieren!$E271=\"5 letsel\",vakformulieren!$E271=\"5 onwel / ziek\",vakformulieren!$E271=\"5 milieuschade\"),vakformulieren!$A271,\"\")","v":""},"",{"$f":"IF(OR(vakformulieren!$E277=\"5 letsel\",vakformulieren!$E277=\"5 onwel / ziek\",vakformulieren!$E277=\"5 milieuschade\"),vakformulieren!$C271,\"\")","v":""},{"$f":"IF(OR(vakformulieren!$E277=\"5 letsel\",vakformulieren!$E277=\"5 onwel / ziek\",vakformulieren!$E277=\"5 milieuschade\"),vakformulieren!$E271,\"\")","v":""},{"$f":"IF(OR(vakformulieren!$E277=\"5 letsel\",vakformulieren!$E277=\"5 onwel / ziek\",vakformulieren!$E277=\"5 milieuschade\"),vakformulieren!$V277,\"\")","v":""},null,null,null,null,{"$f":"IF(AND(OR(vakformulieren!$E277=\"5 letsel\",vakformulieren!$E277=\"5 onwel / ziek\",vakformulieren!$E277=\"5 milieuschade\"),vakformulieren!$E271>0),SUM(vakformulieren!$P271/8),\"\")","v":""}]
[{"$f":"IF(OR(vakformulieren!$E272=\"5 letsel\",vakformulieren!$E272=\"5 onwel / ziek\",vakformulieren!$E272=\"5 milieuschade\"),vakformulieren!$A272,\"\")","v":""},"",{"$f":"IF(OR(vakformulieren!$E278=\"5 letsel\",vakformulieren!$E278=\"5 onwel / ziek\",vakformulieren!$E278=\"5 milieuschade\"),vakformulieren!$C272,\"\")","v":""},{"$f":"IF(OR(vakformulieren!$E278=\"5 letsel\",vakformulieren!$E278=\"5 onwel / ziek\",vakformulieren!$E278=\"5 milieuschade\"),vakformulieren!$E272,\"\")","v":""},{"$f":"IF(OR(vakformulieren!$E278=\"5 letsel\",vakformulieren!$E278=\"5 onwel / ziek\",vakformulieren!$E278=\"5 milieuschade\"),vakformulieren!$V278,\"\")","v":""},null,null,null,null,{"$f":"IF(AND(OR(vakformulieren!$E278=\"5 letsel\",vakformulieren!$E278=\"5 onwel / ziek\",vakformulieren!$E278=\"5 milieuschade\"),vakformulieren!$E272>0),SUM(vakformulieren!$P272/8),\"\")","v":""}]
[{"$f":"IF(OR(vakformulieren!$E273=\"5 letsel\",vakformulieren!$E273=\"5 onwel / ziek\",vakformulieren!$E273=\"5 milieuschade\"),vakformulieren!$A273,\"\")","v":""},"",{"$f":"IF(OR(vakformulieren!$E279=\"5 letsel\",vakformulieren!$E279=\"5 onwel / ziek\",vakformulieren!$E279=\"5 milieuschade\"),vakformulieren!$C273,\"\")","v":""},{"$f":"IF(OR(vakformulieren!$E279=\"5 letsel\",vakformulieren!$E279=\"5 onwel / ziek\",vakformulieren!$E279=\"5 milieuschade\"),vakformulieren!$E273,\"\")","v":""},{"$f":"IF(OR(vakformulieren!$E279=\"5 letsel\",vakformulieren!$E279=\"5 onwel / ziek\",vakformulieren!$E279=\"5 milieuschade\"),vakformulieren!$V279,\"\")","v":""},null,null,null,null,{"$f":"IF(AND(OR(vakformulieren!$E279=\"5 letsel\",vakformulieren!$E279=\"5 onwel / ziek\",vakformulieren!$E279=\"5 milieuschade\"),vakformulieren!$E273>0),SUM(vakformulieren!$P273/8),\"\")","v":""}]
[{"$f":"IF(OR(vakformulieren!$E274=\"5 letsel\",vakformulieren!$E274=\"5 onwel / ziek\",vakformulieren!$E274=\"5 milieuschade\"),vakformulieren!$A274,\"\")","v":""},"",{"$f":"IF(OR(vakformulieren!$E280=\"5 letsel\",vakformulieren!$E280=\"5 onwel / ziek\",vakformulieren!$E280=\"5 milieuschade\"),vakformulieren!$C274,\"\")","v":""},{"$f":"IF(OR(vakformulieren!$E280=\"5 letsel\",vakformulieren!$E280=\"5 onwel / ziek\",vakformulieren!$E280=\"5 milieuschade\"),vakformulieren!$E274,\"\")","v":""},{"$f":"IF(OR(vakformulieren!$E280=\"5 letsel\",vakformulieren!$E280=\"5 onwel / ziek\",vakformulieren!$E280=\"5 milieuschade\"),vakformulieren!$V280,\"\")","v":""},null,null,null,null,{"$f":"IF(AND(OR(vakformulieren!$E280=\"5 letsel\",vakformulieren!$E280=\"5 onwel / ziek\",vakformulieren!$E280=\"5 milieuschade\"),vakformulieren!$E274>0),SUM(vakformulieren!$P274/8),\"\")","v":""}]
[{"$f":"IF(OR(vakformulieren!$E275=\"5 letsel\",vakformulieren!$E275=\"5 onwel / ziek\",vakformulieren!$E275=\"5 milieuschade\"),vakformulieren!$A275,\"\")","v":""},"",{"$f":"IF(OR(vakformulieren!$E281=\"5 letsel\",vakformulieren!$E281=\"5 onwel / ziek\",vakformulieren!$E281=\"5 milieuschade\"),vakformulieren!$C275,\"\")","v":""},{"$f":"IF(OR(vakformulieren!$E281=\"5 letsel\",vakformulieren!$E281=\"5 onwel / ziek\",vakformulieren!$E281=\"5 milieuschade\"),vakformulieren!$E275,\"\")","v":""},{"$f":"IF(OR(vakformulieren!$E281=\"5 letsel\",vakformulieren!$E281=\"5 onwel / ziek\",vakformulieren!$E281=\"5 milieuschade\"),vakformulieren!$V281,\"\")","v":""},null,null,null,null,{"$f":"IF(AND(OR(vakformulieren!$E281=\"5 letsel\",vakformulieren!$E281=\"5 onwel / ziek\",vakformulieren!$E281=\"5 milieuschade\"),vakformulieren!$E275>0),SUM(vakformulieren!$P275/8),\"\")","v":""}]
[{"$f":"IF(OR(vakformulieren!$E276=\"5 letsel\",vakformulieren!$E276=\"5 onwel / ziek\",vakformulieren!$E276=\"5 milieuschade\"),vakformulieren!$A276,\"\")","v":""},"",{"$f":"IF(OR(vakformulieren!$E282=\"5 letsel\",vakformulieren!$E282=\"5 onwel / ziek\",vakformulieren!$E282=\"5 milieuschade\"),vakformulieren!$C276,\"\")","v":""},{"$f":"IF(OR(vakformulieren!$E282=\"5 letsel\",vakformulieren!$E282=\"5 onwel / ziek\",vakformulieren!$E282=\"5 milieuschade\"),vakformulieren!$E276,\"\")","v":""},{"$f":"IF(OR(vakformulieren!$E282=\"5 letsel\",vakformulieren!$E282=\"5 onwel / ziek\",vakformulieren!$E282=\"5 milieuschade\"),vakformulieren!$V282,\"\")","v":""},null,null,null,null,{"$f":"IF(AND(OR(vakformulieren!$E282=\"5 letsel\",vakformulieren!$E282=\"5 onwel / ziek\",vakformulieren!$E282=\"5 milieuschade\"),vakformulieren!$E276>0),SUM(vakformulieren!$P276/8),\"\")","v":""}]
[{"$f":"IF(OR(vakformulieren!$E277=\"5 letsel\",vakformulieren!$E277=\"5 onwel / ziek\",vakformulieren!$E277=\"5 milieuschade\"),vakformulieren!$A277,\"\")","v":""},"",{"$f":"IF(OR(vakformulieren!$E283=\"5 letsel\",vakformulieren!$E283=\"5 onwel / ziek\",vakformulieren!$E283=\"5 milieuschade\"),vakformulieren!$C277,\"\")","v":""},{"$f":"IF(OR(vakformulieren!$E283=\"5 letsel\",vakformulieren!$E283=\"5 onwel / ziek\",vakformulieren!$E283=\"5 milieuschade\"),vakformulieren!$E277,\"\")","v":""},{"$f":"IF(OR(vakformulieren!$E283=\"5 letsel\",vakformulieren!$E283=\"5 onwel / ziek\",vakformulieren!$E283=\"5 milieuschade\"),vakformulieren!$V283,\"\")","v":""},null,null,null,null,{"$f":"IF(AND(OR(vakformulieren!$E283=\"5 letsel\",vakformulieren!$E283=\"5 onwel / ziek\",vakformulieren!$E283=\"5 milieuschade\"),vakformulieren!$E277>0),SUM(vakformulieren!$P277/8),\"\")","v":""}]
[{"$f":"IF(OR(vakformulieren!$E278=\"5 letsel\",vakformulieren!$E278=\"5 onwel / ziek\",vakformulieren!$E278=\"5 milieuschade\"),vakformulieren!$A278,\"\")","v":""},"",{"$f":"IF(OR(vakformulieren!$E284=\"5 letsel\",vakformulieren!$E284=\"5 onwel / ziek\",vakformulieren!$E284=\"5 milieuschade\"),vakformulieren!$C278,\"\")","v":""},{"$f":"IF(OR(vakformulieren!$E284=\"5 letsel\",vakformulieren!$E284=\"5 onwel / ziek\",vakformulieren!$E284=\"5 milieuschade\"),vakformulieren!$E278,\"\")","v":""},{"$f":"IF(OR(vakformulieren!$E284=\"5 letsel\",vakformulieren!$E284=\"5 onwel / ziek\",vakformulieren!$E284=\"5 milieuschade\"),vakformulieren!$V284,\"\")","v":""},null,null,null,null,{"$f":"IF(AND(OR(vakformulieren!$E284=\"5 letsel\",vakformulieren!$E284=\"5 onwel / ziek\",vakformulieren!$E284=\"5 milieuschade\"),vakformulieren!$E278>0),SUM(vakformulieren!$P278/8),\"\")","v":""}]
[{"$f":"IF(OR(vakformulieren!$E279=\"5 letsel\",vakformulieren!$E279=\"5 onwel / ziek\",vakformulieren!$E279=\"5 milieuschade\"),vakformulieren!$A279,\"\")","v":""},"",{"$f":"IF(OR(vakformulieren!$E285=\"5 letsel\",vakformulieren!$E285=\"5 onwel / ziek\",vakformulieren!$E285=\"5 milieuschade\"),vakformulieren!$C279,\"\")","v":""},{"$f":"IF(OR(vakformulieren!$E285=\"5 letsel\",vakformulieren!$E285=\"5 onwel / ziek\",vakformulieren!$E285=\"5 milieuschade\"),vakformulieren!$E279,\"\")","v":""},{"$f":"IF(OR(vakformulieren!$E285=\"5 letsel\",vakformulieren!$E285=\"5 onwel / ziek\",vakformulieren!$E285=\"5 milieuschade\"),vakformulieren!$V285,\"\")","v":""},null,null,null,null,{"$f":"IF(AND(OR(vakformulieren!$E285=\"5 letsel\",vakformulieren!$E285=\"5 onwel / ziek\",vakformulieren!$E285=\"5 milieuschade\"),vakformulieren!$E279>0),SUM(vakformulieren!$P279/8),\"\")","v":""}]
[{"$f":"IF(OR(vakformulieren!$E280=\"5 letsel\",vakformulieren!$E280=\"5 onwel / ziek\",vakformulieren!$E280=\"5 milieuschade\"),vakformulieren!$A280,\"\")","v":""},"",{"$f":"IF(OR(vakformulieren!$E286=\"5 letsel\",vakformulieren!$E286=\"5 onwel / ziek\",vakformulieren!$E286=\"5 milieuschade\"),vakformulieren!$C280,\"\")","v":""},{"$f":"IF(OR(vakformulieren!$E286=\"5 letsel\",vakformulieren!$E286=\"5 onwel / ziek\",vakformulieren!$E286=\"5 milieuschade\"),vakformulieren!$E280,\"\")","v":""},{"$f":"IF(OR(vakformulieren!$E286=\"5 letsel\",vakformulieren!$E286=\"5 onwel / ziek\",vakformulieren!$E286=\"5 milieuschade\"),vakformulieren!$V286,\"\")","v":""},null,null,null,null,{"$f":"IF(AND(OR(vakformulieren!$E286=\"5 letsel\",vakformulieren!$E286=\"5 onwel / ziek\",vakformulieren!$E286=\"5 milieuschade\"),vakformulieren!$E280>0),SUM(vakformulieren!$P280/8),\"\")","v":""}]
[{"$f":"IF(OR(vakformulieren!$E281=\"5 letsel\",vakformulieren!$E281=\"5 onwel / ziek\",vakformulieren!$E281=\"5 milieuschade\"),vakformulieren!$A281,\"\")","v":""},"",{"$f":"IF(OR(vakformulieren!$E287=\"5 letsel\",vakformulieren!$E287=\"5 onwel / ziek\",vakformulieren!$E287=\"5 milieuschade\"),vakformulieren!$C281,\"\")","v":""},{"$f":"IF(OR(vakformulieren!$E287=\"5 letsel\",vakformulieren!$E287=\"5 onwel / ziek\",vakformulieren!$E287=\"5 milieuschade\"),vakformulieren!$E281,\"\")","v":""},{"$f":"IF(OR(vakformulieren!$E287=\"5 letsel\",vakformulieren!$E287=\"5 onwel / ziek\",vakformulieren!$E287=\"5 milieuschade\"),vakformulieren!$V287,\"\")","v":""},null,null,null,null,{"$f":"IF(AND(OR(vakformulieren!$E287=\"5 letsel\",vakformulieren!$E287=\"5 onwel / ziek\",vakformulieren!$E287=\"5 milieuschade\"),vakformulieren!$E281>0),SUM(vakformulieren!$P281/8),\"\")","v":""}]
[{"$f":"IF(OR(vakformulieren!$E282=\"5 letsel\",vakformulieren!$E282=\"5 onwel / ziek\",vakformulieren!$E282=\"5 milieuschade\"),vakformulieren!$A282,\"\")","v":""},"",{"$f":"IF(OR(vakformulieren!$E288=\"5 letsel\",vakformulieren!$E288=\"5 onwel / ziek\",vakformulieren!$E288=\"5 milieuschade\"),vakformulieren!$C282,\"\")","v":""},{"$f":"IF(OR(vakformulieren!$E288=\"5 letsel\",vakformulieren!$E288=\"5 onwel / ziek\",vakformulieren!$E288=\"5 milieuschade\"),vakformulieren!$E282,\"\")","v":""},{"$f":"IF(OR(vakformulieren!$E288=\"5 letsel\",vakformulieren!$E288=\"5 onwel / ziek\",vakformulieren!$E288=\"5 milieuschade\"),vakformulieren!$V288,\"\")","v":""},null,null,null,null,{"$f":"IF(AND(OR(vakformulieren!$E288=\"5 letsel\",vakformulieren!$E288=\"5 onwel / ziek\",vakformulieren!$E288=\"5 milieuschade\"),vakformulieren!$E282>0),SUM(vakformulieren!$P282/8),\"\")","v":""}]
[{"$f":"IF(OR(vakformulieren!$E283=\"5 letsel\",vakformulieren!$E283=\"5 onwel / ziek\",vakformulieren!$E283=\"5 milieuschade\"),vakformulieren!$A283,\"\")","v":""},"",{"$f":"IF(OR(vakformulieren!$E289=\"5 letsel\",vakformulieren!$E289=\"5 onwel / ziek\",vakformulieren!$E289=\"5 milieuschade\"),vakformulieren!$C283,\"\")","v":""},{"$f":"IF(OR(vakformulieren!$E289=\"5 letsel\",vakformulieren!$E289=\"5 onwel / ziek\",vakformulieren!$E289=\"5 milieuschade\"),vakformulieren!$E283,\"\")","v":""},{"$f":"IF(OR(vakformulieren!$E289=\"5 letsel\",vakformulieren!$E289=\"5 onwel / ziek\",vakformulieren!$E289=\"5 milieuschade\"),vakformulieren!$V289,\"\")","v":""},null,null,null,null,{"$f":"IF(AND(OR(vakformulieren!$E289=\"5 letsel\",vakformulieren!$E289=\"5 onwel / ziek\",vakformulieren!$E289=\"5 milieuschade\"),vakformulieren!$E283>0),SUM(vakformulieren!$P283/8),\"\")","v":""}]
[{"$f":"IF(OR(vakformulieren!$E284=\"5 letsel\",vakformulieren!$E284=\"5 onwel / ziek\",vakformulieren!$E284=\"5 milieuschade\"),vakformulieren!$A284,\"\")","v":""},"",{"$f":"IF(OR(vakformulieren!$E290=\"5 letsel\",vakformulieren!$E290=\"5 onwel / ziek\",vakformulieren!$E290=\"5 milieuschade\"),vakformulieren!$C284,\"\")","v":""},{"$f":"IF(OR(vakformulieren!$E290=\"5 letsel\",vakformulieren!$E290=\"5 onwel / ziek\",vakformulieren!$E290=\"5 milieuschade\"),vakformulieren!$E284,\"\")","v":""},{"$f":"IF(OR(vakformulieren!$E290=\"5 letsel\",vakformulieren!$E290=\"5 onwel / ziek\",vakformulieren!$E290=\"5 milieuschade\"),vakformulieren!$V290,\"\")","v":""},null,null,null,null,{"$f":"IF(AND(OR(vakformulieren!$E290=\"5 letsel\",vakformulieren!$E290=\"5 onwel / ziek\",vakformulieren!$E290=\"5 milieuschade\"),vakformulieren!$E284>0),SUM(vakformulieren!$P284/8),\"\")","v":""}]
[{"$f":"IF(OR(vakformulieren!$E285=\"5 letsel\",vakformulieren!$E285=\"5 onwel / ziek\",vakformulieren!$E285=\"5 milieuschade\"),vakformulieren!$A285,\"\")","v":""},"",{"$f":"IF(OR(vakformulieren!$E291=\"5 letsel\",vakformulieren!$E291=\"5 onwel / ziek\",vakformulieren!$E291=\"5 milieuschade\"),vakformulieren!$C285,\"\")","v":""},{"$f":"IF(OR(vakformulieren!$E291=\"5 letsel\",vakformulieren!$E291=\"5 onwel / ziek\",vakformulieren!$E291=\"5 milieuschade\"),vakformulieren!$E285,\"\")","v":""},{"$f":"IF(OR(vakformulieren!$E291=\"5 letsel\",vakformulieren!$E291=\"5 onwel / ziek\",vakformulieren!$E291=\"5 milieuschade\"),vakformulieren!$V291,\"\")","v":""},null,null,null,null,{"$f":"IF(AND(OR(vakformulieren!$E291=\"5 letsel\",vakformulieren!$E291=\"5 onwel / ziek\",vakformulieren!$E291=\"5 milieuschade\"),vakformulieren!$E285>0),SUM(vakformulieren!$P285/8),\"\")","v":""}]
[{"$f":"IF(OR(vakformulieren!$E286=\"5 letsel\",vakformulieren!$E286=\"5 onwel / ziek\",vakformulieren!$E286=\"5 milieuschade\"),vakformulieren!$A286,\"\")","v":""},"",{"$f":"IF(OR(vakformulieren!$E292=\"5 letsel\",vakformulieren!$E292=\"5 onwel / ziek\",vakformulieren!$E292=\"5 milieuschade\"),vakformulieren!$C286,\"\")","v":""},{"$f":"IF(OR(vakformulieren!$E292=\"5 letsel\",vakformulieren!$E292=\"5 onwel / ziek\",vakformulieren!$E292=\"5 milieuschade\"),vakformulieren!$E286,\"\")","v":""},{"$f":"IF(OR(vakformulieren!$E292=\"5 letsel\",vakformulieren!$E292=\"5 onwel / ziek\",vakformulieren!$E292=\"5 milieuschade\"),vakformulieren!$V292,\"\")","v":""},null,null,null,null,{"$f":"IF(AND(OR(vakformulieren!$E292=\"5 letsel\",vakformulieren!$E292=\"5 onwel / ziek\",vakformulieren!$E292=\"5 milieuschade\"),vakformulieren!$E286>0),SUM(vakformulieren!$P286/8),\"\")","v":""}]
[{"$f":"IF(OR(vakformulieren!$E287=\"5 letsel\",vakformulieren!$E287=\"5 onwel / ziek\",vakformulieren!$E287=\"5 milieuschade\"),vakformulieren!$A287,\"\")","v":""},"",{"$f":"IF(OR(vakformulieren!$E293=\"5 letsel\",vakformulieren!$E293=\"5 onwel / ziek\",vakformulieren!$E293=\"5 milieuschade\"),vakformulieren!$C287,\"\")","v":""},{"$f":"IF(OR(vakformulieren!$E293=\"5 letsel\",vakformulieren!$E293=\"5 onwel / ziek\",vakformulieren!$E293=\"5 milieuschade\"),vakformulieren!$E287,\"\")","v":""},{"$f":"IF(OR(vakformulieren!$E293=\"5 letsel\",vakformulieren!$E293=\"5 onwel / ziek\",vakformulieren!$E293=\"5 milieuschade\"),vakformulieren!$V293,\"\")","v":""},null,null,null,null,{"$f":"IF(AND(OR(vakformulieren!$E293=\"5 letsel\",vakformulieren!$E293=\"5 onwel / ziek\",vakformulieren!$E293=\"5 milieuschade\"),vakformulieren!$E287>0),SUM(vakformulieren!$P287/8),\"\")","v":""}]
[{"$f":"IF(OR(vakformulieren!$E288=\"5 letsel\",vakformulieren!$E288=\"5 onwel / ziek\",vakformulieren!$E288=\"5 milieuschade\"),vakformulieren!$A288,\"\")","v":""},"",{"$f":"IF(OR(vakformulieren!$E294=\"5 letsel\",vakformulieren!$E294=\"5 onwel / ziek\",vakformulieren!$E294=\"5 milieuschade\"),vakformulieren!$C288,\"\")","v":""},{"$f":"IF(OR(vakformulieren!$E294=\"5 letsel\",vakformulieren!$E294=\"5 onwel / ziek\",vakformulieren!$E294=\"5 milieuschade\"),vakformulieren!$E288,\"\")","v":""},{"$f":"IF(OR(vakformulieren!$E294=\"5 letsel\",vakformulieren!$E294=\"5 onwel / ziek\",vakformulieren!$E294=\"5 milieuschade\"),vakformulieren!$V294,\"\")","v":""},null,null,null,null,{"$f":"IF(AND(OR(vakformulieren!$E294=\"5 letsel\",vakformulieren!$E294=\"5 onwel / ziek\",vakformulieren!$E294=\"5 milieuschade\"),vakformulieren!$E288>0),SUM(vakformulieren!$P288/8),\"\")","v":""}]
[{"$f":"IF(OR(vakformulieren!$E289=\"5 letsel\",vakformulieren!$E289=\"5 onwel / ziek\",vakformulieren!$E289=\"5 milieuschade\"),vakformulieren!$A289,\"\")","v":""},"",{"$f":"IF(OR(vakformulieren!$E295=\"5 letsel\",vakformulieren!$E295=\"5 onwel / ziek\",vakformulieren!$E295=\"5 milieuschade\"),vakformulieren!$C289,\"\")","v":""},{"$f":"IF(OR(vakformulieren!$E295=\"5 letsel\",vakformulieren!$E295=\"5 onwel / ziek\",vakformulieren!$E295=\"5 milieuschade\"),vakformulieren!$E289,\"\")","v":""},{"$f":"IF(OR(vakformulieren!$E295=\"5 letsel\",vakformulieren!$E295=\"5 onwel / ziek\",vakformulieren!$E295=\"5 milieuschade\"),vakformulieren!$V295,\"\")","v":""},null,null,null,null,{"$f":"IF(AND(OR(vakformulieren!$E295=\"5 letsel\",vakformulieren!$E295=\"5 onwel / ziek\",vakformulieren!$E295=\"5 milieuschade\"),vakformulieren!$E289>0),SUM(vakformulieren!$P289/8),\"\")","v":""}]
[{"$f":"IF(OR(vakformulieren!$E290=\"5 letsel\",vakformulieren!$E290=\"5 onwel / ziek\",vakformulieren!$E290=\"5 milieuschade\"),vakformulieren!$A290,\"\")","v":""},"",{"$f":"IF(OR(vakformulieren!$E296=\"5 letsel\",vakformulieren!$E296=\"5 onwel / ziek\",vakformulieren!$E296=\"5 milieuschade\"),vakformulieren!$C290,\"\")","v":""},{"$f":"IF(OR(vakformulieren!$E296=\"5 letsel\",vakformulieren!$E296=\"5 onwel / ziek\",vakformulieren!$E296=\"5 milieuschade\"),vakformulieren!$E290,\"\")","v":""},{"$f":"IF(OR(vakformulieren!$E296=\"5 letsel\",vakformulieren!$E296=\"5 onwel / ziek\",vakformulieren!$E296=\"5 milieuschade\"),vakformulieren!$V296,\"\")","v":""},null,null,null,null,{"$f":"IF(AND(OR(vakformulieren!$E296=\"5 letsel\",vakformulieren!$E296=\"5 onwel / ziek\",vakformulieren!$E296=\"5 milieuschade\"),vakformulieren!$E290>0),SUM(vakformulieren!$P290/8),\"\")","v":""}]
[{"$f":"IF(OR(vakformulieren!$E291=\"5 letsel\",vakformulieren!$E291=\"5 onwel / ziek\",vakformulieren!$E291=\"5 milieuschade\"),vakformulieren!$A291,\"\")","v":""},"",{"$f":"IF(OR(vakformulieren!$E297=\"5 letsel\",vakformulieren!$E297=\"5 onwel / ziek\",vakformulieren!$E297=\"5 milieuschade\"),vakformulieren!$C291,\"\")","v":""},{"$f":"IF(OR(vakformulieren!$E297=\"5 letsel\",vakformulieren!$E297=\"5 onwel / ziek\",vakformulieren!$E297=\"5 milieuschade\"),vakformulieren!$E291,\"\")","v":""},{"$f":"IF(OR(vakformulieren!$E297=\"5 letsel\",vakformulieren!$E297=\"5 onwel / ziek\",vakformulieren!$E297=\"5 milieuschade\"),vakformulieren!$V297,\"\")","v":""},null,null,null,null,{"$f":"IF(AND(OR(vakformulieren!$E297=\"5 letsel\",vakformulieren!$E297=\"5 onwel / ziek\",vakformulieren!$E297=\"5 milieuschade\"),vakformulieren!$E291>0),SUM(vakformulieren!$P291/8),\"\")","v":""}]
[{"$f":"IF(OR(vakformulieren!$E292=\"5 letsel\",vakformulieren!$E292=\"5 onwel / ziek\",vakformulieren!$E292=\"5 milieuschade\"),vakformulieren!$A292,\"\")","v":""},"",{"$f":"IF(OR(vakformulieren!$E298=\"5 letsel\",vakformulieren!$E298=\"5 onwel / ziek\",vakformulieren!$E298=\"5 milieuschade\"),vakformulieren!$C292,\"\")","v":""},{"$f":"IF(OR(vakformulieren!$E298=\"5 letsel\",vakformulieren!$E298=\"5 onwel / ziek\",vakformulieren!$E298=\"5 milieuschade\"),vakformulieren!$E292,\"\")","v":""},{"$f":"IF(OR(vakformulieren!$E298=\"5 letsel\",vakformulieren!$E298=\"5 onwel / ziek\",vakformulieren!$E298=\"5 milieuschade\"),vakformulieren!$V298,\"\")","v":""},null,null,null,null,{"$f":"IF(AND(OR(vakformulieren!$E298=\"5 letsel\",vakformulieren!$E298=\"5 onwel / ziek\",vakformulieren!$E298=\"5 milieuschade\"),vakformulieren!$E292>0),SUM(vakformulieren!$P292/8),\"\")","v":""}]
[{"$f":"IF(OR(vakformulieren!$E293=\"5 letsel\",vakformulieren!$E293=\"5 onwel / ziek\",vakformulieren!$E293=\"5 milieuschade\"),vakformulieren!$A293,\"\")","v":""},"",{"$f":"IF(OR(vakformulieren!$E299=\"5 letsel\",vakformulieren!$E299=\"5 onwel / ziek\",vakformulieren!$E299=\"5 milieuschade\"),vakformulieren!$C293,\"\")","v":""},{"$f":"IF(OR(vakformulieren!$E299=\"5 letsel\",vakformulieren!$E299=\"5 onwel / ziek\",vakformulieren!$E299=\"5 milieuschade\"),vakformulieren!$E293,\"\")","v":""},{"$f":"IF(OR(vakformulieren!$E299=\"5 letsel\",vakformulieren!$E299=\"5 onwel / ziek\",vakformulieren!$E299=\"5 milieuschade\"),vakformulieren!$V299,\"\")","v":""},null,null,null,null,{"$f":"IF(AND(OR(vakformulieren!$E299=\"5 letsel\",vakformulieren!$E299=\"5 onwel / ziek\",vakformulieren!$E299=\"5 milieuschade\"),vakformulieren!$E293>0),SUM(vakformulieren!$P293/8),\"\")","v":""}]
[{"$f":"IF(OR(vakformulieren!$E294=\"5 letsel\",vakformulieren!$E294=\"5 onwel / ziek\",vakformulieren!$E294=\"5 milieuschade\"),vakformulieren!$A294,\"\")","v":""},"",{"$f":"IF(OR(vakformulieren!$E300=\"5 letsel\",vakformulieren!$E300=\"5 onwel / ziek\",vakformulieren!$E300=\"5 milieuschade\"),vakformulieren!$C294,\"\")","v":""},{"$f":"IF(OR(vakformulieren!$E300=\"5 letsel\",vakformulieren!$E300=\"5 onwel / ziek\",vakformulieren!$E300=\"5 milieuschade\"),vakformulieren!$E294,\"\")","v":""},{"$f":"IF(OR(vakformulieren!$E300=\"5 letsel\",vakformulieren!$E300=\"5 onwel / ziek\",vakformulieren!$E300=\"5 milieuschade\"),vakformulieren!$V300,\"\")","v":""},null,null,null,null,{"$f":"IF(AND(OR(vakformulieren!$E300=\"5 letsel\",vakformulieren!$E300=\"5 onwel / ziek\",vakformulieren!$E300=\"5 milieuschade\"),vakformulieren!$E294>0),SUM(vakformulieren!$P294/8),\"\")","v":""}]
[{"$f":"IF(OR(vakformulieren!$E295=\"5 letsel\",vakformulieren!$E295=\"5 onwel / ziek\",vakformulieren!$E295=\"5 milieuschade\"),vakformulieren!$A295,\"\")","v":""},"",{"$f":"IF(OR(vakformulieren!$E301=\"5 letsel\",vakformulieren!$E301=\"5 onwel / ziek\",vakformulieren!$E301=\"5 milieuschade\"),vakformulieren!$C295,\"\")","v":""},{"$f":"IF(OR(vakformulieren!$E301=\"5 letsel\",vakformulieren!$E301=\"5 onwel / ziek\",vakformulieren!$E301=\"5 milieuschade\"),vakformulieren!$E295,\"\")","v":""},{"$f":"IF(OR(vakformulieren!$E301=\"5 letsel\",vakformulieren!$E301=\"5 onwel / ziek\",vakformulieren!$E301=\"5 milieuschade\"),vakformulieren!$V301,\"\")","v":""},null,null,null,null,{"$f":"IF(AND(OR(vakformulieren!$E301=\"5 letsel\",vakformulieren!$E301=\"5 onwel / ziek\",vakformulieren!$E301=\"5 milieuschade\"),vakformulieren!$E295>0),SUM(vakformulieren!$P295/8),\"\")","v":""}]
[{"$f":"IF(OR(vakformulieren!$E296=\"5 letsel\",vakformulieren!$E296=\"5 onwel / ziek\",vakformulieren!$E296=\"5 milieuschade\"),vakformulieren!$A296,\"\")","v":""},"",{"$f":"IF(OR(vakformulieren!$E302=\"5 letsel\",vakformulieren!$E302=\"5 onwel / ziek\",vakformulieren!$E302=\"5 milieuschade\"),vakformulieren!$C296,\"\")","v":""},{"$f":"IF(OR(vakformulieren!$E302=\"5 letsel\",vakformulieren!$E302=\"5 onwel / ziek\",vakformulieren!$E302=\"5 milieuschade\"),vakformulieren!$E296,\"\")","v":""},{"$f":"IF(OR(vakformulieren!$E302=\"5 letsel\",vakformulieren!$E302=\"5 onwel / ziek\",vakformulieren!$E302=\"5 milieuschade\"),vakformulieren!$V302,\"\")","v":""},null,null,null,null,{"$f":"IF(AND(OR(vakformulieren!$E302=\"5 letsel\",vakformulieren!$E302=\"5 onwel / ziek\",vakformulieren!$E302=\"5 milieuschade\"),vakformulieren!$E296>0),SUM(vakformulieren!$P296/8),\"\")","v":""}]
[{"$f":"IF(OR(vakformulieren!$E297=\"5 letsel\",vakformulieren!$E297=\"5 onwel / ziek\",vakformulieren!$E297=\"5 milieuschade\"),vakformulieren!$A297,\"\")","v":""},"",{"$f":"IF(OR(vakformulieren!$E303=\"5 letsel\",vakformulieren!$E303=\"5 onwel / ziek\",vakformulieren!$E303=\"5 milieuschade\"),vakformulieren!$C297,\"\")","v":""},{"$f":"IF(OR(vakformulieren!$E303=\"5 letsel\",vakformulieren!$E303=\"5 onwel / ziek\",vakformulieren!$E303=\"5 milieuschade\"),vakformulieren!$E297,\"\")","v":""},{"$f":"IF(OR(vakformulieren!$E303=\"5 letsel\",vakformulieren!$E303=\"5 onwel / ziek\",vakformulieren!$E303=\"5 milieuschade\"),vakformulieren!$V303,\"\")","v":""},null,null,null,null,{"$f":"IF(AND(OR(vakformulieren!$E303=\"5 letsel\",vakformulieren!$E303=\"5 onwel / ziek\",vakformulieren!$E303=\"5 milieuschade\"),vakformulieren!$E297>0),SUM(vakformulieren!$P297/8),\"\")","v":""}]
[{"$f":"IF(OR(vakformulieren!$E298=\"5 letsel\",vakformulieren!$E298=\"5 onwel / ziek\",vakformulieren!$E298=\"5 milieuschade\"),vakformulieren!$A298,\"\")","v":""},"",{"$f":"IF(OR(vakformulieren!$E304=\"5 letsel\",vakformulieren!$E304=\"5 onwel / ziek\",vakformulieren!$E304=\"5 milieuschade\"),vakformulieren!$C298,\"\")","v":""},{"$f":"IF(OR(vakformulieren!$E304=\"5 letsel\",vakformulieren!$E304=\"5 onwel / ziek\",vakformulieren!$E304=\"5 milieuschade\"),vakformulieren!$E298,\"\")","v":""},{"$f":"IF(OR(vakformulieren!$E304=\"5 letsel\",vakformulieren!$E304=\"5 onwel / ziek\",vakformulieren!$E304=\"5 milieuschade\"),vakformulieren!$V304,\"\")","v":""},null,null,null,null,{"$f":"IF(AND(OR(vakformulieren!$E304=\"5 letsel\",vakformulieren!$E304=\"5 onwel / ziek\",vakformulieren!$E304=\"5 milieuschade\"),vakformulieren!$E298>0),SUM(vakformulieren!$P298/8),\"\")","v":""}]
[{"$f":"IF(OR(vakformulieren!$E299=\"5 letsel\",vakformulieren!$E299=\"5 onwel / ziek\",vakformulieren!$E299=\"5 milieuschade\"),vakformulieren!$A299,\"\")","v":""},"",{"$f":"IF(OR(vakformulieren!$E305=\"5 letsel\",vakformulieren!$E305=\"5 onwel / ziek\",vakformulieren!$E305=\"5 milieuschade\"),vakformulieren!$C299,\"\")","v":""},{"$f":"IF(OR(vakformulieren!$E305=\"5 letsel\",vakformulieren!$E305=\"5 onwel / ziek\",vakformulieren!$E305=\"5 milieuschade\"),vakformulieren!$E299,\"\")","v":""},{"$f":"IF(OR(vakformulieren!$E305=\"5 letsel\",vakformulieren!$E305=\"5 onwel / ziek\",vakformulieren!$E305=\"5 milieuschade\"),vakformulieren!$V305,\"\")","v":""},null,null,null,null,{"$f":"IF(AND(OR(vakformulieren!$E305=\"5 letsel\",vakformulieren!$E305=\"5 onwel / ziek\",vakformulieren!$E305=\"5 milieuschade\"),vakformulieren!$E299>0),SUM(vakformulieren!$P299/8),\"\")","v":""}]
[{"$f":"IF(OR(vakformulieren!$E300=\"5 letsel\",vakformulieren!$E300=\"5 onwel / ziek\",vakformulieren!$E300=\"5 milieuschade\"),vakformulieren!$A300,\"\")","v":""},"",{"$f":"IF(OR(vakformulieren!$E306=\"5 letsel\",vakformulieren!$E306=\"5 onwel / ziek\",vakformulieren!$E306=\"5 milieuschade\"),vakformulieren!$C300,\"\")","v":""},{"$f":"IF(OR(vakformulieren!$E306=\"5 letsel\",vakformulieren!$E306=\"5 onwel / ziek\",vakformulieren!$E306=\"5 milieuschade\"),vakformulieren!$E300,\"\")","v":""},{"$f":"IF(OR(vakformulieren!$E306=\"5 letsel\",vakformulieren!$E306=\"5 onwel / ziek\",vakformulieren!$E306=\"5 milieuschade\"),vakformulieren!$V306,\"\")","v":""},null,null,null,null,{"$f":"IF(AND(OR(vakformulieren!$E306=\"5 letsel\",vakformulieren!$E306=\"5 onwel / ziek\",vakformulieren!$E306=\"5 milieuschade\"),vakformulieren!$E300>0),SUM(vakformulieren!$P300/8),\"\")","v":""}]
[{"$f":"IF(OR(vakformulieren!$E301=\"5 letsel\",vakformulieren!$E301=\"5 onwel / ziek\",vakformulieren!$E301=\"5 milieuschade\"),vakformulieren!$A301,\"\")","v":""},"",{"$f":"IF(OR(vakformulieren!$E307=\"5 letsel\",vakformulieren!$E307=\"5 onwel / ziek\",vakformulieren!$E307=\"5 milieuschade\"),vakformulieren!$C301,\"\")","v":""},{"$f":"IF(OR(vakformulieren!$E307=\"5 letsel\",vakformulieren!$E307=\"5 onwel / ziek\",vakformulieren!$E307=\"5 milieuschade\"),vakformulieren!$E301,\"\")","v":""},{"$f":"IF(OR(vakformulieren!$E307=\"5 letsel\",vakformulieren!$E307=\"5 onwel / ziek\",vakformulieren!$E307=\"5 milieuschade\"),vakformulieren!$V307,\"\")","v":""},null,null,null,null,{"$f":"IF(AND(OR(vakformulieren!$E307=\"5 letsel\",vakformulieren!$E307=\"5 onwel / ziek\",vakformulieren!$E307=\"5 milieuschade\"),vakformulieren!$E301>0),SUM(vakformulieren!$P301/8),\"\")","v":""}]
[{"$f":"IF(OR(vakformulieren!$E302=\"5 letsel\",vakformulieren!$E302=\"5 onwel / ziek\",vakformulieren!$E302=\"5 milieuschade\"),vakformulieren!$A302,\"\")","v":""},"",{"$f":"IF(OR(vakformulieren!$E308=\"5 letsel\",vakformulieren!$E308=\"5 onwel / ziek\",vakformulieren!$E308=\"5 milieuschade\"),vakformulieren!$C302,\"\")","v":""},{"$f":"IF(OR(vakformulieren!$E308=\"5 letsel\",vakformulieren!$E308=\"5 onwel / ziek\",vakformulieren!$E308=\"5 milieuschade\"),vakformulieren!$E302,\"\")","v":""},{"$f":"IF(OR(vakformulieren!$E308=\"5 letsel\",vakformulieren!$E308=\"5 onwel / ziek\",vakformulieren!$E308=\"5 milieuschade\"),vakformulieren!$V308,\"\")","v":""},null,null,null,null,{"$f":"IF(AND(OR(vakformulieren!$E308=\"5 letsel\",vakformulieren!$E308=\"5 onwel / ziek\",vakformulieren!$E308=\"5 milieuschade\"),vakformulieren!$E302>0),SUM(vakformulieren!$P302/8),\"\")","v":""}]
[{"$f":"IF(OR(vakformulieren!$E303=\"5 letsel\",vakformulieren!$E303=\"5 onwel / ziek\",vakformulieren!$E303=\"5 milieuschade\"),vakformulieren!$A303,\"\")","v":""},"",{"$f":"IF(OR(vakformulieren!$E309=\"5 letsel\",vakformulieren!$E309=\"5 onwel / ziek\",vakformulieren!$E309=\"5 milieuschade\"),vakformulieren!$C303,\"\")","v":""},{"$f":"IF(OR(vakformulieren!$E309=\"5 letsel\",vakformulieren!$E309=\"5 onwel / ziek\",vakformulieren!$E309=\"5 milieuschade\"),vakformulieren!$E303,\"\")","v":""},{"$f":"IF(OR(vakformulieren!$E309=\"5 letsel\",vakformulieren!$E309=\"5 onwel / ziek\",vakformulieren!$E309=\"5 milieuschade\"),vakformulieren!$V309,\"\")","v":""},null,null,null,null,{"$f":"IF(AND(OR(vakformulieren!$E309=\"5 letsel\",vakformulieren!$E309=\"5 onwel / ziek\",vakformulieren!$E309=\"5 milieuschade\"),vakformulieren!$E303>0),SUM(vakformulieren!$P303/8),\"\")","v":""}]
[{"$f":"IF(OR(vakformulieren!$E304=\"5 letsel\",vakformulieren!$E304=\"5 onwel / ziek\",vakformulieren!$E304=\"5 milieuschade\"),vakformulieren!$A304,\"\")","v":""},"",{"$f":"IF(OR(vakformulieren!$E310=\"5 letsel\",vakformulieren!$E310=\"5 onwel / ziek\",vakformulieren!$E310=\"5 milieuschade\"),vakformulieren!$C304,\"\")","v":""},{"$f":"IF(OR(vakformulieren!$E310=\"5 letsel\",vakformulieren!$E310=\"5 onwel / ziek\",vakformulieren!$E310=\"5 milieuschade\"),vakformulieren!$E304,\"\")","v":""},{"$f":"IF(OR(vakformulieren!$E310=\"5 letsel\",vakformulieren!$E310=\"5 onwel / ziek\",vakformulieren!$E310=\"5 milieuschade\"),vakformulieren!$V310,\"\")","v":""},null,null,null,null,{"$f":"IF(AND(OR(vakformulieren!$E310=\"5 letsel\",vakformulieren!$E310=\"5 onwel / ziek\",vakformulieren!$E310=\"5 milieuschade\"),vakformulieren!$E304>0),SUM(vakformulieren!$P304/8),\"\")","v":""}]
[{"$f":"IF(OR(vakformulieren!$E305=\"5 letsel\",vakformulieren!$E305=\"5 onwel / ziek\",vakformulieren!$E305=\"5 milieuschade\"),vakformulieren!$A305,\"\")","v":""},"",{"$f":"IF(OR(vakformulieren!$E311=\"5 letsel\",vakformulieren!$E311=\"5 onwel / ziek\",vakformulieren!$E311=\"5 milieuschade\"),vakformulieren!$C305,\"\")","v":""},{"$f":"IF(OR(vakformulieren!$E311=\"5 letsel\",vakformulieren!$E311=\"5 onwel / ziek\",vakformulieren!$E311=\"5 milieuschade\"),vakformulieren!$E305,\"\")","v":""},{"$f":"IF(OR(vakformulieren!$E311=\"5 letsel\",vakformulieren!$E311=\"5 onwel / ziek\",vakformulieren!$E311=\"5 milieuschade\"),vakformulieren!$V311,\"\")","v":""},null,null,null,null,{"$f":"IF(AND(OR(vakformulieren!$E311=\"5 letsel\",vakformulieren!$E311=\"5 onwel / ziek\",vakformulieren!$E311=\"5 milieuschade\"),vakformulieren!$E305>0),SUM(vakformulieren!$P305/8),\"\")","v":""}]
[{"$f":"IF(OR(vakformulieren!$E306=\"5 letsel\",vakformulieren!$E306=\"5 onwel / ziek\",vakformulieren!$E306=\"5 milieuschade\"),vakformulieren!$A306,\"\")","v":""},"",{"$f":"IF(OR(vakformulieren!$E312=\"5 letsel\",vakformulieren!$E312=\"5 onwel / ziek\",vakformulieren!$E312=\"5 milieuschade\"),vakformulieren!$C306,\"\")","v":""},{"$f":"IF(OR(vakformulieren!$E312=\"5 letsel\",vakformulieren!$E312=\"5 onwel / ziek\",vakformulieren!$E312=\"5 milieuschade\"),vakformulieren!$E306,\"\")","v":""},{"$f":"IF(OR(vakformulieren!$E312=\"5 letsel\",vakformulieren!$E312=\"5 onwel / ziek\",vakformulieren!$E312=\"5 milieuschade\"),vakformulieren!$V312,\"\")","v":""},null,null,null,null,{"$f":"IF(AND(OR(vakformulieren!$E312=\"5 letsel\",vakformulieren!$E312=\"5 onwel / ziek\",vakformulieren!$E312=\"5 milieuschade\"),vakformulieren!$E306>0),SUM(vakformulieren!$P306/8),\"\")","v":""}]
[{"$f":"IF(OR(vakformulieren!$E307=\"5 letsel\",vakformulieren!$E307=\"5 onwel / ziek\",vakformulieren!$E307=\"5 milieuschade\"),vakformulieren!$A307,\"\")","v":""},"",{"$f":"IF(OR(vakformulieren!$E313=\"5 letsel\",vakformulieren!$E313=\"5 onwel / ziek\",vakformulieren!$E313=\"5 milieuschade\"),vakformulieren!$C307,\"\")","v":""},{"$f":"IF(OR(vakformulieren!$E313=\"5 letsel\",vakformulieren!$E313=\"5 onwel / ziek\",vakformulieren!$E313=\"5 milieuschade\"),vakformulieren!$E307,\"\")","v":""},{"$f":"IF(OR(vakformulieren!$E313=\"5 letsel\",vakformulieren!$E313=\"5 onwel / ziek\",vakformulieren!$E313=\"5 milieuschade\"),vakformulieren!$V313,\"\")","v":""},null,null,null,null,{"$f":"IF(AND(OR(vakformulieren!$E313=\"5 letsel\",vakformulieren!$E313=\"5 onwel / ziek\",vakformulieren!$E313=\"5 milieuschade\"),vakformulieren!$E307>0),SUM(vakformulieren!$P307/8),\"\")","v":""}]
[{"$f":"IF(OR(vakformulieren!$E308=\"5 letsel\",vakformulieren!$E308=\"5 onwel / ziek\",vakformulieren!$E308=\"5 milieuschade\"),vakformulieren!$A308,\"\")","v":""},"",{"$f":"IF(OR(vakformulieren!$E314=\"5 letsel\",vakformulieren!$E314=\"5 onwel / ziek\",vakformulieren!$E314=\"5 milieuschade\"),vakformulieren!$C308,\"\")","v":""},{"$f":"IF(OR(vakformulieren!$E314=\"5 letsel\",vakformulieren!$E314=\"5 onwel / ziek\",vakformulieren!$E314=\"5 milieuschade\"),vakformulieren!$E308,\"\")","v":""},{"$f":"IF(OR(vakformulieren!$E314=\"5 letsel\",vakformulieren!$E314=\"5 onwel / ziek\",vakformulieren!$E314=\"5 milieuschade\"),vakformulieren!$V314,\"\")","v":""},null,null,null,null,{"$f":"IF(AND(OR(vakformulieren!$E314=\"5 letsel\",vakformulieren!$E314=\"5 onwel / ziek\",vakformulieren!$E314=\"5 milieuschade\"),vakformulieren!$E308>0),SUM(vakformulieren!$P308/8),\"\")","v":""}]
[{"$f":"IF(OR(vakformulieren!$E309=\"5 letsel\",vakformulieren!$E309=\"5 onwel / ziek\",vakformulieren!$E309=\"5 milieuschade\"),vakformulieren!$A309,\"\")","v":""},"",{"$f":"IF(OR(vakformulieren!$E315=\"5 letsel\",vakformulieren!$E315=\"5 onwel / ziek\",vakformulieren!$E315=\"5 milieuschade\"),vakformulieren!$C309,\"\")","v":""},{"$f":"IF(OR(vakformulieren!$E315=\"5 letsel\",vakformulieren!$E315=\"5 onwel / ziek\",vakformulieren!$E315=\"5 milieuschade\"),vakformulieren!$E309,\"\")","v":""},{"$f":"IF(OR(vakformulieren!$E315=\"5 letsel\",vakformulieren!$E315=\"5 onwel / ziek\",vakformulieren!$E315=\"5 milieuschade\"),vakformulieren!$V315,\"\")","v":""},null,null,null,null,{"$f":"IF(AND(OR(vakformulieren!$E315=\"5 letsel\",vakformulieren!$E315=\"5 onwel / ziek\",vakformulieren!$E315=\"5 milieuschade\"),vakformulieren!$E309>0),SUM(vakformulieren!$P309/8),\"\")","v":""}]
[{"$f":"IF(OR(vakformulieren!$E310=\"5 letsel\",vakformulieren!$E310=\"5 onwel / ziek\",vakformulieren!$E310=\"5 milieuschade\"),vakformulieren!$A310,\"\")","v":""},"",{"$f":"IF(OR(vakformulieren!$E316=\"5 letsel\",vakformulieren!$E316=\"5 onwel / ziek\",vakformulieren!$E316=\"5 milieuschade\"),vakformulieren!$C310,\"\")","v":""},{"$f":"IF(OR(vakformulieren!$E316=\"5 letsel\",vakformulieren!$E316=\"5 onwel / ziek\",vakformulieren!$E316=\"5 milieuschade\"),vakformulieren!$E310,\"\")","v":""},{"$f":"IF(OR(vakformulieren!$E316=\"5 letsel\",vakformulieren!$E316=\"5 onwel / ziek\",vakformulieren!$E316=\"5 milieuschade\"),vakformulieren!$V316,\"\")","v":""},null,null,null,null,{"$f":"IF(AND(OR(vakformulieren!$E316=\"5 letsel\",vakformulieren!$E316=\"5 onwel / ziek\",vakformulieren!$E316=\"5 milieuschade\"),vakformulieren!$E310>0),SUM(vakformulieren!$P310/8),\"\")","v":""}]
[{"$f":"IF(OR(vakformulieren!$E311=\"5 letsel\",vakformulieren!$E311=\"5 onwel / ziek\",vakformulieren!$E311=\"5 milieuschade\"),vakformulieren!$A311,\"\")","v":""},"",{"$f":"IF(OR(vakformulieren!$E317=\"5 letsel\",vakformulieren!$E317=\"5 onwel / ziek\",vakformulieren!$E317=\"5 milieuschade\"),vakformulieren!$C311,\"\")","v":""},{"$f":"IF(OR(vakformulieren!$E317=\"5 letsel\",vakformulieren!$E317=\"5 onwel / ziek\",vakformulieren!$E317=\"5 milieuschade\"),vakformulieren!$E311,\"\")","v":""},{"$f":"IF(OR(vakformulieren!$E317=\"5 letsel\",vakformulieren!$E317=\"5 onwel / ziek\",vakformulieren!$E317=\"5 milieuschade\"),vakformulieren!$V317,\"\")","v":""},null,null,null,null,{"$f":"IF(AND(OR(vakformulieren!$E317=\"5 letsel\",vakformulieren!$E317=\"5 onwel / ziek\",vakformulieren!$E317=\"5 milieuschade\"),vakformulieren!$E311>0),SUM(vakformulieren!$P311/8),\"\")","v":""}]
[{"$f":"IF(OR(vakformulieren!$E312=\"5 letsel\",vakformulieren!$E312=\"5 onwel / ziek\",vakformulieren!$E312=\"5 milieuschade\"),vakformulieren!$A312,\"\")","v":""},"",{"$f":"IF(OR(vakformulieren!$E318=\"5 letsel\",vakformulieren!$E318=\"5 onwel / ziek\",vakformulieren!$E318=\"5 milieuschade\"),vakformulieren!$C312,\"\")","v":""},{"$f":"IF(OR(vakformulieren!$E318=\"5 letsel\",vakformulieren!$E318=\"5 onwel / ziek\",vakformulieren!$E318=\"5 milieuschade\"),vakformulieren!$E312,\"\")","v":""},{"$f":"IF(OR(vakformulieren!$E318=\"5 letsel\",vakformulieren!$E318=\"5 onwel / ziek\",vakformulieren!$E318=\"5 milieuschade\"),vakformulieren!$V318,\"\")","v":""},null,null,null,null,{"$f":"IF(AND(OR(vakformulieren!$E318=\"5 letsel\",vakformulieren!$E318=\"5 onwel / ziek\",vakformulieren!$E318=\"5 milieuschade\"),vakformulieren!$E312>0),SUM(vakformulieren!$P312/8),\"\")","v":""}]
[{"$f":"IF(OR(vakformulieren!$E313=\"5 letsel\",vakformulieren!$E313=\"5 onwel / ziek\",vakformulieren!$E313=\"5 milieuschade\"),vakformulieren!$A313,\"\")","v":""},"",{"$f":"IF(OR(vakformulieren!$E319=\"5 letsel\",vakformulieren!$E319=\"5 onwel / ziek\",vakformulieren!$E319=\"5 milieuschade\"),vakformulieren!$C313,\"\")","v":""},{"$f":"IF(OR(vakformulieren!$E319=\"5 letsel\",vakformulieren!$E319=\"5 onwel / ziek\",vakformulieren!$E319=\"5 milieuschade\"),vakformulieren!$E313,\"\")","v":""},{"$f":"IF(OR(vakformulieren!$E319=\"5 letsel\",vakformulieren!$E319=\"5 onwel / ziek\",vakformulieren!$E319=\"5 milieuschade\"),vakformulieren!$V319,\"\")","v":""},null,null,null,null,{"$f":"IF(AND(OR(vakformulieren!$E319=\"5 letsel\",vakformulieren!$E319=\"5 onwel / ziek\",vakformulieren!$E319=\"5 milieuschade\"),vakformulieren!$E313>0),SUM(vakformulieren!$P313/8),\"\")","v":""}]
[{"$f":"IF(OR(vakformulieren!$E314=\"5 letsel\",vakformulieren!$E314=\"5 onwel / ziek\",vakformulieren!$E314=\"5 milieuschade\"),vakformulieren!$A314,\"\")","v":""},"",{"$f":"IF(OR(vakformulieren!$E320=\"5 letsel\",vakformulieren!$E320=\"5 onwel / ziek\",vakformulieren!$E320=\"5 milieuschade\"),vakformulieren!$C314,\"\")","v":""},{"$f":"IF(OR(vakformulieren!$E320=\"5 letsel\",vakformulieren!$E320=\"5 onwel / ziek\",vakformulieren!$E320=\"5 milieuschade\"),vakformulieren!$E314,\"\")","v":""},{"$f":"IF(OR(vakformulieren!$E320=\"5 letsel\",vakformulieren!$E320=\"5 onwel / ziek\",vakformulieren!$E320=\"5 milieuschade\"),vakformulieren!$V320,\"\")","v":""},null,null,null,null,{"$f":"IF(AND(OR(vakformulieren!$E320=\"5 letsel\",vakformulieren!$E320=\"5 onwel / ziek\",vakformulieren!$E320=\"5 milieuschade\"),vakformulieren!$E314>0),SUM(vakformulieren!$P314/8),\"\")","v":""}]
[{"$f":"IF(OR(vakformulieren!$E315=\"5 letsel\",vakformulieren!$E315=\"5 onwel / ziek\",vakformulieren!$E315=\"5 milieuschade\"),vakformulieren!$A315,\"\")","v":""},"",{"$f":"IF(OR(vakformulieren!$E321=\"5 letsel\",vakformulieren!$E321=\"5 onwel / ziek\",vakformulieren!$E321=\"5 milieuschade\"),vakformulieren!$C315,\"\")","v":""},{"$f":"IF(OR(vakformulieren!$E321=\"5 letsel\",vakformulieren!$E321=\"5 onwel / ziek\",vakformulieren!$E321=\"5 milieuschade\"),vakformulieren!$E315,\"\")","v":""},{"$f":"IF(OR(vakformulieren!$E321=\"5 letsel\",vakformulieren!$E321=\"5 onwel / ziek\",vakformulieren!$E321=\"5 milieuschade\"),vakformulieren!$V321,\"\")","v":""},null,null,null,null,{"$f":"IF(AND(OR(vakformulieren!$E321=\"5 letsel\",vakformulieren!$E321=\"5 onwel / ziek\",vakformulieren!$E321=\"5 milieuschade\"),vakformulieren!$E315>0),SUM(vakformulieren!$P315/8),\"\")","v":""}]
[{"$f":"IF(OR(vakformulieren!$E316=\"5 letsel\",vakformulieren!$E316=\"5 onwel / ziek\",vakformulieren!$E316=\"5 milieuschade\"),vakformulieren!$A316,\"\")","v":""},"",{"$f":"IF(OR(vakformulieren!$E322=\"5 letsel\",vakformulieren!$E322=\"5 onwel / ziek\",vakformulieren!$E322=\"5 milieuschade\"),vakformulieren!$C316,\"\")","v":""},{"$f":"IF(OR(vakformulieren!$E322=\"5 letsel\",vakformulieren!$E322=\"5 onwel / ziek\",vakformulieren!$E322=\"5 milieuschade\"),vakformulieren!$E316,\"\")","v":""},{"$f":"IF(OR(vakformulieren!$E322=\"5 letsel\",vakformulieren!$E322=\"5 onwel / ziek\",vakformulieren!$E322=\"5 milieuschade\"),vakformulieren!$V322,\"\")","v":""},null,null,null,null,{"$f":"IF(AND(OR(vakformulieren!$E322=\"5 letsel\",vakformulieren!$E322=\"5 onwel / ziek\",vakformulieren!$E322=\"5 milieuschade\"),vakformulieren!$E316>0),SUM(vakformulieren!$P316/8),\"\")","v":""}]
[{"$f":"IF(OR(vakformulieren!$E317=\"5 letsel\",vakformulieren!$E317=\"5 onwel / ziek\",vakformulieren!$E317=\"5 milieuschade\"),vakformulieren!$A317,\"\")","v":""},"",{"$f":"IF(OR(vakformulieren!$E323=\"5 letsel\",vakformulieren!$E323=\"5 onwel / ziek\",vakformulieren!$E323=\"5 milieuschade\"),vakformulieren!$C317,\"\")","v":""},{"$f":"IF(OR(vakformulieren!$E323=\"5 letsel\",vakformulieren!$E323=\"5 onwel / ziek\",vakformulieren!$E323=\"5 milieuschade\"),vakformulieren!$E317,\"\")","v":""},{"$f":"IF(OR(vakformulieren!$E323=\"5 letsel\",vakformulieren!$E323=\"5 onwel / ziek\",vakformulieren!$E323=\"5 milieuschade\"),vakformulieren!$V323,\"\")","v":""},null,null,null,null,{"$f":"IF(AND(OR(vakformulieren!$E323=\"5 letsel\",vakformulieren!$E323=\"5 onwel / ziek\",vakformulieren!$E323=\"5 milieuschade\"),vakformulieren!$E317>0),SUM(vakformulieren!$P317/8),\"\")","v":""}]
[{"$f":"IF(OR(vakformulieren!$E318=\"5 letsel\",vakformulieren!$E318=\"5 onwel / ziek\",vakformulieren!$E318=\"5 milieuschade\"),vakformulieren!$A318,\"\")","v":""},"",{"$f":"IF(OR(vakformulieren!$E324=\"5 letsel\",vakformulieren!$E324=\"5 onwel / ziek\",vakformulieren!$E324=\"5 milieuschade\"),vakformulieren!$C318,\"\")","v":""},{"$f":"IF(OR(vakformulieren!$E324=\"5 letsel\",vakformulieren!$E324=\"5 onwel / ziek\",vakformulieren!$E324=\"5 milieuschade\"),vakformulieren!$E318,\"\")","v":""},{"$f":"IF(OR(vakformulieren!$E324=\"5 letsel\",vakformulieren!$E324=\"5 onwel / ziek\",vakformulieren!$E324=\"5 milieuschade\"),vakformulieren!$V324,\"\")","v":""},null,null,null,null,{"$f":"IF(AND(OR(vakformulieren!$E324=\"5 letsel\",vakformulieren!$E324=\"5 onwel / ziek\",vakformulieren!$E324=\"5 milieuschade\"),vakformulieren!$E318>0),SUM(vakformulieren!$P318/8),\"\")","v":""}]
[{"$f":"IF(OR(vakformulieren!$E319=\"5 letsel\",vakformulieren!$E319=\"5 onwel / ziek\",vakformulieren!$E319=\"5 milieuschade\"),vakformulieren!$A319,\"\")","v":""},"",{"$f":"IF(OR(vakformulieren!$E325=\"5 letsel\",vakformulieren!$E325=\"5 onwel / ziek\",vakformulieren!$E325=\"5 milieuschade\"),vakformulieren!$C319,\"\")","v":""},{"$f":"IF(OR(vakformulieren!$E325=\"5 letsel\",vakformulieren!$E325=\"5 onwel / ziek\",vakformulieren!$E325=\"5 milieuschade\"),vakformulieren!$E319,\"\")","v":""},{"$f":"IF(OR(vakformulieren!$E325=\"5 letsel\",vakformulieren!$E325=\"5 onwel / ziek\",vakformulieren!$E325=\"5 milieuschade\"),vakformulieren!$V325,\"\")","v":""},null,null,null,null,{"$f":"IF(AND(OR(vakformulieren!$E325=\"5 letsel\",vakformulieren!$E325=\"5 onwel / ziek\",vakformulieren!$E325=\"5 milieuschade\"),vakformulieren!$E319>0),SUM(vakformulieren!$P319/8),\"\")","v":""}]
[{"$f":"IF(OR(vakformulieren!$E320=\"5 letsel\",vakformulieren!$E320=\"5 onwel / ziek\",vakformulieren!$E320=\"5 milieuschade\"),vakformulieren!$A320,\"\")","v":""},"",{"$f":"IF(OR(vakformulieren!$E326=\"5 letsel\",vakformulieren!$E326=\"5 onwel / ziek\",vakformulieren!$E326=\"5 milieuschade\"),vakformulieren!$C320,\"\")","v":""},{"$f":"IF(OR(vakformulieren!$E326=\"5 letsel\",vakformulieren!$E326=\"5 onwel / ziek\",vakformulieren!$E326=\"5 milieuschade\"),vakformulieren!$E320,\"\")","v":""},{"$f":"IF(OR(vakformulieren!$E326=\"5 letsel\",vakformulieren!$E326=\"5 onwel / ziek\",vakformulieren!$E326=\"5 milieuschade\"),vakformulieren!$V326,\"\")","v":""},null,null,null,null,{"$f":"IF(AND(OR(vakformulieren!$E326=\"5 letsel\",vakformulieren!$E326=\"5 onwel / ziek\",vakformulieren!$E326=\"5 milieuschade\"),vakformulieren!$E320>0),SUM(vakformulieren!$P320/8),\"\")","v":""}]
[{"$f":"IF(OR(vakformulieren!$E321=\"5 letsel\",vakformulieren!$E321=\"5 onwel / ziek\",vakformulieren!$E321=\"5 milieuschade\"),vakformulieren!$A321,\"\")","v":""},"",{"$f":"IF(OR(vakformulieren!$E327=\"5 letsel\",vakformulieren!$E327=\"5 onwel / ziek\",vakformulieren!$E327=\"5 milieuschade\"),vakformulieren!$C321,\"\")","v":""},{"$f":"IF(OR(vakformulieren!$E327=\"5 letsel\",vakformulieren!$E327=\"5 onwel / ziek\",vakformulieren!$E327=\"5 milieuschade\"),vakformulieren!$E321,\"\")","v":""},{"$f":"IF(OR(vakformulieren!$E327=\"5 letsel\",vakformulieren!$E327=\"5 onwel / ziek\",vakformulieren!$E327=\"5 milieuschade\"),vakformulieren!$V327,\"\")","v":""},null,null,null,null,{"$f":"IF(AND(OR(vakformulieren!$E327=\"5 letsel\",vakformulieren!$E327=\"5 onwel / ziek\",vakformulieren!$E327=\"5 milieuschade\"),vakformulieren!$E321>0),SUM(vakformulieren!$P321/8),\"\")","v":""}]
[{"$f":"IF(OR(vakformulieren!$E322=\"5 letsel\",vakformulieren!$E322=\"5 onwel / ziek\",vakformulieren!$E322=\"5 milieuschade\"),vakformulieren!$A322,\"\")","v":""},"",{"$f":"IF(OR(vakformulieren!$E328=\"5 letsel\",vakformulieren!$E328=\"5 onwel / ziek\",vakformulieren!$E328=\"5 milieuschade\"),vakformulieren!$C322,\"\")","v":""},{"$f":"IF(OR(vakformulieren!$E328=\"5 letsel\",vakformulieren!$E328=\"5 onwel / ziek\",vakformulieren!$E328=\"5 milieuschade\"),vakformulieren!$E322,\"\")","v":""},{"$f":"IF(OR(vakformulieren!$E328=\"5 letsel\",vakformulieren!$E328=\"5 onwel / ziek\",vakformulieren!$E328=\"5 milieuschade\"),vakformulieren!$V328,\"\")","v":""},null,null,null,null,{"$f":"IF(AND(OR(vakformulieren!$E328=\"5 letsel\",vakformulieren!$E328=\"5 onwel / ziek\",vakformulieren!$E328=\"5 milieuschade\"),vakformulieren!$E322>0),SUM(vakformulieren!$P322/8),\"\")","v":""}]
[{"$f":"IF(OR(vakformulieren!$E323=\"5 letsel\",vakformulieren!$E323=\"5 onwel / ziek\",vakformulieren!$E323=\"5 milieuschade\"),vakformulieren!$A323,\"\")","v":""},{"$f":"IF($A324>\"\",HYPERLINK(CONCATENATE($AL$1,$A324,$AK$1),$A324),\"\")","v":""},{"$f":"IF(OR(vakformulieren!$E329=\"5 letsel\",vakformulieren!$E329=\"5 onwel / ziek\",vakformulieren!$E329=\"5 milieuschade\"),vakformulieren!$C323,\"\")","v":""},{"$f":"IF(OR(vakformulieren!$E329=\"5 letsel\",vakformulieren!$E329=\"5 onwel / ziek\",vakformulieren!$E329=\"5 milieuschade\"),vakformulieren!$E323,\"\")","v":""},{"$f":"IF(OR(vakformulieren!$E329=\"5 letsel\",vakformulieren!$E329=\"5 onwel / ziek\",vakformulieren!$E329=\"5 milieuschade\"),vakformulieren!$V329,\"\")","v":""},null,null,null,null,{"$f":"IF(AND(OR(vakformulieren!$E329=\"5 letsel\",vakformulieren!$E329=\"5 onwel / ziek\",vakformulieren!$E329=\"5 milieuschade\"),vakformulieren!$E323>0),SUM(vakformulieren!$P323/8),\"\")","v":""}]
[{"$f":"IF(OR(vakformulieren!$E324=\"5 letsel\",vakformulieren!$E324=\"5 onwel / ziek\",vakformulieren!$E324=\"5 milieuschade\"),vakformulieren!$A324,\"\")","v":""},"",{"$f":"IF(OR(vakformulieren!$E330=\"5 letsel\",vakformulieren!$E330=\"5 onwel / ziek\",vakformulieren!$E330=\"5 milieuschade\"),vakformulieren!$C324,\"\")","v":""},{"$f":"IF(OR(vakformulieren!$E330=\"5 letsel\",vakformulieren!$E330=\"5 onwel / ziek\",vakformulieren!$E330=\"5 milieuschade\"),vakformulieren!$E324,\"\")","v":""},{"$f":"IF(OR(vakformulieren!$E330=\"5 letsel\",vakformulieren!$E330=\"5 onwel / ziek\",vakformulieren!$E330=\"5 milieuschade\"),vakformulieren!$V330,\"\")","v":""},null,null,null,null,{"$f":"IF(AND(OR(vakformulieren!$E330=\"5 letsel\",vakformulieren!$E330=\"5 onwel / ziek\",vakformulieren!$E330=\"5 milieuschade\"),vakformulieren!$E324>0),SUM(vakformulieren!$P324/8),\"\")","v":""}]
[{"$f":"IF(OR(vakformulieren!$E325=\"5 letsel\",vakformulieren!$E325=\"5 onwel / ziek\",vakformulieren!$E325=\"5 milieuschade\"),vakformulieren!$A325,\"\")","v":""},"",{"$f":"IF(OR(vakformulieren!$E331=\"5 letsel\",vakformulieren!$E331=\"5 onwel / ziek\",vakformulieren!$E331=\"5 milieuschade\"),vakformulieren!$C325,\"\")","v":""},{"$f":"IF(OR(vakformulieren!$E331=\"5 letsel\",vakformulieren!$E331=\"5 onwel / ziek\",vakformulieren!$E331=\"5 milieuschade\"),vakformulieren!$E325,\"\")","v":""},{"$f":"IF(OR(vakformulieren!$E331=\"5 letsel\",vakformulieren!$E331=\"5 onwel / ziek\",vakformulieren!$E331=\"5 milieuschade\"),vakformulieren!$V331,\"\")","v":""},null,null,null,null,{"$f":"IF(AND(OR(vakformulieren!$E331=\"5 letsel\",vakformulieren!$E331=\"5 onwel / ziek\",vakformulieren!$E331=\"5 milieuschade\"),vakformulieren!$E325>0),SUM(vakformulieren!$P325/8),\"\")","v":""}]
[{"$f":"IF(OR(vakformulieren!$E326=\"5 letsel\",vakformulieren!$E326=\"5 onwel / ziek\",vakformulieren!$E326=\"5 milieuschade\"),vakformulieren!$A326,\"\")","v":""},"",{"$f":"IF(OR(vakformulieren!$E332=\"5 letsel\",vakformulieren!$E332=\"5 onwel / ziek\",vakformulieren!$E332=\"5 milieuschade\"),vakformulieren!$C326,\"\")","v":""},{"$f":"IF(OR(vakformulieren!$E332=\"5 letsel\",vakformulieren!$E332=\"5 onwel / ziek\",vakformulieren!$E332=\"5 milieuschade\"),vakformulieren!$E326,\"\")","v":""},{"$f":"IF(OR(vakformulieren!$E332=\"5 letsel\",vakformulieren!$E332=\"5 onwel / ziek\",vakformulieren!$E332=\"5 milieuschade\"),vakformulieren!$V332,\"\")","v":""},null,null,null,null,{"$f":"IF(AND(OR(vakformulieren!$E332=\"5 letsel\",vakformulieren!$E332=\"5 onwel / ziek\",vakformulieren!$E332=\"5 milieuschade\"),vakformulieren!$E326>0),SUM(vakformulieren!$P326/8),\"\")","v":""}]
[{"$f":"IF(OR(vakformulieren!$E327=\"5 letsel\",vakformulieren!$E327=\"5 onwel / ziek\",vakformulieren!$E327=\"5 milieuschade\"),vakformulieren!$A327,\"\")","v":""},"",{"$f":"IF(OR(vakformulieren!$E333=\"5 letsel\",vakformulieren!$E333=\"5 onwel / ziek\",vakformulieren!$E333=\"5 milieuschade\"),vakformulieren!$C327,\"\")","v":""},{"$f":"IF(OR(vakformulieren!$E333=\"5 letsel\",vakformulieren!$E333=\"5 onwel / ziek\",vakformulieren!$E333=\"5 milieuschade\"),vakformulieren!$E327,\"\")","v":""},{"$f":"IF(OR(vakformulieren!$E333=\"5 letsel\",vakformulieren!$E333=\"5 onwel / ziek\",vakformulieren!$E333=\"5 milieuschade\"),vakformulieren!$V333,\"\")","v":""},null,null,null,null,{"$f":"IF(AND(OR(vakformulieren!$E333=\"5 letsel\",vakformulieren!$E333=\"5 onwel / ziek\",vakformulieren!$E333=\"5 milieuschade\"),vakformulieren!$E327>0),SUM(vakformulieren!$P327/8),\"\")","v":""}]
[{"$f":"IF(OR(vakformulieren!$E328=\"5 letsel\",vakformulieren!$E328=\"5 onwel / ziek\",vakformulieren!$E328=\"5 milieuschade\"),vakformulieren!$A328,\"\")","v":""},"",{"$f":"IF(OR(vakformulieren!$E334=\"5 letsel\",vakformulieren!$E334=\"5 onwel / ziek\",vakformulieren!$E334=\"5 milieuschade\"),vakformulieren!$C328,\"\")","v":""},{"$f":"IF(OR(vakformulieren!$E334=\"5 letsel\",vakformulieren!$E334=\"5 onwel / ziek\",vakformulieren!$E334=\"5 milieuschade\"),vakformulieren!$E328,\"\")","v":""},{"$f":"IF(OR(vakformulieren!$E334=\"5 letsel\",vakformulieren!$E334=\"5 onwel / ziek\",vakformulieren!$E334=\"5 milieuschade\"),vakformulieren!$V334,\"\")","v":""},null,null,null,null,{"$f":"IF(AND(OR(vakformulieren!$E334=\"5 letsel\",vakformulieren!$E334=\"5 onwel / ziek\",vakformulieren!$E334=\"5 milieuschade\"),vakformulieren!$E328>0),SUM(vakformulieren!$P328/8),\"\")","v":""}]
[{"$f":"IF(OR(vakformulieren!$E329=\"5 letsel\",vakformulieren!$E329=\"5 onwel / ziek\",vakformulieren!$E329=\"5 milieuschade\"),vakformulieren!$A329,\"\")","v":""},"",{"$f":"IF(OR(vakformulieren!$E335=\"5 letsel\",vakformulieren!$E335=\"5 onwel / ziek\",vakformulieren!$E335=\"5 milieuschade\"),vakformulieren!$C329,\"\")","v":""},{"$f":"IF(OR(vakformulieren!$E335=\"5 letsel\",vakformulieren!$E335=\"5 onwel / ziek\",vakformulieren!$E335=\"5 milieuschade\"),vakformulieren!$E329,\"\")","v":""},{"$f":"IF(OR(vakformulieren!$E335=\"5 letsel\",vakformulieren!$E335=\"5 onwel / ziek\",vakformulieren!$E335=\"5 milieuschade\"),vakformulieren!$V335,\"\")","v":""},null,null,null,null,{"$f":"IF(AND(OR(vakformulieren!$E335=\"5 letsel\",vakformulieren!$E335=\"5 onwel / ziek\",vakformulieren!$E335=\"5 milieuschade\"),vakformulieren!$E329>0),SUM(vakformulieren!$P329/8),\"\")","v":""}]
[{"$f":"IF(OR(vakformulieren!$E330=\"5 letsel\",vakformulieren!$E330=\"5 onwel / ziek\",vakformulieren!$E330=\"5 milieuschade\"),vakformulieren!$A330,\"\")","v":""},"",{"$f":"IF(OR(vakformulieren!$E336=\"5 letsel\",vakformulieren!$E336=\"5 onwel / ziek\",vakformulieren!$E336=\"5 milieuschade\"),vakformulieren!$C330,\"\")","v":""},{"$f":"IF(OR(vakformulieren!$E336=\"5 letsel\",vakformulieren!$E336=\"5 onwel / ziek\",vakformulieren!$E336=\"5 milieuschade\"),vakformulieren!$E330,\"\")","v":""},{"$f":"IF(OR(vakformulieren!$E336=\"5 letsel\",vakformulieren!$E336=\"5 onwel / ziek\",vakformulieren!$E336=\"5 milieuschade\"),vakformulieren!$V336,\"\")","v":""},null,null,null,null,{"$f":"IF(AND(OR(vakformulieren!$E336=\"5 letsel\",vakformulieren!$E336=\"5 onwel / ziek\",vakformulieren!$E336=\"5 milieuschade\"),vakformulieren!$E330>0),SUM(vakformulieren!$P330/8),\"\")","v":""}]
[{"$f":"IF(OR(vakformulieren!$E331=\"5 letsel\",vakformulieren!$E331=\"5 onwel / ziek\",vakformulieren!$E331=\"5 milieuschade\"),vakformulieren!$A331,\"\")","v":""},"",{"$f":"IF(OR(vakformulieren!$E337=\"5 letsel\",vakformulieren!$E337=\"5 onwel / ziek\",vakformulieren!$E337=\"5 milieuschade\"),vakformulieren!$C331,\"\")","v":""},{"$f":"IF(OR(vakformulieren!$E337=\"5 letsel\",vakformulieren!$E337=\"5 onwel / ziek\",vakformulieren!$E337=\"5 milieuschade\"),vakformulieren!$E331,\"\")","v":""},{"$f":"IF(OR(vakformulieren!$E337=\"5 letsel\",vakformulieren!$E337=\"5 onwel / ziek\",vakformulieren!$E337=\"5 milieuschade\"),vakformulieren!$V337,\"\")","v":""},null,null,null,null,{"$f":"IF(AND(OR(vakformulieren!$E337=\"5 letsel\",vakformulieren!$E337=\"5 onwel / ziek\",vakformulieren!$E337=\"5 milieuschade\"),vakformulieren!$E331>0),SUM(vakformulieren!$P331/8),\"\")","v":""}]
[{"$f":"IF(OR(vakformulieren!$E332=\"5 letsel\",vakformulieren!$E332=\"5 onwel / ziek\",vakformulieren!$E332=\"5 milieuschade\"),vakformulieren!$A332,\"\")","v":""},"",{"$f":"IF(OR(vakformulieren!$E338=\"5 letsel\",vakformulieren!$E338=\"5 onwel / ziek\",vakformulieren!$E338=\"5 milieuschade\"),vakformulieren!$C332,\"\")","v":""},{"$f":"IF(OR(vakformulieren!$E338=\"5 letsel\",vakformulieren!$E338=\"5 onwel / ziek\",vakformulieren!$E338=\"5 milieuschade\"),vakformulieren!$E332,\"\")","v":""},{"$f":"IF(OR(vakformulieren!$E338=\"5 letsel\",vakformulieren!$E338=\"5 onwel / ziek\",vakformulieren!$E338=\"5 milieuschade\"),vakformulieren!$V338,\"\")","v":""},null,null,null,null,{"$f":"IF(AND(OR(vakformulieren!$E338=\"5 letsel\",vakformulieren!$E338=\"5 onwel / ziek\",vakformulieren!$E338=\"5 milieuschade\"),vakformulieren!$E332>0),SUM(vakformulieren!$P332/8),\"\")","v":""}]
[{"$f":"IF(OR(vakformulieren!$E333=\"5 letsel\",vakformulieren!$E333=\"5 onwel / ziek\",vakformulieren!$E333=\"5 milieuschade\"),vakformulieren!$A333,\"\")","v":""},"",{"$f":"IF(OR(vakformulieren!$E339=\"5 letsel\",vakformulieren!$E339=\"5 onwel / ziek\",vakformulieren!$E339=\"5 milieuschade\"),vakformulieren!$C333,\"\")","v":""},{"$f":"IF(OR(vakformulieren!$E339=\"5 letsel\",vakformulieren!$E339=\"5 onwel / ziek\",vakformulieren!$E339=\"5 milieuschade\"),vakformulieren!$E333,\"\")","v":""},{"$f":"IF(OR(vakformulieren!$E339=\"5 letsel\",vakformulieren!$E339=\"5 onwel / ziek\",vakformulieren!$E339=\"5 milieuschade\"),vakformulieren!$V339,\"\")","v":""},null,null,null,null,{"$f":"IF(AND(OR(vakformulieren!$E339=\"5 letsel\",vakformulieren!$E339=\"5 onwel / ziek\",vakformulieren!$E339=\"5 milieuschade\"),vakformulieren!$E333>0),SUM(vakformulieren!$P333/8),\"\")","v":""}]
[{"$f":"IF(OR(vakformulieren!$E334=\"5 letsel\",vakformulieren!$E334=\"5 onwel / ziek\",vakformulieren!$E334=\"5 milieuschade\"),vakformulieren!$A334,\"\")","v":""},"",{"$f":"IF(OR(vakformulieren!$E340=\"5 letsel\",vakformulieren!$E340=\"5 onwel / ziek\",vakformulieren!$E340=\"5 milieuschade\"),vakformulieren!$C334,\"\")","v":""},{"$f":"IF(OR(vakformulieren!$E340=\"5 letsel\",vakformulieren!$E340=\"5 onwel / ziek\",vakformulieren!$E340=\"5 milieuschade\"),vakformulieren!$E334,\"\")","v":""},{"$f":"IF(OR(vakformulieren!$E340=\"5 letsel\",vakformulieren!$E340=\"5 onwel / ziek\",vakformulieren!$E340=\"5 milieuschade\"),vakformulieren!$V340,\"\")","v":""},null,null,null,null,{"$f":"IF(AND(OR(vakformulieren!$E340=\"5 letsel\",vakformulieren!$E340=\"5 onwel / ziek\",vakformulieren!$E340=\"5 milieuschade\"),vakformulieren!$E334>0),SUM(vakformulieren!$P334/8),\"\")","v":""}]
[{"$f":"IF(OR(vakformulieren!$E335=\"5 letsel\",vakformulieren!$E335=\"5 onwel / ziek\",vakformulieren!$E335=\"5 milieuschade\"),vakformulieren!$A335,\"\")","v":""},"",{"$f":"IF(OR(vakformulieren!$E341=\"5 letsel\",vakformulieren!$E341=\"5 onwel / ziek\",vakformulieren!$E341=\"5 milieuschade\"),vakformulieren!$C335,\"\")","v":""},{"$f":"IF(OR(vakformulieren!$E341=\"5 letsel\",vakformulieren!$E341=\"5 onwel / ziek\",vakformulieren!$E341=\"5 milieuschade\"),vakformulieren!$E335,\"\")","v":""},{"$f":"IF(OR(vakformulieren!$E341=\"5 letsel\",vakformulieren!$E341=\"5 onwel / ziek\",vakformulieren!$E341=\"5 milieuschade\"),vakformulieren!$V341,\"\")","v":""},null,null,null,null,{"$f":"IF(AND(OR(vakformulieren!$E341=\"5 letsel\",vakformulieren!$E341=\"5 onwel / ziek\",vakformulieren!$E341=\"5 milieuschade\"),vakformulieren!$E335>0),SUM(vakformulieren!$P335/8),\"\")","v":""}]
[{"$f":"IF(OR(vakformulieren!$E336=\"5 letsel\",vakformulieren!$E336=\"5 onwel / ziek\",vakformulieren!$E336=\"5 milieuschade\"),vakformulieren!$A336,\"\")","v":""},"",{"$f":"IF(OR(vakformulieren!$E342=\"5 letsel\",vakformulieren!$E342=\"5 onwel / ziek\",vakformulieren!$E342=\"5 milieuschade\"),vakformulieren!$C336,\"\")","v":""},{"$f":"IF(OR(vakformulieren!$E342=\"5 letsel\",vakformulieren!$E342=\"5 onwel / ziek\",vakformulieren!$E342=\"5 milieuschade\"),vakformulieren!$E336,\"\")","v":""},{"$f":"IF(OR(vakformulieren!$E342=\"5 letsel\",vakformulieren!$E342=\"5 onwel / ziek\",vakformulieren!$E342=\"5 milieuschade\"),vakformulieren!$V342,\"\")","v":""},null,null,null,null,{"$f":"IF(AND(OR(vakformulieren!$E342=\"5 letsel\",vakformulieren!$E342=\"5 onwel / ziek\",vakformulieren!$E342=\"5 milieuschade\"),vakformulieren!$E336>0),SUM(vakformulieren!$P336/8),\"\")","v":""}]
[{"$f":"IF(OR(vakformulieren!$E337=\"5 letsel\",vakformulieren!$E337=\"5 onwel / ziek\",vakformulieren!$E337=\"5 milieuschade\"),vakformulieren!$A337,\"\")","v":""},"",{"$f":"IF(OR(vakformulieren!$E343=\"5 letsel\",vakformulieren!$E343=\"5 onwel / ziek\",vakformulieren!$E343=\"5 milieuschade\"),vakformulieren!$C337,\"\")","v":""},{"$f":"IF(OR(vakformulieren!$E343=\"5 letsel\",vakformulieren!$E343=\"5 onwel / ziek\",vakformulieren!$E343=\"5 milieuschade\"),vakformulieren!$E337,\"\")","v":""},{"$f":"IF(OR(vakformulieren!$E343=\"5 letsel\",vakformulieren!$E343=\"5 onwel / ziek\",vakformulieren!$E343=\"5 milieuschade\"),vakformulieren!$V343,\"\")","v":""},null,null,null,null,{"$f":"IF(AND(OR(vakformulieren!$E343=\"5 letsel\",vakformulieren!$E343=\"5 onwel / ziek\",vakformulieren!$E343=\"5 milieuschade\"),vakformulieren!$E337>0),SUM(vakformulieren!$P337/8),\"\")","v":""}]
[{"$f":"IF(OR(vakformulieren!$E338=\"5 letsel\",vakformulieren!$E338=\"5 onwel / ziek\",vakformulieren!$E338=\"5 milieuschade\"),vakformulieren!$A338,\"\")","v":""},"",{"$f":"IF(OR(vakformulieren!$E344=\"5 letsel\",vakformulieren!$E344=\"5 onwel / ziek\",vakformulieren!$E344=\"5 milieuschade\"),vakformulieren!$C338,\"\")","v":""},{"$f":"IF(OR(vakformulieren!$E344=\"5 letsel\",vakformulieren!$E344=\"5 onwel / ziek\",vakformulieren!$E344=\"5 milieuschade\"),vakformulieren!$E338,\"\")","v":""},{"$f":"IF(OR(vakformulieren!$E344=\"5 letsel\",vakformulieren!$E344=\"5 onwel / ziek\",vakformulieren!$E344=\"5 milieuschade\"),vakformulieren!$V344,\"\")","v":""},null,null,null,null,{"$f":"IF(AND(OR(vakformulieren!$E344=\"5 letsel\",vakformulieren!$E344=\"5 onwel / ziek\",vakformulieren!$E344=\"5 milieuschade\"),vakformulieren!$E338>0),SUM(vakformulieren!$P338/8),\"\")","v":""}]
[{"$f":"IF(OR(vakformulieren!$E339=\"5 letsel\",vakformulieren!$E339=\"5 onwel / ziek\",vakformulieren!$E339=\"5 milieuschade\"),vakformulieren!$A339,\"\")","v":""},"",{"$f":"IF(OR(vakformulieren!$E345=\"5 letsel\",vakformulieren!$E345=\"5 onwel / ziek\",vakformulieren!$E345=\"5 milieuschade\"),vakformulieren!$C339,\"\")","v":""},{"$f":"IF(OR(vakformulieren!$E345=\"5 letsel\",vakformulieren!$E345=\"5 onwel / ziek\",vakformulieren!$E345=\"5 milieuschade\"),vakformulieren!$E339,\"\")","v":""},{"$f":"IF(OR(vakformulieren!$E345=\"5 letsel\",vakformulieren!$E345=\"5 onwel / ziek\",vakformulieren!$E345=\"5 milieuschade\"),vakformulieren!$V345,\"\")","v":""},null,null,null,null,{"$f":"IF(AND(OR(vakformulieren!$E345=\"5 letsel\",vakformulieren!$E345=\"5 onwel / ziek\",vakformulieren!$E345=\"5 milieuschade\"),vakformulieren!$E339>0),SUM(vakformulieren!$P339/8),\"\")","v":""}]
[{"$f":"IF(OR(vakformulieren!$E340=\"5 letsel\",vakformulieren!$E340=\"5 onwel / ziek\",vakformulieren!$E340=\"5 milieuschade\"),vakformulieren!$A340,\"\")","v":""},"",{"$f":"IF(OR(vakformulieren!$E346=\"5 letsel\",vakformulieren!$E346=\"5 onwel / ziek\",vakformulieren!$E346=\"5 milieuschade\"),vakformulieren!$C340,\"\")","v":""},{"$f":"IF(OR(vakformulieren!$E346=\"5 letsel\",vakformulieren!$E346=\"5 onwel / ziek\",vakformulieren!$E346=\"5 milieuschade\"),vakformulieren!$E340,\"\")","v":""},{"$f":"IF(OR(vakformulieren!$E346=\"5 letsel\",vakformulieren!$E346=\"5 onwel / ziek\",vakformulieren!$E346=\"5 milieuschade\"),vakformulieren!$V346,\"\")","v":""},null,null,null,null,{"$f":"IF(AND(OR(vakformulieren!$E346=\"5 letsel\",vakformulieren!$E346=\"5 onwel / ziek\",vakformulieren!$E346=\"5 milieuschade\"),vakformulieren!$E340>0),SUM(vakformulieren!$P340/8),\"\")","v":""}]
[{"$f":"IF(OR(vakformulieren!$E341=\"5 letsel\",vakformulieren!$E341=\"5 onwel / ziek\",vakformulieren!$E341=\"5 milieuschade\"),vakformulieren!$A341,\"\")","v":""},"",{"$f":"IF(OR(vakformulieren!$E347=\"5 letsel\",vakformulieren!$E347=\"5 onwel / ziek\",vakformulieren!$E347=\"5 milieuschade\"),vakformulieren!$C341,\"\")","v":""},{"$f":"IF(OR(vakformulieren!$E347=\"5 letsel\",vakformulieren!$E347=\"5 onwel / ziek\",vakformulieren!$E347=\"5 milieuschade\"),vakformulieren!$E341,\"\")","v":""},{"$f":"IF(OR(vakformulieren!$E347=\"5 letsel\",vakformulieren!$E347=\"5 onwel / ziek\",vakformulieren!$E347=\"5 milieuschade\"),vakformulieren!$V347,\"\")","v":""},null,null,null,null,{"$f":"IF(AND(OR(vakformulieren!$E347=\"5 letsel\",vakformulieren!$E347=\"5 onwel / ziek\",vakformulieren!$E347=\"5 milieuschade\"),vakformulieren!$E341>0),SUM(vakformulieren!$P341/8),\"\")","v":""}]
[{"$f":"IF(OR(vakformulieren!$E342=\"5 letsel\",vakformulieren!$E342=\"5 onwel / ziek\",vakformulieren!$E342=\"5 milieuschade\"),vakformulieren!$A342,\"\")","v":""},"",{"$f":"IF(OR(vakformulieren!$E348=\"5 letsel\",vakformulieren!$E348=\"5 onwel / ziek\",vakformulieren!$E348=\"5 milieuschade\"),vakformulieren!$C342,\"\")","v":""},{"$f":"IF(OR(vakformulieren!$E348=\"5 letsel\",vakformulieren!$E348=\"5 onwel / ziek\",vakformulieren!$E348=\"5 milieuschade\"),vakformulieren!$E342,\"\")","v":""},{"$f":"IF(OR(vakformulieren!$E348=\"5 letsel\",vakformulieren!$E348=\"5 onwel / ziek\",vakformulieren!$E348=\"5 milieuschade\"),vakformulieren!$V348,\"\")","v":""},null,null,null,null,{"$f":"IF(AND(OR(vakformulieren!$E348=\"5 letsel\",vakformulieren!$E348=\"5 onwel / ziek\",vakformulieren!$E348=\"5 milieuschade\"),vakformulieren!$E342>0),SUM(vakformulieren!$P342/8),\"\")","v":""}]
[{"$f":"IF(OR(vakformulieren!$E343=\"5 letsel\",vakformulieren!$E343=\"5 onwel / ziek\",vakformulieren!$E343=\"5 milieuschade\"),vakformulieren!$A343,\"\")","v":""},"",{"$f":"IF(OR(vakformulieren!$E349=\"5 letsel\",vakformulieren!$E349=\"5 onwel / ziek\",vakformulieren!$E349=\"5 milieuschade\"),vakformulieren!$C343,\"\")","v":""},{"$f":"IF(OR(vakformulieren!$E349=\"5 letsel\",vakformulieren!$E349=\"5 onwel / ziek\",vakformulieren!$E349=\"5 milieuschade\"),vakformulieren!$E343,\"\")","v":""},{"$f":"IF(OR(vakformulieren!$E349=\"5 letsel\",vakformulieren!$E349=\"5 onwel / ziek\",vakformulieren!$E349=\"5 milieuschade\"),vakformulieren!$V349,\"\")","v":""},null,null,null,null,{"$f":"IF(AND(OR(vakformulieren!$E349=\"5 letsel\",vakformulieren!$E349=\"5 onwel / ziek\",vakformulieren!$E349=\"5 milieuschade\"),vakformulieren!$E343>0),SUM(vakformulieren!$P343/8),\"\")","v":""}]
[{"$f":"IF(OR(vakformulieren!$E344=\"5 letsel\",vakformulieren!$E344=\"5 onwel / ziek\",vakformulieren!$E344=\"5 milieuschade\"),vakformulieren!$A344,\"\")","v":""},"",{"$f":"IF(OR(vakformulieren!$E350=\"5 letsel\",vakformulieren!$E350=\"5 onwel / ziek\",vakformulieren!$E350=\"5 milieuschade\"),vakformulieren!$C344,\"\")","v":""},{"$f":"IF(OR(vakformulieren!$E350=\"5 letsel\",vakformulieren!$E350=\"5 onwel / ziek\",vakformulieren!$E350=\"5 milieuschade\"),vakformulieren!$E344,\"\")","v":""},{"$f":"IF(OR(vakformulieren!$E350=\"5 letsel\",vakformulieren!$E350=\"5 onwel / ziek\",vakformulieren!$E350=\"5 milieuschade\"),vakformulieren!$V350,\"\")","v":""},null,null,null,null,{"$f":"IF(AND(OR(vakformulieren!$E350=\"5 letsel\",vakformulieren!$E350=\"5 onwel / ziek\",vakformulieren!$E350=\"5 milieuschade\"),vakformulieren!$E344>0),SUM(vakformulieren!$P344/8),\"\")","v":""}]
[{"$f":"IF(OR(vakformulieren!$E345=\"5 letsel\",vakformulieren!$E345=\"5 onwel / ziek\",vakformulieren!$E345=\"5 milieuschade\"),vakformulieren!$A345,\"\")","v":""},"",{"$f":"IF(OR(vakformulieren!$E351=\"5 letsel\",vakformulieren!$E351=\"5 onwel / ziek\",vakformulieren!$E351=\"5 milieuschade\"),vakformulieren!$C345,\"\")","v":""},{"$f":"IF(OR(vakformulieren!$E351=\"5 letsel\",vakformulieren!$E351=\"5 onwel / ziek\",vakformulieren!$E351=\"5 milieuschade\"),vakformulieren!$E345,\"\")","v":""},{"$f":"IF(OR(vakformulieren!$E351=\"5 letsel\",vakformulieren!$E351=\"5 onwel / ziek\",vakformulieren!$E351=\"5 milieuschade\"),vakformulieren!$V351,\"\")","v":""},null,null,null,null,{"$f":"IF(AND(OR(vakformulieren!$E351=\"5 letsel\",vakformulieren!$E351=\"5 onwel / ziek\",vakformulieren!$E351=\"5 milieuschade\"),vakformulieren!$E345>0),SUM(vakformulieren!$P345/8),\"\")","v":""}]
[{"$f":"IF(OR(vakformulieren!$E346=\"5 letsel\",vakformulieren!$E346=\"5 onwel / ziek\",vakformulieren!$E346=\"5 milieuschade\"),vakformulieren!$A346,\"\")","v":""},"",{"$f":"IF(OR(vakformulieren!$E352=\"5 letsel\",vakformulieren!$E352=\"5 onwel / ziek\",vakformulieren!$E352=\"5 milieuschade\"),vakformulieren!$C346,\"\")","v":""},{"$f":"IF(OR(vakformulieren!$E352=\"5 letsel\",vakformulieren!$E352=\"5 onwel / ziek\",vakformulieren!$E352=\"5 milieuschade\"),vakformulieren!$E346,\"\")","v":""},{"$f":"IF(OR(vakformulieren!$E352=\"5 letsel\",vakformulieren!$E352=\"5 onwel / ziek\",vakformulieren!$E352=\"5 milieuschade\"),vakformulieren!$V352,\"\")","v":""},null,null,null,null,{"$f":"IF(AND(OR(vakformulieren!$E352=\"5 letsel\",vakformulieren!$E352=\"5 onwel / ziek\",vakformulieren!$E352=\"5 milieuschade\"),vakformulieren!$E346>0),SUM(vakformulieren!$P346/8),\"\")","v":""}]
[{"$f":"IF(OR(vakformulieren!$E347=\"5 letsel\",vakformulieren!$E347=\"5 onwel / ziek\",vakformulieren!$E347=\"5 milieuschade\"),vakformulieren!$A347,\"\")","v":""},"",{"$f":"IF(OR(vakformulieren!$E353=\"5 letsel\",vakformulieren!$E353=\"5 onwel / ziek\",vakformulieren!$E353=\"5 milieuschade\"),vakformulieren!$C347,\"\")","v":""},{"$f":"IF(OR(vakformulieren!$E353=\"5 letsel\",vakformulieren!$E353=\"5 onwel / ziek\",vakformulieren!$E353=\"5 milieuschade\"),vakformulieren!$E347,\"\")","v":""},{"$f":"IF(OR(vakformulieren!$E353=\"5 letsel\",vakformulieren!$E353=\"5 onwel / ziek\",vakformulieren!$E353=\"5 milieuschade\"),vakformulieren!$V353,\"\")","v":""},null,null,null,null,{"$f":"IF(AND(OR(vakformulieren!$E353=\"5 letsel\",vakformulieren!$E353=\"5 onwel / ziek\",vakformulieren!$E353=\"5 milieuschade\"),vakformulieren!$E347>0),SUM(vakformulieren!$P347/8),\"\")","v":""}]
[{"$f":"IF(OR(vakformulieren!$E348=\"5 letsel\",vakformulieren!$E348=\"5 onwel / ziek\",vakformulieren!$E348=\"5 milieuschade\"),vakformulieren!$A348,\"\")","v":""},"",{"$f":"IF(OR(vakformulieren!$E354=\"5 letsel\",vakformulieren!$E354=\"5 onwel / ziek\",vakformulieren!$E354=\"5 milieuschade\"),vakformulieren!$C348,\"\")","v":""},{"$f":"IF(OR(vakformulieren!$E354=\"5 letsel\",vakformulieren!$E354=\"5 onwel / ziek\",vakformulieren!$E354=\"5 milieuschade\"),vakformulieren!$E348,\"\")","v":""},{"$f":"IF(OR(vakformulieren!$E354=\"5 letsel\",vakformulieren!$E354=\"5 onwel / ziek\",vakformulieren!$E354=\"5 milieuschade\"),vakformulieren!$V354,\"\")","v":""},null,null,null,null,{"$f":"IF(AND(OR(vakformulieren!$E354=\"5 letsel\",vakformulieren!$E354=\"5 onwel / ziek\",vakformulieren!$E354=\"5 milieuschade\"),vakformulieren!$E348>0),SUM(vakformulieren!$P348/8),\"\")","v":""}]
[{"$f":"IF(OR(vakformulieren!$E349=\"5 letsel\",vakformulieren!$E349=\"5 onwel / ziek\",vakformulieren!$E349=\"5 milieuschade\"),vakformulieren!$A349,\"\")","v":""},"",{"$f":"IF(OR(vakformulieren!$E355=\"5 letsel\",vakformulieren!$E355=\"5 onwel / ziek\",vakformulieren!$E355=\"5 milieuschade\"),vakformulieren!$C349,\"\")","v":""},{"$f":"IF(OR(vakformulieren!$E355=\"5 letsel\",vakformulieren!$E355=\"5 onwel / ziek\",vakformulieren!$E355=\"5 milieuschade\"),vakformulieren!$E349,\"\")","v":""},{"$f":"IF(OR(vakformulieren!$E355=\"5 letsel\",vakformulieren!$E355=\"5 onwel / ziek\",vakformulieren!$E355=\"5 milieuschade\"),vakformulieren!$V355,\"\")","v":""},null,null,null,null,{"$f":"IF(AND(OR(vakformulieren!$E355=\"5 letsel\",vakformulieren!$E355=\"5 onwel / ziek\",vakformulieren!$E355=\"5 milieuschade\"),vakformulieren!$E349>0),SUM(vakformulieren!$P349/8),\"\")","v":""}]
[{"$f":"IF(OR(vakformulieren!$E350=\"5 letsel\",vakformulieren!$E350=\"5 onwel / ziek\",vakformulieren!$E350=\"5 milieuschade\"),vakformulieren!$A350,\"\")","v":""},"",{"$f":"IF(OR(vakformulieren!$E356=\"5 letsel\",vakformulieren!$E356=\"5 onwel / ziek\",vakformulieren!$E356=\"5 milieuschade\"),vakformulieren!$C350,\"\")","v":""},{"$f":"IF(OR(vakformulieren!$E356=\"5 letsel\",vakformulieren!$E356=\"5 onwel / ziek\",vakformulieren!$E356=\"5 milieuschade\"),vakformulieren!$E350,\"\")","v":""},{"$f":"IF(OR(vakformulieren!$E356=\"5 letsel\",vakformulieren!$E356=\"5 onwel / ziek\",vakformulieren!$E356=\"5 milieuschade\"),vakformulieren!$V356,\"\")","v":""},null,null,null,null,{"$f":"IF(AND(OR(vakformulieren!$E356=\"5 letsel\",vakformulieren!$E356=\"5 onwel / ziek\",vakformulieren!$E356=\"5 milieuschade\"),vakformulieren!$E350>0),SUM(vakformulieren!$P350/8),\"\")","v":""}]
[{"$f":"IF(OR(vakformulieren!$E351=\"5 letsel\",vakformulieren!$E351=\"5 onwel / ziek\",vakformulieren!$E351=\"5 milieuschade\"),vakformulieren!$A351,\"\")","v":""},"",{"$f":"IF(OR(vakformulieren!$E357=\"5 letsel\",vakformulieren!$E357=\"5 onwel / ziek\",vakformulieren!$E357=\"5 milieuschade\"),vakformulieren!$C351,\"\")","v":""},{"$f":"IF(OR(vakformulieren!$E357=\"5 letsel\",vakformulieren!$E357=\"5 onwel / ziek\",vakformulieren!$E357=\"5 milieuschade\"),vakformulieren!$E351,\"\")","v":""},{"$f":"IF(OR(vakformulieren!$E357=\"5 letsel\",vakformulieren!$E357=\"5 onwel / ziek\",vakformulieren!$E357=\"5 milieuschade\"),vakformulieren!$V357,\"\")","v":""},null,null,null,null,{"$f":"IF(AND(OR(vakformulieren!$E357=\"5 letsel\",vakformulieren!$E357=\"5 onwel / ziek\",vakformulieren!$E357=\"5 milieuschade\"),vakformulieren!$E351>0),SUM(vakformulieren!$P351/8),\"\")","v":""}]
[{"$f":"IF(OR(vakformulieren!$E352=\"5 letsel\",vakformulieren!$E352=\"5 onwel / ziek\",vakformulieren!$E352=\"5 milieuschade\"),vakformulieren!$A352,\"\")","v":""},"",{"$f":"IF(OR(vakformulieren!$E358=\"5 letsel\",vakformulieren!$E358=\"5 onwel / ziek\",vakformulieren!$E358=\"5 milieuschade\"),vakformulieren!$C352,\"\")","v":""},{"$f":"IF(OR(vakformulieren!$E358=\"5 letsel\",vakformulieren!$E358=\"5 onwel / ziek\",vakformulieren!$E358=\"5 milieuschade\"),vakformulieren!$E352,\"\")","v":""},{"$f":"IF(OR(vakformulieren!$E358=\"5 letsel\",vakformulieren!$E358=\"5 onwel / ziek\",vakformulieren!$E358=\"5 milieuschade\"),vakformulieren!$V358,\"\")","v":""},null,null,null,null,{"$f":"IF(AND(OR(vakformulieren!$E358=\"5 letsel\",vakformulieren!$E358=\"5 onwel / ziek\",vakformulieren!$E358=\"5 milieuschade\"),vakformulieren!$E352>0),SUM(vakformulieren!$P352/8),\"\")","v":""}]
[{"$f":"IF(OR(vakformulieren!$E353=\"5 letsel\",vakformulieren!$E353=\"5 onwel / ziek\",vakformulieren!$E353=\"5 milieuschade\"),vakformulieren!$A353,\"\")","v":""},"",{"$f":"IF(OR(vakformulieren!$E359=\"5 letsel\",vakformulieren!$E359=\"5 onwel / ziek\",vakformulieren!$E359=\"5 milieuschade\"),vakformulieren!$C353,\"\")","v":""},{"$f":"IF(OR(vakformulieren!$E359=\"5 letsel\",vakformulieren!$E359=\"5 onwel / ziek\",vakformulieren!$E359=\"5 milieuschade\"),vakformulieren!$E353,\"\")","v":""},{"$f":"IF(OR(vakformulieren!$E359=\"5 letsel\",vakformulieren!$E359=\"5 onwel / ziek\",vakformulieren!$E359=\"5 milieuschade\"),vakformulieren!$V359,\"\")","v":""},null,null,null,null,{"$f":"IF(AND(OR(vakformulieren!$E359=\"5 letsel\",vakformulieren!$E359=\"5 onwel / ziek\",vakformulieren!$E359=\"5 milieuschade\"),vakformulieren!$E353>0),SUM(vakformulieren!$P353/8),\"\")","v":""}]
[{"$f":"IF(OR(vakformulieren!$E354=\"5 letsel\",vakformulieren!$E354=\"5 onwel / ziek\",vakformulieren!$E354=\"5 milieuschade\"),vakformulieren!$A354,\"\")","v":""},"",{"$f":"IF(OR(vakformulieren!$E360=\"5 letsel\",vakformulieren!$E360=\"5 onwel / ziek\",vakformulieren!$E360=\"5 milieuschade\"),vakformulieren!$C354,\"\")","v":""},{"$f":"IF(OR(vakformulieren!$E360=\"5 letsel\",vakformulieren!$E360=\"5 onwel / ziek\",vakformulieren!$E360=\"5 milieuschade\"),vakformulieren!$E354,\"\")","v":""},{"$f":"IF(OR(vakformulieren!$E360=\"5 letsel\",vakformulieren!$E360=\"5 onwel / ziek\",vakformulieren!$E360=\"5 milieuschade\"),vakformulieren!$V360,\"\")","v":""},null,null,null,null,{"$f":"IF(AND(OR(vakformulieren!$E360=\"5 letsel\",vakformulieren!$E360=\"5 onwel / ziek\",vakformulieren!$E360=\"5 milieuschade\"),vakformulieren!$E354>0),SUM(vakformulieren!$P354/8),\"\")","v":""}]
[{"$f":"IF(OR(vakformulieren!$E355=\"5 letsel\",vakformulieren!$E355=\"5 onwel / ziek\",vakformulieren!$E355=\"5 milieuschade\"),vakformulieren!$A355,\"\")","v":""},"",{"$f":"IF(OR(vakformulieren!$E361=\"5 letsel\",vakformulieren!$E361=\"5 onwel / ziek\",vakformulieren!$E361=\"5 milieuschade\"),vakformulieren!$C355,\"\")","v":""},{"$f":"IF(OR(vakformulieren!$E361=\"5 letsel\",vakformulieren!$E361=\"5 onwel / ziek\",vakformulieren!$E361=\"5 milieuschade\"),vakformulieren!$E355,\"\")","v":""},{"$f":"IF(OR(vakformulieren!$E361=\"5 letsel\",vakformulieren!$E361=\"5 onwel / ziek\",vakformulieren!$E361=\"5 milieuschade\"),vakformulieren!$V361,\"\")","v":""},null,null,null,null,{"$f":"IF(AND(OR(vakformulieren!$E361=\"5 letsel\",vakformulieren!$E361=\"5 onwel / ziek\",vakformulieren!$E361=\"5 milieuschade\"),vakformulieren!$E355>0),SUM(vakformulieren!$P355/8),\"\")","v":""}]
[{"$f":"IF(OR(vakformulieren!$E356=\"5 letsel\",vakformulieren!$E356=\"5 onwel / ziek\",vakformulieren!$E356=\"5 milieuschade\"),vakformulieren!$A356,\"\")","v":""},"",{"$f":"IF(OR(vakformulieren!$E362=\"5 letsel\",vakformulieren!$E362=\"5 onwel / ziek\",vakformulieren!$E362=\"5 milieuschade\"),vakformulieren!$C356,\"\")","v":""},{"$f":"IF(OR(vakformulieren!$E362=\"5 letsel\",vakformulieren!$E362=\"5 onwel / ziek\",vakformulieren!$E362=\"5 milieuschade\"),vakformulieren!$E356,\"\")","v":""},{"$f":"IF(OR(vakformulieren!$E362=\"5 letsel\",vakformulieren!$E362=\"5 onwel / ziek\",vakformulieren!$E362=\"5 milieuschade\"),vakformulieren!$V362,\"\")","v":""},null,null,null,null,{"$f":"IF(AND(OR(vakformulieren!$E362=\"5 letsel\",vakformulieren!$E362=\"5 onwel / ziek\",vakformulieren!$E362=\"5 milieuschade\"),vakformulieren!$E356>0),SUM(vakformulieren!$P356/8),\"\")","v":""}]
[{"$f":"IF(OR(vakformulieren!$E357=\"5 letsel\",vakformulieren!$E357=\"5 onwel / ziek\",vakformulieren!$E357=\"5 milieuschade\"),vakformulieren!$A357,\"\")","v":""},"",{"$f":"IF(OR(vakformulieren!$E363=\"5 letsel\",vakformulieren!$E363=\"5 onwel / ziek\",vakformulieren!$E363=\"5 milieuschade\"),vakformulieren!$C357,\"\")","v":""},{"$f":"IF(OR(vakformulieren!$E363=\"5 letsel\",vakformulieren!$E363=\"5 onwel / ziek\",vakformulieren!$E363=\"5 milieuschade\"),vakformulieren!$E357,\"\")","v":""},{"$f":"IF(OR(vakformulieren!$E363=\"5 letsel\",vakformulieren!$E363=\"5 onwel / ziek\",vakformulieren!$E363=\"5 milieuschade\"),vakformulieren!$V363,\"\")","v":""},null,null,null,null,{"$f":"IF(AND(OR(vakformulieren!$E363=\"5 letsel\",vakformulieren!$E363=\"5 onwel / ziek\",vakformulieren!$E363=\"5 milieuschade\"),vakformulieren!$E357>0),SUM(vakformulieren!$P357/8),\"\")","v":""}]
[{"$f":"IF(OR(vakformulieren!$E358=\"5 letsel\",vakformulieren!$E358=\"5 onwel / ziek\",vakformulieren!$E358=\"5 milieuschade\"),vakformulieren!$A358,\"\")","v":""},"",{"$f":"IF(OR(vakformulieren!$E364=\"5 letsel\",vakformulieren!$E364=\"5 onwel / ziek\",vakformulieren!$E364=\"5 milieuschade\"),vakformulieren!$C358,\"\")","v":""},{"$f":"IF(OR(vakformulieren!$E364=\"5 letsel\",vakformulieren!$E364=\"5 onwel / ziek\",vakformulieren!$E364=\"5 milieuschade\"),vakformulieren!$E358,\"\")","v":""},{"$f":"IF(OR(vakformulieren!$E364=\"5 letsel\",vakformulieren!$E364=\"5 onwel / ziek\",vakformulieren!$E364=\"5 milieuschade\"),vakformulieren!$V364,\"\")","v":""},null,null,null,null,{"$f":"IF(AND(OR(vakformulieren!$E364=\"5 letsel\",vakformulieren!$E364=\"5 onwel / ziek\",vakformulieren!$E364=\"5 milieuschade\"),vakformulieren!$E358>0),SUM(vakformulieren!$P358/8),\"\")","v":""}]
[{"$f":"IF(OR(vakformulieren!$E359=\"5 letsel\",vakformulieren!$E359=\"5 onwel / ziek\",vakformulieren!$E359=\"5 milieuschade\"),vakformulieren!$A359,\"\")","v":""},"",{"$f":"IF(OR(vakformulieren!$E365=\"5 letsel\",vakformulieren!$E365=\"5 onwel / ziek\",vakformulieren!$E365=\"5 milieuschade\"),vakformulieren!$C359,\"\")","v":""},{"$f":"IF(OR(vakformulieren!$E365=\"5 letsel\",vakformulieren!$E365=\"5 onwel / ziek\",vakformulieren!$E365=\"5 milieuschade\"),vakformulieren!$E359,\"\")","v":""},{"$f":"IF(OR(vakformulieren!$E365=\"5 letsel\",vakformulieren!$E365=\"5 onwel / ziek\",vakformulieren!$E365=\"5 milieuschade\"),vakformulieren!$V365,\"\")","v":""},null,null,null,null,{"$f":"IF(AND(OR(vakformulieren!$E365=\"5 letsel\",vakformulieren!$E365=\"5 onwel / ziek\",vakformulieren!$E365=\"5 milieuschade\"),vakformulieren!$E359>0),SUM(vakformulieren!$P359/8),\"\")","v":""}]
[{"$f":"IF(OR(vakformulieren!$E360=\"5 letsel\",vakformulieren!$E360=\"5 onwel / ziek\",vakformulieren!$E360=\"5 milieuschade\"),vakformulieren!$A360,\"\")","v":""},"",{"$f":"IF(OR(vakformulieren!$E366=\"5 letsel\",vakformulieren!$E366=\"5 onwel / ziek\",vakformulieren!$E366=\"5 milieuschade\"),vakformulieren!$C360,\"\")","v":""},{"$f":"IF(OR(vakformulieren!$E366=\"5 letsel\",vakformulieren!$E366=\"5 onwel / ziek\",vakformulieren!$E366=\"5 milieuschade\"),vakformulieren!$E360,\"\")","v":""},{"$f":"IF(OR(vakformulieren!$E366=\"5 letsel\",vakformulieren!$E366=\"5 onwel / ziek\",vakformulieren!$E366=\"5 milieuschade\"),vakformulieren!$V366,\"\")","v":""},null,null,null,null,{"$f":"IF(AND(OR(vakformulieren!$E366=\"5 letsel\",vakformulieren!$E366=\"5 onwel / ziek\",vakformulieren!$E366=\"5 milieuschade\"),vakformulieren!$E360>0),SUM(vakformulieren!$P360/8),\"\")","v":""}]
[{"$f":"IF(OR(vakformulieren!$E361=\"5 letsel\",vakformulieren!$E361=\"5 onwel / ziek\",vakformulieren!$E361=\"5 milieuschade\"),vakformulieren!$A361,\"\")","v":""},"",{"$f":"IF(OR(vakformulieren!$E367=\"5 letsel\",vakformulieren!$E367=\"5 onwel / ziek\",vakformulieren!$E367=\"5 milieuschade\"),vakformulieren!$C361,\"\")","v":""},{"$f":"IF(OR(vakformulieren!$E367=\"5 letsel\",vakformulieren!$E367=\"5 onwel / ziek\",vakformulieren!$E367=\"5 milieuschade\"),vakformulieren!$E361,\"\")","v":""},{"$f":"IF(OR(vakformulieren!$E367=\"5 letsel\",vakformulieren!$E367=\"5 onwel / ziek\",vakformulieren!$E367=\"5 milieuschade\"),vakformulieren!$V367,\"\")","v":""},null,null,null,null,{"$f":"IF(AND(OR(vakformulieren!$E367=\"5 letsel\",vakformulieren!$E367=\"5 onwel / ziek\",vakformulieren!$E367=\"5 milieuschade\"),vakformulieren!$E361>0),SUM(vakformulieren!$P361/8),\"\")","v":""}]
[{"$f":"IF(OR(vakformulieren!$E362=\"5 letsel\",vakformulieren!$E362=\"5 onwel / ziek\",vakformulieren!$E362=\"5 milieuschade\"),vakformulieren!$A362,\"\")","v":""},"",{"$f":"IF(OR(vakformulieren!$E368=\"5 letsel\",vakformulieren!$E368=\"5 onwel / ziek\",vakformulieren!$E368=\"5 milieuschade\"),vakformulieren!$C362,\"\")","v":""},{"$f":"IF(OR(vakformulieren!$E368=\"5 letsel\",vakformulieren!$E368=\"5 onwel / ziek\",vakformulieren!$E368=\"5 milieuschade\"),vakformulieren!$E362,\"\")","v":""},{"$f":"IF(OR(vakformulieren!$E368=\"5 letsel\",vakformulieren!$E368=\"5 onwel / ziek\",vakformulieren!$E368=\"5 milieuschade\"),vakformulieren!$V368,\"\")","v":""},null,null,null,null,{"$f":"IF(AND(OR(vakformulieren!$E368=\"5 letsel\",vakformulieren!$E368=\"5 onwel / ziek\",vakformulieren!$E368=\"5 milieuschade\"),vakformulieren!$E362>0),SUM(vakformulieren!$P362/8),\"\")","v":""}]
[{"$f":"IF(OR(vakformulieren!$E363=\"5 letsel\",vakformulieren!$E363=\"5 onwel / ziek\",vakformulieren!$E363=\"5 milieuschade\"),vakformulieren!$A363,\"\")","v":""},"",{"$f":"IF(OR(vakformulieren!$E369=\"5 letsel\",vakformulieren!$E369=\"5 onwel / ziek\",vakformulieren!$E369=\"5 milieuschade\"),vakformulieren!$C363,\"\")","v":""},{"$f":"IF(OR(vakformulieren!$E369=\"5 letsel\",vakformulieren!$E369=\"5 onwel / ziek\",vakformulieren!$E369=\"5 milieuschade\"),vakformulieren!$E363,\"\")","v":""},{"$f":"IF(OR(vakformulieren!$E369=\"5 letsel\",vakformulieren!$E369=\"5 onwel / ziek\",vakformulieren!$E369=\"5 milieuschade\"),vakformulieren!$V369,\"\")","v":""},null,null,null,null,{"$f":"IF(AND(OR(vakformulieren!$E369=\"5 letsel\",vakformulieren!$E369=\"5 onwel / ziek\",vakformulieren!$E369=\"5 milieuschade\"),vakformulieren!$E363>0),SUM(vakformulieren!$P363/8),\"\")","v":""}]
[{"$f":"IF(OR(vakformulieren!$E364=\"5 letsel\",vakformulieren!$E364=\"5 onwel / ziek\",vakformulieren!$E364=\"5 milieuschade\"),vakformulieren!$A364,\"\")","v":""},"",{"$f":"IF(OR(vakformulieren!$E370=\"5 letsel\",vakformulieren!$E370=\"5 onwel / ziek\",vakformulieren!$E370=\"5 milieuschade\"),vakformulieren!$C364,\"\")","v":""},{"$f":"IF(OR(vakformulieren!$E370=\"5 letsel\",vakformulieren!$E370=\"5 onwel / ziek\",vakformulieren!$E370=\"5 milieuschade\"),vakformulieren!$E364,\"\")","v":""},{"$f":"IF(OR(vakformulieren!$E370=\"5 letsel\",vakformulieren!$E370=\"5 onwel / ziek\",vakformulieren!$E370=\"5 milieuschade\"),vakformulieren!$V370,\"\")","v":""},null,null,null,null,{"$f":"IF(AND(OR(vakformulieren!$E370=\"5 letsel\",vakformulieren!$E370=\"5 onwel / ziek\",vakformulieren!$E370=\"5 milieuschade\"),vakformulieren!$E364>0),SUM(vakformulieren!$P364/8),\"\")","v":""}]
[{"$f":"IF(OR(vakformulieren!$E365=\"5 letsel\",vakformulieren!$E365=\"5 onwel / ziek\",vakformulieren!$E365=\"5 milieuschade\"),vakformulieren!$A365,\"\")","v":""},"",{"$f":"IF(OR(vakformulieren!$E371=\"5 letsel\",vakformulieren!$E371=\"5 onwel / ziek\",vakformulieren!$E371=\"5 milieuschade\"),vakformulieren!$C365,\"\")","v":""},{"$f":"IF(OR(vakformulieren!$E371=\"5 letsel\",vakformulieren!$E371=\"5 onwel / ziek\",vakformulieren!$E371=\"5 milieuschade\"),vakformulieren!$E365,\"\")","v":""},{"$f":"IF(OR(vakformulieren!$E371=\"5 letsel\",vakformulieren!$E371=\"5 onwel / ziek\",vakformulieren!$E371=\"5 milieuschade\"),vakformulieren!$V371,\"\")","v":""},null,null,null,null,{"$f":"IF(AND(OR(vakformulieren!$E371=\"5 letsel\",vakformulieren!$E371=\"5 onwel / ziek\",vakformulieren!$E371=\"5 milieuschade\"),vakformulieren!$E365>0),SUM(vakformulieren!$P365/8),\"\")","v":""}]
[{"$f":"IF(OR(vakformulieren!$E366=\"5 letsel\",vakformulieren!$E366=\"5 onwel / ziek\",vakformulieren!$E366=\"5 milieuschade\"),vakformulieren!$A366,\"\")","v":""},"",{"$f":"IF(OR(vakformulieren!$E372=\"5 letsel\",vakformulieren!$E372=\"5 onwel / ziek\",vakformulieren!$E372=\"5 milieuschade\"),vakformulieren!$C366,\"\")","v":""},{"$f":"IF(OR(vakformulieren!$E372=\"5 letsel\",vakformulieren!$E372=\"5 onwel / ziek\",vakformulieren!$E372=\"5 milieuschade\"),vakformulieren!$E366,\"\")","v":""},{"$f":"IF(OR(vakformulieren!$E372=\"5 letsel\",vakformulieren!$E372=\"5 onwel / ziek\",vakformulieren!$E372=\"5 milieuschade\"),vakformulieren!$V372,\"\")","v":""},null,null,null,null,{"$f":"IF(AND(OR(vakformulieren!$E372=\"5 letsel\",vakformulieren!$E372=\"5 onwel / ziek\",vakformulieren!$E372=\"5 milieuschade\"),vakformulieren!$E366>0),SUM(vakformulieren!$P366/8),\"\")","v":""}]
[{"$f":"IF(OR(vakformulieren!$E367=\"5 letsel\",vakformulieren!$E367=\"5 onwel / ziek\",vakformulieren!$E367=\"5 milieuschade\"),vakformulieren!$A367,\"\")","v":""},"",{"$f":"IF(OR(vakformulieren!$E373=\"5 letsel\",vakformulieren!$E373=\"5 onwel / ziek\",vakformulieren!$E373=\"5 milieuschade\"),vakformulieren!$C367,\"\")","v":""},{"$f":"IF(OR(vakformulieren!$E373=\"5 letsel\",vakformulieren!$E373=\"5 onwel / ziek\",vakformulieren!$E373=\"5 milieuschade\"),vakformulieren!$E367,\"\")","v":""},{"$f":"IF(OR(vakformulieren!$E373=\"5 letsel\",vakformulieren!$E373=\"5 onwel / ziek\",vakformulieren!$E373=\"5 milieuschade\"),vakformulieren!$V373,\"\")","v":""},null,null,null,null,{"$f":"IF(AND(OR(vakformulieren!$E373=\"5 letsel\",vakformulieren!$E373=\"5 onwel / ziek\",vakformulieren!$E373=\"5 milieuschade\"),vakformulieren!$E367>0),SUM(vakformulieren!$P367/8),\"\")","v":""}]
[{"$f":"IF(OR(vakformulieren!$E368=\"5 letsel\",vakformulieren!$E368=\"5 onwel / ziek\",vakformulieren!$E368=\"5 milieuschade\"),vakformulieren!$A368,\"\")","v":""},"",{"$f":"IF(OR(vakformulieren!$E374=\"5 letsel\",vakformulieren!$E374=\"5 onwel / ziek\",vakformulieren!$E374=\"5 milieuschade\"),vakformulieren!$C368,\"\")","v":""},{"$f":"IF(OR(vakformulieren!$E374=\"5 letsel\",vakformulieren!$E374=\"5 onwel / ziek\",vakformulieren!$E374=\"5 milieuschade\"),vakformulieren!$E368,\"\")","v":""},{"$f":"IF(OR(vakformulieren!$E374=\"5 letsel\",vakformulieren!$E374=\"5 onwel / ziek\",vakformulieren!$E374=\"5 milieuschade\"),vakformulieren!$V374,\"\")","v":""},null,null,null,null,{"$f":"IF(AND(OR(vakformulieren!$E374=\"5 letsel\",vakformulieren!$E374=\"5 onwel / ziek\",vakformulieren!$E374=\"5 milieuschade\"),vakformulieren!$E368>0),SUM(vakformulieren!$P368/8),\"\")","v":""}]
[{"$f":"IF(OR(vakformulieren!$E369=\"5 letsel\",vakformulieren!$E369=\"5 onwel / ziek\",vakformulieren!$E369=\"5 milieuschade\"),vakformulieren!$A369,\"\")","v":""},"",{"$f":"IF(OR(vakformulieren!$E375=\"5 letsel\",vakformulieren!$E375=\"5 onwel / ziek\",vakformulieren!$E375=\"5 milieuschade\"),vakformulieren!$C369,\"\")","v":""},{"$f":"IF(OR(vakformulieren!$E375=\"5 letsel\",vakformulieren!$E375=\"5 onwel / ziek\",vakformulieren!$E375=\"5 milieuschade\"),vakformulieren!$E369,\"\")","v":""},{"$f":"IF(OR(vakformulieren!$E375=\"5 letsel\",vakformulieren!$E375=\"5 onwel / ziek\",vakformulieren!$E375=\"5 milieuschade\"),vakformulieren!$V375,\"\")","v":""},null,null,null,null,{"$f":"IF(AND(OR(vakformulieren!$E375=\"5 letsel\",vakformulieren!$E375=\"5 onwel / ziek\",vakformulieren!$E375=\"5 milieuschade\"),vakformulieren!$E369>0),SUM(vakformulieren!$P369/8),\"\")","v":""}]
[{"$f":"IF(OR(vakformulieren!$E370=\"5 letsel\",vakformulieren!$E370=\"5 onwel / ziek\",vakformulieren!$E370=\"5 milieuschade\"),vakformulieren!$A370,\"\")","v":""},"",{"$f":"IF(OR(vakformulieren!$E376=\"5 letsel\",vakformulieren!$E376=\"5 onwel / ziek\",vakformulieren!$E376=\"5 milieuschade\"),vakformulieren!$C370,\"\")","v":""},{"$f":"IF(OR(vakformulieren!$E376=\"5 letsel\",vakformulieren!$E376=\"5 onwel / ziek\",vakformulieren!$E376=\"5 milieuschade\"),vakformulieren!$E370,\"\")","v":""},{"$f":"IF(OR(vakformulieren!$E376=\"5 letsel\",vakformulieren!$E376=\"5 onwel / ziek\",vakformulieren!$E376=\"5 milieuschade\"),vakformulieren!$V376,\"\")","v":""},null,null,null,null,{"$f":"IF(AND(OR(vakformulieren!$E376=\"5 letsel\",vakformulieren!$E376=\"5 onwel / ziek\",vakformulieren!$E376=\"5 milieuschade\"),vakformulieren!$E370>0),SUM(vakformulieren!$P370/8),\"\")","v":""}]
[{"$f":"IF(OR(vakformulieren!$E371=\"5 letsel\",vakformulieren!$E371=\"5 onwel / ziek\",vakformulieren!$E371=\"5 milieuschade\"),vakformulieren!$A371,\"\")","v":""},"",{"$f":"IF(OR(vakformulieren!$E377=\"5 letsel\",vakformulieren!$E377=\"5 onwel / ziek\",vakformulieren!$E377=\"5 milieuschade\"),vakformulieren!$C371,\"\")","v":""},{"$f":"IF(OR(vakformulieren!$E377=\"5 letsel\",vakformulieren!$E377=\"5 onwel / ziek\",vakformulieren!$E377=\"5 milieuschade\"),vakformulieren!$E371,\"\")","v":""},{"$f":"IF(OR(vakformulieren!$E377=\"5 letsel\",vakformulieren!$E377=\"5 onwel / ziek\",vakformulieren!$E377=\"5 milieuschade\"),vakformulieren!$V377,\"\")","v":""},null,null,null,null,{"$f":"IF(AND(OR(vakformulieren!$E377=\"5 letsel\",vakformulieren!$E377=\"5 onwel / ziek\",vakformulieren!$E377=\"5 milieuschade\"),vakformulieren!$E371>0),SUM(vakformulieren!$P371/8),\"\")","v":""}]
[{"$f":"IF(OR(vakformulieren!$E372=\"5 letsel\",vakformulieren!$E372=\"5 onwel / ziek\",vakformulieren!$E372=\"5 milieuschade\"),vakformulieren!$A372,\"\")","v":""},"",{"$f":"IF(OR(vakformulieren!$E378=\"5 letsel\",vakformulieren!$E378=\"5 onwel / ziek\",vakformulieren!$E378=\"5 milieuschade\"),vakformulieren!$C372,\"\")","v":""},{"$f":"IF(OR(vakformulieren!$E378=\"5 letsel\",vakformulieren!$E378=\"5 onwel / ziek\",vakformulieren!$E378=\"5 milieuschade\"),vakformulieren!$E372,\"\")","v":""},{"$f":"IF(OR(vakformulieren!$E378=\"5 letsel\",vakformulieren!$E378=\"5 onwel / ziek\",vakformulieren!$E378=\"5 milieuschade\"),vakformulieren!$V378,\"\")","v":""},null,null,null,null,{"$f":"IF(AND(OR(vakformulieren!$E378=\"5 letsel\",vakformulieren!$E378=\"5 onwel / ziek\",vakformulieren!$E378=\"5 milieuschade\"),vakformulieren!$E372>0),SUM(vakformulieren!$P372/8),\"\")","v":""}]
[{"$f":"IF(OR(vakformulieren!$E373=\"5 letsel\",vakformulieren!$E373=\"5 onwel / ziek\",vakformulieren!$E373=\"5 milieuschade\"),vakformulieren!$A373,\"\")","v":""},"",{"$f":"IF(OR(vakformulieren!$E379=\"5 letsel\",vakformulieren!$E379=\"5 onwel / ziek\",vakformulieren!$E379=\"5 milieuschade\"),vakformulieren!$C373,\"\")","v":""},{"$f":"IF(OR(vakformulieren!$E379=\"5 letsel\",vakformulieren!$E379=\"5 onwel / ziek\",vakformulieren!$E379=\"5 milieuschade\"),vakformulieren!$E373,\"\")","v":""},{"$f":"IF(OR(vakformulieren!$E379=\"5 letsel\",vakformulieren!$E379=\"5 onwel / ziek\",vakformulieren!$E379=\"5 milieuschade\"),vakformulieren!$V379,\"\")","v":""},null,null,null,null,{"$f":"IF(AND(OR(vakformulieren!$E379=\"5 letsel\",vakformulieren!$E379=\"5 onwel / ziek\",vakformulieren!$E379=\"5 milieuschade\"),vakformulieren!$E373>0),SUM(vakformulieren!$P373/8),\"\")","v":""}]
[{"$f":"IF(OR(vakformulieren!$E374=\"5 letsel\",vakformulieren!$E374=\"5 onwel / ziek\",vakformulieren!$E374=\"5 milieuschade\"),vakformulieren!$A374,\"\")","v":""},"",{"$f":"IF(OR(vakformulieren!$E380=\"5 letsel\",vakformulieren!$E380=\"5 onwel / ziek\",vakformulieren!$E380=\"5 milieuschade\"),vakformulieren!$C374,\"\")","v":""},{"$f":"IF(OR(vakformulieren!$E380=\"5 letsel\",vakformulieren!$E380=\"5 onwel / ziek\",vakformulieren!$E380=\"5 milieuschade\"),vakformulieren!$E374,\"\")","v":""},{"$f":"IF(OR(vakformulieren!$E380=\"5 letsel\",vakformulieren!$E380=\"5 onwel / ziek\",vakformulieren!$E380=\"5 milieuschade\"),vakformulieren!$V380,\"\")","v":""},null,null,null,null,{"$f":"IF(AND(OR(vakformulieren!$E380=\"5 letsel\",vakformulieren!$E380=\"5 onwel / ziek\",vakformulieren!$E380=\"5 milieuschade\"),vakformulieren!$E374>0),SUM(vakformulieren!$P374/8),\"\")","v":""}]
[{"$f":"IF(OR(vakformulieren!$E375=\"5 letsel\",vakformulieren!$E375=\"5 onwel / ziek\",vakformulieren!$E375=\"5 milieuschade\"),vakformulieren!$A375,\"\")","v":""},"",{"$f":"IF(OR(vakformulieren!$E381=\"5 letsel\",vakformulieren!$E381=\"5 onwel / ziek\",vakformulieren!$E381=\"5 milieuschade\"),vakformulieren!$C375,\"\")","v":""},{"$f":"IF(OR(vakformulieren!$E381=\"5 letsel\",vakformulieren!$E381=\"5 onwel / ziek\",vakformulieren!$E381=\"5 milieuschade\"),vakformulieren!$E375,\"\")","v":""},{"$f":"IF(OR(vakformulieren!$E381=\"5 letsel\",vakformulieren!$E381=\"5 onwel / ziek\",vakformulieren!$E381=\"5 milieuschade\"),vakformulieren!$V381,\"\")","v":""},null,null,null,null,{"$f":"IF(AND(OR(vakformulieren!$E381=\"5 letsel\",vakformulieren!$E381=\"5 onwel / ziek\",vakformulieren!$E381=\"5 milieuschade\"),vakformulieren!$E375>0),SUM(vakformulieren!$P375/8),\"\")","v":""}]
[{"$f":"IF(OR(vakformulieren!$E376=\"5 letsel\",vakformulieren!$E376=\"5 onwel / ziek\",vakformulieren!$E376=\"5 milieuschade\"),vakformulieren!$A376,\"\")","v":""},"",{"$f":"IF(OR(vakformulieren!$E382=\"5 letsel\",vakformulieren!$E382=\"5 onwel / ziek\",vakformulieren!$E382=\"5 milieuschade\"),vakformulieren!$C376,\"\")","v":""},{"$f":"IF(OR(vakformulieren!$E382=\"5 letsel\",vakformulieren!$E382=\"5 onwel / ziek\",vakformulieren!$E382=\"5 milieuschade\"),vakformulieren!$E376,\"\")","v":""},{"$f":"IF(OR(vakformulieren!$E382=\"5 letsel\",vakformulieren!$E382=\"5 onwel / ziek\",vakformulieren!$E382=\"5 milieuschade\"),vakformulieren!$V382,\"\")","v":""},null,null,null,null,{"$f":"IF(AND(OR(vakformulieren!$E382=\"5 letsel\",vakformulieren!$E382=\"5 onwel / ziek\",vakformulieren!$E382=\"5 milieuschade\"),vakformulieren!$E376>0),SUM(vakformulieren!$P376/8),\"\")","v":""}]
[{"$f":"IF(OR(vakformulieren!$E377=\"5 letsel\",vakformulieren!$E377=\"5 onwel / ziek\",vakformulieren!$E377=\"5 milieuschade\"),vakformulieren!$A377,\"\")","v":""},"",{"$f":"IF(OR(vakformulieren!$E383=\"5 letsel\",vakformulieren!$E383=\"5 onwel / ziek\",vakformulieren!$E383=\"5 milieuschade\"),vakformulieren!$C377,\"\")","v":""},{"$f":"IF(OR(vakformulieren!$E383=\"5 letsel\",vakformulieren!$E383=\"5 onwel / ziek\",vakformulieren!$E383=\"5 milieuschade\"),vakformulieren!$E377,\"\")","v":""},{"$f":"IF(OR(vakformulieren!$E383=\"5 letsel\",vakformulieren!$E383=\"5 onwel / ziek\",vakformulieren!$E383=\"5 milieuschade\"),vakformulieren!$V383,\"\")","v":""},null,null,null,null,{"$f":"IF(AND(OR(vakformulieren!$E383=\"5 letsel\",vakformulieren!$E383=\"5 onwel / ziek\",vakformulieren!$E383=\"5 milieuschade\"),vakformulieren!$E377>0),SUM(vakformulieren!$P377/8),\"\")","v":""}]
[{"$f":"IF(OR(vakformulieren!$E378=\"5 letsel\",vakformulieren!$E378=\"5 onwel / ziek\",vakformulieren!$E378=\"5 milieuschade\"),vakformulieren!$A378,\"\")","v":""},"",{"$f":"IF(OR(vakformulieren!$E384=\"5 letsel\",vakformulieren!$E384=\"5 onwel / ziek\",vakformulieren!$E384=\"5 milieuschade\"),vakformulieren!$C378,\"\")","v":""},{"$f":"IF(OR(vakformulieren!$E384=\"5 letsel\",vakformulieren!$E384=\"5 onwel / ziek\",vakformulieren!$E384=\"5 milieuschade\"),vakformulieren!$E378,\"\")","v":""},{"$f":"IF(OR(vakformulieren!$E384=\"5 letsel\",vakformulieren!$E384=\"5 onwel / ziek\",vakformulieren!$E384=\"5 milieuschade\"),vakformulieren!$V384,\"\")","v":""},null,null,null,null,{"$f":"IF(AND(OR(vakformulieren!$E384=\"5 letsel\",vakformulieren!$E384=\"5 onwel / ziek\",vakformulieren!$E384=\"5 milieuschade\"),vakformulieren!$E378>0),SUM(vakformulieren!$P378/8),\"\")","v":""}]
[{"$f":"IF(OR(vakformulieren!$E379=\"5 letsel\",vakformulieren!$E379=\"5 onwel / ziek\",vakformulieren!$E379=\"5 milieuschade\"),vakformulieren!$A379,\"\")","v":""},"",{"$f":"IF(OR(vakformulieren!$E385=\"5 letsel\",vakformulieren!$E385=\"5 onwel / ziek\",vakformulieren!$E385=\"5 milieuschade\"),vakformulieren!$C379,\"\")","v":""},{"$f":"IF(OR(vakformulieren!$E385=\"5 letsel\",vakformulieren!$E385=\"5 onwel / ziek\",vakformulieren!$E385=\"5 milieuschade\"),vakformulieren!$E379,\"\")","v":""},{"$f":"IF(OR(vakformulieren!$E385=\"5 letsel\",vakformulieren!$E385=\"5 onwel / ziek\",vakformulieren!$E385=\"5 milieuschade\"),vakformulieren!$V385,\"\")","v":""},null,null,null,null,{"$f":"IF(AND(OR(vakformulieren!$E385=\"5 letsel\",vakformulieren!$E385=\"5 onwel / ziek\",vakformulieren!$E385=\"5 milieuschade\"),vakformulieren!$E379>0),SUM(vakformulieren!$P379/8),\"\")","v":""}]
[{"$f":"IF(OR(vakformulieren!$E380=\"5 letsel\",vakformulieren!$E380=\"5 onwel / ziek\",vakformulieren!$E380=\"5 milieuschade\"),vakformulieren!$A380,\"\")","v":""},"",{"$f":"IF(OR(vakformulieren!$E386=\"5 letsel\",vakformulieren!$E386=\"5 onwel / ziek\",vakformulieren!$E386=\"5 milieuschade\"),vakformulieren!$C380,\"\")","v":""},{"$f":"IF(OR(vakformulieren!$E386=\"5 letsel\",vakformulieren!$E386=\"5 onwel / ziek\",vakformulieren!$E386=\"5 milieuschade\"),vakformulieren!$E380,\"\")","v":""},{"$f":"IF(OR(vakformulieren!$E386=\"5 letsel\",vakformulieren!$E386=\"5 onwel / ziek\",vakformulieren!$E386=\"5 milieuschade\"),vakformulieren!$V386,\"\")","v":""},null,null,null,null,{"$f":"IF(AND(OR(vakformulieren!$E386=\"5 letsel\",vakformulieren!$E386=\"5 onwel / ziek\",vakformulieren!$E386=\"5 milieuschade\"),vakformulieren!$E380>0),SUM(vakformulieren!$P380/8),\"\")","v":""}]
[{"$f":"IF(OR(vakformulieren!$E381=\"5 letsel\",vakformulieren!$E381=\"5 onwel / ziek\",vakformulieren!$E381=\"5 milieuschade\"),vakformulieren!$A381,\"\")","v":""},"",{"$f":"IF(OR(vakformulieren!$E387=\"5 letsel\",vakformulieren!$E387=\"5 onwel / ziek\",vakformulieren!$E387=\"5 milieuschade\"),vakformulieren!$C381,\"\")","v":""},{"$f":"IF(OR(vakformulieren!$E387=\"5 letsel\",vakformulieren!$E387=\"5 onwel / ziek\",vakformulieren!$E387=\"5 milieuschade\"),vakformulieren!$E381,\"\")","v":""},{"$f":"IF(OR(vakformulieren!$E387=\"5 letsel\",vakformulieren!$E387=\"5 onwel / ziek\",vakformulieren!$E387=\"5 milieuschade\"),vakformulieren!$V387,\"\")","v":""},null,null,null,null,{"$f":"IF(AND(OR(vakformulieren!$E387=\"5 letsel\",vakformulieren!$E387=\"5 onwel / ziek\",vakformulieren!$E387=\"5 milieuschade\"),vakformulieren!$E381>0),SUM(vakformulieren!$P381/8),\"\")","v":""}]
[{"$f":"IF(OR(vakformulieren!$E382=\"5 letsel\",vakformulieren!$E382=\"5 onwel / ziek\",vakformulieren!$E382=\"5 milieuschade\"),vakformulieren!$A382,\"\")","v":""},"",{"$f":"IF(OR(vakformulieren!$E388=\"5 letsel\",vakformulieren!$E388=\"5 onwel / ziek\",vakformulieren!$E388=\"5 milieuschade\"),vakformulieren!$C382,\"\")","v":""},{"$f":"IF(OR(vakformulieren!$E388=\"5 letsel\",vakformulieren!$E388=\"5 onwel / ziek\",vakformulieren!$E388=\"5 milieuschade\"),vakformulieren!$E382,\"\")","v":""},{"$f":"IF(OR(vakformulieren!$E388=\"5 letsel\",vakformulieren!$E388=\"5 onwel / ziek\",vakformulieren!$E388=\"5 milieuschade\"),vakformulieren!$V388,\"\")","v":""},null,null,null,null,{"$f":"IF(AND(OR(vakformulieren!$E388=\"5 letsel\",vakformulieren!$E388=\"5 onwel / ziek\",vakformulieren!$E388=\"5 milieuschade\"),vakformulieren!$E382>0),SUM(vakformulieren!$P382/8),\"\")","v":""}]
[{"$f":"IF(OR(vakformulieren!$E383=\"5 letsel\",vakformulieren!$E383=\"5 onwel / ziek\",vakformulieren!$E383=\"5 milieuschade\"),vakformulieren!$A383,\"\")","v":""},"",{"$f":"IF(OR(vakformulieren!$E389=\"5 letsel\",vakformulieren!$E389=\"5 onwel / ziek\",vakformulieren!$E389=\"5 milieuschade\"),vakformulieren!$C383,\"\")","v":""},{"$f":"IF(OR(vakformulieren!$E389=\"5 letsel\",vakformulieren!$E389=\"5 onwel / ziek\",vakformulieren!$E389=\"5 milieuschade\"),vakformulieren!$E383,\"\")","v":""},{"$f":"IF(OR(vakformulieren!$E389=\"5 letsel\",vakformulieren!$E389=\"5 onwel / ziek\",vakformulieren!$E389=\"5 milieuschade\"),vakformulieren!$V389,\"\")","v":""},null,null,null,null,{"$f":"IF(AND(OR(vakformulieren!$E389=\"5 letsel\",vakformulieren!$E389=\"5 onwel / ziek\",vakformulieren!$E389=\"5 milieuschade\"),vakformulieren!$E383>0),SUM(vakformulieren!$P383/8),\"\")","v":""}]
[{"$f":"IF(OR(vakformulieren!$E384=\"5 letsel\",vakformulieren!$E384=\"5 onwel / ziek\",vakformulieren!$E384=\"5 milieuschade\"),vakformulieren!$A384,\"\")","v":""},"",{"$f":"IF(OR(vakformulieren!$E390=\"5 letsel\",vakformulieren!$E390=\"5 onwel / ziek\",vakformulieren!$E390=\"5 milieuschade\"),vakformulieren!$C384,\"\")","v":""},{"$f":"IF(OR(vakformulieren!$E390=\"5 letsel\",vakformulieren!$E390=\"5 onwel / ziek\",vakformulieren!$E390=\"5 milieuschade\"),vakformulieren!$E384,\"\")","v":""},{"$f":"IF(OR(vakformulieren!$E390=\"5 letsel\",vakformulieren!$E390=\"5 onwel / ziek\",vakformulieren!$E390=\"5 milieuschade\"),vakformulieren!$V390,\"\")","v":""},null,null,null,null,{"$f":"IF(AND(OR(vakformulieren!$E390=\"5 letsel\",vakformulieren!$E390=\"5 onwel / ziek\",vakformulieren!$E390=\"5 milieuschade\"),vakformulieren!$E384>0),SUM(vakformulieren!$P384/8),\"\")","v":""}]
[{"$f":"IF(OR(vakformulieren!$E385=\"5 letsel\",vakformulieren!$E385=\"5 onwel / ziek\",vakformulieren!$E385=\"5 milieuschade\"),vakformulieren!$A385,\"\")","v":""},"",{"$f":"IF(OR(vakformulieren!$E391=\"5 letsel\",vakformulieren!$E391=\"5 onwel / ziek\",vakformulieren!$E391=\"5 milieuschade\"),vakformulieren!$C385,\"\")","v":""},{"$f":"IF(OR(vakformulieren!$E391=\"5 letsel\",vakformulieren!$E391=\"5 onwel / ziek\",vakformulieren!$E391=\"5 milieuschade\"),vakformulieren!$E385,\"\")","v":""},{"$f":"IF(OR(vakformulieren!$E391=\"5 letsel\",vakformulieren!$E391=\"5 onwel / ziek\",vakformulieren!$E391=\"5 milieuschade\"),vakformulieren!$V391,\"\")","v":""},null,null,null,null,{"$f":"IF(AND(OR(vakformulieren!$E391=\"5 letsel\",vakformulieren!$E391=\"5 onwel / ziek\",vakformulieren!$E391=\"5 milieuschade\"),vakformulieren!$E385>0),SUM(vakformulieren!$P385/8),\"\")","v":""}]
[{"$f":"IF(OR(vakformulieren!$E386=\"5 letsel\",vakformulieren!$E386=\"5 onwel / ziek\",vakformulieren!$E386=\"5 milieuschade\"),vakformulieren!$A386,\"\")","v":""},"",{"$f":"IF(OR(vakformulieren!$E392=\"5 letsel\",vakformulieren!$E392=\"5 onwel / ziek\",vakformulieren!$E392=\"5 milieuschade\"),vakformulieren!$C386,\"\")","v":""},{"$f":"IF(OR(vakformulieren!$E392=\"5 letsel\",vakformulieren!$E392=\"5 onwel / ziek\",vakformulieren!$E392=\"5 milieuschade\"),vakformulieren!$E386,\"\")","v":""},{"$f":"IF(OR(vakformulieren!$E392=\"5 letsel\",vakformulieren!$E392=\"5 onwel / ziek\",vakformulieren!$E392=\"5 milieuschade\"),vakformulieren!$V392,\"\")","v":""},null,null,null,null,{"$f":"IF(AND(OR(vakformulieren!$E392=\"5 letsel\",vakformulieren!$E392=\"5 onwel / ziek\",vakformulieren!$E392=\"5 milieuschade\"),vakformulieren!$E386>0),SUM(vakformulieren!$P386/8),\"\")","v":""}]
[{"$f":"IF(OR(vakformulieren!$E387=\"5 letsel\",vakformulieren!$E387=\"5 onwel / ziek\",vakformulieren!$E387=\"5 milieuschade\"),vakformulieren!$A387,\"\")","v":""},{"$f":"IF($A388>\"\",HYPERLINK(CONCATENATE($AL$1,$A388,$AK$1),$A388),\"\")","v":""},{"$f":"IF(OR(vakformulieren!$E393=\"5 letsel\",vakformulieren!$E393=\"5 onwel / ziek\",vakformulieren!$E393=\"5 milieuschade\"),vakformulieren!$C387,\"\")","v":""},{"$f":"IF(OR(vakformulieren!$E393=\"5 letsel\",vakformulieren!$E393=\"5 onwel / ziek\",vakformulieren!$E393=\"5 milieuschade\"),vakformulieren!$E387,\"\")","v":""},{"$f":"IF(OR(vakformulieren!$E393=\"5 letsel\",vakformulieren!$E393=\"5 onwel / ziek\",vakformulieren!$E393=\"5 milieuschade\"),vakformulieren!$V393,\"\")","v":""},null,null,null,null,{"$f":"IF(AND(OR(vakformulieren!$E393=\"5 letsel\",vakformulieren!$E393=\"5 onwel / ziek\",vakformulieren!$E393=\"5 milieuschade\"),vakformulieren!$E387>0),SUM(vakformulieren!$P387/8),\"\")","v":""}]
[{"$f":"IF(OR(vakformulieren!$E388=\"5 letsel\",vakformulieren!$E388=\"5 onwel / ziek\",vakformulieren!$E388=\"5 milieuschade\"),vakformulieren!$A388,\"\")","v":""},"",{"$f":"IF(OR(vakformulieren!$E394=\"5 letsel\",vakformulieren!$E394=\"5 onwel / ziek\",vakformulieren!$E394=\"5 milieuschade\"),vakformulieren!$C388,\"\")","v":""},{"$f":"IF(OR(vakformulieren!$E394=\"5 letsel\",vakformulieren!$E394=\"5 onwel / ziek\",vakformulieren!$E394=\"5 milieuschade\"),vakformulieren!$E388,\"\")","v":""},{"$f":"IF(OR(vakformulieren!$E394=\"5 letsel\",vakformulieren!$E394=\"5 onwel / ziek\",vakformulieren!$E394=\"5 milieuschade\"),vakformulieren!$V394,\"\")","v":""},null,null,null,null,{"$f":"IF(AND(OR(vakformulieren!$E394=\"5 letsel\",vakformulieren!$E394=\"5 onwel / ziek\",vakformulieren!$E394=\"5 milieuschade\"),vakformulieren!$E388>0),SUM(vakformulieren!$P388/8),\"\")","v":""}]
[{"$f":"IF(OR(vakformulieren!$E389=\"5 letsel\",vakformulieren!$E389=\"5 onwel / ziek\",vakformulieren!$E389=\"5 milieuschade\"),vakformulieren!$A389,\"\")","v":""},"",{"$f":"IF(OR(vakformulieren!$E395=\"5 letsel\",vakformulieren!$E395=\"5 onwel / ziek\",vakformulieren!$E395=\"5 milieuschade\"),vakformulieren!$C389,\"\")","v":""},{"$f":"IF(OR(vakformulieren!$E395=\"5 letsel\",vakformulieren!$E395=\"5 onwel / ziek\",vakformulieren!$E395=\"5 milieuschade\"),vakformulieren!$E389,\"\")","v":""},{"$f":"IF(OR(vakformulieren!$E395=\"5 letsel\",vakformulieren!$E395=\"5 onwel / ziek\",vakformulieren!$E395=\"5 milieuschade\"),vakformulieren!$V395,\"\")","v":""},null,null,null,null,{"$f":"IF(AND(OR(vakformulieren!$E395=\"5 letsel\",vakformulieren!$E395=\"5 onwel / ziek\",vakformulieren!$E395=\"5 milieuschade\"),vakformulieren!$E389>0),SUM(vakformulieren!$P389/8),\"\")","v":""}]
[{"$f":"IF(OR(vakformulieren!$E390=\"5 letsel\",vakformulieren!$E390=\"5 onwel / ziek\",vakformulieren!$E390=\"5 milieuschade\"),vakformulieren!$A390,\"\")","v":""},"",{"$f":"IF(OR(vakformulieren!$E396=\"5 letsel\",vakformulieren!$E396=\"5 onwel / ziek\",vakformulieren!$E396=\"5 milieuschade\"),vakformulieren!$C390,\"\")","v":""},{"$f":"IF(OR(vakformulieren!$E396=\"5 letsel\",vakformulieren!$E396=\"5 onwel / ziek\",vakformulieren!$E396=\"5 milieuschade\"),vakformulieren!$E390,\"\")","v":""},{"$f":"IF(OR(vakformulieren!$E396=\"5 letsel\",vakformulieren!$E396=\"5 onwel / ziek\",vakformulieren!$E396=\"5 milieuschade\"),vakformulieren!$V396,\"\")","v":""},null,null,null,null,{"$f":"IF(AND(OR(vakformulieren!$E396=\"5 letsel\",vakformulieren!$E396=\"5 onwel / ziek\",vakformulieren!$E396=\"5 milieuschade\"),vakformulieren!$E390>0),SUM(vakformulieren!$P390/8),\"\")","v":""}]
[{"$f":"IF(OR(vakformulieren!$E391=\"5 letsel\",vakformulieren!$E391=\"5 onwel / ziek\",vakformulieren!$E391=\"5 milieuschade\"),vakformulieren!$A391,\"\")","v":""},"",{"$f":"IF(OR(vakformulieren!$E397=\"5 letsel\",vakformulieren!$E397=\"5 onwel / ziek\",vakformulieren!$E397=\"5 milieuschade\"),vakformulieren!$C391,\"\")","v":""},{"$f":"IF(OR(vakformulieren!$E397=\"5 letsel\",vakformulieren!$E397=\"5 onwel / ziek\",vakformulieren!$E397=\"5 milieuschade\"),vakformulieren!$E391,\"\")","v":""},{"$f":"IF(OR(vakformulieren!$E397=\"5 letsel\",vakformulieren!$E397=\"5 onwel / ziek\",vakformulieren!$E397=\"5 milieuschade\"),vakformulieren!$V397,\"\")","v":""},null,null,null,null,{"$f":"IF(AND(OR(vakformulieren!$E397=\"5 letsel\",vakformulieren!$E397=\"5 onwel / ziek\",vakformulieren!$E397=\"5 milieuschade\"),vakformulieren!$E391>0),SUM(vakformulieren!$P391/8),\"\")","v":""}]
[{"$f":"IF(OR(vakformulieren!$E392=\"5 letsel\",vakformulieren!$E392=\"5 onwel / ziek\",vakformulieren!$E392=\"5 milieuschade\"),vakformulieren!$A392,\"\")","v":""},"",{"$f":"IF(OR(vakformulieren!$E398=\"5 letsel\",vakformulieren!$E398=\"5 onwel / ziek\",vakformulieren!$E398=\"5 milieuschade\"),vakformulieren!$C392,\"\")","v":""},{"$f":"IF(OR(vakformulieren!$E398=\"5 letsel\",vakformulieren!$E398=\"5 onwel / ziek\",vakformulieren!$E398=\"5 milieuschade\"),vakformulieren!$E392,\"\")","v":""},{"$f":"IF(OR(vakformulieren!$E398=\"5 letsel\",vakformulieren!$E398=\"5 onwel / ziek\",vakformulieren!$E398=\"5 milieuschade\"),vakformulieren!$V398,\"\")","v":""},null,null,null,null,{"$f":"IF(AND(OR(vakformulieren!$E398=\"5 letsel\",vakformulieren!$E398=\"5 onwel / ziek\",vakformulieren!$E398=\"5 milieuschade\"),vakformulieren!$E392>0),SUM(vakformulieren!$P392/8),\"\")","v":""}]
[{"$f":"IF(OR(vakformulieren!$E393=\"5 letsel\",vakformulieren!$E393=\"5 onwel / ziek\",vakformulieren!$E393=\"5 milieuschade\"),vakformulieren!$A393,\"\")","v":""},"",{"$f":"IF(OR(vakformulieren!$E399=\"5 letsel\",vakformulieren!$E399=\"5 onwel / ziek\",vakformulieren!$E399=\"5 milieuschade\"),vakformulieren!$C393,\"\")","v":""},{"$f":"IF(OR(vakformulieren!$E399=\"5 letsel\",vakformulieren!$E399=\"5 onwel / ziek\",vakformulieren!$E399=\"5 milieuschade\"),vakformulieren!$E393,\"\")","v":""},{"$f":"IF(OR(vakformulieren!$E399=\"5 letsel\",vakformulieren!$E399=\"5 onwel / ziek\",vakformulieren!$E399=\"5 milieuschade\"),vakformulieren!$V399,\"\")","v":""},null,null,null,null,{"$f":"IF(AND(OR(vakformulieren!$E399=\"5 letsel\",vakformulieren!$E399=\"5 onwel / ziek\",vakformulieren!$E399=\"5 milieuschade\"),vakformulieren!$E393>0),SUM(vakformulieren!$P393/8),\"\")","v":""}]
[{"$f":"IF(OR(vakformulieren!$E394=\"5 letsel\",vakformulieren!$E394=\"5 onwel / ziek\",vakformulieren!$E394=\"5 milieuschade\"),vakformulieren!$A394,\"\")","v":""},"",{"$f":"IF(OR(vakformulieren!$E400=\"5 letsel\",vakformulieren!$E400=\"5 onwel / ziek\",vakformulieren!$E400=\"5 milieuschade\"),vakformulieren!$C394,\"\")","v":""},{"$f":"IF(OR(vakformulieren!$E400=\"5 letsel\",vakformulieren!$E400=\"5 onwel / ziek\",vakformulieren!$E400=\"5 milieuschade\"),vakformulieren!$E394,\"\")","v":""},{"$f":"IF(OR(vakformulieren!$E400=\"5 letsel\",vakformulieren!$E400=\"5 onwel / ziek\",vakformulieren!$E400=\"5 milieuschade\"),vakformulieren!$V400,\"\")","v":""},null,null,null,null,{"$f":"IF(AND(OR(vakformulieren!$E400=\"5 letsel\",vakformulieren!$E400=\"5 onwel / ziek\",vakformulieren!$E400=\"5 milieuschade\"),vakformulieren!$E394>0),SUM(vakformulieren!$P394/8),\"\")","v":""}]
[{"$f":"IF(OR(vakformulieren!$E395=\"5 letsel\",vakformulieren!$E395=\"5 onwel / ziek\",vakformulieren!$E395=\"5 milieuschade\"),vakformulieren!$A395,\"\")","v":""},"",{"$f":"IF(OR(vakformulieren!$E401=\"5 letsel\",vakformulieren!$E401=\"5 onwel / ziek\",vakformulieren!$E401=\"5 milieuschade\"),vakformulieren!$C395,\"\")","v":""},{"$f":"IF(OR(vakformulieren!$E401=\"5 letsel\",vakformulieren!$E401=\"5 onwel / ziek\",vakformulieren!$E401=\"5 milieuschade\"),vakformulieren!$E395,\"\")","v":""},{"$f":"IF(OR(vakformulieren!$E401=\"5 letsel\",vakformulieren!$E401=\"5 onwel / ziek\",vakformulieren!$E401=\"5 milieuschade\"),vakformulieren!$V401,\"\")","v":""},null,null,null,null,{"$f":"IF(AND(OR(vakformulieren!$E401=\"5 letsel\",vakformulieren!$E401=\"5 onwel / ziek\",vakformulieren!$E401=\"5 milieuschade\"),vakformulieren!$E395>0),SUM(vakformulieren!$P395/8),\"\")","v":""}]
[{"$f":"IF(OR(vakformulieren!$E396=\"5 letsel\",vakformulieren!$E396=\"5 onwel / ziek\",vakformulieren!$E396=\"5 milieuschade\"),vakformulieren!$A396,\"\")","v":""},"",{"$f":"IF(OR(vakformulieren!$E402=\"5 letsel\",vakformulieren!$E402=\"5 onwel / ziek\",vakformulieren!$E402=\"5 milieuschade\"),vakformulieren!$C396,\"\")","v":""},{"$f":"IF(OR(vakformulieren!$E402=\"5 letsel\",vakformulieren!$E402=\"5 onwel / ziek\",vakformulieren!$E402=\"5 milieuschade\"),vakformulieren!$E396,\"\")","v":""},{"$f":"IF(OR(vakformulieren!$E402=\"5 letsel\",vakformulieren!$E402=\"5 onwel / ziek\",vakformulieren!$E402=\"5 milieuschade\"),vakformulieren!$V402,\"\")","v":""},null,null,null,null,{"$f":"IF(AND(OR(vakformulieren!$E402=\"5 letsel\",vakformulieren!$E402=\"5 onwel / ziek\",vakformulieren!$E402=\"5 milieuschade\"),vakformulieren!$E396>0),SUM(vakformulieren!$P396/8),\"\")","v":""}]
[{"$f":"IF(OR(vakformulieren!$E397=\"5 letsel\",vakformulieren!$E397=\"5 onwel / ziek\",vakformulieren!$E397=\"5 milieuschade\"),vakformulieren!$A397,\"\")","v":""},"",{"$f":"IF(OR(vakformulieren!$E403=\"5 letsel\",vakformulieren!$E403=\"5 onwel / ziek\",vakformulieren!$E403=\"5 milieuschade\"),vakformulieren!$C397,\"\")","v":""},{"$f":"IF(OR(vakformulieren!$E403=\"5 letsel\",vakformulieren!$E403=\"5 onwel / ziek\",vakformulieren!$E403=\"5 milieuschade\"),vakformulieren!$E397,\"\")","v":""},{"$f":"IF(OR(vakformulieren!$E403=\"5 letsel\",vakformulieren!$E403=\"5 onwel / ziek\",vakformulieren!$E403=\"5 milieuschade\"),vakformulieren!$V403,\"\")","v":""},null,null,null,null,{"$f":"IF(AND(OR(vakformulieren!$E403=\"5 letsel\",vakformulieren!$E403=\"5 onwel / ziek\",vakformulieren!$E403=\"5 milieuschade\"),vakformulieren!$E397>0),SUM(vakformulieren!$P397/8),\"\")","v":""}]
[{"$f":"IF(OR(vakformulieren!$E398=\"5 letsel\",vakformulieren!$E398=\"5 onwel / ziek\",vakformulieren!$E398=\"5 milieuschade\"),vakformulieren!$A398,\"\")","v":""},"",{"$f":"IF(OR(vakformulieren!$E404=\"5 letsel\",vakformulieren!$E404=\"5 onwel / ziek\",vakformulieren!$E404=\"5 milieuschade\"),vakformulieren!$C398,\"\")","v":""},{"$f":"IF(OR(vakformulieren!$E404=\"5 letsel\",vakformulieren!$E404=\"5 onwel / ziek\",vakformulieren!$E404=\"5 milieuschade\"),vakformulieren!$E398,\"\")","v":""},{"$f":"IF(OR(vakformulieren!$E404=\"5 letsel\",vakformulieren!$E404=\"5 onwel / ziek\",vakformulieren!$E404=\"5 milieuschade\"),vakformulieren!$V404,\"\")","v":""},null,null,null,null,{"$f":"IF(AND(OR(vakformulieren!$E404=\"5 letsel\",vakformulieren!$E404=\"5 onwel / ziek\",vakformulieren!$E404=\"5 milieuschade\"),vakformulieren!$E398>0),SUM(vakformulieren!$P398/8),\"\")","v":""}]
[{"$f":"IF(OR(vakformulieren!$E399=\"5 letsel\",vakformulieren!$E399=\"5 onwel / ziek\",vakformulieren!$E399=\"5 milieuschade\"),vakformulieren!$A399,\"\")","v":""},"",{"$f":"IF(OR(vakformulieren!$E405=\"5 letsel\",vakformulieren!$E405=\"5 onwel / ziek\",vakformulieren!$E405=\"5 milieuschade\"),vakformulieren!$C399,\"\")","v":""},{"$f":"IF(OR(vakformulieren!$E405=\"5 letsel\",vakformulieren!$E405=\"5 onwel / ziek\",vakformulieren!$E405=\"5 milieuschade\"),vakformulieren!$E399,\"\")","v":""},{"$f":"IF(OR(vakformulieren!$E405=\"5 letsel\",vakformulieren!$E405=\"5 onwel / ziek\",vakformulieren!$E405=\"5 milieuschade\"),vakformulieren!$V405,\"\")","v":""},null,null,null,null,{"$f":"IF(AND(OR(vakformulieren!$E405=\"5 letsel\",vakformulieren!$E405=\"5 onwel / ziek\",vakformulieren!$E405=\"5 milieuschade\"),vakformulieren!$E399>0),SUM(vakformulieren!$P399/8),\"\")","v":""}]
[{"$f":"IF(OR(vakformulieren!$E400=\"5 letsel\",vakformulieren!$E400=\"5 onwel / ziek\",vakformulieren!$E400=\"5 milieuschade\"),vakformulieren!$A400,\"\")","v":""},"",{"$f":"IF(OR(vakformulieren!$E406=\"5 letsel\",vakformulieren!$E406=\"5 onwel / ziek\",vakformulieren!$E406=\"5 milieuschade\"),vakformulieren!$C400,\"\")","v":""},{"$f":"IF(OR(vakformulieren!$E406=\"5 letsel\",vakformulieren!$E406=\"5 onwel / ziek\",vakformulieren!$E406=\"5 milieuschade\"),vakformulieren!$E400,\"\")","v":""},{"$f":"IF(OR(vakformulieren!$E406=\"5 letsel\",vakformulieren!$E406=\"5 onwel / ziek\",vakformulieren!$E406=\"5 milieuschade\"),vakformulieren!$V406,\"\")","v":""},null,null,null,null,{"$f":"IF(AND(OR(vakformulieren!$E406=\"5 letsel\",vakformulieren!$E406=\"5 onwel / ziek\",vakformulieren!$E406=\"5 milieuschade\"),vakformulieren!$E400>0),SUM(vakformulieren!$P400/8),\"\")","v":""}]
[{"$f":"IF(OR(vakformulieren!$E401=\"5 letsel\",vakformulieren!$E401=\"5 onwel / ziek\",vakformulieren!$E401=\"5 milieuschade\"),vakformulieren!$A401,\"\")","v":""},"",{"$f":"IF(OR(vakformulieren!$E407=\"5 letsel\",vakformulieren!$E407=\"5 onwel / ziek\",vakformulieren!$E407=\"5 milieuschade\"),vakformulieren!$C401,\"\")","v":""},{"$f":"IF(OR(vakformulieren!$E407=\"5 letsel\",vakformulieren!$E407=\"5 onwel / ziek\",vakformulieren!$E407=\"5 milieuschade\"),vakformulieren!$E401,\"\")","v":""},{"$f":"IF(OR(vakformulieren!$E407=\"5 letsel\",vakformulieren!$E407=\"5 onwel / ziek\",vakformulieren!$E407=\"5 milieuschade\"),vakformulieren!$V407,\"\")","v":""},null,null,null,null,{"$f":"IF(AND(OR(vakformulieren!$E407=\"5 letsel\",vakformulieren!$E407=\"5 onwel / ziek\",vakformulieren!$E407=\"5 milieuschade\"),vakformulieren!$E401>0),SUM(vakformulieren!$P401/8),\"\")","v":""}]
[{"$f":"IF(OR(vakformulieren!$E402=\"5 letsel\",vakformulieren!$E402=\"5 onwel / ziek\",vakformulieren!$E402=\"5 milieuschade\"),vakformulieren!$A402,\"\")","v":""},"",{"$f":"IF(OR(vakformulieren!$E408=\"5 letsel\",vakformulieren!$E408=\"5 onwel / ziek\",vakformulieren!$E408=\"5 milieuschade\"),vakformulieren!$C402,\"\")","v":""},{"$f":"IF(OR(vakformulieren!$E408=\"5 letsel\",vakformulieren!$E408=\"5 onwel / ziek\",vakformulieren!$E408=\"5 milieuschade\"),vakformulieren!$E402,\"\")","v":""},{"$f":"IF(OR(vakformulieren!$E408=\"5 letsel\",vakformulieren!$E408=\"5 onwel / ziek\",vakformulieren!$E408=\"5 milieuschade\"),vakformulieren!$V408,\"\")","v":""},null,null,null,null,{"$f":"IF(AND(OR(vakformulieren!$E408=\"5 letsel\",vakformulieren!$E408=\"5 onwel / ziek\",vakformulieren!$E408=\"5 milieuschade\"),vakformulieren!$E402>0),SUM(vakformulieren!$P402/8),\"\")","v":""}]
[{"$f":"IF(OR(vakformulieren!$E403=\"5 letsel\",vakformulieren!$E403=\"5 onwel / ziek\",vakformulieren!$E403=\"5 milieuschade\"),vakformulieren!$A403,\"\")","v":""},"",{"$f":"IF(OR(vakformulieren!$E409=\"5 letsel\",vakformulieren!$E409=\"5 onwel / ziek\",vakformulieren!$E409=\"5 milieuschade\"),vakformulieren!$C403,\"\")","v":""},{"$f":"IF(OR(vakformulieren!$E409=\"5 letsel\",vakformulieren!$E409=\"5 onwel / ziek\",vakformulieren!$E409=\"5 milieuschade\"),vakformulieren!$E403,\"\")","v":""},{"$f":"IF(OR(vakformulieren!$E409=\"5 letsel\",vakformulieren!$E409=\"5 onwel / ziek\",vakformulieren!$E409=\"5 milieuschade\"),vakformulieren!$V409,\"\")","v":""},null,null,null,null,{"$f":"IF(AND(OR(vakformulieren!$E409=\"5 letsel\",vakformulieren!$E409=\"5 onwel / ziek\",vakformulieren!$E409=\"5 milieuschade\"),vakformulieren!$E403>0),SUM(vakformulieren!$P403/8),\"\")","v":""}]
[{"$f":"IF(OR(vakformulieren!$E404=\"5 letsel\",vakformulieren!$E404=\"5 onwel / ziek\",vakformulieren!$E404=\"5 milieuschade\"),vakformulieren!$A404,\"\")","v":""},"",{"$f":"IF(OR(vakformulieren!$E410=\"5 letsel\",vakformulieren!$E410=\"5 onwel / ziek\",vakformulieren!$E410=\"5 milieuschade\"),vakformulieren!$C404,\"\")","v":""},{"$f":"IF(OR(vakformulieren!$E410=\"5 letsel\",vakformulieren!$E410=\"5 onwel / ziek\",vakformulieren!$E410=\"5 milieuschade\"),vakformulieren!$E404,\"\")","v":""},{"$f":"IF(OR(vakformulieren!$E410=\"5 letsel\",vakformulieren!$E410=\"5 onwel / ziek\",vakformulieren!$E410=\"5 milieuschade\"),vakformulieren!$V410,\"\")","v":""},null,null,null,null,{"$f":"IF(AND(OR(vakformulieren!$E410=\"5 letsel\",vakformulieren!$E410=\"5 onwel / ziek\",vakformulieren!$E410=\"5 milieuschade\"),vakformulieren!$E404>0),SUM(vakformulieren!$P404/8),\"\")","v":""}]
[{"$f":"IF(OR(vakformulieren!$E405=\"5 letsel\",vakformulieren!$E405=\"5 onwel / ziek\",vakformulieren!$E405=\"5 milieuschade\"),vakformulieren!$A405,\"\")","v":""},"",{"$f":"IF(OR(vakformulieren!$E411=\"5 letsel\",vakformulieren!$E411=\"5 onwel / ziek\",vakformulieren!$E411=\"5 milieuschade\"),vakformulieren!$C405,\"\")","v":""},{"$f":"IF(OR(vakformulieren!$E411=\"5 letsel\",vakformulieren!$E411=\"5 onwel / ziek\",vakformulieren!$E411=\"5 milieuschade\"),vakformulieren!$E405,\"\")","v":""},{"$f":"IF(OR(vakformulieren!$E411=\"5 letsel\",vakformulieren!$E411=\"5 onwel / ziek\",vakformulieren!$E411=\"5 milieuschade\"),vakformulieren!$V411,\"\")","v":""},null,null,null,null,{"$f":"IF(AND(OR(vakformulieren!$E411=\"5 letsel\",vakformulieren!$E411=\"5 onwel / ziek\",vakformulieren!$E411=\"5 milieuschade\"),vakformulieren!$E405>0),SUM(vakformulieren!$P405/8),\"\")","v":""}]
[{"$f":"IF(OR(vakformulieren!$E406=\"5 letsel\",vakformulieren!$E406=\"5 onwel / ziek\",vakformulieren!$E406=\"5 milieuschade\"),vakformulieren!$A406,\"\")","v":""},"",{"$f":"IF(OR(vakformulieren!$E412=\"5 letsel\",vakformulieren!$E412=\"5 onwel / ziek\",vakformulieren!$E412=\"5 milieuschade\"),vakformulieren!$C406,\"\")","v":""},{"$f":"IF(OR(vakformulieren!$E412=\"5 letsel\",vakformulieren!$E412=\"5 onwel / ziek\",vakformulieren!$E412=\"5 milieuschade\"),vakformulieren!$E406,\"\")","v":""},{"$f":"IF(OR(vakformulieren!$E412=\"5 letsel\",vakformulieren!$E412=\"5 onwel / ziek\",vakformulieren!$E412=\"5 milieuschade\"),vakformulieren!$V412,\"\")","v":""},null,null,null,null,{"$f":"IF(AND(OR(vakformulieren!$E412=\"5 letsel\",vakformulieren!$E412=\"5 onwel / ziek\",vakformulieren!$E412=\"5 milieuschade\"),vakformulieren!$E406>0),SUM(vakformulieren!$P406/8),\"\")","v":""}]
[{"$f":"IF(OR(vakformulieren!$E407=\"5 letsel\",vakformulieren!$E407=\"5 onwel / ziek\",vakformulieren!$E407=\"5 milieuschade\"),vakformulieren!$A407,\"\")","v":""},"",{"$f":"IF(OR(vakformulieren!$E413=\"5 letsel\",vakformulieren!$E413=\"5 onwel / ziek\",vakformulieren!$E413=\"5 milieuschade\"),vakformulieren!$C407,\"\")","v":""},{"$f":"IF(OR(vakformulieren!$E413=\"5 letsel\",vakformulieren!$E413=\"5 onwel / ziek\",vakformulieren!$E413=\"5 milieuschade\"),vakformulieren!$E407,\"\")","v":""},{"$f":"IF(OR(vakformulieren!$E413=\"5 letsel\",vakformulieren!$E413=\"5 onwel / ziek\",vakformulieren!$E413=\"5 milieuschade\"),vakformulieren!$V413,\"\")","v":""},null,null,null,null,{"$f":"IF(AND(OR(vakformulieren!$E413=\"5 letsel\",vakformulieren!$E413=\"5 onwel / ziek\",vakformulieren!$E413=\"5 milieuschade\"),vakformulieren!$E407>0),SUM(vakformulieren!$P407/8),\"\")","v":""}]
[{"$f":"IF(OR(vakformulieren!$E408=\"5 letsel\",vakformulieren!$E408=\"5 onwel / ziek\",vakformulieren!$E408=\"5 milieuschade\"),vakformulieren!$A408,\"\")","v":""},"",{"$f":"IF(OR(vakformulieren!$E414=\"5 letsel\",vakformulieren!$E414=\"5 onwel / ziek\",vakformulieren!$E414=\"5 milieuschade\"),vakformulieren!$C408,\"\")","v":""},{"$f":"IF(OR(vakformulieren!$E414=\"5 letsel\",vakformulieren!$E414=\"5 onwel / ziek\",vakformulieren!$E414=\"5 milieuschade\"),vakformulieren!$E408,\"\")","v":""},{"$f":"IF(OR(vakformulieren!$E414=\"5 letsel\",vakformulieren!$E414=\"5 onwel / ziek\",vakformulieren!$E414=\"5 milieuschade\"),vakformulieren!$V414,\"\")","v":""},null,null,null,null,{"$f":"IF(AND(OR(vakformulieren!$E414=\"5 letsel\",vakformulieren!$E414=\"5 onwel / ziek\",vakformulieren!$E414=\"5 milieuschade\"),vakformulieren!$E408>0),SUM(vakformulieren!$P408/8),\"\")","v":""}]
[{"$f":"IF(OR(vakformulieren!$E409=\"5 letsel\",vakformulieren!$E409=\"5 onwel / ziek\",vakformulieren!$E409=\"5 milieuschade\"),vakformulieren!$A409,\"\")","v":""},"",{"$f":"IF(OR(vakformulieren!$E415=\"5 letsel\",vakformulieren!$E415=\"5 onwel / ziek\",vakformulieren!$E415=\"5 milieuschade\"),vakformulieren!$C409,\"\")","v":""},{"$f":"IF(OR(vakformulieren!$E415=\"5 letsel\",vakformulieren!$E415=\"5 onwel / ziek\",vakformulieren!$E415=\"5 milieuschade\"),vakformulieren!$E409,\"\")","v":""},{"$f":"IF(OR(vakformulieren!$E415=\"5 letsel\",vakformulieren!$E415=\"5 onwel / ziek\",vakformulieren!$E415=\"5 milieuschade\"),vakformulieren!$V415,\"\")","v":""},null,null,null,null,{"$f":"IF(AND(OR(vakformulieren!$E415=\"5 letsel\",vakformulieren!$E415=\"5 onwel / ziek\",vakformulieren!$E415=\"5 milieuschade\"),vakformulieren!$E409>0),SUM(vakformulieren!$P409/8),\"\")","v":""}]
[{"$f":"IF(OR(vakformulieren!$E410=\"5 letsel\",vakformulieren!$E410=\"5 onwel / ziek\",vakformulieren!$E410=\"5 milieuschade\"),vakformulieren!$A410,\"\")","v":""},"",{"$f":"IF(OR(vakformulieren!$E416=\"5 letsel\",vakformulieren!$E416=\"5 onwel / ziek\",vakformulieren!$E416=\"5 milieuschade\"),vakformulieren!$C410,\"\")","v":""},{"$f":"IF(OR(vakformulieren!$E416=\"5 letsel\",vakformulieren!$E416=\"5 onwel / ziek\",vakformulieren!$E416=\"5 milieuschade\"),vakformulieren!$E410,\"\")","v":""},{"$f":"IF(OR(vakformulieren!$E416=\"5 letsel\",vakformulieren!$E416=\"5 onwel / ziek\",vakformulieren!$E416=\"5 milieuschade\"),vakformulieren!$V416,\"\")","v":""},null,null,null,null,{"$f":"IF(AND(OR(vakformulieren!$E416=\"5 letsel\",vakformulieren!$E416=\"5 onwel / ziek\",vakformulieren!$E416=\"5 milieuschade\"),vakformulieren!$E410>0),SUM(vakformulieren!$P410/8),\"\")","v":""}]
[{"$f":"IF(OR(vakformulieren!$E411=\"5 letsel\",vakformulieren!$E411=\"5 onwel / ziek\",vakformulieren!$E411=\"5 milieuschade\"),vakformulieren!$A411,\"\")","v":""},"",{"$f":"IF(OR(vakformulieren!$E417=\"5 letsel\",vakformulieren!$E417=\"5 onwel / ziek\",vakformulieren!$E417=\"5 milieuschade\"),vakformulieren!$C411,\"\")","v":""},{"$f":"IF(OR(vakformulieren!$E417=\"5 letsel\",vakformulieren!$E417=\"5 onwel / ziek\",vakformulieren!$E417=\"5 milieuschade\"),vakformulieren!$E411,\"\")","v":""},{"$f":"IF(OR(vakformulieren!$E417=\"5 letsel\",vakformulieren!$E417=\"5 onwel / ziek\",vakformulieren!$E417=\"5 milieuschade\"),vakformulieren!$V417,\"\")","v":""},null,null,null,null,{"$f":"IF(AND(OR(vakformulieren!$E417=\"5 letsel\",vakformulieren!$E417=\"5 onwel / ziek\",vakformulieren!$E417=\"5 milieuschade\"),vakformulieren!$E411>0),SUM(vakformulieren!$P411/8),\"\")","v":""}]
[{"$f":"IF(OR(vakformulieren!$E412=\"5 letsel\",vakformulieren!$E412=\"5 onwel / ziek\",vakformulieren!$E412=\"5 milieuschade\"),vakformulieren!$A412,\"\")","v":""},"",{"$f":"IF(OR(vakformulieren!$E418=\"5 letsel\",vakformulieren!$E418=\"5 onwel / ziek\",vakformulieren!$E418=\"5 milieuschade\"),vakformulieren!$C412,\"\")","v":""},{"$f":"IF(OR(vakformulieren!$E418=\"5 letsel\",vakformulieren!$E418=\"5 onwel / ziek\",vakformulieren!$E418=\"5 milieuschade\"),vakformulieren!$E412,\"\")","v":""},{"$f":"IF(OR(vakformulieren!$E418=\"5 letsel\",vakformulieren!$E418=\"5 onwel / ziek\",vakformulieren!$E418=\"5 milieuschade\"),vakformulieren!$V418,\"\")","v":""},null,null,null,null,{"$f":"IF(AND(OR(vakformulieren!$E418=\"5 letsel\",vakformulieren!$E418=\"5 onwel / ziek\",vakformulieren!$E418=\"5 milieuschade\"),vakformulieren!$E412>0),SUM(vakformulieren!$P412/8),\"\")","v":""}]
[{"$f":"IF(OR(vakformulieren!$E413=\"5 letsel\",vakformulieren!$E413=\"5 onwel / ziek\",vakformulieren!$E413=\"5 milieuschade\"),vakformulieren!$A413,\"\")","v":""},"",{"$f":"IF(OR(vakformulieren!$E419=\"5 letsel\",vakformulieren!$E419=\"5 onwel / ziek\",vakformulieren!$E419=\"5 milieuschade\"),vakformulieren!$C413,\"\")","v":""},{"$f":"IF(OR(vakformulieren!$E419=\"5 letsel\",vakformulieren!$E419=\"5 onwel / ziek\",vakformulieren!$E419=\"5 milieuschade\"),vakformulieren!$E413,\"\")","v":""},{"$f":"IF(OR(vakformulieren!$E419=\"5 letsel\",vakformulieren!$E419=\"5 onwel / ziek\",vakformulieren!$E419=\"5 milieuschade\"),vakformulieren!$V419,\"\")","v":""},null,null,null,null,{"$f":"IF(AND(OR(vakformulieren!$E419=\"5 letsel\",vakformulieren!$E419=\"5 onwel / ziek\",vakformulieren!$E419=\"5 milieuschade\"),vakformulieren!$E413>0),SUM(vakformulieren!$P413/8),\"\")","v":""}]
[{"$f":"IF(OR(vakformulieren!$E414=\"5 letsel\",vakformulieren!$E414=\"5 onwel / ziek\",vakformulieren!$E414=\"5 milieuschade\"),vakformulieren!$A414,\"\")","v":""},"",{"$f":"IF(OR(vakformulieren!$E420=\"5 letsel\",vakformulieren!$E420=\"5 onwel / ziek\",vakformulieren!$E420=\"5 milieuschade\"),vakformulieren!$C414,\"\")","v":""},{"$f":"IF(OR(vakformulieren!$E420=\"5 letsel\",vakformulieren!$E420=\"5 onwel / ziek\",vakformulieren!$E420=\"5 milieuschade\"),vakformulieren!$E414,\"\")","v":""},{"$f":"IF(OR(vakformulieren!$E420=\"5 letsel\",vakformulieren!$E420=\"5 onwel / ziek\",vakformulieren!$E420=\"5 milieuschade\"),vakformulieren!$V420,\"\")","v":""},null,null,null,null,{"$f":"IF(AND(OR(vakformulieren!$E420=\"5 letsel\",vakformulieren!$E420=\"5 onwel / ziek\",vakformulieren!$E420=\"5 milieuschade\"),vakformulieren!$E414>0),SUM(vakformulieren!$P414/8),\"\")","v":""}]
[]
[null,null,null,null,null,null,null,null,null,{"$f":"IF(AND(OR(vakformulieren!$E312=\"5 letsel\",vakformulieren!$E312=\"5 onwel / ziek\",vakformulieren!$E312=\"5 milieuschade\"),vakformulieren!$E312>0),SUM(vakformulieren!$P312/8),\"\")","v":""}]
[null,null,null,null,null,null,null,null,null,{"$f":"IF(AND(OR(vakformulieren!$E313=\"5 letsel\",vakformulieren!$E313=\"5 onwel / ziek\",vakformulieren!$E313=\"5 milieuschade\"),vakformulieren!$E313>0),SUM(vakformulieren!$P313/8),\"\")","v":""}]
[null,null,null,null,null,null,null,null,null,{"$f":"IF(AND(OR(vakformulieren!$E314=\"5 letsel\",vakformulieren!$E314=\"5 onwel / ziek\",vakformulieren!$E314=\"5 milieuschade\"),vakformulieren!$E314>0),SUM(vakformulieren!$P314/8),\"\")","v":""}]
[null,null,null,null,null,null,null,null,"= nog niet bekend",{"$f":"IF(AND(OR(vakformulieren!$E315=\"5 letsel\",vakformulieren!$E315=\"5 onwel / ziek\",vakformulieren!$E315=\"5 milieuschade\"),vakformulieren!$E315>0),SUM(vakformulieren!$P315/8),\"\")","v":""}]
[null,null,null,null,null,null,null,null,null,{"$f":"IF(AND(OR(vakformulieren!$E316=\"5 letsel\",vakformulieren!$E316=\"5 onwel / ziek\",vakformulieren!$E316=\"5 milieuschade\"),vakformulieren!$E316>0),SUM(vakformulieren!$P316/8),\"\")","v":""}]
[{"$f":"IF(OR(vakformulieren!$E320=\"5 letsel\",vakformulieren!$E320=\"5 onwel / ziek\",vakformulieren!$E320=\"5 milieuschade\"),vakformulieren!$A320,\"\")","v":""},{"$f":"IF($A422>\"\",HYPERLINK(CONCATENATE($AL$1,$A422,$AK$1),$A422),\"\")","v":""},{"$f":"IF(OR(vakformulieren!$E320=\"5 letsel\",vakformulieren!$E320=\"5 onwel / ziek\",vakformulieren!$E320=\"5 milieuschade\"),vakformulieren!$C320,\"\")","v":""},{"$f":"IF(OR(vakformulieren!$E320=\"5 letsel\",vakformulieren!$E320=\"5 onwel / ziek\",vakformulieren!$E320=\"5 milieuschade\"),vakformulieren!$E320,\"\")","v":""}]

{"sheet":"bedrijven","index":2,"n_rows":7,"n_cols":1,"rows_kept":7,"cut":false,"hidden":false,"merged":[]}
["Cleanfors"]
["Dagbesteding"]
["Eemfors"]
["Facilifors"]
["Metafors"]
["Productie"]
["Werksupport"]

{"sheet":"categorie","index":3,"n_rows":9,"n_cols":2,"rows_kept":9,"cut":false,"hidden":false,"merged":[[0,0,0,1]]}
["categorie:"]
[1,"verbetering"]
[2,"afwijking"]
[3,"klacht intern"]
[4,"klacht extern"]
[5,"(bijna)incident"]
[6,"corrigerend"]
[7,"preventief"]
[8,"vervallen"]

{"sheet":"soort","index":4,"n_rows":11,"n_cols":15,"rows_kept":11,"cut":false,"hidden":false,"merged":[[0,0,0,14]]}
["soort:"]
["1 Plan van aanpak RI&E",null,"2 creditnota",null,"3 communicatie",null,"4 communicatie",null,"5 bijna-ongeval",null,"6 corrigerende maatregel",null,"7 preventieve maatregel",null,"8 vervallen"]
["1 procedure",null,"2 interne/externe audit",null,"3 fout productie",null,"4 factuur",null,"5 brand"]
["1 werkmethode-verbetering",null,"2 leveranties",null,"3 keuring",null,"4 gedrag medewerker",null,"5 diefstal"]
[null,null,"2 werkplekinspectie",null,"3 materieel (onderhoud)",null,"4 kwaliteit geleverd werk",null,"5 incident"]
[null,null,null,null,"3 milieu",null,"4 milieu",null,"5 letsel"]
[null,null,null,null,"3 pbm",null,"4 offerte",null,"5 materiële schade"]
[null,null,null,null,"3 planning",null,"4 reactiesnelheid",null,"5 milieuschade"]
[null,null,null,null,"3 wachttijd",null,"4 veilig werken",null,"5 onveilige situatie"]
[null,null,null,null,"3 werk uitvoeren",null,"4 overig",null,"5 onwel / ziek"]
[null,null,null,null,"3 overig",null,null,null,"5 overig"]

{"sheet":"maatregel","index":5,"n_rows":6,"n_cols":1,"rows_kept":6,"cut":false,"hidden":false,"merged":[]}
["maatregel:"]
["5 proc. gewijzigd"]
["5 interpr. besproken"]
["5 discipline aangescherpt"]
["5 corr/prev maatr genomen"]
["5 verbetersuggestie"]

{"sheet":"klanttevredenheid","index":6,"n_rows":7,"n_cols":2,"rows_kept":7,"cut":false,"hidden":false,"merged":[[0,0,0,1]]}
["klanttevredenheid:"]
[0,"niet ingevuld"]
[3,"ontevreden"]
[5,"matig tevreden"]
[7,"tevreden"]
[9,"zeer tevreden"]
["Geen mening","Geen mening"]

{"sheet":"afdeling","index":7,"n_rows":35,"n_cols":29,"rows_kept":35,"cut":false,"hidden":false,"merged":[[0,26,0,28],[0,22,0,24],[0,0,0,4],[0,6,0,8],[0,10,0,12],[0,14,0,16],[0,18,0,20]]}
["afdelingen Eemfors",null,null,null,null,null,"afdelingen Cleanfors",null,null,null,"afdelingen Dagbesteding",null,null,null,"afdelingen Productie:",null,null,null,"afdelingen Werksupport:",null,null,null,"afdelingen Facilifors:",null,null,null,"afdelingen Metafors:"]
["Bestek:","Soort:","Afdeling:","praktijk-begeleider:","Unitmanager",null,"Afdelingen:","praktijk-begeleider:","Unitmanager:",null,"Afdelingen:","praktijk-begeleider:","Unitmanager:",null,"Afdelingen:","praktijk-begeleider:","Unitmanager:",null,"Afdelingen:","praktijk-begeleider:","Unitmanager:",null,"Afdelingen:","praktijk-begeleider:","Unitmanager:",null,"Afdelingen:","praktijk-begeleider:","Unitmanager:"]
["Arbodienst","n.v.t.","Arbodienst",null,null,null,"Arbodienst",null,null,null,"Arbodienst",null,null,null,"Arbodienst",null,null,null,"Arbodienst",null,null,null,"Arbodienst",null,null,null,"Algemeen"]
["Bedrijfsbureau","n.v.t.","Bedrijfsbureau","vacant",null,null,"Bedrijfsbureau","vacant","M. van Wijk",null,"administratie declaraties","N. Landzaat",null,null,"Bedrijfsbureau",null,null,null,"Amerfoort Extra Team Dames",null,"Paul Naus",null,"Communicatie",null,null,null,"Arbodienst"]
["Centrale bedrijfsadministratie","n.v.t.","Centrale bedrijfsadministratie","N. Landzaat",null,null,"Centrale bedrijfsadministratie","N. Landzaat",null,null,"Bedrijfsbureau","vacant",null,null,"Centrale bedrijfsadministratie","N. Landzaat",null,null,"Amerfoort Extra Team Heren",null,null,null,"Directie",null,null,null,"Centrale Bedrijfsadministratie"]
["Eemfors Algemeen","n.v.t.","Eemfors Algemeen","M. van Wijk",null,null,"Cleanfors algemeen","n.v.t.","P. Naus",null,"Centrale bedrijfsadministratie","N. Landzaat",null,null,"Extern",null,"n.v.t.",null,"Bedrijfsbureau","vacant",null,null,"extern",null,null,null,"Extern"]
["Extern","n.v.t.","Extern",null,null,null,"Cleanfors glasbewassing","G. Klomp","P. Naus",null,"dagbesteding",null,null,null,"Facilitair","H. Zitzmann","R. de Koning",null,"Centrale bedrijfsadministratie","N. Landzaat",null,null,"Facilitair","H. Zitzmann",null,null,"Facilitair"]
["Facilitair","n.v.t.","Facilitair","H. Zitzmann",null,null,"Cleanfors regio Erwin Huizenga","E. Huizenga","P. Naus",null,"Extern","E. Engels",null,null,"Flexigroep",null,null,null,"Detacheringen",null,null,null,"Financiën",null,null,null,"Hapam"]
["KAM","n.v.t.","KAM","B. Gussenhoven",null,null,"Cleanfors regio Peter Peeters","P. Peetersen","P. Naus",null,"Facilitair","H. Zitzmann",null,null,"Geesa",null,"V. van de Heijden",null,"Extern",null,null,null,"Horeca & Aandacht",null,null,null,"inkoop/uitbesteding"]
["Management","n.v.t.","Management",null,null,null,"Cleanfors regio Magdalena Jacznik","M. Jacznik","P. Naus",null,"KAM","B. Gussenhoven",null,null,"Groepsdetachering 3M GTI","H. van Rees","V. van de Heijden",null,"Facilitair","H. Zitzmann",null,null,"Personeelszaken",null,null,null,"KAM"]
["Melddesk A'foort","n.v.t.","Melddesk A'foort","Krijt",null,null,"Extern",null,null,null,"Magazijn","H. Zitzmann",null,null,"Groepsdetachering Bakker","H. Alici","V. van de Heijden",null,"Horeca & Aandacht",null,null,null,null,null,null,null,"Lasserij"]
["Opleidingen","n.v.t.","Opleidingen","E. Dijkhuizen",null,null,"Facilitair","H. Zitzmann",null,null,"Management",null,"V. van de Heijden",null,"Groepsdetachering Banc tec","W. Gouw","V. van de Heijden",null,"KAM","B. Gussenhoven",null,null,null,null,null,null,"Magazijn"]
["Personeelszaken","n.v.t.","Personeelszaken","M. Dijks-Lam",null,null,"KAM","B. Gussenhoven",null,null,"Personeelszaken",null,"M. Huiskes",null,"Groepsdetachering gemeente Amersfoort",null,"V. van de Heijden",null,"Klussenbureau",null,null,null,null,null,null,null,"Management"]
["Amersfoort 1","Gebiedsgericht","Amersfoort 1 Leusderkwartier / Vermeerkwartier / /bergkwartier incl. bosgebied","Jeffrey van Kleinwee",null,null,"Magazijn","H. Zitzmann",null,null,null,null,null,null,"Groepsdetachering Kitting","H. van Rees","V. van de Heijden",null,"Magazijn","H. Zitzmann",null,null,null,null,null,null,"Montage"]
["Amersfoort 2","Gebiedsgericht","Amersfoort 2 Randenbroek / Schuilenburg / Stoutenburg","Jeffrey van Kleinwee",null,null,"Management",null,"P. Naus",null,null,null,null,null,"Groepsdetachering Meander",null,"V. van de Heijden",null,"Management",null,null,null,null,null,null,null,"P&O"]
["Amersfoort 3","Gebiedsgericht","Amersfoort 3 Zielhorst / De Hoef","Jeffrey van Kleinwee",null,null,"Opleidingen","E. Dijkhuizen","M. Huiskes",null,null,null,null,null,"Groepsdetachering Post.nl","H. van Rees","V. van de Heijden",null,"Motiva Straatadvocaten",null,null,null,null,null,null,null,"Personeelszaken"]
["Amersfoort 4","Gebiedsgericht","Amersfoort 4 Nieuwland / Hoogland-west","Bas Visser",null,null,"Personeelszaken","I. Kolfschoten","M. Huiskes",null,null,null,null,null,"Groepsdetachering Umefa","K. Schouten","V. van de Heijden",null,"Personeelszaken",null,null,null,null,null,null,null,"Plaatbewerking"]
["Amersfoort 5","Gebiedsgericht","Amersfoort 5 Kruiskamp / Koppel / Binnenstad ","Bas Visser",null,null,"Technische Dienst","H. Zitzmann",null,null,null,null,null,null,"Groepsdetachering Van Straaten Post","J. Heek",null,null,"Trajecten",null,null,null,null,null,null,null,"Post"]
["Amersfoort 6","Gebiedsgericht","Amersfoort 6 Hoogland /Kattenbroek","Bert Rheiter",null,null,"Technische Dienst","H. Zitzmann",null,null,null,null,null,null,"Horeca & Aandacht","M. Kemp","V. van de Heijden",null,null,null,null,null,null,null,null,null,"Tekenkamer"]
["Amersfoort 7","Gebiedsgericht","Amersfoort 7 Parken","Bert Rheiter",null,null,null,null,null,null,null,null,null,null,"KAM","B. Gussenhoven","L. Maas",null,null,null,null,null,null,null,null,null,"Verspaning"]
["Amersfoort 8","Gebiedsgericht","Amersfoort 8 Soesterkwartier / De Isselt ","Ton van Westerlaak",null,null,null,null,null,null,null,null,null,null,"Magazijn","D. Melchers","V. van de Heijden",null,null,null,null,null,null,null,null,null,"Werkvoorbereiding"]
["Amersfoort 10","Gebiedsgericht","Amersfoort 10 De Wieken","Henk de Knegt",null,null,null,null,null,null,null,null,null,null,"Mailfors","W. Gouw","V. van de Heijden",null,null,null,null,null,null,null,null,null,"zware hal"]
["Soest","Gebiedsgericht","Soest","Henk de Knegt",null,null,null,null,null,null,null,null,null,null,"Management",null,"V. van de Heijden"]
["Baarn","Gebiedsgericht","Baarn ","Jan van Altena",null,null,null,null,null,null,null,null,null,null,"Personeelszaken",null,"M. Huiskes"]
["Leusden","Gebiedsgericht","Leusden ","Jan van Altena",null,null,null,null,null,null,null,null,null,null,"Productie",null,"V. van de Heijden"]
["Bunschoten","Gebiedsgericht","Bunschoten","Jan van Altena",null,null,null,null,null,null,null,null,null,null,"Verpakken 1","M. Polman","V. van de Heijden"]
["Overige gemeente","Gebiedsgericht","Overige gemeente Begraafplaats Oud Leusden","Jan van Altena",null,null,null,null,null,null,null,null,null,null,"Verpakken 2","M. Gitz","V. van de Heijden"]
["Overige gemeente","Gebiedsgericht","Overige gemeente Waterschap",null,null,null,null,null,null,null,null,null,null,null,"Verpakken 3","M. Coljee","V. van de Heijden"]
["Machinaal","Vakgericht","Machinaal Machinaal groen","Bert Rheiter",null,null,null,null,null,null,null,null,null,null,"Verpakken 4",null,"V. van de Heijden"]
["Service & Directie","Vakgericht","Service & Directie Service & civiel","Leo van de Wakker",null,null,null,null,null,null,null,null,null,null,"WAS","R. Klasens","V. van de Heijden"]
["Amersfoort 9","Vakgericht","Amersfoort 9 Bedrijven & Instellingen","Hans van Vuurde"]
["Amersfoort 9","Vakgericht","Amersfoort 9 Speelvoorzieningen","Hans van Vuurde"]
["Amersfoort 9","Vakgericht","Amersfoort 9 Bomen","Hans van Vuurde"]
["Machinaal","Vakgericht","Machinaal grijs","Ton van Westerlaak"]
["Technische Dienst","Vakgericht","Technische Dienst","Geurt Ruitenbeek"]

{"sheet":"matrix faalkosten","index":8,"n_rows":18,"n_cols":7,"rows_kept":18,"cut":false,"hidden":false,"merged":[[0,0,0,12],[1,0,1,12],[6,0,7,0],[2,2,2,12],[3,2,3,12],[5,2,5,12],[6,2,6,12],[7,2,7,12],[2,0,3,0],[8,0,15,0],[10,1,15,1],[17,0,17,12],[4,0,5,0],[8,2,8,12],[9,2,9,12],[10,2,10,5],[13,2,13,5],[11,2,11,5],[12,2,12,5]]}
["Berekening Faalkosten n.a.v. VAK-formulier "]
["Onderstaand overzicht is de leidraad voor het berekenen van de kosten die verbonden zijn aan het oplossen / repareren van een melding die via de VAK-formulieren aangemeld worden"]
["Verloren tijd:","Definitie:","De menselijke capaciteit die verloren is gegaan door het falen"]
[null,"Berekening:","Aantal uren * € 20,-"]
["Materiaal:","Definitie:","De grondstoffen die verloren zijn gegaan door het falen (ook indien deze deels hergebruikt kunnen worden)"]
[null,"Berekening:","Verloren tijd + (Vervangingswaarde per eenheid * hoeveelheid verloren eenheden)"]
["Schade:","Definitie:","De materiele schade aan voertuigen / machines / gereedschappen / gebouwen"]
[null,"Berekening:","Verloren tijd + Herstel / vervangingswaarde"]
["Externe klacht:","Definitie:","Klacht van klant / andere betrokkenen (bewoners e.d.)"]
[null,"Berekening:","Verloren Tijd + Materiaal nodig voor herstel + Fictief schadebedrag"]
[null,"Fictief Schadebedrag:","Overige klachten (bewoners e.d.)",null,null,null,100]
[null,null,"melding in rood (per dag)",null,null,null,250]
[null,null,"ingebrekestelling",null,null,null,"variabel"]
[null,null,"klantenklacht klein",null,null,null,200]
[null,null,"klantenklacht groot",null,null,null,500]
[null,null,"klantenklacht opzegging",null,null,null,"jaaromzet"]
[]
["Analyse van de cumulatieven per kwartaal/jaar met uitsplitsing naar afdelingen / leidinggevenden etc."]

{"sheet":"indeling externe klachten","index":9,"n_rows":6,"n_cols":2,"rows_kept":6,"cut":false,"hidden":false,"merged":[[0,0,0,1]]}
["externe klachten:"]
["nr:","soort:"]
[1,"Overige klachten (bewoners e.d.)"]
[2,"melding in rood (per dag)"]
[3,"ingebrekestelling"]
[4,"klantenklachten"]

{"sheet":"Vergelijk incidenten ","index":10,"n_rows":31,"n_cols":10,"rows_kept":31,"cut":false,"hidden":false,"merged":[]}
[null,"Overzicht incidenten Amfors"]
[]
[]
[null,"Periode 2014"]
[]
[null,"Bedrijf","Soort incident"]
[null,null,"Bijna ongeval","Diefstal","Incident","Letsel","Mat. schade","Onveilige situatie","Onwel/ziek","Eindtotaal"]
[null,"Cleanfors",null,1,1,2,null,null,1,5]
[null,"Dagbesteding",null,null,2,null,null,1,null,3]
[null,"Eemfors",3,14,4,20,42,4,2,89]
[null,"Facilifors",null,1,null,1,1,null,null,3]
[null,"Metafors",null,null,null,1,1,null,null,2]
[null,"Productie",null,null,1,4,1,1,3,10]
[null,"Werksupport",null,null,null,1,null,null,1,2]
[null,"Eindtotaal",3,16,8,29,45,6,7,114]
[]
[]
[null,"Periode 2015 t/m 15-9"]
[]
[null,"Bedrijf","Soort incident"]
[null,null,"Brand","Diefstal","Incident","Letsel","Mat. schade","Onveilige situatie","Onwel/ziek","Eindtotaal"]
[null,"Cleanfors",null,null,2,4,2,null,2,10]
[null,"Eemfors",4,10,3,8,29,1,null,53]
[null,"Facilifors",null,null,null,2,null,null,null,2]
[null,"Metafors",null,1,null,1,null,null,1,3]
[null,"Productie",null,null,2,7,1,null,4,14]
[null,"Werksupport",null,null,null,2,null,null,null,2]
[null,"Eindtotaal",4,11,7,24,32,1,7,84]
[]
[null,"Extrapoleren t/m dec '15",{"$f":"C28/9*12","v":5.333333333333333},14.666666666666668,9.3333333333333339,32,42.666666666666664,1.3333333333333333,9.3333333333333339,{"$f":"J28/9*12","v":112}]
[null,"Eindtotaal 2014",3,16,8,29,45,6,7,114]

{"sheet":"Blad1","index":11,"n_rows":11,"n_cols":9,"rows_kept":11,"cut":false,"hidden":false,"merged":[]}
[]
[]
["Aantal van Soort:","Kolomlabels"]
["Rijlabels","5 brand","5 diefstal","5 incident","5 letsel","5 materiële schade","5 onveilige situatie","5 onwel / ziek","Eindtotaal"]
["Cleanfors",null,null,2,4,2,null,2,10]
["Eemfors",4,10,3,8,29,1,null,55]
["Facilifors",null,null,null,2,null,null,null,2]
["Metafors",null,1,null,1,null,null,1,3]
["Productie",null,null,2,7,1,null,4,14]
["Werksupport",null,null,null,2,null,null,null,2]
["Eindtotaal",4,11,7,24,32,1,7,86]

{"sheet":"Blad4","index":12,"n_rows":89,"n_cols":2,"rows_kept":89,"cut":false,"hidden":false,"merged":[]}
[]
[]
["bedrijf:","Soort:"]
["Productie","5 incident"]
["Productie","5 letsel"]
["Eemfors","5 letsel"]
["Eemfors","5 letsel"]
["Productie","5 onwel / ziek"]
["Metafors","5 onwel / ziek"]
["Eemfors","5 letsel"]
["Eemfors","5 materiële schade"]
["Eemfors","5 letsel"]
["Eemfors","5 materiële schade"]
["Eemfors","5 materiële schade"]
["Eemfors","5 materiële schade"]
["Productie","5 letsel"]
["Productie","5 incident"]
["Eemfors","5 onveilige situatie"]
["Eemfors","5 materiële schade"]
["Productie","5 letsel"]
["Eemfors","5 materiële schade"]
["Eemfors","5 incident"]
["Eemfors","5 materiële schade"]
["Eemfors","5 materiële schade"]
["Cleanfors","5 incident"]
["Eemfors","5 letsel"]
["Eemfors","5 diefstal"]
["Productie","5 letsel"]
["Eemfors","5 diefstal"]
["Eemfors","5 diefstal"]
["Eemfors","5 diefstal"]
["Eemfors","5 materiële schade"]
["Eemfors","5 diefstal"]
["Eemfors","5 materiële schade"]
["Eemfors","5 incident"]
["Cleanfors","5 letsel"]
["Eemfors","5 materiële schade"]
["Facilifors","5 letsel"]
["Eemfors","5 materiële schade"]
["Cleanfors","5 onwel / ziek"]
["Eemfors","5 materiële schade"]
["Eemfors","5 materiële schade"]
["Eemfors","5 materiële schade"]
["Eemfors","5 materiële schade"]
["Werksupport","5 letsel"]
["Eemfors","5 letsel"]
["Cleanfors","5 materiële schade"]
["Cleanfors","5 letsel"]
["Cleanfors","5 onwel / ziek"]
["Eemfors","5 materiële schade"]
["Productie","5 letsel"]
["Eemfors","5 materiële schade"]
["Eemfors","5 letsel"]
["Productie","5 materiële schade"]
["Eemfors","5 materiële schade"]
["Eemfors","5 diefstal"]
["Productie","5 onwel / ziek"]
["Eemfors","5 materiële schade"]
["Cleanfors","5 letsel"]
["Productie","5 onwel / ziek"]
["Werksupport","5 letsel"]
["Facilifors","5 letsel"]
["Cleanfors","5 materiële schade"]
["Metafors","5 diefstal"]
["Eemfors","5 diefstal"]
["Cleanfors","5 incident"]
["Eemfors","5 diefstal"]
["Eemfors","5 materiële schade"]
["Eemfors","5 materiële schade"]
["Eemfors","5 brand"]
["Eemfors","5 brand"]
["Productie","5 letsel"]
["Eemfors","5 letsel"]
["Eemfors","5 diefstal"]
["Eemfors","5 materiële schade"]
["Eemfors","5 brand"]
["Productie","5 onwel / ziek"]
["Metafors","5 letsel"]
["Eemfors","5 materiële schade"]
["Eemfors","5 materiële schade"]
["Eemfors","5 diefstal"]
["Cleanfors","5 letsel"]
["Eemfors","5 brand"]
["Eemfors","5 materiële schade"]
["Productie","5 letsel"]
["Eemfors","5 materiële schade"]
["Eemfors","5 incident"]
["Eemfors","5 materiële schade"]
["Eemfors","5 materiële schade"]